Workbook

Sheet PI vs gap
A1: Measurement | B1: Hall
A2: Type | B2: Gap dependence
A4: Project | B4: ='10 mm'!B5 -> 504314
A5: PS serial no | B5: ='10 mm'!B7 -> 2410090
A7: Measurement date | B7: =LEFT('10 mm'!B4,10) -> 03-09-2024
A11: Nominal gap [mm] | B11: Encoder [counts] | C11: Encoder [mm] | D11: PI [T^2mm^3] | E11: PI spec [T^2mm^3] | F11: Encoder value at 10 mm gap:
A12: ='10 mm'!$B$53 -> 10 | B12: ='10 mm'!$B$55 -> 19.6225 | C12: =-1*($F$12-B12)+10 -> 10.0005 | D12: ='10 mm'!$K$3 -> 10692.4654 | F12: 19.622
A13: ='15 mm'!$B$53 -> 15 | B13: ='15 mm'!$B$55 -> 24.624 | C13: =-1*($F$12-B13)+10 -> 15.002 | D13: ='15 mm'!$K$3 -> 7312.885671
A14: ='20 mm'!$B$53 -> 20 | B14: ='20 mm'!$B$55 -> 29.6241 | C14: 20.0021 | D14: ='20 mm'!$K$3 -> 5055.633746
A15: ='30 mm'!$B$53 -> 30 | B15: ='30 mm'!$B$55 -> 39.6215 | C15: 29.9995 | D15: ='30 mm'!$K$3 -> 2487.532181
A16: ='100 mm'!$B$53 -> 100 | B16: ='100 mm'!$B$55 -> 109.6223 | C16: 100.0003 | D16: ='100 mm'!$K$3 -> 39.87137169
A47: Measuring series at larger gaps:
A48: Reference magnet
A49: Tref | B49: 21.38 | C49: degC
A50: Hall ref field | B50: 0.505 | C50: T
A51: NMR ref field | B51: 0.50627 | C51: T
A53: Offset from Faro

Sheet 10 mm
A1: =IF('DF raw data'!A1="","",'DF raw data'!A1) -> Number of header lines | B1: =IF('DF raw data'!B1="","",'DF raw data'!B1) -> 54 | C1: =IF('DF raw data'!C1="","",'DF raw data'!C1) ->  | D1: =IF('DF raw data'!D1="","",'DF raw data'!D1) ->  | F1: T_coeff | G1: -0.001 | H1: /degC | J1: IBy total | K1: =J1267*1000 -> 10.39575731 | L1: muTm | M1: =L1267*1000 -> -15.12037696 | R1: DF ref | S1: 1
A2: =IF('DF raw data'!A2="","",'DF raw data'!A2) -> Measured by | B2: =IF('DF raw data'!B2="","",'DF raw data'!B2) -> Danfysik | C2: =IF('DF raw data'!C2="","",'DF raw data'!C2) ->  | D2: =IF('DF raw data'!D2="","",'DF raw data'!D2) ->  | F2: Tcorr | G2: 20 | H2: degC | J2: JBy total | K2: =K1267 -> 1.801393238 | L2: muTm^2 | M2: =M1267 -> 0.002551531552
A3: =IF('DF raw data'!A3="","",'DF raw data'!A3) -> Operator | B3: =IF('DF raw data'!B3="","",'DF raw data'!B3) -> PMHA | C3: =IF('DF raw data'!C3="","",'DF raw data'!C3) ->  | D3: =IF('DF raw data'!D3="","",'DF raw data'!D3) ->  | F3: Step | G3: =A68-A67 -> 0.5 | H3: mm | J3: PI total | K3: =N1267 -> 10692.4654 | L3: T^2mm^3
A4: =IF('DF raw data'!A4="","",'DF raw data'!A4) -> Data-time | B4: =IF('DF raw data'!B4="","",'DF raw data'!B4) -> 03-09-2024, 12:43:57 | C4: =IF('DF raw data'!C4="","",'DF raw data'!C4) ->  | D4: =IF('DF raw data'!D4="","",'DF raw data'!D4) -> 
A5: =IF('DF raw data'!A5="","",'DF raw data'!A5) -> Project | B5: =IF('DF raw data'!B5="","",'DF raw data'!B5) -> 504314 | C5: =IF('DF raw data'!C5="","",'DF raw data'!C5) ->  | D5: Bamb avr | F5: =(AVERAGE(B67:B107) + AVERAGE(B1227:B1267))/2 -> -3.50405028e-05 | G5: =(AVERAGE(C67:C107) + AVERAGE(C1227:C1267))/2 -> 4.920498841e-05 | H5: =(AVERAGE(D67:D107) + AVERAGE(D1227:D1267))/2 -> -3.173748293e-05
A6: =IF('DF raw data'!A6="","",'DF raw data'!A6) -> Magnet type | B6: =IF('DF raw data'!B6="","",'DF raw data'!B6) -> Dipole | C6: =IF('DF raw data'!C6="","",'DF raw data'!C6) -> 
A7: =IF('DF raw data'!A7="","",'DF raw data'!A7) -> Magnet nr. | B7: =IF('DF raw data'!B7="","",'DF raw data'!B7) -> 2410090 | C7: =IF('DF raw data'!C7="","",'DF raw data'!C7) -> 
A8: =IF('DF raw data'!A8="","",'DF raw data'!A8) -> Meas. number | B8: =IF('DF raw data'!B8="","",'DF raw data'!B8) -> 328 | C8: =IF('DF raw data'!C8="","",'DF raw data'!C8) -> 
A9: =IF('DF raw data'!A9="","",'DF raw data'!A9) -> Add. info | B9: =IF('DF raw data'!B9="","",'DF raw data'!B9) -> Y-alignment scan 3) | C9: =IF('DF raw data'!C9="","",'DF raw data'!C9) ->  | D9: =IF('DF raw data'!D9="","",'DF raw data'!D9) -> 
A10: =IF('DF raw data'!A10="","",'DF raw data'!A10) -> Device | B10: =IF('DF raw data'!B10="","",'DF raw data'!B10) -> (HAL) HALL-PROBE | C10: =IF('DF raw data'!C10="","",'DF raw data'!C10) ->  | D10: =IF('DF raw data'!D10="","",'DF raw data'!D10) -> 
A11: =IF('DF raw data'!A11="","",'DF raw data'!A11) -> Goal | B11: =IF('DF raw data'!B11="","",'DF raw data'!B11) -> (AXI) AXis Integral (Line, EFB) | C11: =IF('DF raw data'!C11="","",'DF raw data'!C11) ->  | D11: =IF('DF raw data'!D11="","",'DF raw data'!D11) -> 
A12: =IF('DF raw data'!A12="","",'DF raw data'!A12) -> Power supply mode | B12: =IF('DF raw data'!B12="","",'DF raw data'!B12) -> (PM) Permanent Magnet (no MPS in use) | C12: =IF('DF raw data'!C12="","",'DF raw data'!C12) ->  | D12: =IF('DF raw data'!D12="","",'DF raw data'!D12) -> 
A13: =IF('DF raw data'!A13="","",'DF raw data'!A13) -> Data format | B13: =IF('DF raw data'!B13="","",'DF raw data'!B13) -> Raw data text file | C13: =IF('DF raw data'!C13="","",'DF raw data'!C13) ->  | D13: =IF('DF raw data'!D13="","",'DF raw data'!D13) -> 
A14: =IF('DF raw data'!A14="","",'DF raw data'!A14) -> Direction of the pos. x-axis | B14: =IF('DF raw data'!B14="","",'DF raw data'!B14) -> See test program | C14: =IF('DF raw data'!C14="","",'DF raw data'!C14) ->  | D14: =IF('DF raw data'!D14="","",'DF raw data'!D14) -> 
A15: =IF('DF raw data'!A15="","",'DF raw data'!A15) -> Direction of the pos. y-axis | B15: =IF('DF raw data'!B15="","",'DF raw data'!B15) -> Vertical up | C15: =IF('DF raw data'!C15="","",'DF raw data'!C15) ->  | D15: =IF('DF raw data'!D15="","",'DF raw data'!D15) -> 
A16: =IF('DF raw data'!A16="","",'DF raw data'!A16) -> Direction of the pos. z-axis | B16: =IF('DF raw data'!B16="","",'DF raw data'!B16) -> See test program | C16: =IF('DF raw data'!C16="","",'DF raw data'!C16) ->  | D16: =IF('DF raw data'!D16="","",'DF raw data'!D16) -> 
A17: =IF('DF raw data'!A17="","",'DF raw data'!A17) -> Mapper type | B17: =IF('DF raw data'!B17="","",'DF raw data'!B17) -> Precision Hall Mapper | C17: =IF('DF raw data'!C17="","",'DF raw data'!C17) ->  | D17: =IF('DF raw data'!D17="","",'DF raw data'!D17) -> 
A18: =IF('DF raw data'!A18="","",'DF raw data'!A18) -> Mapper Danfysik Reg. Number | B18: =IF('DF raw data'!B18="","",'DF raw data'!B18) -> 2033-D (mapper 1) | C18: =IF('DF raw data'!C18="","",'DF raw data'!C18) ->  | D18: =IF('DF raw data'!D18="","",'DF raw data'!D18) -> 
A19: =IF('DF raw data'!A19="","",'DF raw data'!A19) -> Measurement consept | B19: =IF('DF raw data'!B19="","",'DF raw data'!B19) -> Square line grid | C19: =IF('DF raw data'!C19="","",'DF raw data'!C19) ->  | D19: =IF('DF raw data'!D19="","",'DF raw data'!D19) -> 
A20: =IF('DF raw data'!A20="","",'DF raw data'!A20) -> Mode | B20: =IF('DF raw data'!B20="","",'DF raw data'!B20) -> On-the-fly measurement | C20: =IF('DF raw data'!C20="","",'DF raw data'!C20) ->  | D20: =IF('DF raw data'!D20="","",'DF raw data'!D20) -> 
A21: =IF('DF raw data'!A21="","",'DF raw data'!A21) ->  | B21: =IF('DF raw data'!B21="","",'DF raw data'!B21) ->  | C21: =IF('DF raw data'!C21="","",'DF raw data'!C21) ->  | D21: =IF('DF raw data'!D21="","",'DF raw data'!D21) -> 
A22: =IF('DF raw data'!A22="","",'DF raw data'!A22) -> Probe Name | B22: =IF('DF raw data'!B22="","",'DF raw data'!B22) -> ID12_By | C22: =IF('DF raw data'!C22="","",'DF raw data'!C22) ->  | D22: =IF('DF raw data'!D22="","",'DF raw data'!D22) -> 
A23: =IF('DF raw data'!A23="","",'DF raw data'!A23) -> Probe Type | B23: =IF('DF raw data'!B23="","",'DF raw data'!B23) -> DF_ID_3D_Bxyz | C23: =IF('DF raw data'!C23="","",'DF raw data'!C23) ->  | D23: =IF('DF raw data'!D23="","",'DF raw data'!D23) -> 
A24: =IF('DF raw data'!A24="","",'DF raw data'!A24) -> Probe Danfysik Reg. Number | B24: =IF('DF raw data'!B24="","",'DF raw data'!B24) -> 2277 | C24: =IF('DF raw data'!C24="","",'DF raw data'!C24) ->  | D24: =IF('DF raw data'!D24="","",'DF raw data'!D24) -> 
A25: =IF('DF raw data'!A25="","",'DF raw data'!A25) -> Probe Axis | B25: =IF('DF raw data'!B25="","",'DF raw data'!B25) -> By | C25: =IF('DF raw data'!C25="","",'DF raw data'!C25) ->  | D25: =IF('DF raw data'!D25="","",'DF raw data'!D25) -> 
A26: =IF('DF raw data'!A26="","",'DF raw data'!A26) -> Probe Current Supply | B26: =IF('DF raw data'!B26="","",'DF raw data'!B26) -> 1825-D | C26: =IF('DF raw data'!C26="","",'DF raw data'!C26) ->  | D26: =IF('DF raw data'!D26="","",'DF raw data'!D26) -> 
A27: =IF('DF raw data'!A27="","",'DF raw data'!A27) -> Probe Gain Correction | B27: =IF('DF raw data'!B27="","",'DF raw data'!B27) -> 0.99619 | C27: =IF('DF raw data'!C27="","",'DF raw data'!C27) ->  | D27: =IF('DF raw data'!D27="","",'DF raw data'!D27) -> 
A28: =IF('DF raw data'!A28="","",'DF raw data'!A28) -> Probe Offset Correction | B28: =IF('DF raw data'!B28="","",'DF raw data'!B28) -> 0.0027506 | C28: =IF('DF raw data'!C28="","",'DF raw data'!C28) ->  | D28: =IF('DF raw data'!D28="","",'DF raw data'!D28) -> 
A29: =IF('DF raw data'!A29="","",'DF raw data'!A29) -> DVM Number | B29: =IF('DF raw data'!B29="","",'DF raw data'!B29) -> 2 | C29: =IF('DF raw data'!C29="","",'DF raw data'!C29) ->  | D29: =IF('DF raw data'!D29="","",'DF raw data'!D29) -> 
A30: =IF('DF raw data'!A30="","",'DF raw data'!A30) -> DVM Type | B30: =IF('DF raw data'!B30="","",'DF raw data'!B30) -> K2701 | C30: =IF('DF raw data'!C30="","",'DF raw data'!C30) ->  | D30: =IF('DF raw data'!D30="","",'DF raw data'!D30) -> 
A31: =IF('DF raw data'!A31="","",'DF raw data'!A31) -> DVM Danfysik Reg. Number | B31: =IF('DF raw data'!B31="","",'DF raw data'!B31) -> 1743-D | C31: =IF('DF raw data'!C31="","",'DF raw data'!C31) ->  | D31: =IF('DF raw data'!D31="","",'DF raw data'!D31) -> 
A32: =IF('DF raw data'!A32="","",'DF raw data'!A32) -> Probe Name | B32: =IF('DF raw data'!B32="","",'DF raw data'!B32) -> ID12_Bx | C32: =IF('DF raw data'!C32="","",'DF raw data'!C32) ->  | D32: =IF('DF raw data'!D32="","",'DF raw data'!D32) -> 
A33: =IF('DF raw data'!A33="","",'DF raw data'!A33) -> Probe Type | B33: =IF('DF raw data'!B33="","",'DF raw data'!B33) -> DF_ID_3D_Bxyz | C33: =IF('DF raw data'!C33="","",'DF raw data'!C33) ->  | D33: =IF('DF raw data'!D33="","",'DF raw data'!D33) -> 
A34: =IF('DF raw data'!A34="","",'DF raw data'!A34) -> Probe Danfysik Reg. Number | B34: =IF('DF raw data'!B34="","",'DF raw data'!B34) -> 2277 | C34: =IF('DF raw data'!C34="","",'DF raw data'!C34) ->  | D34: =IF('DF raw data'!D34="","",'DF raw data'!D34) -> 
A35: =IF('DF raw data'!A35="","",'DF raw data'!A35) -> Probe Axis | B35: =IF('DF raw data'!B35="","",'DF raw data'!B35) -> Bx | C35: =IF('DF raw data'!C35="","",'DF raw data'!C35) ->  | D35: =IF('DF raw data'!D35="","",'DF raw data'!D35) -> 
A36: =IF('DF raw data'!A36="","",'DF raw data'!A36) -> Probe Current Supply | B36: =IF('DF raw data'!B36="","",'DF raw data'!B36) -> 1825-D | C36: =IF('DF raw data'!C36="","",'DF raw data'!C36) ->  | D36: =IF('DF raw data'!D36="","",'DF raw data'!D36) -> 
A37: =IF('DF raw data'!A37="","",'DF raw data'!A37) -> Probe Gain Correction | B37: =IF('DF raw data'!B37="","",'DF raw data'!B37) -> 1 | C37: =IF('DF raw data'!C37="","",'DF raw data'!C37) ->  | D37: =IF('DF raw data'!D37="","",'DF raw data'!D37) -> 
A38: =IF('DF raw data'!A38="","",'DF raw data'!A38) -> Probe Offset Correction | B38: =IF('DF raw data'!B38="","",'DF raw data'!B38) -> -0.17548 | C38: =IF('DF raw data'!C38="","",'DF raw data'!C38) ->  | D38: =IF('DF raw data'!D38="","",'DF raw data'!D38) -> 
A39: =IF('DF raw data'!A39="","",'DF raw data'!A39) -> DVM Number | B39: =IF('DF raw data'!B39="","",'DF raw data'!B39) -> 3 | C39: =IF('DF raw data'!C39="","",'DF raw data'!C39) ->  | D39: =IF('DF raw data'!D39="","",'DF raw data'!D39) -> 
A40: =IF('DF raw data'!A40="","",'DF raw data'!A40) -> DVM Type | B40: =IF('DF raw data'!B40="","",'DF raw data'!B40) -> K2701 | C40: =IF('DF raw data'!C40="","",'DF raw data'!C40) ->  | D40: =IF('DF raw data'!D40="","",'DF raw data'!D40) -> 
A41: =IF('DF raw data'!A41="","",'DF raw data'!A41) -> DVM Danfysik Reg. Number | B41: =IF('DF raw data'!B41="","",'DF raw data'!B41) -> 1744-D | C41: =IF('DF raw data'!C41="","",'DF raw data'!C41) ->  | D41: =IF('DF raw data'!D41="","",'DF raw data'!D41) -> 
A42: =IF('DF raw data'!A42="","",'DF raw data'!A42) -> Probe Name | B42: =IF('DF raw data'!B42="","",'DF raw data'!B42) -> ID12_Bz | C42: =IF('DF raw data'!C42="","",'DF raw data'!C42) ->  | D42: =IF('DF raw data'!D42="","",'DF raw data'!D42) -> 
A43: =IF('DF raw data'!A43="","",'DF raw data'!A43) -> Probe Type | B43: =IF('DF raw data'!B43="","",'DF raw data'!B43) -> DF_ID_3D_Bxyz | C43: =IF('DF raw data'!C43="","",'DF raw data'!C43) ->  | D43: =IF('DF raw data'!D43="","",'DF raw data'!D43) -> 
A44: =IF('DF raw data'!A44="","",'DF raw data'!A44) -> Probe Danfysik Reg. Number | B44: =IF('DF raw data'!B44="","",'DF raw data'!B44) -> 2277 | C44: =IF('DF raw data'!C44="","",'DF raw data'!C44) ->  | D44: =IF('DF raw data'!D44="","",'DF raw data'!D44) -> 
A45: =IF('DF raw data'!A45="","",'DF raw data'!A45) -> Probe Axis | B45: =IF('DF raw data'!B45="","",'DF raw data'!B45) -> Bz | C45: =IF('DF raw data'!C45="","",'DF raw data'!C45) ->  | D45: =IF('DF raw data'!D45="","",'DF raw data'!D45) -> 
A46: =IF('DF raw data'!A46="","",'DF raw data'!A46) -> Probe Current Supply | B46: =IF('DF raw data'!B46="","",'DF raw data'!B46) -> 1825-D | C46: =IF('DF raw data'!C46="","",'DF raw data'!C46) ->  | D46: =IF('DF raw data'!D46="","",'DF raw data'!D46) -> 
A47: =IF('DF raw data'!A47="","",'DF raw data'!A47) -> Probe Gain Correction | B47: =IF('DF raw data'!B47="","",'DF raw data'!B47) -> 1 | C47: =IF('DF raw data'!C47="","",'DF raw data'!C47) ->  | D47: =IF('DF raw data'!D47="","",'DF raw data'!D47) -> 
A48: =IF('DF raw data'!A48="","",'DF raw data'!A48) -> Probe Offset Correction | B48: =IF('DF raw data'!B48="","",'DF raw data'!B48) -> 0.0073243 | C48: =IF('DF raw data'!C48="","",'DF raw data'!C48) ->  | D48: =IF('DF raw data'!D48="","",'DF raw data'!D48) -> 
A49: =IF('DF raw data'!A49="","",'DF raw data'!A49) -> DVM Number | B49: =IF('DF raw data'!B49="","",'DF raw data'!B49) -> 8 | C49: =IF('DF raw data'!C49="","",'DF raw data'!C49) ->  | D49: =IF('DF raw data'!D49="","",'DF raw data'!D49) -> 
A50: =IF('DF raw data'!A50="","",'DF raw data'!A50) -> DVM Type | B50: =IF('DF raw data'!B50="","",'DF raw data'!B50) -> K2700 | C50: =IF('DF raw data'!C50="","",'DF raw data'!C50) ->  | D50: =IF('DF raw data'!D50="","",'DF raw data'!D50) -> 
A51: =IF('DF raw data'!A51="","",'DF raw data'!A51) -> DVM Danfysik Reg. Number | B51: =IF('DF raw data'!B51="","",'DF raw data'!B51) -> 1756-D | C51: =IF('DF raw data'!C51="","",'DF raw data'!C51) ->  | D51: =IF('DF raw data'!D51="","",'DF raw data'!D51) -> 
A52: =IF('DF raw data'!A52="","",'DF raw data'!A52) -> NTC voltage | B52: =IF('DF raw data'!B52="","",'DF raw data'!B52) -> 0.40888 | C52: =IF('DF raw data'!C52="","",'DF raw data'!C52) ->  | D52: =IF('DF raw data'!D52="","",'DF raw data'!D52) -> 
A53: =IF('DF raw data'!A53="","",'DF raw data'!A53) -> PS-Gap: | B53: =IF('DF raw data'!B53="","",'DF raw data'!B53) -> 10 | C53: =IF('DF raw data'!C53="","",'DF raw data'!C53) ->  | D53: =IF('DF raw data'!D53="","",'DF raw data'!D53) -> 
A54: =IF('DF raw data'!A54="","",'DF raw data'!A54) -> PS-Temperature: | B54: =IF('DF raw data'!B54="","",'DF raw data'!B54) -> 24.2 | C54: =IF('DF raw data'!C54="","",'DF raw data'!C54) ->  | D54: =IF('DF raw data'!D54="","",'DF raw data'!D54) -> 
A55: =IF('DF raw data'!A55="","",'DF raw data'!A55) -> PS-Encoder: | B55: =IF('DF raw data'!B55="","",'DF raw data'!B55) -> 19.6225 | C55: =IF('DF raw data'!C55="","",'DF raw data'!C55) ->  | D55: =IF('DF raw data'!D55="","",'DF raw data'!D55) -> 
A56: =IF('DF raw data'!A56="","",'DF raw data'!A56) ->  | B56: =IF('DF raw data'!B56="","",'DF raw data'!B56) -> 
A57: =IF('DF raw data'!A57="","",'DF raw data'!A57) -> Monitor-Index | B57: =IF('DF raw data'!B57="","",'DF raw data'!B57) -> [1,1,4]
A58: =IF('DF raw data'!A58="","",'DF raw data'!A58) ->  | B58: =IF('DF raw data'!B58="","",'DF raw data'!B58) -> 
A59: =IF('DF raw data'!A59="","",'DF raw data'!A59) -> Time [s] | B59: =IF('DF raw data'!B59="","",'DF raw data'!B59) -> Y [mm]
A60: =IF('DF raw data'!A60="","",'DF raw data'!A60) ->  | B60: =IF('DF raw data'!B60="","",'DF raw data'!B60) -> 
A61: =IF('DF raw data'!A61="","",'DF raw data'!A61) -> 208.5 | B61: =IF('DF raw data'!B61="","",'DF raw data'!B61) -> 31.46
A62: =IF('DF raw data'!A62="","",'DF raw data'!A62) ->  | B62: =IF('DF raw data'!B62="","",'DF raw data'!B62) -> 
A63: =IF('DF raw data'!A63="","",'DF raw data'!A63) -> Measurement-Index | B63: =IF('DF raw data'!B63="","",'DF raw data'!B63) -> [1,1,1201,2]
A64: =IF('DF raw data'!A64="","",'DF raw data'!A64) ->  | B64: =IF('DF raw data'!B64="","",'DF raw data'!B64) -> 
A65: =IF('DF raw data'!A65="","",'DF raw data'!A65) -> Z [mm] | B65: =IF('DF raw data'!B65="","",'DF raw data'!B65) -> By [T] | C65: =IF('DF raw data'!C65="","",'DF raw data'!C65) -> Bx [T] | D65: =IF('DF raw data'!D65="","",'DF raw data'!D65) -> Bz [T] | F65: By_corr | G65: Bx_corr | H65: Bz_corr | J65: Iy | K65: Jy | L65: Ix | M65: Jx | N65: PI
A66: =IF('DF raw data'!A66="","",'DF raw data'!A66) -> [1, 0, 0, 0] | B66: =IF('DF raw data'!B66="","",'DF raw data'!B66) ->  | C66: =IF('DF raw data'!C66="","",'DF raw data'!C66) ->  | D66: =IF('DF raw data'!D66="","",'DF raw data'!D66) -> 
A67: =IF('DF raw data'!A67="","",'DF raw data'!A67) -> -300 | B67: =IF('DF raw data'!B67="","",'DF raw data'!B67) -> -3.7348e-05 | C67: =IF('DF raw data'!C67="","",'DF raw data'!C67) -> 8.21564e-05 | D67: =IF('DF raw data'!D67="","",'DF raw data'!D67) -> -3.12058e-05 | F67: =(1-$G$1*($B$54-$G$2))*(B67-F$5) -> -2.317188683e-06 | G67: =(1-$G$1*($B$54-$G$2))*(C67-G$5) -> 3.308980751e-05 | H67: =(1-$G$1*($B$54-$G$2))*(D67-H$5) -> 5.339159951e-07 | J67: =F67*$G$3+J66 -> -1.158594342e-06 | K67: =J67*$G$3+K66 -> -5.792971708e-07 | L67: =G67*$G$3+L66 -> 1.654490376e-05 | M67: =L67*$G$3+M66 -> 8.272451879e-06 | N67: =(J67^2+L67^2)*$G$3+N66 -> 1.375380906e-10
A68: =IF('DF raw data'!A68="","",'DF raw data'!A68) -> -299.5 | B68: =IF('DF raw data'!B68="","",'DF raw data'!B68) -> -2.72846e-05 | C68: =IF('DF raw data'!C68="","",'DF raw data'!C68) -> 8.34694e-05 | D68: =IF('DF raw data'!D68="","",'DF raw data'!D68) -> -3.14874e-05 | F68: 7.788477597e-06 | G68: 3.440832211e-05 | H68: 2.511332751e-07 | J68: =F68*$G$3+J67 -> 2.735644457e-06 | K68: =J68*$G$3+K67 -> 7.885250575e-07 | L68: =G68*$G$3+L67 -> 3.374906481e-05 | M68: =L68*$G$3+M67 -> 2.514698429e-05 | N68: =(J68^2+L68^2)*$G$3+N67 -> 7.107796538e-10
A69: =IF('DF raw data'!A69="","",'DF raw data'!A69) -> -299 | B69: =IF('DF raw data'!B69="","",'DF raw data'!B69) -> -3.84369e-05 | C69: =IF('DF raw data'!C69="","",'DF raw data'!C69) -> 7.71365e-05 | D69: =IF('DF raw data'!D69="","",'DF raw data'!D69) -> -3.18962e-05 | F69: -3.410662063e-06 | G69: 2.804882393e-05 | H69: -1.593836849e-07 | J69: 1.030313425e-06 | K69: 1.30368177e-06 | L69: 4.777347678e-05 | M69: 4.903372268e-05 | N69: 1.852462969e-09
A70: =IF('DF raw data'!A70="","",'DF raw data'!A70) -> -298.5 | B70: =IF('DF raw data'!B70="","",'DF raw data'!B70) -> -2.02955e-05 | C70: =IF('DF raw data'!C70="","",'DF raw data'!C70) -> 8.05982e-05 | D70: =IF('DF raw data'!D70="","",'DF raw data'!D70) -> -3.23584e-05 | F70: 1.480693182e-05 | G70: 3.152506307e-05 | H70: -6.235249249e-07 | J70: 8.433779333e-06 | K70: 5.520571437e-06 | L70: 6.353600832e-05 | M70: 8.080172684e-05 | N70: 3.906439462e-09
A71: =IF('DF raw data'!A71="","",'DF raw data'!A71) -> -298 | B71: =IF('DF raw data'!B71="","",'DF raw data'!B71) -> -3.81162e-05 | C71: =IF('DF raw data'!C71="","",'DF raw data'!C71) -> 9.03662e-05 | D71: =IF('DF raw data'!D71="","",'DF raw data'!D71) -> -3.25421e-05 | F71: -3.088615123e-06 | G71: 4.133408867e-05 | H71: -8.079964649e-07 | J71: 6.889471772e-06 | K71: 8.965307322e-06 | L71: 8.420305266e-05 | M71: 0.0001229032532 | N71: 7.475248911e-09
A72: =IF('DF raw data'!A72="","",'DF raw data'!A72) -> -297.5 | B72: =IF('DF raw data'!B72="","",'DF raw data'!B72) -> -2.22181e-05 | C72: =IF('DF raw data'!C72="","",'DF raw data'!C72) -> 9.84115e-05 | D72: =IF('DF raw data'!D72="","",'DF raw data'!D72) -> -3.22752e-05 | F72: 1.28762569e-05 | G72: 4.941317893e-05 | H72: -5.399754849e-07 | J72: 1.332760022e-05 | K72: 1.562910743e-05 | L72: 0.0001089096421 | M72: 0.0001773580742 | N72: 1.349471645e-08
A73: =IF('DF raw data'!A73="","",'DF raw data'!A73) -> -297 | B73: =IF('DF raw data'!B73="","",'DF raw data'!B73) -> -4.24749e-05 | C73: =IF('DF raw data'!C73="","",'DF raw data'!C73) -> 9.41053e-05 | D73: =IF('DF raw data'!D73="","",'DF raw data'!D73) -> -3.17922e-05 | F73: -7.465621663e-06 | G73: 4.508889289e-05 | H73: -5.494688488e-08 | J73: 9.594789388e-06 | K73: 2.042650213e-05 | L73: 0.0001314540886 | M73: 0.0002430851185 | N73: 2.218083514e-08
A74: =IF('DF raw data'!A74="","",'DF raw data'!A74) -> -296.5 | B74: =IF('DF raw data'!B74="","",'DF raw data'!B74) -> -8.56743e-06 | C74: =IF('DF raw data'!C74="","",'DF raw data'!C74) -> 0.000101732 | D74: =IF('DF raw data'!D74="","",'DF raw data'!D74) -> -3.21462e-05 | F74: 2.658425971e-05 | G74: 5.274762503e-05 | H74: -4.104336849e-07 | J74: 2.288691924e-05 | K74: 3.186996175e-05 | L74: 0.0001578279011 | M74: 0.0003219990691 | N74: 3.489756386e-08
A75: =IF('DF raw data'!A75="","",'DF raw data'!A75) -> -296 | B75: =IF('DF raw data'!B75="","",'DF raw data'!B75) -> -3.91415e-05 | C75: =IF('DF raw data'!C75="","",'DF raw data'!C75) -> 9.63747e-05 | D75: =IF('DF raw data'!D75="","",'DF raw data'!D75) -> -3.241e-05 | F75: -4.118221383e-06 | G75: 4.736782437e-05 | H75: -6.753416449e-07 | J75: 2.082780855e-05 | K75: 4.228386602e-05 | L75: 0.0001815118133 | M75: 0.0004127549757 | N75: 5.158773184e-08
A76: =IF('DF raw data'!A76="","",'DF raw data'!A76) -> -295.5 | B76: =IF('DF raw data'!B76="","",'DF raw data'!B76) -> -1.83089e-05 | C76: =IF('DF raw data'!C76="","",'DF raw data'!C76) -> 9.91202e-05 | D76: =IF('DF raw data'!D76="","",'DF raw data'!D76) -> -3.24562e-05 | F76: 1.680187554e-05 | G76: 5.012485547e-05 | H76: -7.217356849e-07 | J76: 2.922874632e-05 | K76: 5.689823918e-05 | L76: 0.000206574241 | M76: 0.0005160420962 | N76: 7.335135017e-08
A77: =IF('DF raw data'!A77="","",'DF raw data'!A77) -> -295 | B77: =IF('DF raw data'!B77="","",'DF raw data'!B77) -> -2.895e-05 | C77: =IF('DF raw data'!C77="","",'DF raw data'!C77) -> 9.5006e-05 | D77: =IF('DF raw data'!D77="","",'DF raw data'!D77) -> -3.26197e-05 | F77: 6.116082917e-06 | G77: 4.599337583e-05 | H77: -8.859223849e-07 | J77: 3.228678778e-05 | K77: 7.304163307e-05 | L77: 0.0002295709289 | M77: 0.0006308275607 | N77: 1.002239742e-07
A78: =IF('DF raw data'!A78="","",'DF raw data'!A78) -> -294.5 | B78: =IF('DF raw data'!B78="","",'DF raw data'!B78) -> -2.18336e-05 | C78: =IF('DF raw data'!C78="","",'DF raw data'!C78) -> 9.3371e-05 | D78: =IF('DF raw data'!D78="","",'DF raw data'!D78) -> -3.29804e-05 | F78: 1.32623718e-05 | G78: 4.435150883e-05 | H78: -1.248137325e-06 | J78: 3.891797368e-05 | K78: 9.250061991e-05 | L78: 0.0002517466833 | M78: 0.0007567009023 | N78: 1.326694748e-07
A79: =IF('DF raw data'!A79="","",'DF raw data'!A79) -> -294 | B79: =IF('DF raw data'!B79="","",'DF raw data'!B79) -> -3.27314e-05 | C79: =IF('DF raw data'!C79="","",'DF raw data'!C79) -> 9.30673e-05 | D79: =IF('DF raw data'!D79="","",'DF raw data'!D79) -> -3.27839e-05 | F79: 2.318801037e-06 | G79: 4.404653329e-05 | H79: -1.050812025e-06 | J79: 4.00773742e-05 | K79: 0.000112539307 | L79: 0.00027376995 | M79: 0.0008935858773 | N79: 1.709475656e-07
A80: =IF('DF raw data'!A80="","",'DF raw data'!A80) -> -293.5 | B80: =IF('DF raw data'!B80="","",'DF raw data'!B80) -> -2.84992e-05 | C80: =IF('DF raw data'!C80="","",'DF raw data'!C80) -> 9.68334e-05 | D80: =IF('DF raw data'!D80="","",'DF raw data'!D80) -> -3.25192e-05 | F80: 6.568776277e-06 | G80: 4.782845091e-05 | H80: -7.850002849e-07 | J80: 4.336176233e-05 | K80: 0.0001342201882 | L80: 0.0002976841754 | M80: 0.001042427965 | N80: 2.161956209e-07
A81: =IF('DF raw data'!A81="","",'DF raw data'!A81) -> -293 | B81: =IF('DF raw data'!B81="","",'DF raw data'!B81) -> -2.50399e-05 | C81: =IF('DF raw data'!C81="","",'DF raw data'!C81) -> 9.70045e-05 | D81: =IF('DF raw data'!D81="","",'DF raw data'!D81) -> -3.2728e-05 | F81: 1.004260534e-05 | G81: 4.800026953e-05 | H81: -9.946772449e-07 | J81: 4.8383065e-05 | K81: 0.0001584117207 | L81: 0.0003216843102 | M81: 0.00120327012 | N81: 2.691064791e-07
A82: =IF('DF raw data'!A82="","",'DF raw data'!A82) -> -292.5 | B82: =IF('DF raw data'!B82="","",'DF raw data'!B82) -> -3.00372e-05 | C82: =IF('DF raw data'!C82="","",'DF raw data'!C82) -> 8.97547e-05 | D82: =IF('DF raw data'!D82="","",'DF raw data'!D82) -> -3.28021e-05 | F82: 5.024316677e-06 | G82: 4.072002037e-05 | H82: -1.069088465e-06 | J82: 5.089522334e-05 | K82: 0.0001838593323 | L82: 0.0003420443204 | M82: 0.00137429228 | N82: 3.288987996e-07
A83: =IF('DF raw data'!A83="","",'DF raw data'!A83) -> -292 | B83: =IF('DF raw data'!B83="","",'DF raw data'!B83) -> -3.63849e-05 | C83: =IF('DF raw data'!C83="","",'DF raw data'!C83) -> 7.93803e-05 | D83: =IF('DF raw data'!D83="","",'DF raw data'!D83) -> -3.23419e-05 | F83: -1.350043663e-06 | G83: 3.030204789e-05 | H83: -6.069556249e-07 | J83: 5.022020151e-05 | K83: 0.0002089694331 | L83: 0.0003571953443 | M83: 0.001552889953 | N83: 3.939540909e-07
A84: =IF('DF raw data'!A84="","",'DF raw data'!A84) -> -291.5 | B84: =IF('DF raw data'!B84="","",'DF raw data'!B84) -> -2.10051e-05 | C84: =IF('DF raw data'!C84="","",'DF raw data'!C84) -> 7.67632e-05 | D84: =IF('DF raw data'!D84="","",'DF raw data'!D84) -> -2.5919e-05 | F84: 1.40943515e-05 | G84: 2.767395607e-05 | H84: 5.842920555e-06 | J84: 5.726737726e-05 | K84: 0.0002376031217 | L84: 0.0003710323224 | M84: 0.001738406114 | N84: 4.644263593e-07
A85: =IF('DF raw data'!A85="","",'DF raw data'!A85) -> -291 | B85: =IF('DF raw data'!B85="","",'DF raw data'!B85) -> -3.63896e-05 | C85: =IF('DF raw data'!C85="","",'DF raw data'!C85) -> 7.99359e-05 | D85: =IF('DF raw data'!D85="","",'DF raw data'!D85) -> -2.4828e-05 | F85: -1.354763403e-06 | G85: 3.085998141e-05 | H85: 6.938502755e-06 | J85: 5.658999556e-05 | K85: 0.0002658981195 | L85: 0.0003864623131 | M85: 0.00193163727 | N85: 5.407041328e-07
A86: =IF('DF raw data'!A86="","",'DF raw data'!A86) -> -290.5 | B86: =IF('DF raw data'!B86="","",'DF raw data'!B86) -> -1.49188e-05 | C86: =IF('DF raw data'!C86="","",'DF raw data'!C86) -> 8.43953e-05 | D86: =IF('DF raw data'!D86="","",'DF raw data'!D86) -> -2.26803e-05 | F86: 2.020621396e-05 | G86: 3.533811089e-05 | H86: 9.095223095e-06 | J86: 6.669310253e-05 | K86: 0.0002992446708 | L86: 0.0004041313685 | M86: 0.002133702955 | N86: 6.245891993e-07
A87: =IF('DF raw data'!A87="","",'DF raw data'!A87) -> -290 | B87: =IF('DF raw data'!B87="","",'DF raw data'!B87) -> -3.28669e-05 | C87: =IF('DF raw data'!C87="","",'DF raw data'!C87) -> 7.57099e-05 | D87: =IF('DF raw data'!D87="","",'DF raw data'!D87) -> -2.10569e-05 | F87: 2.182731937e-06 | G87: 2.661623221e-05 | H87: 1.072544138e-05 | J87: 6.77844685e-05 | K87: 0.000333136905 | L87: 0.0004174394846 | M87: 0.002342422697 | N87: 7.14014428e-07
A88: =IF('DF raw data'!A88="","",'DF raw data'!A88) -> -289.5 | B88: =IF('DF raw data'!B88="","",'DF raw data'!B88) -> -2.34367e-05 | C88: =IF('DF raw data'!C88="","",'DF raw data'!C88) -> 8.01734e-05 | D88: =IF('DF raw data'!D88="","",'DF raw data'!D88) -> -3.233e-05 | F88: 1.165253878e-05 | G88: 3.109847891e-05 | H88: -5.950056449e-07 | J88: 7.361073789e-05 | K88: 0.000369942274 | L88: 0.0004329887241 | M88: 0.002558917059 | N88: 8.10463316e-07
A89: =IF('DF raw data'!A89="","",'DF raw data'!A89) -> -289 | B89: =IF('DF raw data'!B89="","",'DF raw data'!B89) -> -2.72914e-05 | C89: =IF('DF raw data'!C89="","",'DF raw data'!C89) -> 8.5936e-05 | D89: =IF('DF raw data'!D89="","",'DF raw data'!D89) -> -1.95418e-05 | F89: 7.781649037e-06 | G89: 3.688528183e-05 | H89: 1.22469048e-05 | J89: 7.750156241e-05 | K89: 0.0004086930552 | L89: 0.000451431365 | M89: 0.002784632741 | N89: 9.153617008e-07
A90: =IF('DF raw data'!A90="","",'DF raw data'!A90) -> -288.5 | B90: =IF('DF raw data'!B90="","",'DF raw data'!B90) -> -1.5614e-05 | C90: =IF('DF raw data'!C90="","",'DF raw data'!C90) -> 8.8363e-05 | D90: =IF('DF raw data'!D90="","",'DF raw data'!D90) -> -3.7735e-05 | F90: 1.950809412e-05 | G90: 3.932247523e-05 | H90: -6.022706645e-06 | J90: 8.725560947e-05 | K90: 0.0004523208599 | L90: 0.0004710926026 | M90: 0.003020179043 | N90: 1.030132592e-06
A91: =IF('DF raw data'!A91="","",'DF raw data'!A91) -> -288 | B91: =IF('DF raw data'!B91="","",'DF raw data'!B91) -> -4.11269e-05 | C91: =IF('DF raw data'!C91="","",'DF raw data'!C91) -> 8.51639e-05 | D91: =IF('DF raw data'!D91="","",'DF raw data'!D91) -> -3.26015e-05 | F91: -6.111960063e-06 | G91: 3.610993901e-05 | H91: -8.676459449e-07 | J91: 8.419962944e-05 | K91: 0.0004944206746 | L91: 0.0004891475721 | M91: 0.003264752829 | N91: 1.153310054e-06
A92: =IF('DF raw data'!A92="","",'DF raw data'!A92) -> -287.5 | B92: =IF('DF raw data'!B92="","",'DF raw data'!B92) -> -1.06085e-05 | C92: =IF('DF raw data'!C92="","",'DF raw data'!C92) -> 7.61965e-05 | D92: =IF('DF raw data'!D92="","",'DF raw data'!D92) -> -4.76818e-05 | F92: 2.453461722e-05 | G92: 2.710487593e-05 | H92: -1.60112832e-05 | J92: 9.646693804e-05 | K92: 0.0005426541436 | L92: 0.0005027000101 | M92: 0.003516102834 | N92: 1.284316639e-06
A93: =IF('DF raw data'!A93="","",'DF raw data'!A93) -> -287 | B93: =IF('DF raw data'!B93="","",'DF raw data'!B93) -> -3.27297e-05 | C93: =IF('DF raw data'!C93="","",'DF raw data'!C93) -> 8.28242e-05 | D93: =IF('DF raw data'!D93="","",'DF raw data'!D93) -> -3.39142e-05 | F93: 2.320508177e-06 | G93: 3.376041227e-05 | H93: -2.185859285e-06 | J93: 9.762719213e-05 | K93: 0.0005914677397 | L93: 0.0005195802162 | M93: 0.003775892942 | N93: 1.424063974e-06
A94: =IF('DF raw data'!A94="","",'DF raw data'!A94) -> -286.5 | B94: =IF('DF raw data'!B94="","",'DF raw data'!B94) -> -2.36856e-05 | C94: =IF('DF raw data'!C94="","",'DF raw data'!C94) -> 8.50467e-05 | D94: =IF('DF raw data'!D94="","",'DF raw data'!D94) -> -4.45617e-05 | F94: 1.14025934e-05 | G94: 3.599224677e-05 | H94: -1.287807878e-05 | J94: 0.0001033284888 | K94: 0.0006431319841 | L94: 0.0005375763396 | M94: 0.004044681112 | N94: 1.573896523e-06
A95: =IF('DF raw data'!A95="","",'DF raw data'!A95) -> -286 | B95: =IF('DF raw data'!B95="","",'DF raw data'!B95) -> -2.6711e-05 | C95: =IF('DF raw data'!C95="","",'DF raw data'!C95) -> 7.948e-05 | D95: =IF('DF raw data'!D95="","",'DF raw data'!D95) -> -2.4405e-05 | F95: 8.364486717e-06 | G95: 3.040216663e-05 | H95: 7.363279355e-06 | J95: 0.0001075107322 | K95: 0.0006968873502 | L95: 0.000552777423 | M95: 0.004321069823 | N95: 1.732457241e-06
A96: =IF('DF raw data'!A96="","",'DF raw data'!A96) -> -285.5 | B96: =IF('DF raw data'!B96="","",'DF raw data'!B96) -> -3.45275e-05 | C96: =IF('DF raw data'!C96="","",'DF raw data'!C96) -> 7.43012e-05 | D96: =IF('DF raw data'!D96="","",'DF raw data'!D96) -> -2.83536e-05 | F96: 5.151574167e-07 | G96: 2.520161567e-05 | H96: 3.398095235e-06 | J96: 0.0001077683109 | K96: 0.0007507715057 | L96: 0.0005653782308 | M96: 0.004603758939 | N96: 1.898090518e-06
A97: =IF('DF raw data'!A97="","",'DF raw data'!A97) -> -285 | B97: =IF('DF raw data'!B97="","",'DF raw data'!B97) -> -3.43308e-05 | C97: =IF('DF raw data'!C97="","",'DF raw data'!C97) -> 7.4659e-05 | D97: =IF('DF raw data'!D97="","",'DF raw data'!D97) -> -3.55414e-05 | F97: 7.126835567e-07 | G97: 2.556091843e-05 | H97: -3.819893525e-06 | J97: 0.0001081246527 | K97: 0.000804833832 | L97: 0.00057815869 | M97: 0.004892838284 | N97: 2.071069723e-06
A98: =IF('DF raw data'!A98="","",'DF raw data'!A98) -> -284.5 | B98: =IF('DF raw data'!B98="","",'DF raw data'!B98) -> -1.93368e-05 | C98: =IF('DF raw data'!C98="","",'DF raw data'!C98) -> 8.29543e-05 | D98: =IF('DF raw data'!D98="","",'DF raw data'!D98) -> -2.98761e-05 | F98: 1.576965836e-05 | G98: 3.389105869e-05 | H98: 1.869200735e-06 | J98: 0.0001160094819 | K98: 0.0008628385729 | L98: 0.0005951042194 | M98: 0.005190390393 | N98: 2.254873339e-06
A99: =IF('DF raw data'!A99="","",'DF raw data'!A99) -> -284 | B99: =IF('DF raw data'!B99="","",'DF raw data'!B99) -> -2.12032e-05 | C99: =IF('DF raw data'!C99="","",'DF raw data'!C99) -> 8.04937e-05 | D99: =IF('DF raw data'!D99="","",'DF raw data'!D99) -> -1.81426e-05 | F99: 1.389541948e-05 | G99: 3.142012417e-05 | H99: 1.365198144e-05 | J99: 0.0001229571916 | K99: 0.0009243171687 | L99: 0.0006108142814 | M99: 0.005495797534 | N99: 2.448979618e-06
A100: =IF('DF raw data'!A100="","",'DF raw data'!A100) -> -283.5 | B100: =IF('DF raw data'!B100="","",'DF raw data'!B100) -> -2.60597e-05 | C100: =IF('DF raw data'!C100="","",'DF raw data'!C100) -> 7.55848e-05 | D100: =IF('DF raw data'!D100="","",'DF raw data'!D100) -> -4.04996e-05 | F100: 9.018522177e-06 | G100: 2.649060679e-05 | H100: -8.798917965e-06 | J100: 0.0001274664527 | K100: 0.0009880503951 | L100: 0.0006240595848 | M100: 0.005807827327 | N100: 2.651828649e-06
A101: =IF('DF raw data'!A101="","",'DF raw data'!A101) -> -283 | B101: =IF('DF raw data'!B101="","",'DF raw data'!B101) -> -3.11322e-05 | C101: =IF('DF raw data'!C101="","",'DF raw data'!C101) -> 7.34199e-05 | D101: =IF('DF raw data'!D101="","",'DF raw data'!D101) -> -2.61862e-05 | F101: 3.924717677e-06 | G101: 2.431661421e-05 | H101: 5.574598315e-06 | J101: 0.0001294288115 | K101: 0.001052764801 | L101: 0.0006362178919 | M101: 0.006125936272 | N101: 2.862591161e-06
A102: =IF('DF raw data'!A102="","",'DF raw data'!A102) -> -282.5 | B102: =IF('DF raw data'!B102="","",'DF raw data'!B102) -> -3.20811e-05 | C102: =IF('DF raw data'!C102="","",'DF raw data'!C102) -> 7.76983e-05 | D102: =IF('DF raw data'!D102="","",'DF raw data'!D102) -> -4.54873e-05 | F102: 2.971832297e-06 | G102: 2.861298349e-05 | H102: -1.38075663e-05 | J102: 0.0001309147277 | K102: 0.001118222165 | L102: 0.0006505243837 | M102: 0.006451198464 | N102: 3.08275148e-06
A103: =IF('DF raw data'!A103="","",'DF raw data'!A103) -> -282 | B103: =IF('DF raw data'!B103="","",'DF raw data'!B103) -> -2.4918e-05 | C103: =IF('DF raw data'!C103="","",'DF raw data'!C103) -> 7.68788e-05 | D103: =IF('DF raw data'!D103="","",'DF raw data'!D103) -> -2.17935e-05 | F103: 1.016501732e-05 | G103: 2.779004159e-05 | H103: 9.985747655e-06 | J103: 0.0001359972363 | K103: 0.001186220783 | L103: 0.0006644194045 | M103: 0.006783408167 | N103: 3.312725677e-06
A104: =IF('DF raw data'!A104="","",'DF raw data'!A104) -> -281.5 | B104: =IF('DF raw data'!B104="","",'DF raw data'!B104) -> -3.02244e-05 | C104: =IF('DF raw data'!C104="","",'DF raw data'!C104) -> 7.88849e-05 | D104: =IF('DF raw data'!D104="","",'DF raw data'!D104) -> -4.22795e-05 | F104: 4.836330437e-06 | G104: 2.980456721e-05 | H104: -1.058629354e-05 | J104: 0.0001384154015 | K104: 0.001255428484 | L104: 0.0006793216881 | M104: 0.007123069011 | N104: 3.553044067e-06
A105: =IF('DF raw data'!A105="","",'DF raw data'!A105) -> -281 | B105: =IF('DF raw data'!B105="","",'DF raw data'!B105) -> -3.10633e-05 | C105: =IF('DF raw data'!C105="","",'DF raw data'!C105) -> 8.72333e-05 | D105: =IF('DF raw data'!D105="","",'DF raw data'!D105) -> -3.33663e-05 | F105: 3.993907057e-06 | G105: 3.818803049e-05 | H105: -1.635658105e-06 | J105: 0.0001404123551 | K105: 0.001325634661 | L105: 0.0006984157033 | M105: 0.007472276862 | N105: 3.806794129e-06
A106: =IF('DF raw data'!A106="","",'DF raw data'!A106) -> -280.5 | B106: =IF('DF raw data'!B106="","",'DF raw data'!B106) -> -1.63194e-05 | C106: =IF('DF raw data'!C106="","",'DF raw data'!C106) -> 8.49472e-05 | D106: =IF('DF raw data'!D106="","",'DF raw data'!D106) -> -3.77452e-05 | F106: 1.879973144e-05 | G106: 3.589232887e-05 | H106: -6.032949485e-06 | J106: 0.0001498122208 | K106: 0.001400540772 | L106: 0.0007163618678 | M106: 0.007830457796 | N106: 4.074603142e-06
A107: =IF('DF raw data'!A107="","",'DF raw data'!A107) -> -280 | B107: =IF('DF raw data'!B107="","",'DF raw data'!B107) -> -2.81192e-05 | C107: =IF('DF raw data'!C107="","",'DF raw data'!C107) -> 8.36948e-05 | D107: =IF('DF raw data'!D107="","",'DF raw data'!D107) -> -2.72091e-05 | F107: 6.950372277e-06 | G107: 3.463466879e-05 | H107: 4.547402135e-06 | J107: 0.0001532874069 | K107: 0.001477184475 | L107: 0.0007336792022 | M107: 0.008197297397 | N107: 4.355494243e-06
A108: =IF('DF raw data'!A108="","",'DF raw data'!A108) -> -279.5 | B108: =IF('DF raw data'!B108="","",'DF raw data'!B108) -> -1.43322e-05 | C108: =IF('DF raw data'!C108="","",'DF raw data'!C108) -> 8.10851e-05 | D108: =IF('DF raw data'!D108="","",'DF raw data'!D108) -> -3.81942e-05 | F108: 2.079527768e-05 | G108: 3.201400805e-05 | H108: -6.483835285e-06 | J108: 0.0001636850458 | K108: 0.001559026998 | L108: 0.0007496862062 | M108: 0.0085721405 | N108: 4.649905344e-06
A109: =IF('DF raw data'!A109="","",'DF raw data'!A109) -> -279 | B109: =IF('DF raw data'!B109="","",'DF raw data'!B109) -> -3.42649e-05 | C109: =IF('DF raw data'!C109="","",'DF raw data'!C109) -> 7.19396e-05 | D109: =IF('DF raw data'!D109="","",'DF raw data'!D109) -> -3.80859e-05 | F109: 7.788603367e-07 | G109: 2.283009695e-05 | H109: -6.375080425e-06 | J109: 0.0001640744759 | K109: 0.001641064236 | L109: 0.0007611012547 | M109: 0.008952691128 | N109: 4.95300312e-06
A110: =IF('DF raw data'!A110="","",'DF raw data'!A110) -> -278.5 | B110: =IF('DF raw data'!B110="","",'DF raw data'!B110) -> -3.06739e-05 | C110: =IF('DF raw data'!C110="","",'DF raw data'!C110) -> 8.12995e-05 | D110: =IF('DF raw data'!D110="","",'DF raw data'!D110) -> -4.0756e-05 | F110: 4.384942537e-06 | G110: 3.222930853e-05 | H110: -9.056394845e-06 | J110: 0.0001662669472 | K110: 0.001724197709 | L110: 0.0007772159089 | M110: 0.009341299082 | N110: 5.268857754e-06
A111: =IF('DF raw data'!A111="","",'DF raw data'!A111) -> -278 | B111: =IF('DF raw data'!B111="","",'DF raw data'!B111) -> -3.82491e-05 | C111: =IF('DF raw data'!C111="","",'DF raw data'!C111) -> 8.61501e-05 | D111: =IF('DF raw data'!D111="","",'DF raw data'!D111) -> -2.20348e-05 | F111: -3.222073303e-06 | G111: 3.710028105e-05 | H111: 9.743434195e-06 | J111: 0.0001646559106 | K111: 0.001806525665 | L111: 0.0007957660495 | M111: 0.009739182107 | N111: 5.599035341e-06
A112: =IF('DF raw data'!A112="","",'DF raw data'!A112) -> -277.5 | B112: =IF('DF raw data'!B112="","",'DF raw data'!B112) -> -2.75373e-05 | C112: =IF('DF raw data'!C112="","",'DF raw data'!C112) -> 7.6029e-05 | D112: =IF('DF raw data'!D112="","",'DF raw data'!D112) -> -3.47777e-05 | F112: 7.534716257e-06 | G112: 2.693667243e-05 | H112: -3.052985985e-06 | J112: 0.0001684232687 | K112: 0.001890737299 | L112: 0.0008092343857 | M112: 0.0101437993 | N112: 5.940648685e-06
A113: =IF('DF raw data'!A113="","",'DF raw data'!A113) -> -277 | B113: =IF('DF raw data'!B113="","",'DF raw data'!B113) -> -3.5939e-05 | C113: =IF('DF raw data'!C113="","",'DF raw data'!C113) -> 6.69318e-05 | D113: =IF('DF raw data'!D113="","",'DF raw data'!D113) -> -2.60936e-05 | F113: -9.022708833e-07 | G113: 1.780126419e-05 | H113: 5.667587235e-06 | J113: 0.0001679721332 | K113: 0.001974723366 | L113: 0.0008181350178 | M113: 0.01055286681 | N113: 6.289428458e-06
A114: =IF('DF raw data'!A114="","",'DF raw data'!A114) -> -276.5 | B114: =IF('DF raw data'!B114="","",'DF raw data'!B114) -> -2.90143e-05 | C114: =IF('DF raw data'!C114="","",'DF raw data'!C114) -> 7.30704e-05 | D114: =IF('DF raw data'!D114="","",'DF raw data'!D114) -> -3.03977e-05 | F114: 6.051512857e-06 | G114: 2.396564631e-05 | H114: 1.345410015e-06 | J114: 0.0001709978897 | K114: 0.002060222311 | L114: 0.0008301178409 | M114: 0.01096792573 | N114: 6.648596412e-06
A115: =IF('DF raw data'!A115="","",'DF raw data'!A115) -> -276 | B115: =IF('DF raw data'!B115="","",'DF raw data'!B115) -> -1.64547e-05 | C115: =IF('DF raw data'!C115="","",'DF raw data'!C115) -> 7.06621e-05 | D115: =IF('DF raw data'!D115="","",'DF raw data'!D115) -> -2.684e-05 | F115: 1.866386318e-05 | G115: 2.154723145e-05 | H115: 4.918052355e-06 | J115: 0.0001803298213 | K115: 0.002150387221 | L115: 0.0008408914567 | M115: 0.01138837146 | N115: 7.018405055e-06
A116: =IF('DF raw data'!A116="","",'DF raw data'!A116) -> -275.5 | B116: =IF('DF raw data'!B116="","",'DF raw data'!B116) -> -2.78503e-05 | C116: =IF('DF raw data'!C116="","",'DF raw data'!C116) -> 6.53419e-05 | D116: =IF('DF raw data'!D116="","",'DF raw data'!D116) -> -4.64435e-05 | F116: 7.220401657e-06 | G116: 1.620468661e-05 | H116: -1.476778234e-05 | J116: 0.0001839400221 | K116: 0.002242357232 | L116: 0.0008489938 | M116: 0.01181286836 | N116: 7.395717257e-06
A117: =IF('DF raw data'!A117="","",'DF raw data'!A117) -> -275 | B117: =IF('DF raw data'!B117="","",'DF raw data'!B117) -> -2.29879e-05 | C117: =IF('DF raw data'!C117="","",'DF raw data'!C117) -> 6.77959e-05 | D117: =IF('DF raw data'!D117="","",'DF raw data'!D117) -> -3.32486e-05 | F117: 1.210322374e-05 | G117: 1.866899341e-05 | H117: -1.517463765e-06 | J117: 0.000189991634 | K117: 0.002337353049 | L117: 0.0008583282967 | M117: 0.01224203251 | N117: 7.7821294e-06
A118: =IF('DF raw data'!A118="","",'DF raw data'!A118) -> -274.5 | B118: =IF('DF raw data'!B118="","",'DF raw data'!B118) -> -2.21616e-05 | C118: =IF('DF raw data'!C118="","",'DF raw data'!C118) -> 6.88937e-05 | D118: =IF('DF raw data'!D118="","",'DF raw data'!D118) -> -2.23626e-05 | F118: 1.29329942e-05 | G118: 1.977140417e-05 | H118: 9.414257435e-06 | J118: 0.0001964581311 | K118: 0.002435582115 | L118: 0.0008682139988 | M118: 0.01267613951 | N118: 8.178325072e-06
A119: =IF('DF raw data'!A119="","",'DF raw data'!A119) -> -274 | B119: =IF('DF raw data'!B119="","",'DF raw data'!B119) -> -3.37557e-05 | C119: =IF('DF raw data'!C119="","",'DF raw data'!C119) -> 7.5677e-05 | D119: =IF('DF raw data'!D119="","",'DF raw data'!D119) -> -3.26502e-05 | F119: 1.290198977e-06 | G119: 2.658319403e-05 | H119: -9.165504849e-07 | J119: 0.0001971032305 | K119: 0.00253413373 | L119: 0.0008815055958 | M119: 0.0131168923 | N119: 8.586275972e-06
A120: =IF('DF raw data'!A120="","",'DF raw data'!A120) -> -273.5 | B120: =IF('DF raw data'!B120="","",'DF raw data'!B120) -> -2.80548e-05 | C120: =IF('DF raw data'!C120="","",'DF raw data'!C120) -> 7.48443e-05 | D120: =IF('DF raw data'!D120="","",'DF raw data'!D120) -> -2.73822e-05 | F120: 7.015042757e-06 | G120: 2.574699669e-05 | H120: 4.373575115e-06 | J120: 0.0002006107519 | K120: 0.002634439106 | L120: 0.0008943790941 | M120: 0.01356408185 | N120: 9.006355291e-06
A121: =IF('DF raw data'!A121="","",'DF raw data'!A121) -> -273 | B121: =IF('DF raw data'!B121="","",'DF raw data'!B121) -> -3.08761e-05 | C121: =IF('DF raw data'!C121="","",'DF raw data'!C121) -> 6.98577e-05 | D121: =IF('DF raw data'!D121="","",'DF raw data'!D121) -> -2.56166e-05 | F121: 4.181893297e-06 | G121: 2.073945297e-05 | H121: 6.146590635e-06 | J121: 0.0002027016986 | K121: 0.002735789955 | L121: 0.0009047488206 | M121: 0.01401645626 | N121: 9.436184494e-06
A122: =IF('DF raw data'!A122="","",'DF raw data'!A122) -> -272.5 | B122: =IF('DF raw data'!B122="","",'DF raw data'!B122) -> -2.20215e-05 | C122: =IF('DF raw data'!C122="","",'DF raw data'!C122) -> 6.79824e-05 | D122: =IF('DF raw data'!D122="","",'DF raw data'!D122) -> -4.08993e-05 | F122: 1.307368262e-05 | G122: 1.885627671e-05 | H122: -9.200296705e-06 | J122: 0.0002092385399 | K122: 0.002840409225 | L122: 0.000914176959 | M122: 0.01447354474 | N122: 9.875934634e-06
A123: =IF('DF raw data'!A123="","",'DF raw data'!A123) -> -272 | B123: =IF('DF raw data'!B123="","",'DF raw data'!B123) -> -2.61306e-05 | C123: =IF('DF raw data'!C123="","",'DF raw data'!C123) -> 7.09941e-05 | D123: =IF('DF raw data'!D123="","",'DF raw data'!D123) -> -2.96628e-05 | F123: 8.947324397e-06 | G123: 2.188062585e-05 | H123: 2.083396595e-06 | J123: 0.0002137122021 | K123: 0.002947265326 | L123: 0.0009251172719 | M123: 0.01493610338 | N123: 1.032669207e-05
A124: =IF('DF raw data'!A124="","",'DF raw data'!A124) -> -271.5 | B124: =IF('DF raw data'!B124="","",'DF raw data'!B124) -> -1.99784e-05 | C124: =IF('DF raw data'!C124="","",'DF raw data'!C124) -> 6.90525e-05 | D124: =IF('DF raw data'!D124="","",'DF raw data'!D124) -> -2.90026e-05 | F124: 1.512536364e-05 | G124: 1.993087113e-05 | H124: 2.746369435e-06 | J124: 0.0002212748839 | K124: 0.003057902768 | L124: 0.0009350827075 | M124: 0.01540364473 | N124: 1.078836319e-05
A125: =IF('DF raw data'!A125="","",'DF raw data'!A125) -> -271 | B125: =IF('DF raw data'!B125="","",'DF raw data'!B125) -> -3.95214e-05 | C125: =IF('DF raw data'!C125="","",'DF raw data'!C125) -> 6.73358e-05 | D125: =IF('DF raw data'!D125="","",'DF raw data'!D125) -> -3.62326e-05 | F125: -4.499716963e-06 | G125: 1.820696099e-05 | H125: -4.513996565e-06 | J125: 0.0002190250254 | K125: 0.003167415281 | L125: 0.000944186188 | M125: 0.01587573782 | N125: 1.125809295e-05
A126: =IF('DF raw data'!A126="","",'DF raw data'!A126) -> -270.5 | B126: =IF('DF raw data'!B126="","",'DF raw data'!B126) -> -1.78576e-05 | C126: =IF('DF raw data'!C126="","",'DF raw data'!C126) -> 7.08362e-05 | D126: =IF('DF raw data'!D126="","",'DF raw data'!D126) -> -3.78892e-05 | F126: 1.7255071e-05 | G126: 2.172206267e-05 | H126: -6.177554285e-06 | J126: 0.0002276525609 | K126: 0.003281241561 | L126: 0.0009550472193 | M126: 0.01635326143 | N126: 1.174006339e-05
A127: =IF('DF raw data'!A127="","",'DF raw data'!A127) -> -270 | B127: =IF('DF raw data'!B127="","",'DF raw data'!B127) -> -2.07484e-05 | C127: =IF('DF raw data'!C127="","",'DF raw data'!C127) -> 7.63481e-05 | D127: =IF('DF raw data'!D127="","",'DF raw data'!D127) -> -2.7012e-05 | F127: 1.435212964e-05 | G127: 2.725711265e-05 | H127: 4.745329955e-06 | J127: 0.0002348286257 | K127: 0.003398655874 | L127: 0.0009686757756 | M127: 0.01683759932 | N127: 1.223680201e-05
A128: =IF('DF raw data'!A128="","",'DF raw data'!A128) -> -269.5 | B128: =IF('DF raw data'!B128="","",'DF raw data'!B128) -> -1.81118e-05 | C128: =IF('DF raw data'!C128="","",'DF raw data'!C128) -> 7.05632e-05 | D128: =IF('DF raw data'!D128="","",'DF raw data'!D128) -> -4.12811e-05 | F128: 1.699980336e-05 | G128: 2.144791607e-05 | H128: -9.583700265e-06 | J128: =F128*$G$3+J127 -> 0.0002433285274 | K128: =J128*$G$3+K127 -> 0.003520320138 | L128: =G128*$G$3+L127 -> 0.0009793997337 | M128: =L128*$G$3+M127 -> 0.01732729919 | N128: =(J128^2+L128^2)*$G$3+N127 -> 1.274601832e-05
A129: =IF('DF raw data'!A129="","",'DF raw data'!A129) -> -269 | B129: =IF('DF raw data'!B129="","",'DF raw data'!B129) -> -2.61952e-05 | C129: =IF('DF raw data'!C129="","",'DF raw data'!C129) -> 7.15963e-05 | D129: =IF('DF raw data'!D129="","",'DF raw data'!D129) -> -2.87062e-05 | F129: 8.882453077e-06 | G129: 2.248535509e-05 | H129: 3.044014315e-06 | J129: 0.0002477697539 | K129: 0.003644205015 | L129: 0.0009906424112 | M129: 0.01782262039 | N129: 1.326739944e-05
A130: =IF('DF raw data'!A130="","",'DF raw data'!A130) -> -268.5 | B130: =IF('DF raw data'!B130="","",'DF raw data'!B130) -> -2.8694e-05 | C130: =IF('DF raw data'!C130="","",'DF raw data'!C130) -> 7.30353e-05 | D130: =IF('DF raw data'!D130="","",'DF raw data'!D130) -> -3.11879e-05 | F130: 6.373158117e-06 | G130: 2.393039889e-05 | H130: 5.518911751e-07 | J130: 0.000250956333 | K130: 0.003769683181 | L130: 0.001002607611 | M130: 0.0183239242 | N130: 1.380149999e-05
A131: =IF('DF raw data'!A131="","",'DF raw data'!A131) -> -268 | B131: =IF('DF raw data'!B131="","",'DF raw data'!B131) -> -3.39471e-05 | C131: =IF('DF raw data'!C131="","",'DF raw data'!C131) -> 6.28329e-05 | D131: =IF('DF raw data'!D131="","",'DF raw data'!D131) -> -3.29715e-05 | F131: =(1-$G$1*($B$54-$G$2))*(B131-F$5) -> 1.097995097e-06 | G131: =(1-$G$1*($B$54-$G$2))*(C131-G$5) -> 1.368514881e-05 | H131: =(1-$G$1*($B$54-$G$2))*(D131-H$5) -> -1.239199945e-06 | J131: 0.0002515053305 | K131: 0.003895435847 | L131: 0.001009450185 | M131: 0.01882864929 | N131: 1.434262229e-05
A132: =IF('DF raw data'!A132="","",'DF raw data'!A132) -> -267.5 | B132: =IF('DF raw data'!B132="","",'DF raw data'!B132) -> -3.42702e-05 | C132: =IF('DF raw data'!C132="","",'DF raw data'!C132) -> 6.19918e-05 | D132: =IF('DF raw data'!D132="","",'DF raw data'!D132) -> -3.08706e-05 | F132: 7.735380767e-07 | G132: 1.284051619e-05 | H132: 8.705238351e-07 | J132: 0.0002518920996 | K132: 0.004021381896 | L132: 0.001015870443 | M132: 0.01933658451 | N132: 1.489034348e-05
A133: =IF('DF raw data'!A133="","",'DF raw data'!A133) -> -267 | B133: =IF('DF raw data'!B133="","",'DF raw data'!B133) -> -2.83733e-05 | C133: =IF('DF raw data'!C133="","",'DF raw data'!C133) -> 6.56465e-05 | D133: =IF('DF raw data'!D133="","",'DF raw data'!D133) -> -2.97937e-05 | F133: 6.695205057e-06 | G133: 1.651056593e-05 | H133: 1.951946815e-06 | J133: 0.0002552397021 | K133: 0.004149001747 | L133: 0.001024125726 | M133: 0.01984864738 | N133: 1.544733389e-05
A134: =IF('DF raw data'!A134="","",'DF raw data'!A134) -> -266.5 | B134: =IF('DF raw data'!B134="","",'DF raw data'!B134) -> -9.14401e-06 | C134: =IF('DF raw data'!C134="","",'DF raw data'!C134) -> 6.57767e-05 | D134: =IF('DF raw data'!D134="","",'DF raw data'!D134) -> -3.36677e-05 | F134: 2.600525807e-05 | G134: 1.664131277e-05 | H134: -1.938323985e-06 | J134: 0.0002682423312 | K134: 0.004283122913 | L134: 0.001032446383 | M134: 0.02036487057 | N134: 1.601628363e-05
A135: =IF('DF raw data'!A135="","",'DF raw data'!A135) -> -266 | B135: =IF('DF raw data'!B135="","",'DF raw data'!B135) -> -3.36254e-05 | C135: =IF('DF raw data'!C135="","",'DF raw data'!C135) -> 7.16837e-05 | D135: =IF('DF raw data'!D135="","",'DF raw data'!D135) -> -3.48878e-05 | F135: 1.421046237e-06 | G135: 2.257312217e-05 | H135: -3.163548405e-06 | J135: 0.0002689528543 | K135: 0.00441759934 | L135: 0.001043732944 | M135: 0.02088673704 | N135: 1.659714068e-05
A136: =IF('DF raw data'!A136="","",'DF raw data'!A136) -> -265.5 | B136: =IF('DF raw data'!B136="","",'DF raw data'!B136) -> -1.86936e-05 | C136: =IF('DF raw data'!C136="","",'DF raw data'!C136) -> 7.01275e-05 | D136: =IF('DF raw data'!D136="","",'DF raw data'!D136) -> -3.42304e-05 | F136: 1.64155598e-05 | G136: 2.101038613e-05 | H136: -2.503387325e-06 | J136: 0.0002771606342 | K136: 0.004556179657 | L136: 0.001054238137 | M136: 0.02141385611 | N136: 1.719125871e-05
A137: =IF('DF raw data'!A137="","",'DF raw data'!A137) -> -265 | B137: =IF('DF raw data'!B137="","",'DF raw data'!B137) -> -3.20197e-05 | C137: =IF('DF raw data'!C137="","",'DF raw data'!C137) -> 7.11793e-05 | D137: =IF('DF raw data'!D137="","",'DF raw data'!D137) -> -3.99096e-05 | F137: 3.033490177e-06 | G137: 2.206660369e-05 | H137: -8.206439965e-06 | J137: 0.0002786773793 | K137: 0.004695518347 | L137: 0.001065271439 | M137: 0.02194649183 | N137: 1.779749087e-05
A138: =IF('DF raw data'!A138="","",'DF raw data'!A138) -> -264.5 | B138: =IF('DF raw data'!B138="","",'DF raw data'!B138) -> -3.176e-05 | C138: =IF('DF raw data'!C138="","",'DF raw data'!C138) -> 7.35917e-05 | D138: =IF('DF raw data'!D138="","",'DF raw data'!D138) -> -4.75734e-05 | F138: 3.294280917e-06 | G138: 2.448913577e-05 | H138: -1.590242792e-05 | J138: 0.0002803245197 | K138: 0.004835680607 | L138: 0.001077516006 | M138: 0.02248524983 | N138: 1.841730216e-05
A139: =IF('DF raw data'!A139="","",'DF raw data'!A139) -> -264 | B139: =IF('DF raw data'!B139="","",'DF raw data'!B139) -> -2.78473e-05 | C139: =IF('DF raw data'!C139="","",'DF raw data'!C139) -> 8.02497e-05 | D139: =IF('DF raw data'!D139="","",'DF raw data'!D139) -> -5.00508e-05 | F139: 7.223414257e-06 | G139: 3.117509937e-05 | H139: -1.8390233e-05 | J139: 0.0002839362268 | K139: 0.00497764872 | L139: 0.001093103556 | M139: 0.02303180161 | N139: 1.905504974e-05
A140: =IF('DF raw data'!A140="","",'DF raw data'!A140) -> -263.5 | B140: =IF('DF raw data'!B140="","",'DF raw data'!B140) -> -2.57442e-05 | C140: =IF('DF raw data'!C140="","",'DF raw data'!C140) -> 8.01294e-05 | D140: =IF('DF raw data'!D140="","",'DF raw data'!D140) -> -3.37312e-05 | F140: 9.335347277e-06 | G140: 3.105429411e-05 | H140: -2.002090685e-06 | J140: 0.0002886039005 | K140: 0.00512195067 | L140: 0.001108630703 | M140: 0.02358611696 | N140: 1.971122687e-05
A141: =IF('DF raw data'!A141="","",'DF raw data'!A141) -> -263 | B141: =IF('DF raw data'!B141="","",'DF raw data'!B141) -> -1.61906e-05 | C141: =IF('DF raw data'!C141="","",'DF raw data'!C141) -> 7.91433e-05 | D141: =IF('DF raw data'!D141="","",'DF raw data'!D141) -> -3.79606e-05 | F141: 1.89290724e-05 | G141: 3.006405249e-05 | H141: -6.249254165e-06 | J141: 0.0002980684367 | K141: 0.005270984889 | L141: 0.001123662729 | M141: 0.02414794832 | N141: 2.038695823e-05
A142: =IF('DF raw data'!A142="","",'DF raw data'!A142) -> -262.5 | B142: =IF('DF raw data'!B142="","",'DF raw data'!B142) -> -2.02335e-05 | C142: =IF('DF raw data'!C142="","",'DF raw data'!C142) -> 7.16004e-05 | D142: =IF('DF raw data'!D142="","",'DF raw data'!D142) -> -3.16813e-05 | F142: 1.486919222e-05 | G142: 2.248947231e-05 | H142: 5.641889512e-08 | J142: 0.0003055030328 | K142: 0.005423736405 | L142: 0.001134907466 | M142: 0.02471540206 | N142: 2.107763176e-05
A143: =IF('DF raw data'!A143="","",'DF raw data'!A143) -> -262 | B143: =IF('DF raw data'!B143="","",'DF raw data'!B143) -> -2.31804e-05 | C143: =IF('DF raw data'!C143="","",'DF raw data'!C143) -> 6.53456e-05 | D143: =IF('DF raw data'!D143="","",'DF raw data'!D143) -> -3.20435e-05 | F143: 1.190991524e-05 | G143: 1.620840215e-05 | H143: -3.073023449e-07 | J143: 0.0003114579904 | K143: 0.0055794654 | L143: 0.001143011667 | M143: 0.02528690789 | N143: 2.177937263e-05
A144: =IF('DF raw data'!A144="","",'DF raw data'!A144) -> -261.5 | B144: =IF('DF raw data'!B144="","",'DF raw data'!B144) -> -2.84361e-05 | C144: =IF('DF raw data'!C144="","",'DF raw data'!C144) -> 5.83044e-05 | D144: =IF('DF raw data'!D144="","",'DF raw data'!D144) -> -3.37491e-05 | F144: 6.632141297e-06 | G144: 9.137629114e-06 | H144: -2.020065865e-06 | J144: 0.0003147740611 | K144: 0.005736852431 | L144: 0.001147580481 | M144: 0.02586069813 | N144: 2.248738447e-05
A145: =IF('DF raw data'!A145="","",'DF raw data'!A145) -> -261 | B145: =IF('DF raw data'!B145="","",'DF raw data'!B145) -> -1.52916e-05 | C145: =IF('DF raw data'!C145="","",'DF raw data'!C145) -> 6.06972e-05 | D145: =IF('DF raw data'!D145="","",'DF raw data'!D145) -> -4.07264e-05 | F145: 1.98318482e-05 | G145: 1.154047887e-05 | H145: -9.026670525e-06 | J145: 0.0003246899852 | K145: 0.005899197423 | L145: 0.001153350721 | M145: 0.02643737349 | N145: 2.32052052e-05
A146: =IF('DF raw data'!A146="","",'DF raw data'!A146) -> -260.5 | B146: =IF('DF raw data'!B146="","",'DF raw data'!B146) -> -3.33656e-05 | C146: =IF('DF raw data'!C146="","",'DF raw data'!C146) -> 4.77044e-05 | D146: =IF('DF raw data'!D146="","",'DF raw data'!D146) -> -4.30671e-05 | F146: 1.681937397e-06 | G146: -1.506890886e-06 | H146: -1.137720146e-05 | J146: 0.0003255309539 | K146: 0.0060619629 | L146: 0.001152597275 | M146: 0.02701367213 | N146: 2.392243064e-05
A147: =IF('DF raw data'!A147="","",'DF raw data'!A147) -> -260 | B147: =IF('DF raw data'!B147="","",'DF raw data'!B147) -> -2.24056e-05 | C147: =IF('DF raw data'!C147="","",'DF raw data'!C147) -> 6.55204e-05 | D147: =IF('DF raw data'!D147="","",'DF raw data'!D147) -> -4.0185e-05 | F147: 1.26879694e-05 | G147: 1.638393631e-05 | H147: -8.482996645e-06 | J147: 0.0003318749386 | K147: 0.00622790037 | L147: 0.001160789243 | M147: 0.02759406675 | N147: 2.465121696e-05
A148: =IF('DF raw data'!A148="","",'DF raw data'!A148) -> -259.5 | B148: =IF('DF raw data'!B148="","",'DF raw data'!B148) -> -2.66366e-05 | C148: =IF('DF raw data'!C148="","",'DF raw data'!C148) -> 7.36616e-05 | D148: =IF('DF raw data'!D148="","",'DF raw data'!D148) -> -4.1612e-05 | F148: 8.439199197e-06 | G148: 2.455932935e-05 | H148: -9.915990045e-06 | J148: 0.0003360945381 | K148: 0.006395947639 | L148: 0.001173068908 | M148: 0.0281806012 | N148: 2.539574206e-05
A149: =IF('DF raw data'!A149="","",'DF raw data'!A149) -> -259 | B149: =IF('DF raw data'!B149="","",'DF raw data'!B149) -> -3.52872e-05 | C149: =IF('DF raw data'!C149="","",'DF raw data'!C149) -> 7.04278e-05 | D149: =IF('DF raw data'!D149="","",'DF raw data'!D149) -> -4.09995e-05 | F149: -2.477333233e-07 | G149: 2.131194739e-05 | H149: -9.300917545e-06 | J149: 0.0003359706715 | K149: 0.006563932974 | L149: 0.001183724882 | M149: 0.02877246365 | N149: 2.615278251e-05
A150: =IF('DF raw data'!A150="","",'DF raw data'!A150) -> -258.5 | B150: =IF('DF raw data'!B150="","",'DF raw data'!B150) -> -1.67053e-05 | C150: =IF('DF raw data'!C150="","",'DF raw data'!C150) -> 7.30778e-05 | D150: =IF('DF raw data'!D150="","",'DF raw data'!D150) -> -3.685e-05 | F150: 1.841221066e-05 | G150: 2.397307739e-05 | H150: -5.133989645e-06 | J150: 0.0003451767768 | K150: 0.006736521363 | L150: 0.00119571142 | M150: 0.02937031936 | N150: 2.692721891e-05
A151: =IF('DF raw data'!A151="","",'DF raw data'!A151) -> -258 | B151: =IF('DF raw data'!B151="","",'DF raw data'!B151) -> -3.54181e-05 | C151: =IF('DF raw data'!C151="","",'DF raw data'!C151) -> 6.69859e-05 | D151: =IF('DF raw data'!D151="","",'DF raw data'!D151) -> -3.61879e-05 | F151: -3.791831033e-07 | G151: 1.785559141e-05 | H151: -4.469108825e-06 | J151: 0.0003449871853 | K151: 0.006909014955 | L151: 0.001204639216 | M151: 0.02997263896 | N151: 2.771230481e-05
A152: =IF('DF raw data'!A152="","",'DF raw data'!A152) -> -257.5 | B152: =IF('DF raw data'!B152="","",'DF raw data'!B152) -> -1.91398e-05 | C152: =IF('DF raw data'!C152="","",'DF raw data'!C152) -> 6.20281e-05 | D152: =IF('DF raw data'!D152="","",'DF raw data'!D152) -> -3.84038e-05 | F152: 1.596748576e-05 | G152: 1.287696865e-05 | H152: -6.694315605e-06 | J152: 0.0003529709281 | K152: 0.00708550042 | L152: 0.0012110777 | M152: 0.03057817781 | N152: 2.850795365e-05
A153: =IF('DF raw data'!A153="","",'DF raw data'!A153) -> -257 | B153: =IF('DF raw data'!B153="","",'DF raw data'!B153) -> -1.91979e-05 | C153: =IF('DF raw data'!C153="","",'DF raw data'!C153) -> 5.84472e-05 | D153: =IF('DF raw data'!D153="","",'DF raw data'!D153) -> -4.49897e-05 | F153: 1.590914174e-05 | G153: 9.281028874e-06 | H153: -1.330787638e-05 | J153: 0.000360925499 | K153: 0.007265963169 | L153: 0.001215718215 | M153: 0.03118603692 | N153: 2.931207265e-05
A154: =IF('DF raw data'!A154="","",'DF raw data'!A154) -> -256.5 | B154: =IF('DF raw data'!B154="","",'DF raw data'!B154) -> -2.4974e-05 | C154: =IF('DF raw data'!C154="","",'DF raw data'!C154) -> 6.41081e-05 | D154: =IF('DF raw data'!D154="","",'DF raw data'!D154) -> -3.64901e-05 | F154: 1.010878212e-05 | G154: 1.496570465e-05 | H154: -4.772578065e-06 | J154: 0.0003659798901 | K154: 0.007448953114 | L154: 0.001223201067 | M154: 0.03179763746 | N154: 3.012715371e-05
A155: =IF('DF raw data'!A155="","",'DF raw data'!A155) -> -256 | B155: =IF('DF raw data'!B155="","",'DF raw data'!B155) -> -1.30494e-05 | C155: =IF('DF raw data'!C155="","",'DF raw data'!C155) -> 8.44584e-05 | D155: =IF('DF raw data'!D155="","",'DF raw data'!D155) -> -3.87372e-05 | F155: 2.208346544e-05 | G155: 3.540147591e-05 | H155: -7.029115885e-06 | J155: 0.0003770216228 | K155: 0.007637463925 | L155: 0.001240901805 | M155: 0.03241808836 | N155: 3.096814501e-05
A156: =IF('DF raw data'!A156="","",'DF raw data'!A156) -> -255.5 | B156: =IF('DF raw data'!B156="","",'DF raw data'!B156) -> -1.8565e-05 | C156: =IF('DF raw data'!C156="","",'DF raw data'!C156) -> 8.08186e-05 | D156: =IF('DF raw data'!D156="","",'DF raw data'!D156) -> -3.57702e-05 | F156: 1.654469992e-05 | G156: 3.174638875e-05 | H156: -4.049654485e-06 | J156: 0.0003852939727 | K156: 0.007830110912 | L156: 0.001256775 | M156: 0.03304647586 | N156: 3.183211243e-05
A157: =IF('DF raw data'!A157="","",'DF raw data'!A157) -> -255 | B157: =IF('DF raw data'!B157="","",'DF raw data'!B157) -> -1.81722e-05 | C157: =IF('DF raw data'!C157="","",'DF raw data'!C157) -> 8.31227e-05 | D157: =IF('DF raw data'!D157="","",'DF raw data'!D157) -> -4.53956e-05 | F157: 1.693914968e-05 | G157: 3.406016597e-05 | H157: -1.371548116e-05 | J157: 0.0003937635476 | K157: 0.008026992686 | L157: 0.001273805083 | M157: 0.0336833784 | N157: 3.272092699e-05
A158: =IF('DF raw data'!A158="","",'DF raw data'!A158) -> -254.5 | B158: =IF('DF raw data'!B158="","",'DF raw data'!B158) -> -2.4655e-05 | C158: =IF('DF raw data'!C158="","",'DF raw data'!C158) -> 7.45095e-05 | D158: =IF('DF raw data'!D158="","",'DF raw data'!D158) -> -3.40764e-05 | F158: 1.042912192e-05 | G158: 2.541079053e-05 | H158: -2.348740525e-06 | J158: 0.0003989781085 | K158: 0.00822648174 | L158: 0.001286510478 | M158: 0.03432663364 | N158: 3.362807336e-05
A159: =IF('DF raw data'!A159="","",'DF raw data'!A159) -> -254 | B159: =IF('DF raw data'!B159="","",'DF raw data'!B159) -> -2.45865e-05 | C159: =IF('DF raw data'!C159="","",'DF raw data'!C159) -> 7.57923e-05 | D159: =IF('DF raw data'!D159="","",'DF raw data'!D159) -> -3.70381e-05 | F159: 1.049790962e-05 | G159: 2.669897829e-05 | H159: -5.322879665e-06 | J159: 0.0004042270634 | K159: 0.008428595272 | L159: 0.001299859967 | M159: 0.03497656362 | N159: 3.455459109e-05
A160: =IF('DF raw data'!A160="","",'DF raw data'!A160) -> -253.5 | B160: =IF('DF raw data'!B160="","",'DF raw data'!B160) -> -3.1255e-05 | C160: =IF('DF raw data'!C160="","",'DF raw data'!C160) -> 6.68607e-05 | D160: =IF('DF raw data'!D160="","",'DF raw data'!D160) -> -3.6841e-05 | F160: 3.801401917e-06 | G160: 1.772986557e-05 | H160: -5.124951845e-06 | J160: 0.0004061277643 | K160: 0.008631659154 | L160: 0.0013087249 | M160: 0.03563092607 | N160: 3.54934414e-05
A161: =IF('DF raw data'!A161="","",'DF raw data'!A161) -> -253 | B161: =IF('DF raw data'!B161="","",'DF raw data'!B161) -> -2.25279e-05 | C161: =IF('DF raw data'!C161="","",'DF raw data'!C161) -> 7.02689e-05 | D161: =IF('DF raw data'!D161="","",'DF raw data'!D161) -> -4.88803e-05 | F161: 1.256515574e-05 | G161: 2.115238001e-05 | H161: -1.72148169e-05 | J161: 0.0004124103422 | K161: 0.008837864325 | L161: 0.00131930109 | M161: 0.03629057662 | N161: 3.644876023e-05
A162: =IF('DF raw data'!A162="","",'DF raw data'!A162) -> -252.5 | B162: =IF('DF raw data'!B162="","",'DF raw data'!B162) -> -3.60626e-05 | C162: =IF('DF raw data'!C162="","",'DF raw data'!C162) -> 7.69835e-05 | D162: =IF('DF raw data'!D162="","",'DF raw data'!D162) -> -3.5885e-05 | F162: -1.026390003e-06 | G162: 2.789518133e-05 | H162: -4.164936645e-06 | J162: 0.0004118971472 | K162: 0.009043812898 | L162: 0.00133324868 | M162: 0.03695720096 | N162: 3.742236588e-05
A163: =IF('DF raw data'!A163="","",'DF raw data'!A163) -> -252 | B163: =IF('DF raw data'!B163="","",'DF raw data'!B163) -> -2.30436e-05 | C163: =IF('DF raw data'!C163="","",'DF raw data'!C163) -> 8.51709e-05 | D163: =IF('DF raw data'!D163="","",'DF raw data'!D163) -> -4.471e-05 | F163: 1.20472898e-05 | G163: 3.611696841e-05 | H163: -1.302700164e-05 | J163: 0.0004179207921 | K163: 0.009252773294 | L163: 0.001351307165 | M163: 0.03763285454 | N163: 3.84227103e-05
A164: =IF('DF raw data'!A164="","",'DF raw data'!A164) -> -251.5 | B164: =IF('DF raw data'!B164="","",'DF raw data'!B164) -> -2.88228e-05 | C164: =IF('DF raw data'!C164="","",'DF raw data'!C164) -> 8.71304e-05 | D164: =IF('DF raw data'!D164="","",'DF raw data'!D164) -> -3.16566e-05 | F164: 6.243817157e-06 | G164: 3.808469831e-05 | H164: 8.122263512e-08 | J164: 0.0004210427007 | K164: 0.009463294645 | L164: 0.001370349514 | M164: 0.0383180293 | N164: 3.945027767e-05
A165: =IF('DF raw data'!A165="","",'DF raw data'!A165) -> -251 | B165: =IF('DF raw data'!B165="","",'DF raw data'!B165) -> -1.27947e-05 | C165: =IF('DF raw data'!C165="","",'DF raw data'!C165) -> 8.85884e-05 | D165: =IF('DF raw data'!D165="","",'DF raw data'!D165) -> -3.63221e-05 | F165: 2.233923518e-05 | G165: 3.954882191e-05 | H165: -4.603872465e-06 | J165: 0.0004322123182 | K165: 0.009679400804 | L165: 0.001390123925 | M165: 0.03901309126 | N165: 4.050990368e-05
A166: =IF('DF raw data'!A166="","",'DF raw data'!A166) -> -250.5 | B166: =IF('DF raw data'!B166="","",'DF raw data'!B166) -> -3.56188e-05 | C166: =IF('DF raw data'!C166="","",'DF raw data'!C166) -> 7.80584e-05 | D166: =IF('DF raw data'!D166="","",'DF raw data'!D166) -> -2.85811e-05 | F166: -5.807260433e-07 | G166: 2.897459591e-05 | H166: 3.169639735e-06 | J166: 0.0004319219552 | K166: 0.009895361782 | L166: 0.001404611223 | M166: 0.03971539687 | N166: 4.158964831e-05
A167: =IF('DF raw data'!A167="","",'DF raw data'!A167) -> -250 | B167: =IF('DF raw data'!B167="","",'DF raw data'!B167) -> -2.13863e-05 | C167: =IF('DF raw data'!C167="","",'DF raw data'!C167) -> 8.55255e-05 | D167: =IF('DF raw data'!D167="","",'DF raw data'!D167) -> -3.06274e-05 | F167: 1.371155046e-05 | G167: 3.647305773e-05 | H167: 1.114745275e-06 | J167: 0.0004387777304 | K167: 0.01011475065 | L167: 0.001422847752 | M167: 0.04042682074 | N167: 4.269815912e-05
A168: =IF('DF raw data'!A168="","",'DF raw data'!A168) -> -249.5 | B168: =IF('DF raw data'!B168="","",'DF raw data'!B168) -> -2.60718e-05 | C168: =IF('DF raw data'!C168="","",'DF raw data'!C168) -> 7.61048e-05 | D168: =IF('DF raw data'!D168="","",'DF raw data'!D168) -> -2.35705e-05 | F168: 9.006371357e-06 | G168: 2.701279079e-05 | H168: 8.201284255e-06 | J168: 0.0004432809161 | K168: 0.0103363911 | L168: 0.001436354147 | M168: 0.04114499782 | N168: 4.382796472e-05
A169: =IF('DF raw data'!A169="","",'DF raw data'!A169) -> -249 | B169: =IF('DF raw data'!B169="","",'DF raw data'!B169) -> -2.58701e-05 | C169: =IF('DF raw data'!C169="","",'DF raw data'!C169) -> 7.86958e-05 | D169: =IF('DF raw data'!D169="","",'DF raw data'!D169) -> -3.46005e-05 | F169: 9.208918497e-06 | G169: 2.961467299e-05 | H169: -2.875041745e-06 | J169: 0.0004478853754 | K169: 0.01056033379 | L169: 0.001451161483 | M169: 0.04187057856 | N169: 4.49812002e-05
A170: =IF('DF raw data'!A170="","",'DF raw data'!A170) -> -248.5 | B170: =IF('DF raw data'!B170="","",'DF raw data'!B170) -> -3.50451e-05 | C170: =IF('DF raw data'!C170="","",'DF raw data'!C170) -> 9.36696e-05 | D170: =IF('DF raw data'!D170="","",'DF raw data'!D170) -> -2.32517e-05 | F170: -4.616503341e-09 | G170: 4.465136295e-05 | H170: 8.521423215e-06 | J170: 0.0004478830671 | K170: 0.01078427533 | L170: 0.001473487165 | M170: 0.04260732214 | N170: 4.616708204e-05
A171: =IF('DF raw data'!A171="","",'DF raw data'!A171) -> -248 | B171: =IF('DF raw data'!B171="","",'DF raw data'!B171) -> -2.74769e-05 | C171: =IF('DF raw data'!C171="","",'DF raw data'!C171) -> 9.08946e-05 | D171: =IF('DF raw data'!D171="","",'DF raw data'!D171) -> -2.75445e-05 | F171: 7.595369937e-06 | G171: 4.186470795e-05 | H171: 4.210593455e-06 | J171: 0.0004516807521 | K171: 0.0110101157 | L171: 0.001494419519 | M171: 0.0433545319 | N171: 4.738573464e-05
A172: =IF('DF raw data'!A172="","",'DF raw data'!A172) -> -247.5 | B172: =IF('DF raw data'!B172="","",'DF raw data'!B172) -> -2.78613e-05 | C172: =IF('DF raw data'!C172="","",'DF raw data'!C172) -> 8.66565e-05 | D172: =IF('DF raw data'!D172="","",'DF raw data'!D172) -> -3.1353e-05 | F172: 7.209355457e-06 | G172: 3.760880793e-05 | H172: 3.860977551e-07 | J172: 0.0004552854298 | K172: 0.01123775842 | L172: 0.001513223923 | M172: 0.04411114386 | N172: 4.863430037e-05
A173: =IF('DF raw data'!A173="","",'DF raw data'!A173) -> -247 | B173: =IF('DF raw data'!B173="","",'DF raw data'!B173) -> -3.2725e-05 | C173: =IF('DF raw data'!C173="","",'DF raw data'!C173) -> 7.33003e-05 | D173: =IF('DF raw data'!D173="","",'DF raw data'!D173) -> -3.90314e-05 | F173: 2.325227917e-06 | G173: 2.419651189e-05 | H173: -7.324551525e-06 | J173: 0.0004564480438 | K173: 0.01146598244 | L173: 0.001525322179 | M173: 0.04487380495 | N173: 4.990177665e-05
A174: =IF('DF raw data'!A174="","",'DF raw data'!A174) -> -246.5 | B174: =IF('DF raw data'!B174="","",'DF raw data'!B174) -> -3.11954e-05 | C174: =IF('DF raw data'!C174="","",'DF raw data'!C174) -> 7.18142e-05 | D174: =IF('DF raw data'!D174="","",'DF raw data'!D174) -> -2.90231e-05 | F174: 3.861252237e-06 | G174: 2.270417027e-05 | H174: 2.725783335e-06 | J174: 0.0004583786699 | K174: 0.01169517177 | L174: 0.001536674264 | M174: 0.04564214208 | N174: 5.118751605e-05
A175: =IF('DF raw data'!A175="","",'DF raw data'!A175) -> -246 | B175: =IF('DF raw data'!B175="","",'DF raw data'!B175) -> -2.25416e-05 | C175: =IF('DF raw data'!C175="","",'DF raw data'!C175) -> 7.56652e-05 | D175: =IF('DF raw data'!D175="","",'DF raw data'!D175) -> -2.8302e-05 | F175: 1.25513982e-05 | G175: 2.657134447e-05 | H175: 3.449911955e-06 | J175: 0.000464654369 | K175: 0.01192749896 | L175: 0.001549959936 | M175: 0.04641712205 | N175: 5.249665579e-05
A176: =IF('DF raw data'!A176="","",'DF raw data'!A176) -> -245.5 | B176: =IF('DF raw data'!B176="","",'DF raw data'!B176) -> -3.32478e-05 | C176: =IF('DF raw data'!C176="","",'DF raw data'!C176) -> 7.73025e-05 | D176: =IF('DF raw data'!D176="","",'DF raw data'!D176) -> -2.70549e-05 | F176: 1.800232157e-06 | G176: 2.821552113e-05 | H176: 4.702249775e-06 | J176: 0.0004655544851 | K176: 0.0121602762 | L176: 0.001564067697 | M176: 0.0471991559 | N176: 5.382818016e-05
A177: =IF('DF raw data'!A177="","",'DF raw data'!A177) -> -245 | B177: =IF('DF raw data'!B177="","",'DF raw data'!B177) -> -1.51604e-05 | C177: =IF('DF raw data'!C177="","",'DF raw data'!C177) -> 7.82575e-05 | D177: =IF('DF raw data'!D177="","",'DF raw data'!D177) -> -4.54489e-05 | F177: 1.996359924e-05 | G177: 2.917453213e-05 | H177: -1.376900502e-05 | J177: 0.0004755362847 | K177: 0.01239804434 | L177: 0.001578654963 | M177: 0.04798848338 | N177: 5.518732329e-05
A178: =IF('DF raw data'!A178="","",'DF raw data'!A178) -> -244.5 | B178: =IF('DF raw data'!B178="","",'DF raw data'!B178) -> -3.52953e-05 | C178: =IF('DF raw data'!C178="","",'DF raw data'!C178) -> 7.46595e-05 | D178: =IF('DF raw data'!D178="","",'DF raw data'!D178) -> -3.2084e-05 | F178: -2.558673433e-07 | G178: 2.556142053e-05 | H178: -3.479724449e-07 | J178: 0.000475408351 | K178: 0.01263574852 | L178: 0.001591435673 | M178: 0.04878420122 | N178: 5.656666359e-05
A179: =IF('DF raw data'!A179="","",'DF raw data'!A179) -> -244 | B179: =IF('DF raw data'!B179="","",'DF raw data'!B179) -> -2.45217e-05 | C179: =IF('DF raw data'!C179="","",'DF raw data'!C179) -> 7.16239e-05 | D179: =IF('DF raw data'!D179="","",'DF raw data'!D179) -> -3.901e-05 | F179: 1.056298178e-05 | G179: 2.251307101e-05 | H179: -7.303061645e-06 | J179: 0.0004806898419 | K179: 0.01287609344 | L179: 0.001602692209 | M179: 0.04958554732 | N179: 5.796650611e-05
A180: =IF('DF raw data'!A180="","",'DF raw data'!A180) -> -243.5 | B180: =IF('DF raw data'!B180="","",'DF raw data'!B180) -> -2.88195e-05 | C180: =IF('DF raw data'!C180="","",'DF raw data'!C180) -> 7.34081e-05 | D180: =IF('DF raw data'!D180="","",'DF raw data'!D180) -> -3.55414e-05 | F180: 6.247131017e-06 | G180: 2.430476465e-05 | H180: -3.819893525e-06 | J180: 0.0004838134074 | K180: 0.01311800014 | L180: 0.001614844591 | M180: 0.05039296962 | N180: 5.938740534e-05
A181: =IF('DF raw data'!A181="","",'DF raw data'!A181) -> -243 | B181: =IF('DF raw data'!B181="","",'DF raw data'!B181) -> -1.61213e-05 | C181: =IF('DF raw data'!C181="","",'DF raw data'!C181) -> 7.60153e-05 | D181: =IF('DF raw data'!D181="","",'DF raw data'!D181) -> -4.60774e-05 | F181: 1.899866346e-05 | G181: 2.692291489e-05 | H181: -1.440014472e-05 | J181: 0.0004933127391 | K181: 0.01336465651 | L181: 0.001628306048 | M181: 0.05120712264 | N181: 6.083477437e-05
A182: =IF('DF raw data'!A182="","",'DF raw data'!A182) -> -242.5 | B182: =IF('DF raw data'!B182="","",'DF raw data'!B182) -> -3.87547e-05 | C182: =IF('DF raw data'!C182="","",'DF raw data'!C182) -> 7.07491e-05 | D182: =IF('DF raw data'!D182="","",'DF raw data'!D182) -> -3.4099e-05 | F182: -3.729796823e-06 | G182: 2.163459685e-05 | H182: -2.371435445e-06 | J182: 0.0004914478407 | K182: 0.01361038043 | L182: 0.001639123347 | M182: 0.05202668432 | N182: 6.229889753e-05
A183: =IF('DF raw data'!A183="","",'DF raw data'!A183) -> -242 | B183: =IF('DF raw data'!B183="","",'DF raw data'!B183) -> -3.2021e-05 | C183: =IF('DF raw data'!C183="","",'DF raw data'!C183) -> 7.90333e-05 | D183: =IF('DF raw data'!D183="","",'DF raw data'!D183) -> -3.85973e-05 | F183: 3.032184717e-06 | G183: 2.995359049e-05 | H183: -6.888628305e-06 | J183: 0.0004929639331 | K183: 0.0138568624 | L183: 0.001654100142 | M183: 0.05285373439 | N183: 6.378842789e-05
A184: =IF('DF raw data'!A184="","",'DF raw data'!A184) -> -241.5 | B184: =IF('DF raw data'!B184="","",'DF raw data'!B184) -> -3.4842e-05 | C184: =IF('DF raw data'!C184="","",'DF raw data'!C184) -> 8.09772e-05 | D184: =IF('DF raw data'!D184="","",'DF raw data'!D184) -> -3.85613e-05 | F184: 1.993365167e-07 | G184: 3.190565487e-05 | H184: -6.852477105e-06 | J184: 0.0004930636013 | K184: 0.0141033942 | L184: 0.001670052969 | M184: 0.05368876087 | N184: 6.530452221e-05
A185: =IF('DF raw data'!A185="","",'DF raw data'!A185) -> -241 | B185: =IF('DF raw data'!B185="","",'DF raw data'!B185) -> -4.40709e-05 | C185: =IF('DF raw data'!C185="","",'DF raw data'!C185) -> 8.67659e-05 | D185: =IF('DF raw data'!D185="","",'DF raw data'!D185) -> -3.80077e-05 | F185: -9.068324863e-06 | G185: 3.771866741e-05 | H185: -6.296551985e-06 | J185: 0.0004885294389 | K185: 0.01434765892 | L185: 0.001688912303 | M185: 0.05453321702 | N185: 6.68500651e-05
A186: =IF('DF raw data'!A186="","",'DF raw data'!A186) -> -240.5 | B186: =IF('DF raw data'!B186="","",'DF raw data'!B186) -> -2.44719e-05 | C186: =IF('DF raw data'!C186="","",'DF raw data'!C186) -> 8.22688e-05 | D186: =IF('DF raw data'!D186="","",'DF raw data'!D186) -> -1.81414e-05 | F186: 1.061299094e-05 | G186: 3.320267959e-05 | H186: 1.365318648e-05 | J186: 0.0004938359344 | K186: 0.01459457689 | L186: 0.001705513643 | M186: 0.05538597385 | N186: 6.842639045e-05
A187: =IF('DF raw data'!A187="","",'DF raw data'!A187) -> -240 | B187: =IF('DF raw data'!B187="","",'DF raw data'!B187) -> -2.42018e-05 | C187: =IF('DF raw data'!C187="","",'DF raw data'!C187) -> 7.30138e-05 | D187: =IF('DF raw data'!D187="","",'DF raw data'!D187) -> -3.9267e-05 | F187: 1.088422536e-05 | G187: 2.390880859e-05 | H187: -7.561141045e-06 | J187: 0.0004992780471 | K187: 0.01484421591 | L187: 0.001717468047 | M187: 0.05624470787 | N187: 7.002587799e-05
A188: =IF('DF raw data'!A188="","",'DF raw data'!A188) -> -239.5 | B188: =IF('DF raw data'!B188="","",'DF raw data'!B188) -> -4.97747e-05 | C188: =IF('DF raw data'!C188="","",'DF raw data'!C188) -> 8.33802e-05 | D188: =IF('DF raw data'!D188="","",'DF raw data'!D188) -> -3.90656e-05 | F188: -1.479608082e-05 | G188: 3.431874747e-05 | H188: -7.358895165e-06 | J188: 0.0004918800067 | K188: 0.01509015591 | L188: 0.001734627421 | M188: 0.05711202158 | N188: 7.16513171e-05
A189: =IF('DF raw data'!A189="","",'DF raw data'!A189) -> -239 | B189: =IF('DF raw data'!B189="","",'DF raw data'!B189) -> -4.31123e-05 | C189: =IF('DF raw data'!C189="","",'DF raw data'!C189) -> 8.35114e-05 | D189: =IF('DF raw data'!D189="","",'DF raw data'!D189) -> -3.41375e-05 | F189: -8.105698743e-06 | G189: 3.445049851e-05 | H189: -2.410097145e-06 | J189: 0.0004878271573 | K189: 0.01533406949 | L189: 0.00175185267 | M189: 0.05798794791 | N189: 7.330479866e-05
A190: =IF('DF raw data'!A190="","",'DF raw data'!A190) -> -238.5 | B190: =IF('DF raw data'!B190="","",'DF raw data'!B190) -> -4.32985e-05 | C190: =IF('DF raw data'!C190="","",'DF raw data'!C190) -> 6.93393e-05 | D190: =IF('DF raw data'!D190="","",'DF raw data'!D190) -> -4.34138e-05 | F190: -8.292680783e-06 | G190: 2.021887569e-05 | H190: -1.17253576e-05 | J190: 0.0004836808169 | K190: 0.0155759099 | L190: 0.001761962108 | M190: 0.05886892897 | N190: 7.497402746e-05
A191: =IF('DF raw data'!A191="","",'DF raw data'!A191) -> -238 | B191: =IF('DF raw data'!B191="","",'DF raw data'!B191) -> -1.92643e-05 | C191: =IF('DF raw data'!C191="","",'DF raw data'!C191) -> 6.78882e-05 | D191: =IF('DF raw data'!D191="","",'DF raw data'!D191) -> -4.27261e-05 | F191: 1.584246286e-05 | G191: 1.876168107e-05 | H191: -1.103476926e-05 | J191: 0.0004916020483 | K191: 0.01582171093 | L191: 0.001771342949 | M191: 0.05975460044 | N191: 7.666369167e-05
A192: =IF('DF raw data'!A192="","",'DF raw data'!A192) -> -237.5 | B192: =IF('DF raw data'!B192="","",'DF raw data'!B192) -> -3.18304e-05 | C192: =IF('DF raw data'!C192="","",'DF raw data'!C192) -> 6.81948e-05 | D192: =IF('DF raw data'!D192="","",'DF raw data'!D192) -> -3.6839e-05 | F192: 3.223585237e-06 | G192: 1.906956879e-05 | H192: -5.122943445e-06 | J192: =F192*$G$3+J191 -> 0.0004932138409 | K192: =J192*$G$3+K191 -> 0.01606831785 | L192: =G192*$G$3+L191 -> 0.001780877733 | M192: =L192*$G$3+M191 -> 0.06064503931 | N192: =(J192^2+L192^2)*$G$3+N191 -> 7.837108436e-05
A193: =IF('DF raw data'!A193="","",'DF raw data'!A193) -> -237 | B193: =IF('DF raw data'!B193="","",'DF raw data'!B193) -> -3.791e-05 | C193: =IF('DF raw data'!C193="","",'DF raw data'!C193) -> 6.34248e-05 | D193: =IF('DF raw data'!D193="","",'DF raw data'!D193) -> -5.06516e-05 | F193: -2.881549083e-06 | G193: 1.427953479e-05 | H193: -1.899355636e-05 | J193: 0.0004917730664 | K193: 0.01631420438 | L193: 0.0017880175 | M193: 0.06153904806 | N193: 8.009050803e-05
A194: =IF('DF raw data'!A194="","",'DF raw data'!A194) -> -236.5 | B194: =IF('DF raw data'!B194="","",'DF raw data'!B194) -> -2.22763e-05 | C194: =IF('DF raw data'!C194="","",'DF raw data'!C194) -> 6.8272e-05 | D194: =IF('DF raw data'!D194="","",'DF raw data'!D194) -> -4.33275e-05 | F194: 1.281781246e-05 | G194: 1.914709303e-05 | H194: -1.163869514e-05 | J194: 0.0004981819726 | K194: 0.01656329537 | L194: 0.001797591047 | M194: 0.06243784358 | N194: 8.183026745e-05
A195: =IF('DF raw data'!A195="","",'DF raw data'!A195) -> -236 | B195: =IF('DF raw data'!B195="","",'DF raw data'!B195) -> -4.13115e-05 | C195: =IF('DF raw data'!C195="","",'DF raw data'!C195) -> 6.83656e-05 | D195: =IF('DF raw data'!D195="","",'DF raw data'!D195) -> -4.35145e-05 | F195: =(1-$G$1*($B$54-$G$2))*(B195-F$5) -> -6.297335383e-06 | G195: =(1-$G$1*($B$54-$G$2))*(C195-G$5) -> 1.924108615e-05 | H195: =(1-$G$1*($B$54-$G$2))*(D195-H$5) -> -1.182648054e-05 | J195: 0.0004950333049 | K195: 0.01681081202 | L195: 0.00180721159 | M195: 0.06334144938 | N195: 8.358580331e-05
A196: =IF('DF raw data'!A196="","",'DF raw data'!A196) -> -235.5 | B196: =IF('DF raw data'!B196="","",'DF raw data'!B196) -> -2.65083e-05 | C196: =IF('DF raw data'!C196="","",'DF raw data'!C196) -> 7.17985e-05 | D196: =IF('DF raw data'!D196="","",'DF raw data'!D196) -> -4.04283e-05 | F196: 8.568038057e-06 | G196: 2.268840433e-05 | H196: -8.727318505e-06 | J196: 0.000499317324 | K196: 0.01706047068 | L196: 0.001818555792 | M196: 0.06425072727 | N196: 8.536403479e-05
A197: =IF('DF raw data'!A197="","",'DF raw data'!A197) -> -235 | B197: =IF('DF raw data'!B197="","",'DF raw data'!B197) -> -2.5159e-05 | C197: =IF('DF raw data'!C197="","",'DF raw data'!C197) -> 7.85592e-05 | D197: =IF('DF raw data'!D197="","",'DF raw data'!D197) -> -4.54287e-05 | F197: 9.923005117e-06 | G197: 2.947749927e-05 | H197: -1.374872018e-05 | J197: 0.0005042788265 | K197: 0.01731261009 | L197: 0.001833294542 | M197: 0.06516737455 | N197: 8.717166779e-05
A198: =IF('DF raw data'!A198="","",'DF raw data'!A198) -> -234.5 | B198: =IF('DF raw data'!B198="","",'DF raw data'!B198) -> -3.2856e-05 | C198: =IF('DF raw data'!C198="","",'DF raw data'!C198) -> 7.80657e-05 | D198: =IF('DF raw data'!D198="","",'DF raw data'!D198) -> -3.66504e-05 | F198: 2.193677717e-06 | G198: 2.898192657e-05 | H198: -4.933551325e-06 | J198: 0.0005053756654 | K198: 0.01756529793 | L198: 0.001847785505 | M198: 0.0660912673 | N198: 8.900652571e-05
A199: =IF('DF raw data'!A199="","",'DF raw data'!A199) -> -234 | B199: =IF('DF raw data'!B199="","",'DF raw data'!B199) -> -3.04176e-05 | C199: =IF('DF raw data'!C199="","",'DF raw data'!C199) -> 7.43006e-05 | D199: =IF('DF raw data'!D199="","",'DF raw data'!D199) -> -4.08174e-05 | F199: 4.642318997e-06 | G199: 2.520101315e-05 | H199: -9.118052725e-06 | J199: 0.0005076968249 | K199: 0.01781914634 | L199: 0.001860386012 | M199: 0.0670214603 | N199: 9.08659218e-05
A200: =IF('DF raw data'!A200="","",'DF raw data'!A200) -> -233.5 | B200: =IF('DF raw data'!B200="","",'DF raw data'!B200) -> -2.36214e-05 | C200: =IF('DF raw data'!C200="","",'DF raw data'!C200) -> 8.03483e-05 | D200: =IF('DF raw data'!D200="","",'DF raw data'!D200) -> -4.47234e-05 | F200: 1.146706304e-05 | G200: 3.127411349e-05 | H200: -1.304045792e-05 | J200: 0.0005134303564 | K200: 0.01807586152 | L200: 0.001876023068 | M200: 0.06795947184 | N200: 9.275745844e-05
... 1079 more rows

Sheet 15 mm
A1: =IF('DF raw data'!E1="","",'DF raw data'!E1) -> Number of header lines | B1: =IF('DF raw data'!F1="","",'DF raw data'!F1) -> 54 | C1: =IF('DF raw data'!C1="","",'DF raw data'!C1) ->  | D1: =IF('DF raw data'!D1="","",'DF raw data'!D1) ->  | F1: T_coeff | G1: -0.001 | H1: /degC | J1: IBy total | K1: =J1267*1000 -> 6.938244546 | L1: muTm | M1: =L1267*1000 -> 1.84400995 | R1: DF ref | S1: 1
A2: =IF('DF raw data'!E2="","",'DF raw data'!E2) -> Measured by | B2: =IF('DF raw data'!F2="","",'DF raw data'!F2) -> Danfysik | C2: =IF('DF raw data'!C2="","",'DF raw data'!C2) ->  | D2: =IF('DF raw data'!D2="","",'DF raw data'!D2) ->  | F2: Tcorr | G2: 20 | H2: degC | J2: JBy total | K2: =K1267 -> 1.499807006 | L2: muTm^2 | M2: =M1267 -> 3.757549498
A3: =IF('DF raw data'!E3="","",'DF raw data'!E3) -> Operator | B3: =IF('DF raw data'!F3="","",'DF raw data'!F3) -> PMHA | C3: =IF('DF raw data'!C3="","",'DF raw data'!C3) ->  | D3: =IF('DF raw data'!D3="","",'DF raw data'!D3) ->  | F3: Step | G3: =A68-A67 -> 0.5 | H3: mm | J3: PI total | K3: =N1267 -> 7312.885671 | L3: T^2mm^3
A4: =IF('DF raw data'!E4="","",'DF raw data'!E4) -> Data-time | B4: =IF('DF raw data'!F4="","",'DF raw data'!F4) -> 03-09-2024, 13:20:36 | C4: =IF('DF raw data'!C4="","",'DF raw data'!C4) ->  | D4: =IF('DF raw data'!D4="","",'DF raw data'!D4) -> 
A5: =IF('DF raw data'!E5="","",'DF raw data'!E5) -> Project | B5: =IF('DF raw data'!F5="","",'DF raw data'!F5) -> 504314 | C5: =IF('DF raw data'!C5="","",'DF raw data'!C5) ->  | D5: Bamb avr | F5: =(AVERAGE(B67:B107) + AVERAGE(B1227:B1267))/2 -> -3.581197073e-05 | G5: =(AVERAGE(C67:C107) + AVERAGE(C1227:C1267))/2 -> 3.722255128e-05 | H5: =(AVERAGE(D67:D107) + AVERAGE(D1227:D1267))/2 -> -2.783119268e-05
A6: =IF('DF raw data'!E6="","",'DF raw data'!E6) -> Magnet type | B6: =IF('DF raw data'!F6="","",'DF raw data'!F6) -> Dipole | C6: =IF('DF raw data'!C6="","",'DF raw data'!C6) -> 
A7: =IF('DF raw data'!E7="","",'DF raw data'!E7) -> Magnet nr. | B7: =IF('DF raw data'!F7="","",'DF raw data'!F7) -> 2410090 | C7: =IF('DF raw data'!C7="","",'DF raw data'!C7) -> 
A8: =IF('DF raw data'!E8="","",'DF raw data'!E8) -> Meas. number | B8: =IF('DF raw data'!F8="","",'DF raw data'!F8) -> 336 | C8: =IF('DF raw data'!C8="","",'DF raw data'!C8) -> 
A9: =IF('DF raw data'!E9="","",'DF raw data'!E9) -> Add. info | B9: =IF('DF raw data'!F9="","",'DF raw data'!F9) ->  | C9: =IF('DF raw data'!C9="","",'DF raw data'!C9) ->  | D9: =IF('DF raw data'!D9="","",'DF raw data'!D9) -> 
A10: =IF('DF raw data'!E10="","",'DF raw data'!E10) -> Device | B10: =IF('DF raw data'!F10="","",'DF raw data'!F10) -> (HAL) HALL-PROBE | C10: =IF('DF raw data'!C10="","",'DF raw data'!C10) ->  | D10: =IF('DF raw data'!D10="","",'DF raw data'!D10) -> 
A11: =IF('DF raw data'!E11="","",'DF raw data'!E11) -> Goal | B11: =IF('DF raw data'!F11="","",'DF raw data'!F11) -> (AXI) AXis Integral (Line, EFB) | C11: =IF('DF raw data'!C11="","",'DF raw data'!C11) ->  | D11: =IF('DF raw data'!D11="","",'DF raw data'!D11) -> 
A12: =IF('DF raw data'!E12="","",'DF raw data'!E12) -> Power supply mode | B12: =IF('DF raw data'!F12="","",'DF raw data'!F12) -> (PM) Permanent Magnet (no MPS in use) | C12: =IF('DF raw data'!C12="","",'DF raw data'!C12) ->  | D12: =IF('DF raw data'!D12="","",'DF raw data'!D12) -> 
A13: =IF('DF raw data'!E13="","",'DF raw data'!E13) -> Data format | B13: =IF('DF raw data'!F13="","",'DF raw data'!F13) -> Raw data text file | C13: =IF('DF raw data'!C13="","",'DF raw data'!C13) ->  | D13: =IF('DF raw data'!D13="","",'DF raw data'!D13) -> 
A14: =IF('DF raw data'!E14="","",'DF raw data'!E14) -> Direction of the pos. x-axis | B14: =IF('DF raw data'!F14="","",'DF raw data'!F14) -> See test program | C14: =IF('DF raw data'!C14="","",'DF raw data'!C14) ->  | D14: =IF('DF raw data'!D14="","",'DF raw data'!D14) -> 
A15: =IF('DF raw data'!E15="","",'DF raw data'!E15) -> Direction of the pos. y-axis | B15: =IF('DF raw data'!F15="","",'DF raw data'!F15) -> Vertical up | C15: =IF('DF raw data'!C15="","",'DF raw data'!C15) ->  | D15: =IF('DF raw data'!D15="","",'DF raw data'!D15) -> 
A16: =IF('DF raw data'!E16="","",'DF raw data'!E16) -> Direction of the pos. z-axis | B16: =IF('DF raw data'!F16="","",'DF raw data'!F16) -> See test program | C16: =IF('DF raw data'!C16="","",'DF raw data'!C16) ->  | D16: =IF('DF raw data'!D16="","",'DF raw data'!D16) -> 
A17: =IF('DF raw data'!E17="","",'DF raw data'!E17) -> Mapper type | B17: =IF('DF raw data'!F17="","",'DF raw data'!F17) -> Precision Hall Mapper | C17: =IF('DF raw data'!C17="","",'DF raw data'!C17) ->  | D17: =IF('DF raw data'!D17="","",'DF raw data'!D17) -> 
A18: =IF('DF raw data'!E18="","",'DF raw data'!E18) -> Mapper Danfysik Reg. Number | B18: =IF('DF raw data'!F18="","",'DF raw data'!F18) -> 2033-D (mapper 1) | C18: =IF('DF raw data'!C18="","",'DF raw data'!C18) ->  | D18: =IF('DF raw data'!D18="","",'DF raw data'!D18) -> 
A19: =IF('DF raw data'!E19="","",'DF raw data'!E19) -> Measurement consept | B19: =IF('DF raw data'!F19="","",'DF raw data'!F19) -> Square line grid | C19: =IF('DF raw data'!C19="","",'DF raw data'!C19) ->  | D19: =IF('DF raw data'!D19="","",'DF raw data'!D19) -> 
A20: =IF('DF raw data'!E20="","",'DF raw data'!E20) -> Mode | B20: =IF('DF raw data'!F20="","",'DF raw data'!F20) -> On-the-fly measurement | C20: =IF('DF raw data'!C20="","",'DF raw data'!C20) ->  | D20: =IF('DF raw data'!D20="","",'DF raw data'!D20) -> 
A21: =IF('DF raw data'!E21="","",'DF raw data'!E21) ->  | B21: =IF('DF raw data'!F21="","",'DF raw data'!F21) ->  | C21: =IF('DF raw data'!C21="","",'DF raw data'!C21) ->  | D21: =IF('DF raw data'!D21="","",'DF raw data'!D21) -> 
A22: =IF('DF raw data'!E22="","",'DF raw data'!E22) -> Probe Name | B22: =IF('DF raw data'!F22="","",'DF raw data'!F22) -> ID12_By | C22: =IF('DF raw data'!C22="","",'DF raw data'!C22) ->  | D22: =IF('DF raw data'!D22="","",'DF raw data'!D22) -> 
A23: =IF('DF raw data'!E23="","",'DF raw data'!E23) -> Probe Type | B23: =IF('DF raw data'!F23="","",'DF raw data'!F23) -> DF_ID_3D_Bxyz | C23: =IF('DF raw data'!C23="","",'DF raw data'!C23) ->  | D23: =IF('DF raw data'!D23="","",'DF raw data'!D23) -> 
A24: =IF('DF raw data'!E24="","",'DF raw data'!E24) -> Probe Danfysik Reg. Number | B24: =IF('DF raw data'!F24="","",'DF raw data'!F24) -> 2277 | C24: =IF('DF raw data'!C24="","",'DF raw data'!C24) ->  | D24: =IF('DF raw data'!D24="","",'DF raw data'!D24) -> 
A25: =IF('DF raw data'!E25="","",'DF raw data'!E25) -> Probe Axis | B25: =IF('DF raw data'!F25="","",'DF raw data'!F25) -> By | C25: =IF('DF raw data'!C25="","",'DF raw data'!C25) ->  | D25: =IF('DF raw data'!D25="","",'DF raw data'!D25) -> 
A26: =IF('DF raw data'!E26="","",'DF raw data'!E26) -> Probe Current Supply | B26: =IF('DF raw data'!F26="","",'DF raw data'!F26) -> 1825-D | C26: =IF('DF raw data'!C26="","",'DF raw data'!C26) ->  | D26: =IF('DF raw data'!D26="","",'DF raw data'!D26) -> 
A27: =IF('DF raw data'!E27="","",'DF raw data'!E27) -> Probe Gain Correction | B27: =IF('DF raw data'!F27="","",'DF raw data'!F27) -> 0.99619 | C27: =IF('DF raw data'!C27="","",'DF raw data'!C27) ->  | D27: =IF('DF raw data'!D27="","",'DF raw data'!D27) -> 
A28: =IF('DF raw data'!E28="","",'DF raw data'!E28) -> Probe Offset Correction | B28: =IF('DF raw data'!F28="","",'DF raw data'!F28) -> 0.0027506 | C28: =IF('DF raw data'!C28="","",'DF raw data'!C28) ->  | D28: =IF('DF raw data'!D28="","",'DF raw data'!D28) -> 
A29: =IF('DF raw data'!E29="","",'DF raw data'!E29) -> DVM Number | B29: =IF('DF raw data'!F29="","",'DF raw data'!F29) -> 2 | C29: =IF('DF raw data'!C29="","",'DF raw data'!C29) ->  | D29: =IF('DF raw data'!D29="","",'DF raw data'!D29) -> 
A30: =IF('DF raw data'!E30="","",'DF raw data'!E30) -> DVM Type | B30: =IF('DF raw data'!F30="","",'DF raw data'!F30) -> K2701 | C30: =IF('DF raw data'!C30="","",'DF raw data'!C30) ->  | D30: =IF('DF raw data'!D30="","",'DF raw data'!D30) -> 
A31: =IF('DF raw data'!E31="","",'DF raw data'!E31) -> DVM Danfysik Reg. Number | B31: =IF('DF raw data'!F31="","",'DF raw data'!F31) -> 1743-D | C31: =IF('DF raw data'!C31="","",'DF raw data'!C31) ->  | D31: =IF('DF raw data'!D31="","",'DF raw data'!D31) -> 
A32: =IF('DF raw data'!E32="","",'DF raw data'!E32) -> Probe Name | B32: =IF('DF raw data'!F32="","",'DF raw data'!F32) -> ID12_Bx | C32: =IF('DF raw data'!C32="","",'DF raw data'!C32) ->  | D32: =IF('DF raw data'!D32="","",'DF raw data'!D32) -> 
A33: =IF('DF raw data'!E33="","",'DF raw data'!E33) -> Probe Type | B33: =IF('DF raw data'!F33="","",'DF raw data'!F33) -> DF_ID_3D_Bxyz | C33: =IF('DF raw data'!C33="","",'DF raw data'!C33) ->  | D33: =IF('DF raw data'!D33="","",'DF raw data'!D33) -> 
A34: =IF('DF raw data'!E34="","",'DF raw data'!E34) -> Probe Danfysik Reg. Number | B34: =IF('DF raw data'!F34="","",'DF raw data'!F34) -> 2277 | C34: =IF('DF raw data'!C34="","",'DF raw data'!C34) ->  | D34: =IF('DF raw data'!D34="","",'DF raw data'!D34) -> 
A35: =IF('DF raw data'!E35="","",'DF raw data'!E35) -> Probe Axis | B35: =IF('DF raw data'!F35="","",'DF raw data'!F35) -> Bx | C35: =IF('DF raw data'!C35="","",'DF raw data'!C35) ->  | D35: =IF('DF raw data'!D35="","",'DF raw data'!D35) -> 
A36: =IF('DF raw data'!E36="","",'DF raw data'!E36) -> Probe Current Supply | B36: =IF('DF raw data'!F36="","",'DF raw data'!F36) -> 1825-D | C36: =IF('DF raw data'!C36="","",'DF raw data'!C36) ->  | D36: =IF('DF raw data'!D36="","",'DF raw data'!D36) -> 
A37: =IF('DF raw data'!E37="","",'DF raw data'!E37) -> Probe Gain Correction | B37: =IF('DF raw data'!F37="","",'DF raw data'!F37) -> 1 | C37: =IF('DF raw data'!C37="","",'DF raw data'!C37) ->  | D37: =IF('DF raw data'!D37="","",'DF raw data'!D37) -> 
A38: =IF('DF raw data'!E38="","",'DF raw data'!E38) -> Probe Offset Correction | B38: =IF('DF raw data'!F38="","",'DF raw data'!F38) -> -0.17548 | C38: =IF('DF raw data'!C38="","",'DF raw data'!C38) ->  | D38: =IF('DF raw data'!D38="","",'DF raw data'!D38) -> 
A39: =IF('DF raw data'!E39="","",'DF raw data'!E39) -> DVM Number | B39: =IF('DF raw data'!F39="","",'DF raw data'!F39) -> 3 | C39: =IF('DF raw data'!C39="","",'DF raw data'!C39) ->  | D39: =IF('DF raw data'!D39="","",'DF raw data'!D39) -> 
A40: =IF('DF raw data'!E40="","",'DF raw data'!E40) -> DVM Type | B40: =IF('DF raw data'!F40="","",'DF raw data'!F40) -> K2701 | C40: =IF('DF raw data'!C40="","",'DF raw data'!C40) ->  | D40: =IF('DF raw data'!D40="","",'DF raw data'!D40) -> 
A41: =IF('DF raw data'!E41="","",'DF raw data'!E41) -> DVM Danfysik Reg. Number | B41: =IF('DF raw data'!F41="","",'DF raw data'!F41) -> 1744-D | C41: =IF('DF raw data'!C41="","",'DF raw data'!C41) ->  | D41: =IF('DF raw data'!D41="","",'DF raw data'!D41) -> 
A42: =IF('DF raw data'!E42="","",'DF raw data'!E42) -> Probe Name | B42: =IF('DF raw data'!F42="","",'DF raw data'!F42) -> ID12_Bz | C42: =IF('DF raw data'!C42="","",'DF raw data'!C42) ->  | D42: =IF('DF raw data'!D42="","",'DF raw data'!D42) -> 
A43: =IF('DF raw data'!E43="","",'DF raw data'!E43) -> Probe Type | B43: =IF('DF raw data'!F43="","",'DF raw data'!F43) -> DF_ID_3D_Bxyz | C43: =IF('DF raw data'!C43="","",'DF raw data'!C43) ->  | D43: =IF('DF raw data'!D43="","",'DF raw data'!D43) -> 
A44: =IF('DF raw data'!E44="","",'DF raw data'!E44) -> Probe Danfysik Reg. Number | B44: =IF('DF raw data'!F44="","",'DF raw data'!F44) -> 2277 | C44: =IF('DF raw data'!C44="","",'DF raw data'!C44) ->  | D44: =IF('DF raw data'!D44="","",'DF raw data'!D44) -> 
A45: =IF('DF raw data'!E45="","",'DF raw data'!E45) -> Probe Axis | B45: =IF('DF raw data'!F45="","",'DF raw data'!F45) -> Bz | C45: =IF('DF raw data'!C45="","",'DF raw data'!C45) ->  | D45: =IF('DF raw data'!D45="","",'DF raw data'!D45) -> 
A46: =IF('DF raw data'!E46="","",'DF raw data'!E46) -> Probe Current Supply | B46: =IF('DF raw data'!F46="","",'DF raw data'!F46) -> 1825-D | C46: =IF('DF raw data'!C46="","",'DF raw data'!C46) ->  | D46: =IF('DF raw data'!D46="","",'DF raw data'!D46) -> 
A47: =IF('DF raw data'!E47="","",'DF raw data'!E47) -> Probe Gain Correction | B47: =IF('DF raw data'!F47="","",'DF raw data'!F47) -> 1 | C47: =IF('DF raw data'!C47="","",'DF raw data'!C47) ->  | D47: =IF('DF raw data'!D47="","",'DF raw data'!D47) -> 
A48: =IF('DF raw data'!E48="","",'DF raw data'!E48) -> Probe Offset Correction | B48: =IF('DF raw data'!F48="","",'DF raw data'!F48) -> 0.0073243 | C48: =IF('DF raw data'!C48="","",'DF raw data'!C48) ->  | D48: =IF('DF raw data'!D48="","",'DF raw data'!D48) -> 
A49: =IF('DF raw data'!E49="","",'DF raw data'!E49) -> DVM Number | B49: =IF('DF raw data'!F49="","",'DF raw data'!F49) -> 8 | C49: =IF('DF raw data'!C49="","",'DF raw data'!C49) ->  | D49: =IF('DF raw data'!D49="","",'DF raw data'!D49) -> 
A50: =IF('DF raw data'!E50="","",'DF raw data'!E50) -> DVM Type | B50: =IF('DF raw data'!F50="","",'DF raw data'!F50) -> K2700 | C50: =IF('DF raw data'!C50="","",'DF raw data'!C50) ->  | D50: =IF('DF raw data'!D50="","",'DF raw data'!D50) -> 
A51: =IF('DF raw data'!E51="","",'DF raw data'!E51) -> DVM Danfysik Reg. Number | B51: =IF('DF raw data'!F51="","",'DF raw data'!F51) -> 1756-D | C51: =IF('DF raw data'!C51="","",'DF raw data'!C51) ->  | D51: =IF('DF raw data'!D51="","",'DF raw data'!D51) -> 
A52: =IF('DF raw data'!E52="","",'DF raw data'!E52) -> NTC voltage | B52: =IF('DF raw data'!F52="","",'DF raw data'!F52) -> 0.40888 | C52: =IF('DF raw data'!C52="","",'DF raw data'!C52) ->  | D52: =IF('DF raw data'!D52="","",'DF raw data'!D52) -> 
A53: =IF('DF raw data'!E53="","",'DF raw data'!E53) -> PS-Gap: | B53: =IF('DF raw data'!F53="","",'DF raw data'!F53) -> 15 | C53: =IF('DF raw data'!C53="","",'DF raw data'!C53) ->  | D53: =IF('DF raw data'!D53="","",'DF raw data'!D53) -> 
A54: =IF('DF raw data'!E54="","",'DF raw data'!E54) -> PS-Temperature: | B54: =IF('DF raw data'!F54="","",'DF raw data'!F54) -> 25.7 | C54: =IF('DF raw data'!C54="","",'DF raw data'!C54) ->  | D54: =IF('DF raw data'!D54="","",'DF raw data'!D54) -> 
A55: =IF('DF raw data'!E55="","",'DF raw data'!E55) -> PS-Encoder: | B55: =IF('DF raw data'!F55="","",'DF raw data'!F55) -> 24.624 | C55: =IF('DF raw data'!C55="","",'DF raw data'!C55) ->  | D55: =IF('DF raw data'!D55="","",'DF raw data'!D55) -> 
A56: =IF('DF raw data'!E56="","",'DF raw data'!E56) ->  | B56: =IF('DF raw data'!F56="","",'DF raw data'!F56) -> 
A57: =IF('DF raw data'!E57="","",'DF raw data'!E57) -> Monitor-Index | B57: =IF('DF raw data'!F57="","",'DF raw data'!F57) -> [1,1,4]
A58: =IF('DF raw data'!E58="","",'DF raw data'!E58) ->  | B58: =IF('DF raw data'!F58="","",'DF raw data'!F58) -> 
A59: =IF('DF raw data'!E59="","",'DF raw data'!E59) -> Time [s] | B59: =IF('DF raw data'!F59="","",'DF raw data'!F59) -> Y [mm]
A60: =IF('DF raw data'!E60="","",'DF raw data'!E60) ->  | B60: =IF('DF raw data'!F60="","",'DF raw data'!F60) -> 
A61: =IF('DF raw data'!E61="","",'DF raw data'!E61) -> 210.2 | B61: =IF('DF raw data'!F61="","",'DF raw data'!F61) -> 31.46
A62: =IF('DF raw data'!E62="","",'DF raw data'!E62) ->  | B62: =IF('DF raw data'!F62="","",'DF raw data'!F62) -> 
A63: =IF('DF raw data'!E63="","",'DF raw data'!E63) -> Measurement-Index | B63: =IF('DF raw data'!F63="","",'DF raw data'!F63) -> [1,1,1201,2]
A64: =IF('DF raw data'!E64="","",'DF raw data'!E64) ->  | B64: =IF('DF raw data'!F64="","",'DF raw data'!F64) -> 
A65: =IF('DF raw data'!E65="","",'DF raw data'!E65) -> Z [mm] | B65: =IF('DF raw data'!F65="","",'DF raw data'!F65) -> By [T] | C65: =IF('DF raw data'!G65="","",'DF raw data'!G65) -> Bx [T] | D65: =IF('DF raw data'!H65="","",'DF raw data'!H65) -> Bz [T] | F65: By_corr | G65: Bx_corr | H65: Bz_corr | J65: Iy | K65: Jy | L65: Ix | M65: Jx | N65: PI
B66: =IF('DF raw data'!F66="","",'DF raw data'!F66) ->  | C66: =IF('DF raw data'!G66="","",'DF raw data'!G66) ->  | D66: =IF('DF raw data'!H66="","",'DF raw data'!H66) -> 
A67: =IF('DF raw data'!E67="","",'DF raw data'!E67) -> -300 | B67: =IF('DF raw data'!F67="","",'DF raw data'!F67) -> -4.60826e-05 | C67: =IF('DF raw data'!G67="","",'DF raw data'!G67) -> 5.88656e-05 | D67: =IF('DF raw data'!H67="","",'DF raw data'!H67) -> -2.6363e-05 | F67: =(1-$G$1*($B$54-$G$2))*(B67-F$5) -> -1.032917186e-05 | G67: =(1-$G$1*($B$54-$G$2))*(C67-G$5) -> 2.17664141e-05 | H67: =(1-$G$1*($B$54-$G$2))*(D67-H$5) -> 1.476561381e-06 | J67: =F67*$G$3+J66 -> -5.164585928e-06 | K67: =J67*$G$3+K66 -> -2.582292964e-06 | L67: =G67*$G$3+L66 -> 1.088320705e-05 | M67: =L67*$G$3+M66 -> 5.441603525e-06 | N67: =(J67^2+L67^2)*$G$3+N66 -> 7.255857174e-11
A68: =IF('DF raw data'!E68="","",'DF raw data'!E68) -> -299.5 | B68: =IF('DF raw data'!F68="","",'DF raw data'!F68) -> -2.51894e-05 | C68: =IF('DF raw data'!G68="","",'DF raw data'!G68) -> 6.58354e-05 | D68: =IF('DF raw data'!H68="","",'DF raw data'!H68) -> -2.75056e-05 | F68: 1.068311938e-05 | G68: 2.877594196e-05 | H68: 3.274485612e-07 | J68: =F68*$G$3+J67 -> 1.769737649e-07 | K68: =J68*$G$3+K67 -> -2.493806081e-06 | L68: =G68*$G$3+L67 -> 2.527117803e-05 | M68: =L68*$G$3+M67 -> 1.807719254e-05 | N68: =(J68^2+L68^2)*$G$3+N67 -> 3.918904511e-10
A69: =IF('DF raw data'!E69="","",'DF raw data'!E69) -> -299 | B69: =IF('DF raw data'!F69="","",'DF raw data'!F69) -> -3.92895e-05 | C69: =IF('DF raw data'!G69="","",'DF raw data'!G69) -> 7.87051e-05 | D69: =IF('DF raw data'!H69="","",'DF raw data'!H69) -> -2.88742e-05 | F69: -3.497351185e-06 | G69: 4.171899925e-05 | H69: -1.048952459e-06 | J69: -1.571701828e-06 | K69: -3.279656995e-06 | L69: 4.613067765e-05 | M69: 4.114253137e-05 | N69: 1.457145285e-09
A70: =IF('DF raw data'!E70="","",'DF raw data'!E70) -> -298.5 | B70: =IF('DF raw data'!F70="","",'DF raw data'!F70) -> -3.81998e-05 | C70: =IF('DF raw data'!G70="","",'DF raw data'!G70) -> 6.86682e-05 | D70: =IF('DF raw data'!H70="","",'DF raw data'!H70) -> -2.89239e-05 | F70: -2.401439895e-06 | G70: 3.162488892e-05 | H70: -1.098935749e-06 | J70: -2.772421775e-06 | K70: -4.665867883e-06 | L70: 6.194312211e-05 | M70: 7.211409242e-05 | N70: 3.379463634e-09
A71: =IF('DF raw data'!E71="","",'DF raw data'!E71) -> -298 | B71: =IF('DF raw data'!F71="","",'DF raw data'!F71) -> -2.9996e-05 | C71: =IF('DF raw data'!G71="","",'DF raw data'!G71) -> 7.21206e-05 | D71: =IF('DF raw data'!H71="","",'DF raw data'!H71) -> -2.85071e-05 | F71: 5.849121765e-06 | G71: 3.50969676e-05 | H71: -6.797599888e-07 | J71: 1.521391072e-07 | K71: -4.589798329e-06 | L71: 7.949160591e-05 | M71: 0.0001118598954 | N71: 6.538932913e-09
A72: =IF('DF raw data'!E72="","",'DF raw data'!E72) -> -297.5 | B72: =IF('DF raw data'!F72="","",'DF raw data'!F72) -> -3.4739e-05 | C72: =IF('DF raw data'!G72="","",'DF raw data'!G72) -> 7.89194e-05 | D72: =IF('DF raw data'!H72="","",'DF raw data'!H72) -> -2.81905e-05 | F72: 1.079086665e-06 | G72: 4.193452076e-05 | H72: -3.613553688e-07 | J72: 6.916824396e-07 | K72: -4.243957109e-06 | L72: 0.0001004588663 | M72: 0.0001620893285 | N72: 1.158516403e-08
A73: =IF('DF raw data'!E73="","",'DF raw data'!E73) -> -297 | B73: =IF('DF raw data'!F73="","",'DF raw data'!F73) -> -2.74322e-05 | C73: =IF('DF raw data'!G73="","",'DF raw data'!G73) -> 8.19234e-05 | D73: =IF('DF raw data'!H73="","",'DF raw data'!H73) -> -2.82746e-05 | F73: 8.427535425e-06 | G73: 4.495564356e-05 | H73: -4.459347388e-07 | J73: 4.905450152e-06 | K73: -1.791232033e-06 | L73: 0.0001229366881 | M73: 0.0002235576726 | N73: 1.915391039e-08
A74: =IF('DF raw data'!E74="","",'DF raw data'!E74) -> -296.5 | B74: =IF('DF raw data'!F74="","",'DF raw data'!F74) -> -1.90355e-05 | C74: =IF('DF raw data'!G74="","",'DF raw data'!G74) -> 8.75386e-05 | D74: =IF('DF raw data'!H74="","",'DF raw data'!H74) -> -2.92054e-05 | F74: 1.687209661e-05 | G74: 5.06028502e-05 | H74: -1.382040299e-06 | J74: 1.334149846e-05 | K74: 4.879517196e-06 | L74: 0.0001482381132 | M74: 0.0002976767291 | N74: 3.023017728e-08
A75: =IF('DF raw data'!E75="","",'DF raw data'!E75) -> -296 | B75: =IF('DF raw data'!F75="","",'DF raw data'!F75) -> -2.78796e-05 | C75: =IF('DF raw data'!G75="","",'DF raw data'!G75) -> 7.90862e-05 | D75: =IF('DF raw data'!H75="","",'DF raw data'!H75) -> -3.03282e-05 | F75: 7.977585245e-06 | G75: 4.210227152e-05 | H75: -2.511240259e-06 | J75: 1.733029108e-05 | K75: 1.354466274e-05 | L75: 0.0001692892489 | M75: 0.0003823213536 | N75: 4.470977167e-08
A76: =IF('DF raw data'!E76="","",'DF raw data'!E76) -> -295.5 | B76: =IF('DF raw data'!F76="","",'DF raw data'!F76) -> -3.03793e-05 | C76: =IF('DF raw data'!G76="","",'DF raw data'!G76) -> 7.83304e-05 | D76: =IF('DF raw data'!H76="","",'DF raw data'!H76) -> -3.04945e-05 | F76: 5.463636955e-06 | G76: 4.134216346e-05 | H76: -2.678488169e-06 | J76: 2.006210956e-05 | K76: 2.357571752e-05 | L76: 0.0001899603307 | M76: 0.0004773015189 | N76: 6.295347941e-08
A77: =IF('DF raw data'!E77="","",'DF raw data'!E77) -> -295 | B77: =IF('DF raw data'!F77="","",'DF raw data'!F77) -> -4.03145e-05 | C77: =IF('DF raw data'!G77="","",'DF raw data'!G77) -> 7.52482e-05 | D77: =IF('DF raw data'!H77="","",'DF raw data'!H77) -> -2.95046e-05 | F77: -4.528193685e-06 | G77: 3.824239492e-05 | H77: -1.682945739e-06 | J77: 1.779801272e-05 | K77: 3.247472388e-05 | L77: 0.0002090815281 | M77: 0.000581842283 | N77: 8.496940673e-08
A78: =IF('DF raw data'!E78="","",'DF raw data'!E78) -> -294.5 | B78: =IF('DF raw data'!F78="","",'DF raw data'!F78) -> -3.59565e-05 | C78: =IF('DF raw data'!G78="","",'DF raw data'!G78) -> 7.79438e-05 | D78: =IF('DF raw data'!H78="","",'DF raw data'!H78) -> -2.87451e-05 | F78: -1.453530851e-07 | G78: 4.095335984e-05 | H78: -9.191165888e-07 | J78: 1.772533617e-05 | K78: 4.133739196e-05 | L78: 0.000229558208 | M78: 0.000696621387 | N78: 1.114749859e-07
A79: =IF('DF raw data'!E79="","",'DF raw data'!E79) -> -294 | B79: =IF('DF raw data'!F79="","",'DF raw data'!F79) -> -2.43551e-05 | C79: =IF('DF raw data'!G79="","",'DF raw data'!G79) -> 6.90329e-05 | D79: =IF('DF raw data'!H79="","",'DF raw data'!H79) -> -2.92971e-05 | F79: 1.152217489e-05 | G79: 3.199166771e-05 | H79: -1.474262989e-06 | J79: 2.348642362e-05 | K79: 5.308060377e-05 | L79: 0.0002455540419 | M79: 0.000819398408 | N79: 1.418991857e-07
A80: =IF('DF raw data'!E80="","",'DF raw data'!E80) -> -293.5 | B80: =IF('DF raw data'!F80="","",'DF raw data'!F80) -> -3.67248e-05 | C80: =IF('DF raw data'!G80="","",'DF raw data'!G80) -> 7.05889e-05 | D80: =IF('DF raw data'!H80="","",'DF raw data'!H80) -> -3.00891e-05 | F80: -9.180323951e-07 | G80: 3.355653691e-05 | H80: -2.270777389e-06 | J80: 2.302740742e-05 | K80: 6.459430749e-05 | L80: 0.0002623323103 | M80: 0.0009505645631 | N80: 1.76573437e-07
A81: =IF('DF raw data'!E81="","",'DF raw data'!E81) -> -293 | B81: =IF('DF raw data'!F81="","",'DF raw data'!F81) -> -3.69174e-05 | C81: =IF('DF raw data'!G81="","",'DF raw data'!G81) -> 7.44259e-05 | D81: =IF('DF raw data'!H81="","",'DF raw data'!H81) -> -2.96442e-05 | F81: -1.111730215e-06 | G81: 3.741540781e-05 | H81: -1.823341459e-06 | J81: 2.247154232e-05 | K81: 7.583007864e-05 | L81: 0.0002810400142 | M81: 0.00109108457 | N81: 2.163176669e-07
A82: =IF('DF raw data'!E82="","",'DF raw data'!E82) -> -292.5 | B82: =IF('DF raw data'!F82="","",'DF raw data'!F82) -> -4.60196e-05 | C82: =IF('DF raw data'!G82="","",'DF raw data'!G82) -> 7.57851e-05 | D82: =IF('DF raw data'!H82="","",'DF raw data'!H82) -> -2.83017e-05 | F82: -1.026581276e-05 | G82: 3.878235525e-05 | H82: -4.731892088e-07 | J82: 1.733863594e-05 | K82: 8.449939661e-05 | L82: 0.0003004311919 | M82: 0.001241300166 | N82: 2.615974316e-07
A83: =IF('DF raw data'!E83="","",'DF raw data'!E83) -> -292 | B83: =IF('DF raw data'!F83="","",'DF raw data'!F83) -> -2.57021e-05 | C83: =IF('DF raw data'!G83="","",'DF raw data'!G83) -> 7.26822e-05 | D83: =IF('DF raw data'!H83="","",'DF raw data'!H83) -> -2.78943e-05 | F83: 1.016749699e-05 | G83: 3.566176872e-05 | H83: -6.346702878e-08 | J83: 2.242238444e-05 | K83: 9.571058883e-05 | L83: 0.0003182620762 | M83: 0.001400431204 | N83: 3.124941878e-07
A84: =IF('DF raw data'!E84="","",'DF raw data'!E84) -> -291.5 | B84: =IF('DF raw data'!F84="","",'DF raw data'!F84) -> -2.83912e-05 | C84: =IF('DF raw data'!G84="","",'DF raw data'!G84) -> 7.51165e-05 | D84: =IF('DF raw data'!H84="","",'DF raw data'!H84) -> -3.22404e-05 | F84: 7.463069125e-06 | G84: 3.810994423e-05 | H84: -4.434339799e-06 | J84: 2.6153919e-05 | K84: 0.0001087875483 | L84: 0.0003373170483 | M84: 0.001569089728 | N84: 3.697275971e-07
A85: =IF('DF raw data'!E85="","",'DF raw data'!E85) -> -291 | B85: =IF('DF raw data'!F85="","",'DF raw data'!F85) -> -2.74366e-05 | C85: =IF('DF raw data'!G85="","",'DF raw data'!G85) -> 7.26917e-05 | D85: =IF('DF raw data'!H85="","",'DF raw data'!H85) -> -2.14141e-05 | F85: 8.423110345e-06 | G85: 3.567132287e-05 | H85: 6.453670111e-06 | J85: 3.036547417e-05 | K85: 0.0001239702854 | L85: 0.0003551527098 | M85: 0.001746666083 | N85: 4.332553518e-07
A86: =IF('DF raw data'!E86="","",'DF raw data'!E86) -> -290.5 | B86: =IF('DF raw data'!F86="","",'DF raw data'!F86) -> -2.96716e-05 | C86: =IF('DF raw data'!G86="","",'DF raw data'!G86) -> 7.1461e-05 | D86: =IF('DF raw data'!H86="","",'DF raw data'!H86) -> -3.44157e-05 | F86: 6.175370845e-06 | G86: 3.443360788e-05 | H86: -6.622039009e-06 | J86: 3.345315959e-05 | K86: 0.0001406968652 | L86: 0.0003723695137 | M86: 0.00193285084 | N86: 5.031444361e-07
A87: =IF('DF raw data'!E87="","",'DF raw data'!E87) -> -290 | B87: =IF('DF raw data'!F87="","",'DF raw data'!F87) -> -2.15361e-05 | C87: =IF('DF raw data'!G87="","",'DF raw data'!G87) -> 7.23026e-05 | D87: =IF('DF raw data'!H87="","",'DF raw data'!H87) -> -2.72605e-05 | F87: 1.435724319e-05 | G87: 3.5280005e-05 | H87: 5.739456312e-07 | J87: 4.063178119e-05 | K87: 0.0001610127558 | L87: 0.0003900095162 | M87: 0.002127855598 | N87: 5.800236183e-07
A88: =IF('DF raw data'!E88="","",'DF raw data'!E88) -> -289.5 | B88: =IF('DF raw data'!F88="","",'DF raw data'!F88) -> -3.21167e-05 | C88: =IF('DF raw data'!G88="","",'DF raw data'!G88) -> 7.14577e-05 | D88: =IF('DF raw data'!H88="","",'DF raw data'!H88) -> -2.00422e-05 | F88: 3.716333775e-06 | G88: 3.443028907e-05 | H88: 7.833389941e-06 | J88: 4.248994808e-05 | K88: 0.0001822577298 | L88: 0.0004072246608 | M88: 0.002331467929 | N88: 6.638422783e-07
A89: =IF('DF raw data'!E89="","",'DF raw data'!E89) -> -289 | B89: =IF('DF raw data'!F89="","",'DF raw data'!F89) -> -4.05771e-05 | C89: =IF('DF raw data'!G89="","",'DF raw data'!G89) -> 6.86048e-05 | D89: =IF('DF raw data'!H89="","",'DF raw data'!H89) -> -1.97771e-05 | F89: -4.792290505e-06 | G89: 3.156112754e-05 | H89: 8.100001011e-06 | J89: 4.009380283e-05 | K89: 0.0002023046313 | L89: 0.0004230052245 | M89: 0.002542970541 | N89: 7.541127448e-07
A90: =IF('DF raw data'!E90="","",'DF raw data'!E90) -> -288.5 | B90: =IF('DF raw data'!F90="","",'DF raw data'!F90) -> -3.49274e-05 | C90: =IF('DF raw data'!G90="","",'DF raw data'!G90) -> 6.7905e-05 | D90: =IF('DF raw data'!H90="","",'DF raw data'!H90) -> -3.44327e-05 | F90: 8.896127849e-07 | G90: 3.085733868e-05 | H90: -6.639135909e-06 | J90: 4.053860922e-05 | K90: 0.0002225739359 | L90: 0.0004384338939 | M90: 0.002762187488 | N90: 8.510465738e-07
A91: =IF('DF raw data'!E91="","",'DF raw data'!E91) -> -288 | B91: =IF('DF raw data'!F91="","",'DF raw data'!F91) -> -3.08929e-05 | C91: =IF('DF raw data'!G91="","",'DF raw data'!G91) -> 6.74331e-05 | D91: =IF('DF raw data'!H91="","",'DF raw data'!H91) -> -2.90674e-05 | F91: 4.947109435e-06 | G91: 3.038274885e-05 | H91: -1.243253699e-06 | J91: 4.301216394e-05 | K91: 0.0002440800178 | L91: 0.0004536252683 | M91: 0.002989000122 | N91: 9.54859539e-07
A92: =IF('DF raw data'!E92="","",'DF raw data'!E92) -> -287.5 | B92: =IF('DF raw data'!F92="","",'DF raw data'!F92) -> -2.92282e-05 | C92: =IF('DF raw data'!G92="","",'DF raw data'!G92) -> 7.33615e-05 | D92: =IF('DF raw data'!H92="","",'DF raw data'!H92) -> -2.64366e-05 | F92: 6.621298225e-06 | G92: 3.634494073e-05 | H92: 1.402541861e-06 | J92: 4.632281305e-05 | K92: 0.0002672414244 | L92: 0.0004717977386 | M92: 0.003224898991 | N92: 1.067228994e-06
A93: =IF('DF raw data'!E93="","",'DF raw data'!E93) -> -287 | B93: =IF('DF raw data'!F93="","",'DF raw data'!F93) -> -1.90974e-05 | C93: =IF('DF raw data'!G93="","",'DF raw data'!G93) -> 7.10948e-05 | D93: =IF('DF raw data'!H93="","",'DF raw data'!H93) -> -3.22057e-05 | F93: 1.680984378e-05 | G93: 3.406532054e-05 | H93: -4.399442009e-06 | J93: 5.472773494e-05 | K93: 0.0002946052918 | L93: 0.0004888303989 | M93: 0.003469314191 | N93: 1.188204136e-06
A94: =IF('DF raw data'!E94="","",'DF raw data'!E94) -> -286.5 | B94: =IF('DF raw data'!F94="","",'DF raw data'!F94) -> -3.51264e-05 | C94: =IF('DF raw data'!G94="","",'DF raw data'!G94) -> 6.15494e-05 | D94: =IF('DF raw data'!H94="","",'DF raw data'!H94) -> -2.4239e-05 | F94: 6.894784849e-07 | G94: 2.446551176e-05 | H94: 3.612668181e-06 | J94: 5.507247418e-05 | K94: 0.0003221415289 | L94: 0.0005010631548 | M94: 0.003719845768 | N94: 1.315252767e-06
A95: =IF('DF raw data'!E95="","",'DF raw data'!E95) -> -286 | B95: =IF('DF raw data'!F95="","",'DF raw data'!F95) -> -3.87761e-05 | C95: =IF('DF raw data'!G95="","",'DF raw data'!G95) -> 6.64804e-05 | D95: =IF('DF raw data'!H95="","",'DF raw data'!H95) -> -2.967e-05 | F95: -2.981024805e-06 | G95: 2.942461846e-05 | H95: -1.849288519e-06 | J95: 5.358196178e-05 | K95: 0.0003489325098 | L95: 0.000515775464 | M95: 0.0039777335 | N95: 1.449700445e-06
A96: =IF('DF raw data'!E96="","",'DF raw data'!E96) -> -285.5 | B96: =IF('DF raw data'!F96="","",'DF raw data'!F96) -> -3.83332e-05 | C96: =IF('DF raw data'!G96="","",'DF raw data'!G96) -> 6.62124e-05 | D96: =IF('DF raw data'!H96="","",'DF raw data'!H96) -> -2.08015e-05 | F96: -2.535600275e-06 | G96: 2.915509086e-05 | H96: 7.069761931e-06 | J96: 5.231416164e-05 | K96: 0.0003750895906 | L96: 0.0005303530095 | M96: 0.004242910005 | N96: 1.591705988e-06
A97: =IF('DF raw data'!E97="","",'DF raw data'!E97) -> -285 | B97: =IF('DF raw data'!F97="","",'DF raw data'!F97) -> -3.03219e-05 | C97: =IF('DF raw data'!G97="","",'DF raw data'!G97) -> 6.97201e-05 | D97: =IF('DF raw data'!H97="","",'DF raw data'!H97) -> -1.97852e-05 | F97: 5.521364135e-06 | G97: 3.268278475e-05 | H97: 8.091854841e-06 | J97: 5.507484371e-05 | K97: 0.0004026270125 | L97: 0.0005466944018 | M97: 0.004516257206 | N97: 1.742659992e-06
A98: =IF('DF raw data'!E98="","",'DF raw data'!E98) -> -284.5 | B98: =IF('DF raw data'!F98="","",'DF raw data'!F98) -> -3.64748e-05 | C98: =IF('DF raw data'!G98="","",'DF raw data'!G98) -> 6.49369e-05 | D98: =IF('DF raw data'!H98="","",'DF raw data'!H98) -> -2.0213e-05 | F98: -6.666073951e-07 | G98: 2.787232051e-05 | H98: 7.661616381e-06 | J98: 5.474154001e-05 | K98: 0.0004299977825 | L98: 0.0005606305621 | M98: 0.004796572487 | N98: 1.901311623e-06
A99: =IF('DF raw data'!E99="","",'DF raw data'!E99) -> -284 | B99: =IF('DF raw data'!F99="","",'DF raw data'!F99) -> -3.30086e-05 | C99: =IF('DF raw data'!G99="","",'DF raw data'!G99) -> 7.56818e-05 | D99: =IF('DF raw data'!H99="","",'DF raw data'!H99) -> -2.81125e-05 | F99: 2.819349945e-06 | G99: 3.867846644e-05 | H99: -2.829107688e-07 | J99: 5.615121499e-05 | K99: 0.00045807339 | L99: 0.0005799697953 | M99: 0.005086557385 | N99: 2.071070584e-06
A100: =IF('DF raw data'!E100="","",'DF raw data'!E100) -> -283.5 | B100: =IF('DF raw data'!F100="","",'DF raw data'!F100) -> -3.88366e-05 | C100: =IF('DF raw data'!G100="","",'DF raw data'!G100) -> 7.48149e-05 | D100: =IF('DF raw data'!H100="","",'DF raw data'!H100) -> -3.50891e-05 | F100: -3.041869655e-06 | G100: 3.780662511e-05 | H100: -7.299277389e-06 | J100: 5.463028016e-05 | K100: 0.0004853885301 | L100: 0.0005988731079 | M100: 0.005385993939 | N100: 2.251887318e-06
A101: =IF('DF raw data'!E101="","",'DF raw data'!E101) -> -283 | B101: =IF('DF raw data'!F101="","",'DF raw data'!F101) -> -3.60196e-05 | C101: =IF('DF raw data'!G101="","",'DF raw data'!G101) -> 7.67145e-05 | D101: =IF('DF raw data'!H101="","",'DF raw data'!H101) -> -3.04243e-05 | F101: -2.088127551e-07 | G101: 3.971705283e-05 | H101: -2.607888029e-06 | J101: 5.452587378e-05 | K101: 0.000512651467 | L101: 0.0006187316343 | M101: 0.005695359756 | N101: 2.444788271e-06
A102: =IF('DF raw data'!E102="","",'DF raw data'!E102) -> -282.5 | B102: =IF('DF raw data'!F102="","",'DF raw data'!F102) -> -3.35887e-05 | C102: =IF('DF raw data'!G102="","",'DF raw data'!G102) -> 7.72277e-05 | D102: =IF('DF raw data'!H102="","",'DF raw data'!H102) -> -2.30381e-05 | F102: 2.235943375e-06 | G102: 4.023317807e-05 | H102: 4.820413311e-06 | J102: 5.564384547e-05 | K102: 0.0005404733897 | L102: 0.0006388482233 | M102: 0.006014783867 | N102: 2.650399916e-06
A103: =IF('DF raw data'!E103="","",'DF raw data'!E103) -> -282 | B103: =IF('DF raw data'!F103="","",'DF raw data'!F103) -> -2.59593e-05 | C103: =IF('DF raw data'!G103="","",'DF raw data'!G103) -> 7.02423e-05 | D103: =IF('DF raw data'!H103="","",'DF raw data'!H103) -> -2.65725e-05 | F103: 9.908830955e-06 | G103: 3.320796129e-05 | H103: 1.265867231e-06 | J103: 6.059826095e-05 | K103: 0.0005707725202 | L103: 0.000655452204 | M103: 0.006342509969 | N103: 2.867044786e-06
A104: =IF('DF raw data'!E104="","",'DF raw data'!E104) -> -281.5 | B104: =IF('DF raw data'!F104="","",'DF raw data'!F104) -> -3.82676e-05 | C104: =IF('DF raw data'!G104="","",'DF raw data'!G104) -> 7.67786e-05 | D104: =IF('DF raw data'!H104="","",'DF raw data'!H104) -> -2.28144e-05 | F104: -2.469626355e-06 | G104: 3.97815182e-05 | H104: 5.045388401e-06 | J104: 5.936344777e-05 | K104: 0.0006004542441 | L104: 0.0006753429631 | M104: 0.006680181451 | N104: 3.096850855e-06
A105: =IF('DF raw data'!E105="","",'DF raw data'!E105) -> -281 | B105: =IF('DF raw data'!F105="","",'DF raw data'!F105) -> -2.62125e-05 | C105: =IF('DF raw data'!G105="","",'DF raw data'!G105) -> 7.5386e-05 | D105: =IF('DF raw data'!H105="","",'DF raw data'!H105) -> -3.14286e-05 | F105: 9.654187715e-06 | G105: 3.838098038e-05 | H105: -3.617912539e-06 | J105: 6.419054163e-05 | K105: 0.0006325495149 | L105: 0.0006945334532 | M105: 0.007027448177 | N105: 3.340099426e-06
A106: =IF('DF raw data'!E106="","",'DF raw data'!E106) -> -280.5 | B106: =IF('DF raw data'!F106="","",'DF raw data'!F106) -> -3.18465e-05 | C106: =IF('DF raw data'!G106="","",'DF raw data'!G106) -> 7.75196e-05 | D106: =IF('DF raw data'!H106="","",'DF raw data'!H106) -> -4.11959e-05 | F106: 3.988073915e-06 | G106: 4.05267419e-05 | H106: -1.344088615e-05 | J106: 6.618457858e-05 | K106: 0.0006656418042 | L106: 0.0007147968242 | M106: 0.00738484659 | N106: 3.597756875e-06
A107: =IF('DF raw data'!E107="","",'DF raw data'!E107) -> -280 | B107: =IF('DF raw data'!F107="","",'DF raw data'!F107) -> -3.67918e-05 | C107: =IF('DF raw data'!G107="","",'DF raw data'!G107) -> 7.58623e-05 | D107: =IF('DF raw data'!H107="","",'DF raw data'!H107) -> -2.55723e-05 | F107: -9.854142951e-07 | G107: 3.885999529e-05 | H107: 2.271768371e-06 | J107: 6.569187144e-05 | K107: 0.0006984877399 | L107: 0.0007342268218 | M107: 0.00775196 | N107: 3.869459099e-06
A108: =IF('DF raw data'!E108="","",'DF raw data'!E108) -> -279.5 | B108: =IF('DF raw data'!F108="","",'DF raw data'!F108) -> -3.28765e-05 | C108: =IF('DF raw data'!G108="","",'DF raw data'!G108) -> 7.71993e-05 | D108: =IF('DF raw data'!H108="","",'DF raw data'!H108) -> -3.42556e-05 | F108: 2.952202915e-06 | G108: 4.020461619e-05 | H108: -6.461026439e-06 | J108: 6.716797289e-05 | K108: 0.0007320717263 | L108: 0.0007543291299 | M108: 0.008129124565 | N108: 4.156221086e-06
A109: =IF('DF raw data'!E109="","",'DF raw data'!E109) -> -279 | B109: =IF('DF raw data'!F109="","",'DF raw data'!F109) -> -3.59511e-05 | C109: =IF('DF raw data'!G109="","",'DF raw data'!G109) -> 8.18977e-05 | D109: =IF('DF raw data'!H109="","",'DF raw data'!H109) -> -3.68838e-05 | F109: -1.399223051e-07 | G109: 4.492979707e-05 | H109: -9.104207179e-06 | J109: 6.709801174e-05 | K109: 0.0007656207322 | L109: 0.0007767940285 | M109: 0.00851752158 | N109: 4.460176639e-06
A110: =IF('DF raw data'!E110="","",'DF raw data'!E110) -> -278.5 | B110: =IF('DF raw data'!F110="","",'DF raw data'!F110) -> -3.80725e-05 | C110: =IF('DF raw data'!G110="","",'DF raw data'!G110) -> 8.13468e-05 | D110: =IF('DF raw data'!H110="","",'DF raw data'!H110) -> -2.74711e-05 | F110: -2.273414285e-06 | G110: 4.437575694e-05 | H110: 3.621452112e-07 | J110: 6.59613046e-05 | K110: 0.0007986013845 | L110: 0.0007989819069 | M110: 0.008917012533 | N110: 4.781538129e-06
A111: =IF('DF raw data'!E111="","",'DF raw data'!E111) -> -278 | B111: =IF('DF raw data'!F111="","",'DF raw data'!F111) -> -2.87139e-05 | C111: =IF('DF raw data'!G111="","",'DF raw data'!G111) -> 8.59878e-05 | D111: =IF('DF raw data'!H111="","",'DF raw data'!H111) -> -2.87668e-05 | F111: 7.138529735e-06 | G111: 4.904321064e-05 | H111: -9.409402788e-07 | J111: 6.953056946e-05 | K111: 0.0008333666692 | L111: 0.0008235035122 | M111: 0.009328764289 | N111: 5.123034397e-06
A112: =IF('DF raw data'!E112="","",'DF raw data'!E112) -> -277.5 | B112: =IF('DF raw data'!F112="","",'DF raw data'!F112) -> -2.92238e-05 | C112: =IF('DF raw data'!G112="","",'DF raw data'!G112) -> 8.44245e-05 | D112: =IF('DF raw data'!H112="","",'DF raw data'!H112) -> -3.32101e-05 | F112: 6.625723305e-06 | G112: 4.747099983e-05 | H112: -5.409567089e-06 | J112: 7.284343112e-05 | K112: 0.0008697883848 | L112: 0.0008472390122 | M112: 0.009752383795 | N112: 5.484594451e-06
A113: =IF('DF raw data'!E113="","",'DF raw data'!E113) -> -277 | B113: =IF('DF raw data'!F113="","",'DF raw data'!F113) -> -3.40929e-05 | C113: =IF('DF raw data'!G113="","",'DF raw data'!G113) -> 8.11436e-05 | D113: =IF('DF raw data'!H113="","",'DF raw data'!H113) -> -3.59849e-05 | F113: 1.728869435e-06 | G113: 4.41713987e-05 | H113: -8.200183449e-06 | J113: 7.370786583e-05 | K113: 0.0009066423177 | L113: 0.0008693247115 | M113: 0.01018704615 | N113: 5.865173603e-06
A114: =IF('DF raw data'!E114="","",'DF raw data'!E114) -> -276.5 | B114: =IF('DF raw data'!F114="","",'DF raw data'!F114) -> -2.14022e-05 | C114: =IF('DF raw data'!G114="","",'DF raw data'!G114) -> 7.18842e-05 | D114: =IF('DF raw data'!H114="","",'DF raw data'!H114) -> -3.61635e-05 | F114: 1.449190642e-05 | G114: 3.485922012e-05 | H114: -8.379801469e-06 | J114: 8.095381905e-05 | K114: 0.0009471192272 | L114: 0.0008867543216 | M114: 0.01063042331 | N114: 6.261616977e-06
A115: =IF('DF raw data'!E115="","",'DF raw data'!E115) -> -276 | B115: =IF('DF raw data'!F115="","",'DF raw data'!F115) -> -4.01813e-05 | C115: =IF('DF raw data'!G115="","",'DF raw data'!G115) -> 6.54763e-05 | D115: =IF('DF raw data'!H115="","",'DF raw data'!H115) -> -3.71341e-05 | F115: -4.394234445e-06 | G115: 2.841479509e-05 | H115: -9.355933889e-06 | J115: 7.875670182e-05 | K115: 0.0009864975781 | L115: 0.0009009617191 | M115: 0.01108090417 | N115: 6.670584296e-06
A116: =IF('DF raw data'!E116="","",'DF raw data'!E116) -> -275.5 | B116: =IF('DF raw data'!F116="","",'DF raw data'!F116) -> -3.08277e-05 | C116: =IF('DF raw data'!G116="","",'DF raw data'!G116) -> 7.59125e-05 | D116: =IF('DF raw data'!H116="","",'DF raw data'!H116) -> -3.06151e-05 | F116: 5.012681075e-06 | G116: 3.891048143e-05 | H116: -2.799775589e-06 | J116: 8.126304236e-05 | K116: 0.001027129099 | L116: 0.0009204169598 | M116: 0.01154111265 | N116: 7.097469827e-06
A117: =IF('DF raw data'!E117="","",'DF raw data'!E117) -> -275 | B117: =IF('DF raw data'!F117="","",'DF raw data'!F117) -> -3.69863e-05 | C117: =IF('DF raw data'!G117="","",'DF raw data'!G117) -> 7.212e-05 | D117: =IF('DF raw data'!H117="","",'DF raw data'!H117) -> -2.19599e-05 | F117: -1.181022945e-06 | G117: 3.509636418e-05 | H117: 5.904759051e-06 | J117: 8.067253089e-05 | K117: 0.001067465365 | L117: 0.0009379651419 | M117: 0.01201009522 | N117: 7.540613159e-06
A118: =IF('DF raw data'!E118="","",'DF raw data'!E118) -> -274.5 | B118: =IF('DF raw data'!F118="","",'DF raw data'!F118) -> -3.40979e-05 | C118: =IF('DF raw data'!G118="","",'DF raw data'!G118) -> 7.74504e-05 | D118: =IF('DF raw data'!H118="","",'DF raw data'!H118) -> -2.83482e-05 | F118: 1.723840935e-06 | G118: 4.045714746e-05 | H118: -5.199542588e-07 | J118: 8.153445136e-05 | K118: 0.00110823259 | L118: 0.0009581937156 | M118: 0.01248919208 | N118: 8.003004691e-06
A119: =IF('DF raw data'!E119="","",'DF raw data'!E119) -> -274 | B119: =IF('DF raw data'!F119="","",'DF raw data'!F119) -> -3.31961e-05 | C119: =IF('DF raw data'!G119="","",'DF raw data'!G119) -> 7.5173e-05 | D119: =IF('DF raw data'!H119="","",'DF raw data'!H119) -> -3.52183e-05 | F119: 2.630781195e-06 | G119: 3.816676628e-05 | H119: -7.429213829e-06 | J119: 8.284984195e-05 | K119: 0.001149657511 | L119: 0.0009772770988 | M119: 0.01297783063 | N119: 8.483972003e-06
A120: =IF('DF raw data'!E120="","",'DF raw data'!E120) -> -273.5 | B120: =IF('DF raw data'!F120="","",'DF raw data'!F120) -> -3.52471e-05 | C120: =IF('DF raw data'!G120="","",'DF raw data'!G120) -> 7.75882e-05 | D120: =IF('DF raw data'!H120="","",'DF raw data'!H120) -> -3.56242e-05 | F120: 5.680904949e-07 | G120: 4.059573292e-05 | H120: -7.837427459e-06 | J120: 8.31338872e-05 | K120: 0.001191224455 | L120: 0.0009975749652 | M120: 0.01347661811 | N120: 8.98500553e-06
A121: =IF('DF raw data'!E121="","",'DF raw data'!E121) -> -273 | B121: =IF('DF raw data'!F121="","",'DF raw data'!F121) -> -4.03142e-05 | C121: =IF('DF raw data'!G121="","",'DF raw data'!G121) -> 7.31025e-05 | D121: =IF('DF raw data'!H121="","",'DF raw data'!H121) -> -2.9817e-05 | F121: -4.527891975e-06 | G121: 3.608446443e-05 | H121: -1.997126419e-06 | J121: 8.086994121e-05 | K121: 0.001231659426 | L121: 0.001015617197 | M121: 0.01398442671 | N121: 9.50401465e-06
A122: =IF('DF raw data'!E122="","",'DF raw data'!E122) -> -272.5 | B122: =IF('DF raw data'!F122="","",'DF raw data'!F122) -> -4.20397e-05 | C122: =IF('DF raw data'!G122="","",'DF raw data'!G122) -> 7.05959e-05 | D122: =IF('DF raw data'!H122="","",'DF raw data'!H122) -> -3.7844e-05 | F122: -6.263227325e-06 | G122: 3.356357681e-05 | H122: -1.006988032e-05 | J122: 7.773832755e-05 | K122: 0.001270528589 | L122: 0.001032398986 | M122: 0.0145006262 | N122: 1.003996011e-05
A123: =IF('DF raw data'!E123="","",'DF raw data'!E123) -> -272 | B123: =IF('DF raw data'!F123="","",'DF raw data'!F123) -> -2.86503e-05 | C123: =IF('DF raw data'!G123="","",'DF raw data'!G123) -> 6.79482e-05 | D123: =IF('DF raw data'!H123="","",'DF raw data'!H123) -> -2.77686e-05 | F123: 7.202492255e-06 | G123: 3.090078492e-05 | H123: 6.294946122e-08 | J123: 8.133957368e-05 | K123: 0.001311198376 | L123: 0.001047849378 | M123: 0.01502455089 | N123: 1.059226233e-05
A124: =IF('DF raw data'!E124="","",'DF raw data'!E124) -> -271.5 | B124: =IF('DF raw data'!F124="","",'DF raw data'!F124) -> -1.47343e-05 | C124: =IF('DF raw data'!G124="","",'DF raw data'!G124) -> 7.44293e-05 | D124: =IF('DF raw data'!H124="","",'DF raw data'!H124) -> -3.9337e-05 | F124: 2.119781345e-05 | G124: 3.741882719e-05 | H124: -1.157139042e-05 | J124: 9.193848041e-05 | K124: 0.001357167616 | L124: 0.001066558792 | M124: 0.01555783029 | N124: 1.11652625e-05
A125: =IF('DF raw data'!E125="","",'DF raw data'!E125) -> -271 | B125: =IF('DF raw data'!F125="","",'DF raw data'!F125) -> -3.3521e-05 | C125: =IF('DF raw data'!G125="","",'DF raw data'!G125) -> 7.85076e-05 | D125: =IF('DF raw data'!H125="","",'DF raw data'!H125) -> -2.85311e-05 | F125: 2.304029265e-06 | G125: 4.15203735e-05 | H125: -7.038967888e-07 | J125: 9.309049504e-05 | K125: 0.001403712864 | L125: 0.001087318979 | M125: 0.01610148978 | N125: 1.17607267e-05
A126: =IF('DF raw data'!E126="","",'DF raw data'!E126) -> -270.5 | B126: =IF('DF raw data'!F126="","",'DF raw data'!F126) -> -3.22361e-05 | C126: =IF('DF raw data'!G126="","",'DF raw data'!G126) -> 8.41015e-05 | D126: =IF('DF raw data'!H126="","",'DF raw data'!H126) -> -3.3452e-05 | F126: 3.596253195e-06 | G126: 4.714615873e-05 | H126: -5.652845919e-06 | J126: 9.488862164e-05 | K126: 0.001451157175 | L126: 0.001110892058 | M126: 0.01665693581 | N126: 1.238226921e-05
A127: =IF('DF raw data'!E127="","",'DF raw data'!E127) -> -270 | B127: =IF('DF raw data'!F127="","",'DF raw data'!F127) -> -3.12161e-05 | C127: =IF('DF raw data'!G127="","",'DF raw data'!G127) -> 7.54083e-05 | D127: =IF('DF raw data'!H127="","",'DF raw data'!H127) -> -2.4548e-05 | F127: 4.622067195e-06 | G127: 3.840340749e-05 | H127: 3.301906881e-06 | J127: 9.719965523e-05 | K127: 0.001499757002 | L127: 0.001130093762 | M127: 0.01722198269 | N127: 1.302554905e-05
A128: =IF('DF raw data'!E128="","",'DF raw data'!E128) -> -269.5 | B128: =IF('DF raw data'!F128="","",'DF raw data'!F128) -> -3.29379e-05 | C128: =IF('DF raw data'!G128="","",'DF raw data'!G128) -> 7.67154e-05 | D128: =IF('DF raw data'!H128="","",'DF raw data'!H128) -> -3.81657e-05 | F128: 2.890452935e-06 | G128: 3.971795796e-05 | H128: -1.039341401e-05 | J128: 9.86448817e-05 | K128: 0.001549079443 | L128: 0.001149952741 | M128: 0.01779695906 | N128: 1.369161011e-05
A129: =IF('DF raw data'!E129="","",'DF raw data'!E129) -> -269 | B129: =IF('DF raw data'!F129="","",'DF raw data'!F129) -> -3.23559e-05 | C129: =IF('DF raw data'!G129="","",'DF raw data'!G129) -> 7.87694e-05 | D129: =IF('DF raw data'!H129="","",'DF raw data'!H129) -> -4.63073e-05 | F129: 3.475770335e-06 | G129: 4.178366576e-05 | H129: -1.858142113e-05 | J129: 0.0001003827669 | K129: 0.001599270827 | L129: 0.001170844574 | M129: 0.01838238135 | N129: 1.438208697e-05
A130: =IF('DF raw data'!E130="","",'DF raw data'!E130) -> -268.5 | B130: =IF('DF raw data'!F130="","",'DF raw data'!F130) -> -3.72319e-05 | C130: =IF('DF raw data'!G130="","",'DF raw data'!G130) -> 7.41508e-05 | D130: =IF('DF raw data'!H130="","",'DF raw data'!H130) -> -3.85431e-05 | F130: -1.428022865e-06 | G130: 3.713873974e-05 | H130: -1.077296519e-05 | J130: 9.966875544e-05 | K130: 0.001649105204 | L130: 0.001189413944 | M130: 0.01897708832 | N130: 1.509440666e-05
A131: =IF('DF raw data'!E131="","",'DF raw data'!E131) -> -268 | B131: =IF('DF raw data'!F131="","",'DF raw data'!F131) -> -2.6726e-05 | C131: =IF('DF raw data'!G131="","",'DF raw data'!G131) -> 7.44464e-05 | D131: =IF('DF raw data'!H131="","",'DF raw data'!H131) -> -3.01433e-05 | F131: =(1-$G$1*($B$54-$G$2))*(B131-F$5) -> 9.137760765e-06 | G131: =(1-$G$1*($B$54-$G$2))*(C131-G$5) -> 3.743602466e-05 | H131: =(1-$G$1*($B$54-$G$2))*(D131-H$5) -> -2.325286329e-06 | J131: 0.0001042376358 | K131: 0.001701224022 | L131: 0.001208131956 | M131: 0.0195811543 | N131: 1.582963082e-05
A132: =IF('DF raw data'!E132="","",'DF raw data'!E132) -> -267.5 | B132: =IF('DF raw data'!F132="","",'DF raw data'!F132) -> -3.40359e-05 | C132: =IF('DF raw data'!G132="","",'DF raw data'!G132) -> 9.18392e-05 | D132: =IF('DF raw data'!H132="","",'DF raw data'!H132) -> -2.53728e-05 | F132: 1.786194335e-06 | G132: 5.492796362e-05 | H132: 2.472405521e-06 | J132: =F132*$G$3+J131 -> 0.000105130733 | K132: =J132*$G$3+K131 -> 0.001753789389 | L132: =G132*$G$3+L131 -> 0.001235595938 | M132: =L132*$G$3+M131 -> 0.02019895226 | N132: =(J132^2+L132^2)*$G$3+N131 -> 1.659850571e-05
A133: =IF('DF raw data'!E133="","",'DF raw data'!E133) -> -267 | B133: =IF('DF raw data'!F133="","",'DF raw data'!F133) -> -2.44168e-05 | C133: =IF('DF raw data'!G133="","",'DF raw data'!G133) -> 9.46667e-05 | D133: =IF('DF raw data'!H133="","",'DF raw data'!H133) -> -3.26938e-05 | F133: 1.14601232e-05 | G133: 5.777158037e-05 | H133: -4.890324179e-06 | J133: 0.0001108607946 | K133: 0.001809219786 | L133: 0.001264481728 | M133: 0.02083119313 | N133: 1.740410779e-05
A134: =IF('DF raw data'!E134="","",'DF raw data'!E134) -> -266.5 | B134: =IF('DF raw data'!F134="","",'DF raw data'!F134) -> -3.20502e-05 | C134: =IF('DF raw data'!G134="","",'DF raw data'!G134) -> 8.30221e-05 | D134: =IF('DF raw data'!H134="","",'DF raw data'!H134) -> -2.3305e-05 | F134: 3.783212825e-06 | G134: 4.606060615e-05 | H134: 4.551991981e-06 | J134: 0.000112752401 | K134: 0.001865595987 | L134: 0.001287512031 | M134: 0.02147494914 | N134: 1.823930796e-05
A135: =IF('DF raw data'!E135="","",'DF raw data'!E135) -> -266 | B135: =IF('DF raw data'!F135="","",'DF raw data'!F135) -> -3.19897e-05 | C135: =IF('DF raw data'!G135="","",'DF raw data'!G135) -> 9.053e-05 | D135: =IF('DF raw data'!H135="","",'DF raw data'!H135) -> -1.7993e-05 | F135: 3.844057675e-06 | G135: 5.361130118e-05 | H135: 9.894270381e-06 | J135: 0.0001146744298 | K135: 0.001922933202 | L135: 0.001314317681 | M135: 0.02213210798 | N135: 1.910959855e-05
A136: =IF('DF raw data'!E136="","",'DF raw data'!E136) -> -265.5 | B136: =IF('DF raw data'!F136="","",'DF raw data'!F136) -> -3.37204e-05 | C136: =IF('DF raw data'!G136="","",'DF raw data'!G136) -> 8.29455e-05 | D136: =IF('DF raw data'!H136="","",'DF raw data'!H136) -> -1.74533e-05 | F136: 2.103492685e-06 | G136: 4.598356953e-05 | H136: 1.043704667e-05 | J136: 0.0001157261762 | K136: 0.00198079629 | L136: 0.001337309466 | M136: 0.02280076272 | N136: 2.001049313e-05
A137: =IF('DF raw data'!E137="","",'DF raw data'!E137) -> -265 | B137: =IF('DF raw data'!F137="","",'DF raw data'!F137) -> -3.42887e-05 | C137: =IF('DF raw data'!G137="","",'DF raw data'!G137) -> 7.96756e-05 | D137: =IF('DF raw data'!H137="","",'DF raw data'!H137) -> -3.06992e-05 | F137: 1.531953375e-06 | G137: 4.26950311e-05 | H137: -2.884354959e-06 | J137: 0.0001164921529 | K137: 0.002039042366 | L137: 0.001358656982 | M137: 0.02348009121 | N137: 2.094025274e-05
A138: =IF('DF raw data'!E138="","",'DF raw data'!E138) -> -264.5 | B138: =IF('DF raw data'!F138="","",'DF raw data'!F138) -> -3.63389e-05 | C138: =IF('DF raw data'!G138="","",'DF raw data'!G138) -> 7.93916e-05 | D138: =IF('DF raw data'!H138="","",'DF raw data'!H138) -> -3.1878e-05 | F138: -5.299327651e-07 | G138: 4.24094123e-05 | H138: -4.069874119e-06 | J138: 0.0001162271865 | K138: 0.002097155959 | L138: 0.001379861688 | M138: 0.02417002205 | N138: 2.189901626e-05
A139: =IF('DF raw data'!E139="","",'DF raw data'!E139) -> -264 | B139: =IF('DF raw data'!F139="","",'DF raw data'!F139) -> -2.44866e-05 | C139: =IF('DF raw data'!G139="","",'DF raw data'!G139) -> 8.14551e-05 | D139: =IF('DF raw data'!H139="","",'DF raw data'!H139) -> -2.41215e-05 | F139: 1.138992534e-05 | G139: 4.448467425e-05 | H139: 3.730837931e-06 | J139: 0.0001219221492 | K139: 0.002158117034 | L139: 0.001402104025 | M139: 0.02487107406 | N139: 2.288939661e-05
A140: =IF('DF raw data'!E140="","",'DF raw data'!E140) -> -263.5 | B140: =IF('DF raw data'!F140="","",'DF raw data'!F140) -> -2.40366e-05 | C140: =IF('DF raw data'!G140="","",'DF raw data'!G140) -> 8.31689e-05 | D140: =IF('DF raw data'!H140="","",'DF raw data'!H140) -> -2.60736e-05 | F140: 1.184249034e-05 | G140: 4.620824291e-05 | H140: 1.767610961e-06 | J140: 0.0001278433943 | K140: 0.002222038731 | L140: 0.001425208147 | M140: 0.02558367814 | N140: 2.391317771e-05
A141: =IF('DF raw data'!E141="","",'DF raw data'!E141) -> -263 | B141: =IF('DF raw data'!F141="","",'DF raw data'!F141) -> -3.76214e-05 | C141: =IF('DF raw data'!G141="","",'DF raw data'!G141) -> 8.30496e-05 | D141: =IF('DF raw data'!H141="","",'DF raw data'!H141) -> -3.08064e-05 | F141: -1.819743015e-06 | G141: 4.60882629e-05 | H141: -2.992165999e-06 | J141: 0.0001269335228 | K141: 0.002285505492 | L141: 0.001448252278 | M141: 0.02630780428 | N141: 2.49699511e-05
A142: =IF('DF raw data'!E142="","",'DF raw data'!E142) -> -262.5 | B142: =IF('DF raw data'!F142="","",'DF raw data'!F142) -> -2.67928e-05 | C142: =IF('DF raw data'!G142="","",'DF raw data'!G142) -> 7.74834e-05 | D142: =IF('DF raw data'!H142="","",'DF raw data'!H142) -> -2.58568e-05 | F142: 9.070580005e-06 | G142: 4.049033556e-05 | H142: 1.985646721e-06 | J142: 0.0001314688128 | K142: 0.002351239899 | L142: 0.001468497446 | M142: 0.027042053 | N142: 2.60568355e-05
A143: =IF('DF raw data'!E143="","",'DF raw data'!E143) -> -262 | B143: =IF('DF raw data'!F143="","",'DF raw data'!F143) -> -2.65278e-05 | C143: =IF('DF raw data'!G143="","",'DF raw data'!G143) -> 7.65869e-05 | D143: =IF('DF raw data'!H143="","",'DF raw data'!H143) -> -3.90323e-05 | F143: 9.337090505e-06 | G143: 3.958872551e-05 | H143: -1.126495363e-05 | J143: 0.0001361373581 | K143: 0.002419308578 | L143: 0.001488291809 | M143: 0.0277861989 | N143: 2.717360844e-05
A144: =IF('DF raw data'!E144="","",'DF raw data'!E144) -> -261.5 | B144: =IF('DF raw data'!F144="","",'DF raw data'!F144) -> -2.64702e-05 | C144: =IF('DF raw data'!G144="","",'DF raw data'!G144) -> 7.35449e-05 | D144: =IF('DF raw data'!H144="","",'DF raw data'!H144) -> -2.93548e-05 | F144: 9.395018825e-06 | G144: 3.652938611e-05 | H144: -1.532291879e-06 | J144: 0.0001408348675 | K144: 0.002489726012 | L144: 0.001506556502 | M144: 0.02853947715 | N144: 2.831838192e-05
A145: =IF('DF raw data'!E145="","",'DF raw data'!E145) -> -261 | B145: =IF('DF raw data'!F145="","",'DF raw data'!F145) -> -3.09457e-05 | C145: =IF('DF raw data'!G145="","",'DF raw data'!G145) -> 8.17921e-05 | D145: =IF('DF raw data'!H145="","",'DF raw data'!H145) -> -4.61116e-05 | F145: 4.894008475e-06 | G145: 4.482359515e-05 | H145: -1.838460564e-05 | J145: 0.0001432818717 | K145: 0.002561366947 | L145: 0.001528968299 | M145: 0.0293039613 | N145: 2.949751879e-05
A146: =IF('DF raw data'!E146="","",'DF raw data'!E146) -> -260.5 | B146: =IF('DF raw data'!F146="","",'DF raw data'!F146) -> -3.69799e-05 | C146: =IF('DF raw data'!G146="","",'DF raw data'!G146) -> 8.31179e-05 | D146: =IF('DF raw data'!H146="","",'DF raw data'!H146) -> -3.17765e-05 | F146: -1.174586465e-06 | G146: 4.615695221e-05 | H146: -3.967795569e-06 | J146: 0.0001426945785 | K146: 0.002632714237 | L146: 0.001552046775 | M146: 0.03007998469 | N146: 3.071212426e-05
A147: =IF('DF raw data'!E147="","",'DF raw data'!E147) -> -260 | B147: =IF('DF raw data'!F147="","",'DF raw data'!F147) -> -3.39073e-05 | C147: =IF('DF raw data'!G147="","",'DF raw data'!G147) -> 7.29438e-05 | D147: =IF('DF raw data'!H147="","",'DF raw data'!H147) -> -2.58912e-05 | F147: 1.915527355e-06 | G147: 3.592485984e-05 | H147: 1.951050641e-06 | J147: 0.0001436523422 | K147: 0.002704540408 | L147: 0.001570009205 | M147: 0.03086498929 | N147: 3.195490671e-05
A148: =IF('DF raw data'!E148="","",'DF raw data'!E148) -> -259.5 | B148: =IF('DF raw data'!F148="","",'DF raw data'!F148) -> -2.90964e-05 | C148: =IF('DF raw data'!G148="","",'DF raw data'!G148) -> 7.50814e-05 | D148: =IF('DF raw data'!H148="","",'DF raw data'!H148) -> -3.18842e-05 | F148: 6.753849485e-06 | G148: 3.807464416e-05 | H148: -4.076109459e-06 | J148: 0.0001470292669 | K148: 0.002778055041 | L148: 0.001589046527 | M148: 0.03165951256 | N148: 3.322824995e-05
A149: =IF('DF raw data'!E149="","",'DF raw data'!E149) -> -259 | B149: =IF('DF raw data'!F149="","",'DF raw data'!F149) -> -2.58282e-05 | C149: =IF('DF raw data'!G149="","",'DF raw data'!G149) -> 7.79025e-05 | D149: =IF('DF raw data'!H149="","",'DF raw data'!H149) -> -3.09412e-05 | F149: 1.004067822e-05 | G149: 4.091182443e-05 | H149: -3.127734359e-06 | J149: 0.000152049606 | K149: 0.002854079844 | L149: 0.001609502439 | M149: 0.03246426378 | N149: 3.453505854e-05
A150: =IF('DF raw data'!E150="","",'DF raw data'!E150) -> -258.5 | B150: =IF('DF raw data'!F150="","",'DF raw data'!F150) -> -3.27582e-05 | C150: =IF('DF raw data'!G150="","",'DF raw data'!G150) -> 7.63915e-05 | D150: =IF('DF raw data'!H150="","",'DF raw data'!H150) -> -1.89128e-05 | F150: 3.071177225e-06 | G150: 3.939221173e-05 | H150: 8.969227521e-06 | J150: 0.0001535851946 | K150: 0.002930872442 | L150: 0.001629198545 | M150: 0.03327886305 | N150: 3.58739967e-05
A151: =IF('DF raw data'!E151="","",'DF raw data'!E151) -> -258 | B151: =IF('DF raw data'!F151="","",'DF raw data'!F151) -> -3.52478e-05 | C151: =IF('DF raw data'!G151="","",'DF raw data'!G151) -> 7.94385e-05 | D151: =IF('DF raw data'!H151="","",'DF raw data'!H151) -> -3.43497e-05 | F151: 5.673865049e-07 | G151: 4.245657963e-05 | H151: -6.555662809e-06 | J151: 0.0001538688879 | K151: 0.003007806886 | L151: 0.001650426835 | M151: 0.03410407647 | N151: 3.724778888e-05
A152: =IF('DF raw data'!E152="","",'DF raw data'!E152) -> -257.5 | B152: =IF('DF raw data'!F152="","",'DF raw data'!F152) -> -2.63412e-05 | C152: =IF('DF raw data'!G152="","",'DF raw data'!G152) -> 7.49934e-05 | D152: =IF('DF raw data'!H152="","",'DF raw data'!H152) -> -3.06374e-05 | F152: 9.524754125e-06 | G152: 3.798614256e-05 | H152: -2.822202699e-06 | J152: 0.000158631265 | K152: 0.003087122518 | L152: 0.001669419906 | M152: 0.03493878642 | N152: 3.865385223e-05
A153: =IF('DF raw data'!E153="","",'DF raw data'!E153) -> -257 | B153: =IF('DF raw data'!F153="","",'DF raw data'!F153) -> -3.91536e-05 | C153: =IF('DF raw data'!G153="","",'DF raw data'!G153) -> 7.69519e-05 | D153: =IF('DF raw data'!H153="","",'DF raw data'!H153) -> -4.04787e-05 | F153: -3.360676555e-06 | G153: 3.995580601e-05 | H153: -1.271959811e-05 | J153: 0.0001569509267 | K153: 0.003165597981 | L153: 0.001689397809 | M153: 0.03578348533 | N153: 4.009320151e-05
A154: =IF('DF raw data'!E154="","",'DF raw data'!E154) -> -256.5 | B154: =IF('DF raw data'!F154="","",'DF raw data'!F154) -> -3.51194e-05 | C154: =IF('DF raw data'!G154="","",'DF raw data'!G154) -> 7.23056e-05 | D154: =IF('DF raw data'!H154="","",'DF raw data'!H154) -> -3.48921e-05 | F154: 6.965183849e-07 | G154: 3.52830221e-05 | H154: -7.101154489e-06 | J154: 0.0001572991859 | K154: 0.003244247574 | L154: 0.00170703932 | M154: 0.03663700499 | N154: 4.156256465e-05
A155: =IF('DF raw data'!E155="","",'DF raw data'!E155) -> -256 | B155: =IF('DF raw data'!F155="","",'DF raw data'!F155) -> -2.85829e-05 | C155: =IF('DF raw data'!G155="","",'DF raw data'!G155) -> 7.26052e-05 | D155: =IF('DF raw data'!H155="","",'DF raw data'!H155) -> -3.29896e-05 | F155: 7.270276435e-06 | G155: 3.558432982e-05 | H155: -5.187810239e-06 | J155: 0.0001609343241 | K155: 0.003324714736 | L155: 0.001724831485 | M155: 0.03749942073 | N155: 4.30630364e-05
A156: =IF('DF raw data'!E156="","",'DF raw data'!E156) -> -255.5 | B156: =IF('DF raw data'!F156="","",'DF raw data'!F156) -> -3.49921e-05 | C156: =IF('DF raw data'!G156="","",'DF raw data'!G156) -> 7.86658e-05 | D156: =IF('DF raw data'!H156="","",'DF raw data'!H156) -> -3.3128e-05 | F156: 8.245439949e-07 | G156: 4.167947524e-05 | H156: -5.326999119e-06 | J156: 0.0001613465961 | K156: 0.003405388034 | L156: 0.001745671223 | M156: 0.03837225634 | N156: 4.459973677e-05
A157: =IF('DF raw data'!E157="","",'DF raw data'!E157) -> -255 | B157: =IF('DF raw data'!F157="","",'DF raw data'!F157) -> -3.26806e-05 | C157: =IF('DF raw data'!G157="","",'DF raw data'!G157) -> 7.05154e-05 | D157: =IF('DF raw data'!H157="","",'DF raw data'!H157) -> -3.95114e-05 | F157: 3.149219545e-06 | G157: 3.348261796e-05 | H157: -1.17467845e-05 | J157: 0.0001629212059 | K157: 0.003486848637 | L157: 0.001762412532 | M157: 0.03925346261 | N157: 4.61660574e-05
A158: =IF('DF raw data'!E158="","",'DF raw data'!E158) -> -254.5 | B158: =IF('DF raw data'!F158="","",'DF raw data'!F158) -> -4.35751e-05 | C158: =IF('DF raw data'!G158="","",'DF raw data'!G158) -> 6.11749e-05 | D158: =IF('DF raw data'!H158="","",'DF raw data'!H158) -> -4.20063e-05 | F158: -7.807379105e-06 | G158: 2.408887711e-05 | H158: -1.425590543e-05 | J158: 0.0001590175163 | K158: 0.003566357395 | L158: 0.001774456971 | M158: 0.04014069109 | N158: 4.775304945e-05
A159: =IF('DF raw data'!E159="","",'DF raw data'!E159) -> -254 | B159: =IF('DF raw data'!F159="","",'DF raw data'!F159) -> -3.14023e-05 | C159: =IF('DF raw data'!G159="","",'DF raw data'!G159) -> 6.92963e-05 | D159: =IF('DF raw data'!H159="","",'DF raw data'!H159) -> -3.40458e-05 | F159: 4.434805855e-06 | G159: 3.225656909e-05 | H159: -6.250030579e-06 | J159: 0.0001612349192 | K159: 0.003646974855 | L159: 0.001790585255 | M159: 0.04103598372 | N159: 4.936914558e-05
A160: =IF('DF raw data'!E160="","",'DF raw data'!E160) -> -253.5 | B160: =IF('DF raw data'!F160="","",'DF raw data'!F160) -> -3.61477e-05 | C160: =IF('DF raw data'!G160="","",'DF raw data'!G160) -> 6.79659e-05 | D160: =IF('DF raw data'!H160="","",'DF raw data'!H160) -> -3.03868e-05 | F160: -3.376429251e-07 | G160: 3.091858581e-05 | H160: -2.570174279e-06 | J160: 0.0001610660978 | K160: 0.003727507904 | L160: 0.001806044548 | M160: 0.04193900599 | N160: 5.101301518e-05
A161: =IF('DF raw data'!E161="","",'DF raw data'!E161) -> -253 | B161: =IF('DF raw data'!F161="","",'DF raw data'!F161) -> -3.27496e-05 | C161: =IF('DF raw data'!G161="","",'DF raw data'!G161) -> 7.07495e-05 | D161: =IF('DF raw data'!H161="","",'DF raw data'!H161) -> -3.2122e-05 | F161: 3.079826245e-06 | G161: 3.371805233e-05 | H161: -4.315264919e-06 | J161: 0.0001626060109 | K161: 0.003808810909 | L161: 0.001822903574 | M161: 0.04285045778 | N161: 5.268772426e-05
A162: =IF('DF raw data'!E162="","",'DF raw data'!E162) -> -252.5 | B162: =IF('DF raw data'!F162="","",'DF raw data'!F162) -> -3.95444e-05 | C162: =IF('DF raw data'!G162="","",'DF raw data'!G162) -> 7.90046e-05 | D162: =IF('DF raw data'!H162="","",'DF raw data'!H162) -> -3.09292e-05 | F162: -3.753704115e-06 | G162: 4.20202064e-05 | H162: -3.115665959e-06 | J162: 0.0001607291588 | K162: 0.003889175489 | L162: 0.001843913677 | M162: 0.04377241462 | N162: 5.440065001e-05
A163: =IF('DF raw data'!E163="","",'DF raw data'!E163) -> -252 | B163: =IF('DF raw data'!F163="","",'DF raw data'!F163) -> -2.59014e-05 | C163: =IF('DF raw data'!G163="","",'DF raw data'!G163) -> 8.05943e-05 | D163: =IF('DF raw data'!H163="","",'DF raw data'!H163) -> -1.66959e-05 | F163: 9.967060985e-06 | G163: 4.361896769e-05 | H163: 1.119876385e-05 | J163: 0.0001657126893 | K163: 0.003972031834 | L163: 0.001865723161 | M163: 0.0447052762 | N163: 5.615484182e-05
A164: =IF('DF raw data'!E164="","",'DF raw data'!E164) -> -251.5 | B164: =IF('DF raw data'!F164="","",'DF raw data'!F164) -> -2.86442e-05 | C164: =IF('DF raw data'!G164="","",'DF raw data'!G164) -> 8.70711e-05 | D164: =IF('DF raw data'!H164="","",'DF raw data'!H164) -> -3.72495e-05 | F164: 7.208627025e-06 | G164: 5.013268545e-05 | H164: -9.471991669e-06 | J164: 0.0001693170028 | K164: 0.004056690335 | L164: 0.001890789504 | M164: 0.04565067095 | N164: 5.795671842e-05
A165: =IF('DF raw data'!E165="","",'DF raw data'!E165) -> -251 | B165: =IF('DF raw data'!F165="","",'DF raw data'!F165) -> -4.44795e-05 | C165: =IF('DF raw data'!G165="","",'DF raw data'!G165) -> 8.5718e-05 | D165: =IF('DF raw data'!H165="","",'DF raw data'!H165) -> -3.08594e-05 | F165: -8.716934185e-06 | G165: 4.877187278e-05 | H165: -3.045468099e-06 | J165: 0.0001649585357 | K165: 0.004139169603 | L165: 0.00191517544 | M165: 0.04660825867 | N165: 5.980427256e-05
A166: =IF('DF raw data'!E166="","",'DF raw data'!E166) -> -250.5 | B166: =IF('DF raw data'!F166="","",'DF raw data'!F166) -> -3.19699e-05 | C166: =IF('DF raw data'!G166="","",'DF raw data'!G166) -> 8.331e-05 | D166: =IF('DF raw data'!H166="","",'DF raw data'!H166) -> -4.85704e-05 | F166: 3.863970535e-06 | G166: 4.635014718e-05 | H166: -2.08574208e-05 | J166: 0.000166890521 | K166: 0.004222614863 | L166: 0.001938350514 | M166: 0.04757743393 | N166: 6.169680014e-05
A167: =IF('DF raw data'!E167="","",'DF raw data'!E167) -> -250 | B167: =IF('DF raw data'!F167="","",'DF raw data'!F167) -> -3.41599e-05 | C167: =IF('DF raw data'!G167="","",'DF raw data'!G167) -> 9.04856e-05 | D167: =IF('DF raw data'!H167="","",'DF raw data'!H167) -> -3.15885e-05 | F167: 1.661487535e-06 | G167: 5.35666481e-05 | H167: -3.778723969e-06 | J167: 0.0001677212648 | K167: 0.004306475496 | L167: 0.001965133838 | M167: 0.04856000085 | N167: 6.364174085e-05
A168: =IF('DF raw data'!E168="","",'DF raw data'!E168) -> -249.5 | B168: =IF('DF raw data'!F168="","",'DF raw data'!F168) -> -3.72406e-05 | C168: =IF('DF raw data'!G168="","",'DF raw data'!G168) -> 8.93483e-05 | D168: =IF('DF raw data'!H168="","",'DF raw data'!H168) -> -2.50585e-05 | F168: -1.436772455e-06 | G168: 5.242286549e-05 | H168: 2.788497031e-06 | J168: 0.0001670028786 | K168: 0.004389976935 | L168: 0.001991345271 | M168: 0.04955567348 | N168: 6.563841383e-05
A169: =IF('DF raw data'!E169="","",'DF raw data'!E169) -> -249 | B169: =IF('DF raw data'!F169="","",'DF raw data'!F169) -> -4.62743e-05 | C169: =IF('DF raw data'!G169="","",'DF raw data'!G169) -> 8.53592e-05 | D169: =IF('DF raw data'!H169="","",'DF raw data'!H169) -> -3.04619e-05 | F169: -1.052196455e-05 | G169: 4.841102762e-05 | H169: -2.645702349e-06 | J169: 0.0001617418963 | K169: 0.004470847883 | L169: 0.002015550784 | M169: 0.05056344888 | N169: 6.768271653e-05
A170: =IF('DF raw data'!E170="","",'DF raw data'!E170) -> -248.5 | B170: =IF('DF raw data'!F170="","",'DF raw data'!F170) -> -3.68477e-05 | C170: =IF('DF raw data'!G170="","",'DF raw data'!G170) -> 8.88548e-05 | D170: =IF('DF raw data'!H170="","",'DF raw data'!H170) -> -3.79112e-05 | F170: -1.041632925e-06 | G170: 5.192655254e-05 | H170: -1.013746336e-05 | J170: 0.0001612210798 | K170: 0.004551458423 | L170: 0.002041514061 | M170: 0.05158420591 | N170: 6.977960248e-05
A171: =IF('DF raw data'!E171="","",'DF raw data'!E171) -> -248 | B171: =IF('DF raw data'!F171="","",'DF raw data'!F171) -> -3.62681e-05 | C171: =IF('DF raw data'!G171="","",'DF raw data'!G171) -> 8.79564e-05 | D171: =IF('DF raw data'!H171="","",'DF raw data'!H171) -> -4.23736e-05 | F171: -4.587292051e-07 | G171: 5.102303166e-05 | H171: -1.462529904e-05 | J171: 0.0001609917152 | K171: 0.004631954281 | L171: 0.002067025577 | M171: 0.05261771869 | N171: 7.192885901e-05
A172: =IF('DF raw data'!E172="","",'DF raw data'!E172) -> -247.5 | B172: =IF('DF raw data'!F172="","",'DF raw data'!F172) -> -3.03122e-05 | C172: =IF('DF raw data'!G172="","",'DF raw data'!G172) -> 7.8525e-05 | D172: =IF('DF raw data'!H172="","",'DF raw data'!H172) -> -3.47596e-05 | F172: 5.531119425e-06 | G172: 4.153787268e-05 | H172: -6.967899239e-06 | J172: 0.0001637572749 | K172: 0.004713832918 | L172: 0.002087794513 | M172: 0.05366161595 | N172: 7.41217102e-05
A173: =IF('DF raw data'!E173="","",'DF raw data'!E173) -> -247 | B173: =IF('DF raw data'!F173="","",'DF raw data'!F173) -> -3.20451e-05 | C173: =IF('DF raw data'!G173="","",'DF raw data'!G173) -> 8.41798e-05 | D173: =IF('DF raw data'!H173="","",'DF raw data'!H173) -> -3.10618e-05 | F173: 3.788341895e-06 | G173: 4.722490504e-05 | H173: -3.249021779e-06 | J173: 0.0001656514459 | K173: 0.004796658641 | L173: 0.002111406965 | M173: 0.05471731943 | N173: 7.636445009e-05
A174: =IF('DF raw data'!E174="","",'DF raw data'!E174) -> -246.5 | B174: =IF('DF raw data'!F174="","",'DF raw data'!F174) -> -3.65313e-05 | C174: =IF('DF raw data'!G174="","",'DF raw data'!G174) -> 8.45692e-05 | D174: =IF('DF raw data'!H174="","",'DF raw data'!H174) -> -3.19207e-05 | F174: -7.234294451e-07 | G174: 4.761652462e-05 | H174: -4.112817509e-06 | J174: 0.0001652897312 | K174: 0.004879303507 | L174: 0.002135215228 | M174: 0.05578492705 | N174: 7.865768247e-05
A175: =IF('DF raw data'!E175="","",'DF raw data'!E175) -> -246 | B175: =IF('DF raw data'!F175="","",'DF raw data'!F175) -> -3.43542e-05 | C175: =IF('DF raw data'!G175="","",'DF raw data'!G175) -> 8.74779e-05 | D175: =IF('DF raw data'!H175="","",'DF raw data'!H175) -> -2.83249e-05 | F175: 1.466080025e-06 | G175: 5.054180421e-05 | H175: -4.965214488e-07 | J175: 0.0001660227712 | K175: 0.004962314892 | L175: 0.00216048613 | M175: 0.05686517011 | N175: 8.100531441e-05
A176: =IF('DF raw data'!E176="","",'DF raw data'!E176) -> -245.5 | B176: =IF('DF raw data'!F176="","",'DF raw data'!F176) -> -2.96714e-05 | C176: =IF('DF raw data'!G176="","",'DF raw data'!G176) -> 7.83048e-05 | D176: =IF('DF raw data'!H176="","",'DF raw data'!H176) -> -3.44593e-05 | F176: 6.175571985e-06 | G176: 4.131641754e-05 | H176: -6.665887529e-06 | J176: 0.0001691105572 | K176: 0.005046870171 | L176: 0.002181144339 | M176: 0.05795574228 | N176: 8.339830891e-05
A177: =IF('DF raw data'!E177="","",'DF raw data'!E177) -> -245 | B177: =IF('DF raw data'!F177="","",'DF raw data'!F177) -> -3.87681e-05 | C177: =IF('DF raw data'!G177="","",'DF raw data'!G177) -> 7.81468e-05 | D177: =IF('DF raw data'!H177="","",'DF raw data'!H177) -> -4.18415e-05 | F177: -2.972979205e-06 | G177: 4.115751694e-05 | H177: -1.409016607e-05 | J177: 0.0001676240676 | K177: 0.005130682205 | L177: 0.002201723097 | M177: 0.05905660383 | N177: 8.583615012e-05
A178: =IF('DF raw data'!E178="","",'DF raw data'!E178) -> -244.5 | B178: =IF('DF raw data'!F178="","",'DF raw data'!F178) -> -4.31291e-05 | C178: =IF('DF raw data'!G178="","",'DF raw data'!G178) -> 7.7381e-05 | D178: =IF('DF raw data'!H178="","",'DF raw data'!H178) -> -3.77055e-05 | F178: -7.358836905e-06 | G178: 4.038735188e-05 | H178: -9.930590869e-06 | J178: 0.0001639446491 | K178: 0.005212654529 | L178: 0.002221916773 | M178: 0.06016756222 | N178: 8.831804612e-05
A179: =IF('DF raw data'!E179="","",'DF raw data'!E179) -> -244 | B179: =IF('DF raw data'!F179="","",'DF raw data'!F179) -> -2.96175e-05 | C179: =IF('DF raw data'!G179="","",'DF raw data'!G179) -> 7.03716e-05 | D179: =IF('DF raw data'!H179="","",'DF raw data'!H179) -> -1.90048e-05 | F179: 6.229779215e-06 | G179: 3.33379983e-05 | H179: 8.876703121e-06 | J179: 0.0001670595387 | K179: 0.005296184298 | L179: 0.002238585772 | M179: 0.0612868551 | N179: 9.083763369e-05
A180: =IF('DF raw data'!E180="","",'DF raw data'!E180) -> -243.5 | B180: =IF('DF raw data'!F180="","",'DF raw data'!F180) -> -2.77489e-05 | C180: =IF('DF raw data'!G180="","",'DF raw data'!G180) -> 7.04449e-05 | D180: =IF('DF raw data'!H180="","",'DF raw data'!H180) -> -3.41862e-05 | F180: 8.109030235e-06 | G180: 3.341171611e-05 | H180: -6.391230859e-06 | J180: 0.0001711140538 | K180: 0.005381741325 | L180: 0.00225529163 | M180: 0.06241450092 | N180: 9.339544387e-05
A181: =IF('DF raw data'!E181="","",'DF raw data'!E181) -> -243 | B181: =IF('DF raw data'!F181="","",'DF raw data'!F181) -> -2.96034e-05 | C181: =IF('DF raw data'!G181="","",'DF raw data'!G181) -> 7.71884e-05 | D181: =IF('DF raw data'!H181="","",'DF raw data'!H181) -> -4.06752e-05 | F181: 6.243959585e-06 | G181: 4.019365406e-05 | H181: -1.291721816e-05 | J181: 0.0001742360336 | K181: 0.005468859342 | L181: 0.002275388457 | M181: 0.06355219515 | N181: 9.599931929e-05
A182: =IF('DF raw data'!E182="","",'DF raw data'!E182) -> -242.5 | B182: =IF('DF raw data'!F182="","",'DF raw data'!F182) -> -4.09447e-05 | C182: =IF('DF raw data'!G182="","",'DF raw data'!G182) -> 7.48164e-05 | D182: =IF('DF raw data'!H182="","",'DF raw data'!H182) -> -4.5866e-05 | F182: -5.161985825e-06 | G182: 3.780813366e-05 | H182: -1.813760572e-05 | J182: 0.0001716550407 | K182: 0.005554686863 | L182: 0.002294292524 | M182: 0.06469934141 | N182: 9.86459411e-05
A183: =IF('DF raw data'!E183="","",'DF raw data'!E183) -> -242 | B183: =IF('DF raw data'!F183="","",'DF raw data'!F183) -> -4.32563e-05 | C183: =IF('DF raw data'!G183="","",'DF raw data'!G183) -> 8.23292e-05 | D183: =IF('DF raw data'!H183="","",'DF raw data'!H183) -> -3.90081e-05 | F183: -7.486761945e-06 | G183: 4.536375662e-05 | H183: -1.124061569e-05 | J183: 0.0001679116597 | K183: 0.005638642692 | L183: 0.002316974402 | M183: 0.06585782861 | N183: 0.0001013442235
A184: =IF('DF raw data'!E184="","",'DF raw data'!E184) -> -241.5 | B184: =IF('DF raw data'!F184="","",'DF raw data'!F184) -> -3.51173e-05 | C184: =IF('DF raw data'!G184="","",'DF raw data'!G184) -> 8.28814e-05 | D184: =IF('DF raw data'!H184="","",'DF raw data'!H184) -> -3.79445e-05 | F184: 6.986303549e-07 | G184: 4.591910416e-05 | H184: -1.017095317e-05 | J184: 0.0001682609749 | K184: 0.00572277318 | L184: 0.002339933954 | M184: 0.06702779559 | N184: 0.0001040960248
A185: =IF('DF raw data'!E185="","",'DF raw data'!E185) -> -241 | B185: =IF('DF raw data'!F185="","",'DF raw data'!F185) -> -3.55658e-05 | C185: =IF('DF raw data'!G185="","",'DF raw data'!G185) -> 8.30539e-05 | D185: =IF('DF raw data'!H185="","",'DF raw data'!H185) -> -3.79269e-05 | F185: 2.475739049e-07 | G185: 4.609258741e-05 | H185: -1.015325285e-05 | J185: 0.0001683847619 | K185: 0.005806965561 | L185: 0.002362980248 | M185: 0.06820928571 | N185: 0.0001069020393
A186: =IF('DF raw data'!E186="","",'DF raw data'!E186) -> -240.5 | B186: =IF('DF raw data'!F186="","",'DF raw data'!F186) -> -3.72376e-05 | C186: =IF('DF raw data'!G186="","",'DF raw data'!G186) -> 9.46012e-05 | D186: =IF('DF raw data'!H186="","",'DF raw data'!H186) -> -2.9637e-05 | F186: -1.433755355e-06 | G186: 5.770570702e-05 | H186: -1.816100419e-06 | J186: 0.0001676678842 | K186: 0.005890799503 | L186: 0.002391833102 | M186: 0.06940520226 | N186: 0.0001097765284
A187: =IF('DF raw data'!E187="","",'DF raw data'!E187) -> -240 | B187: =IF('DF raw data'!F187="","",'DF raw data'!F187) -> -3.25531e-05 | C187: =IF('DF raw data'!G187="","",'DF raw data'!G187) -> 9.72704e-05 | D187: =IF('DF raw data'!H187="","",'DF raw data'!H187) -> -3.83762e-05 | F187: 3.277446295e-06 | G187: 6.039012146e-05 | H187: -1.060511386e-05 | J187: 0.0001693066073 | K187: 0.005975452807 | L187: 0.002422028162 | M187: 0.07061621634 | N187: 0.000112723971
A188: =IF('DF raw data'!E188="","",'DF raw data'!E188) -> -239.5 | B188: =IF('DF raw data'!F188="","",'DF raw data'!F188) -> -3.94186e-05 | C188: =IF('DF raw data'!G188="","",'DF raw data'!G188) -> 8.29315e-05 | D188: =IF('DF raw data'!H188="","",'DF raw data'!H188) -> -2.70882e-05 | F188: -3.627187055e-06 | G188: 4.596948973e-05 | H188: 7.472277412e-07 | J188: 0.0001674930138 | K188: 0.006059199313 | L188: 0.002445012907 | M188: 0.0718387228 | N188: 0.000115727042
A189: =IF('DF raw data'!E189="","",'DF raw data'!E189) -> -239 | B189: =IF('DF raw data'!F189="","",'DF raw data'!F189) -> -3.87077e-05 | C189: =IF('DF raw data'!G189="","",'DF raw data'!G189) -> 8.30676e-05 | D189: =IF('DF raw data'!H189="","",'DF raw data'!H189) -> -3.59183e-05 | F189: -2.912234925e-06 | G189: 4.61063655e-05 | H189: -8.133203829e-06 | J189: 0.0001660368963 | K189: 0.006142217762 | L189: 0.00246806609 | M189: 0.07307275584 | N189: 0.0001187865012
A190: =IF('DF raw data'!E190="","",'DF raw data'!E190) -> -238.5 | B190: =IF('DF raw data'!F190="","",'DF raw data'!F190) -> -4.63403e-05 | C190: =IF('DF raw data'!G190="","",'DF raw data'!G190) -> 8.28993e-05 | D190: =IF('DF raw data'!H190="","",'DF raw data'!H190) -> -2.78982e-05 | F190: -1.058834075e-05 | G190: 4.593710619e-05 | H190: -6.738925878e-08 | J190: 0.000160742726 | K190: 0.006222589125 | L190: 0.002491034643 | M190: 0.07431827316 | N190: 0.0001219020471
A191: =IF('DF raw data'!E191="","",'DF raw data'!E191) -> -238 | B191: =IF('DF raw data'!F191="","",'DF raw data'!F191) -> -3.60866e-05 | C191: =IF('DF raw data'!G191="","",'DF raw data'!G191) -> 7.32755e-05 | D191: =IF('DF raw data'!H191="","",'DF raw data'!H191) -> -2.55755e-05 | F191: -2.761946551e-07 | G191: 3.625845053e-05 | H191: 2.268550131e-06 | J191: 0.0001606046286 | K191: 0.006302891439 | L191: 0.002509163868 | M191: 0.0755728551 | N191: 0.0001250628957
A192: =IF('DF raw data'!E192="","",'DF raw data'!E192) -> -237.5 | B192: =IF('DF raw data'!F192="","",'DF raw data'!F192) -> -3.53079e-05 | C192: =IF('DF raw data'!G192="","",'DF raw data'!G192) -> 6.81224e-05 | D192: =IF('DF raw data'!H192="","",'DF raw data'!H192) -> -4.04413e-05 | F192: 5.069439349e-07 | G192: 3.107597786e-05 | H192: -1.268198493e-05 | J192: 0.0001608581006 | K192: 0.006383320489 | L192: 0.002524701857 | M192: 0.07683520603 | N192: 0.0001282628931
A193: =IF('DF raw data'!E193="","",'DF raw data'!E193) -> -237 | B193: =IF('DF raw data'!F193="","",'DF raw data'!F193) -> -4.24909e-05 | C193: =IF('DF raw data'!G193="","",'DF raw data'!G193) -> 6.79621e-05 | D193: =IF('DF raw data'!H193="","",'DF raw data'!H193) -> -3.34522e-05 | F193: -6.716999165e-06 | G193: 3.091476415e-05 | H193: -5.653047059e-06 | J193: 0.000157499601 | K193: 0.00646207029 | L193: 0.002540159239 | M193: 0.07810528565 | N193: 0.0001315015006
A194: =IF('DF raw data'!E194="","",'DF raw data'!E194) -> -236.5 | B194: =IF('DF raw data'!F194="","",'DF raw data'!F194) -> -3.11469e-05 | C194: =IF('DF raw data'!G194="","",'DF raw data'!G194) -> 7.1829e-05 | D194: =IF('DF raw data'!H194="","",'DF raw data'!H194) -> -3.25693e-05 | F194: 4.691661635e-06 | G194: 3.480370548e-05 | H194: -4.765114529e-06 | J194: 0.0001598454318 | K194: 0.006541993006 | L194: 0.002557561092 | M194: 0.07938406619 | N194: 0.0001347848353
A195: =IF('DF raw data'!E195="","",'DF raw data'!E195) -> -236 | B195: =IF('DF raw data'!F195="","",'DF raw data'!F195) -> -4.93495e-05 | C195: =IF('DF raw data'!G195="","",'DF raw data'!G195) -> 7.1728e-05 | D195: =IF('DF raw data'!H195="","",'DF raw data'!H195) -> -3.2786e-05 | F195: =(1-$G$1*($B$54-$G$2))*(B195-F$5) -> -1.361469319e-05 | G195: =(1-$G$1*($B$54-$G$2))*(C195-G$5) -> 3.470212978e-05 | H195: =(1-$G$1*($B$54-$G$2))*(D195-H$5) -> -4.983049719e-06 | J195: 0.0001530380853 | K195: 0.006618512048 | L195: 0.002574912157 | M195: 0.08067152227 | N195: 0.0001381116319
A196: =IF('DF raw data'!E196="","",'DF raw data'!E196) -> -235.5 | B196: =IF('DF raw data'!F196="","",'DF raw data'!F196) -> -4.00621e-05 | C196: =IF('DF raw data'!G196="","",'DF raw data'!G196) -> 7.70888e-05 | D196: =IF('DF raw data'!H196="","",'DF raw data'!H196) -> -2.3198e-05 | F196: -4.274355005e-06 | G196: 4.009348634e-05 | H196: 4.659601881e-06 | J196: =F196*$G$3+J195 -> 0.0001509009078 | K196: =J196*$G$3+K195 -> 0.006693962502 | L196: =G196*$G$3+L195 -> 0.0025949589 | M196: =L196*$G$3+M195 -> 0.08196900172 | N196: =(J196^2+L196^2)*$G$3+N195 -> 0.0001414899233
A197: =IF('DF raw data'!E197="","",'DF raw data'!E197) -> -235 | B197: =IF('DF raw data'!F197="","",'DF raw data'!F197) -> -3.85819e-05 | C197: =IF('DF raw data'!G197="","",'DF raw data'!G197) -> 8.57743e-05 | D197: =IF('DF raw data'!H197="","",'DF raw data'!H197) -> -3.22679e-05 | F197: -2.785717865e-06 | G197: 4.882849369e-05 | H197: -4.461996549e-06 | J197: 0.0001495080488 | K197: 0.006768716527 | L197: 0.002619373147 | M197: 0.08327868829 | N197: 0.0001449316575
A198: =IF('DF raw data'!E198="","",'DF raw data'!E198) -> -234.5 | B198: =IF('DF raw data'!F198="","",'DF raw data'!F198) -> -4.72333e-05 | C198: =IF('DF raw data'!G198="","",'DF raw data'!G198) -> 8.13057e-05 | D198: =IF('DF raw data'!H198="","",'DF raw data'!H198) -> -3.44564e-05 | F198: -1.148643085e-05 | G198: 4.433442267e-05 | H198: -6.662970999e-06 | J198: 0.0001437648334 | K198: 0.006840598943 | L198: 0.002641540358 | M198: 0.08459945847 | N198: 0.0001484308594
A199: =IF('DF raw data'!E199="","",'DF raw data'!E199) -> -234 | B199: =IF('DF raw data'!F199="","",'DF raw data'!F199) -> -4.28793e-05 | C199: =IF('DF raw data'!G199="","",'DF raw data'!G199) -> 8.27611e-05 | D199: =IF('DF raw data'!H199="","",'DF raw data'!H199) -> -2.74992e-05 | F199: -7.107613045e-06 | G199: 4.579811845e-05 | H199: 3.338850412e-07 | J199: 0.0001402110269 | K199: 0.006910704457 | L199: 0.002664439418 | M199: 0.08593167818 | N199: 0.0001519903077
A200: =IF('DF raw data'!E200="","",'DF raw data'!E200) -> -233.5 | B200: =IF('DF raw data'!F200="","",'DF raw data'!F200) -> -2.68488e-05 | C200: =IF('DF raw data'!G200="","",'DF raw data'!G200) -> 8.1639e-05 | D200: =IF('DF raw data'!H200="","",'DF raw data'!H200) -> -3.86303e-05 | F200: 9.014260805e-06 | G200: 4.466962248e-05 | H200: -1.086066223e-05 | J200: 0.0001447181573 | K200: 0.006983063535 | L200: 0.002686774229 | M200: 0.0872750653 | N200: 0.0001556101572
... 1079 more rows

Sheet 20 mm
A1: =IF('DF raw data'!I1="","",'DF raw data'!I1) -> Number of header lines | B1: =IF('DF raw data'!J1="","",'DF raw data'!J1) -> 54 | C1: =IF('DF raw data'!C1="","",'DF raw data'!C1) ->  | D1: =IF('DF raw data'!D1="","",'DF raw data'!D1) ->  | F1: T_coeff | G1: -0.001 | H1: /degC | J1: IBy total | K1: =J1267*1000 -> 4.991584038 | L1: muTm | M1: =L1267*1000 -> -0.419340431 | R1: DF ref | S1: 1
A2: =IF('DF raw data'!I2="","",'DF raw data'!I2) -> Measured by | B2: =IF('DF raw data'!J2="","",'DF raw data'!J2) -> Danfysik | C2: =IF('DF raw data'!C2="","",'DF raw data'!C2) ->  | D2: =IF('DF raw data'!D2="","",'DF raw data'!D2) ->  | F2: Tcorr | G2: 20 | H2: degC | J2: JBy total | K2: =K1267 -> 1.190075457 | L2: muTm^2 | M2: =M1267 -> 4.038146299
A3: =IF('DF raw data'!I3="","",'DF raw data'!I3) -> Operator | B3: =IF('DF raw data'!J3="","",'DF raw data'!J3) -> PMHA | C3: =IF('DF raw data'!C3="","",'DF raw data'!C3) ->  | D3: =IF('DF raw data'!D3="","",'DF raw data'!D3) ->  | F3: Step | G3: =A68-A67 -> 0.5 | H3: mm | J3: PI total | K3: =N1267 -> 5055.633746 | L3: T^2mm^3
A4: =IF('DF raw data'!I4="","",'DF raw data'!I4) -> Data-time | B4: =IF('DF raw data'!J4="","",'DF raw data'!J4) -> 03-09-2024, 13:24:47 | C4: =IF('DF raw data'!C4="","",'DF raw data'!C4) ->  | D4: =IF('DF raw data'!D4="","",'DF raw data'!D4) -> 
A5: =IF('DF raw data'!I5="","",'DF raw data'!I5) -> Project | B5: =IF('DF raw data'!J5="","",'DF raw data'!J5) -> 504314 | C5: =IF('DF raw data'!C5="","",'DF raw data'!C5) ->  | D5: Bamb avr | F5: =(AVERAGE(B67:B107) + AVERAGE(B1227:B1267))/2 -> -3.726850488e-05 | G5: =(AVERAGE(C67:C107) + AVERAGE(C1227:C1267))/2 -> 7.036893902e-06 | H5: =(AVERAGE(D67:D107) + AVERAGE(D1227:D1267))/2 -> -2.966452317e-05
A6: =IF('DF raw data'!I6="","",'DF raw data'!I6) -> Magnet type | B6: =IF('DF raw data'!J6="","",'DF raw data'!J6) -> Dipole | C6: =IF('DF raw data'!C6="","",'DF raw data'!C6) -> 
A7: =IF('DF raw data'!I7="","",'DF raw data'!I7) -> Magnet nr. | B7: =IF('DF raw data'!J7="","",'DF raw data'!J7) -> 2410090 | C7: =IF('DF raw data'!C7="","",'DF raw data'!C7) -> 
A8: =IF('DF raw data'!I8="","",'DF raw data'!I8) -> Meas. number | B8: =IF('DF raw data'!J8="","",'DF raw data'!J8) -> 337 | C8: =IF('DF raw data'!C8="","",'DF raw data'!C8) -> 
A9: =IF('DF raw data'!I9="","",'DF raw data'!I9) -> Add. info | B9: =IF('DF raw data'!J9="","",'DF raw data'!J9) ->  | C9: =IF('DF raw data'!C9="","",'DF raw data'!C9) ->  | D9: =IF('DF raw data'!D9="","",'DF raw data'!D9) -> 
A10: =IF('DF raw data'!I10="","",'DF raw data'!I10) -> Device | B10: =IF('DF raw data'!J10="","",'DF raw data'!J10) -> (HAL) HALL-PROBE | C10: =IF('DF raw data'!C10="","",'DF raw data'!C10) ->  | D10: =IF('DF raw data'!D10="","",'DF raw data'!D10) -> 
A11: =IF('DF raw data'!I11="","",'DF raw data'!I11) -> Goal | B11: =IF('DF raw data'!J11="","",'DF raw data'!J11) -> (AXI) AXis Integral (Line, EFB) | C11: =IF('DF raw data'!C11="","",'DF raw data'!C11) ->  | D11: =IF('DF raw data'!D11="","",'DF raw data'!D11) -> 
A12: =IF('DF raw data'!I12="","",'DF raw data'!I12) -> Power supply mode | B12: =IF('DF raw data'!J12="","",'DF raw data'!J12) -> (PM) Permanent Magnet (no MPS in use) | C12: =IF('DF raw data'!C12="","",'DF raw data'!C12) ->  | D12: =IF('DF raw data'!D12="","",'DF raw data'!D12) -> 
A13: =IF('DF raw data'!I13="","",'DF raw data'!I13) -> Data format | B13: =IF('DF raw data'!J13="","",'DF raw data'!J13) -> Raw data text file | C13: =IF('DF raw data'!C13="","",'DF raw data'!C13) ->  | D13: =IF('DF raw data'!D13="","",'DF raw data'!D13) -> 
A14: =IF('DF raw data'!I14="","",'DF raw data'!I14) -> Direction of the pos. x-axis | B14: =IF('DF raw data'!J14="","",'DF raw data'!J14) -> See test program | C14: =IF('DF raw data'!C14="","",'DF raw data'!C14) ->  | D14: =IF('DF raw data'!D14="","",'DF raw data'!D14) -> 
A15: =IF('DF raw data'!I15="","",'DF raw data'!I15) -> Direction of the pos. y-axis | B15: =IF('DF raw data'!J15="","",'DF raw data'!J15) -> Vertical up | C15: =IF('DF raw data'!C15="","",'DF raw data'!C15) ->  | D15: =IF('DF raw data'!D15="","",'DF raw data'!D15) -> 
A16: =IF('DF raw data'!I16="","",'DF raw data'!I16) -> Direction of the pos. z-axis | B16: =IF('DF raw data'!J16="","",'DF raw data'!J16) -> See test program | C16: =IF('DF raw data'!C16="","",'DF raw data'!C16) ->  | D16: =IF('DF raw data'!D16="","",'DF raw data'!D16) -> 
A17: =IF('DF raw data'!I17="","",'DF raw data'!I17) -> Mapper type | B17: =IF('DF raw data'!J17="","",'DF raw data'!J17) -> Precision Hall Mapper | C17: =IF('DF raw data'!C17="","",'DF raw data'!C17) ->  | D17: =IF('DF raw data'!D17="","",'DF raw data'!D17) -> 
A18: =IF('DF raw data'!I18="","",'DF raw data'!I18) -> Mapper Danfysik Reg. Number | B18: =IF('DF raw data'!J18="","",'DF raw data'!J18) -> 2033-D (mapper 1) | C18: =IF('DF raw data'!C18="","",'DF raw data'!C18) ->  | D18: =IF('DF raw data'!D18="","",'DF raw data'!D18) -> 
A19: =IF('DF raw data'!I19="","",'DF raw data'!I19) -> Measurement consept | B19: =IF('DF raw data'!J19="","",'DF raw data'!J19) -> Square line grid | C19: =IF('DF raw data'!C19="","",'DF raw data'!C19) ->  | D19: =IF('DF raw data'!D19="","",'DF raw data'!D19) -> 
A20: =IF('DF raw data'!I20="","",'DF raw data'!I20) -> Mode | B20: =IF('DF raw data'!J20="","",'DF raw data'!J20) -> On-the-fly measurement | C20: =IF('DF raw data'!C20="","",'DF raw data'!C20) ->  | D20: =IF('DF raw data'!D20="","",'DF raw data'!D20) -> 
A21: =IF('DF raw data'!I21="","",'DF raw data'!I21) ->  | B21: =IF('DF raw data'!J21="","",'DF raw data'!J21) ->  | C21: =IF('DF raw data'!C21="","",'DF raw data'!C21) ->  | D21: =IF('DF raw data'!D21="","",'DF raw data'!D21) -> 
A22: =IF('DF raw data'!I22="","",'DF raw data'!I22) -> Probe Name | B22: =IF('DF raw data'!J22="","",'DF raw data'!J22) -> ID12_By | C22: =IF('DF raw data'!C22="","",'DF raw data'!C22) ->  | D22: =IF('DF raw data'!D22="","",'DF raw data'!D22) -> 
A23: =IF('DF raw data'!I23="","",'DF raw data'!I23) -> Probe Type | B23: =IF('DF raw data'!J23="","",'DF raw data'!J23) -> DF_ID_3D_Bxyz | C23: =IF('DF raw data'!C23="","",'DF raw data'!C23) ->  | D23: =IF('DF raw data'!D23="","",'DF raw data'!D23) -> 
A24: =IF('DF raw data'!I24="","",'DF raw data'!I24) -> Probe Danfysik Reg. Number | B24: =IF('DF raw data'!J24="","",'DF raw data'!J24) -> 2277 | C24: =IF('DF raw data'!C24="","",'DF raw data'!C24) ->  | D24: =IF('DF raw data'!D24="","",'DF raw data'!D24) -> 
A25: =IF('DF raw data'!I25="","",'DF raw data'!I25) -> Probe Axis | B25: =IF('DF raw data'!J25="","",'DF raw data'!J25) -> By | C25: =IF('DF raw data'!C25="","",'DF raw data'!C25) ->  | D25: =IF('DF raw data'!D25="","",'DF raw data'!D25) -> 
A26: =IF('DF raw data'!I26="","",'DF raw data'!I26) -> Probe Current Supply | B26: =IF('DF raw data'!J26="","",'DF raw data'!J26) -> 1825-D | C26: =IF('DF raw data'!C26="","",'DF raw data'!C26) ->  | D26: =IF('DF raw data'!D26="","",'DF raw data'!D26) -> 
A27: =IF('DF raw data'!I27="","",'DF raw data'!I27) -> Probe Gain Correction | B27: =IF('DF raw data'!J27="","",'DF raw data'!J27) -> 0.99619 | C27: =IF('DF raw data'!C27="","",'DF raw data'!C27) ->  | D27: =IF('DF raw data'!D27="","",'DF raw data'!D27) -> 
A28: =IF('DF raw data'!I28="","",'DF raw data'!I28) -> Probe Offset Correction | B28: =IF('DF raw data'!J28="","",'DF raw data'!J28) -> 0.0027506 | C28: =IF('DF raw data'!C28="","",'DF raw data'!C28) ->  | D28: =IF('DF raw data'!D28="","",'DF raw data'!D28) -> 
A29: =IF('DF raw data'!I29="","",'DF raw data'!I29) -> DVM Number | B29: =IF('DF raw data'!J29="","",'DF raw data'!J29) -> 2 | C29: =IF('DF raw data'!C29="","",'DF raw data'!C29) ->  | D29: =IF('DF raw data'!D29="","",'DF raw data'!D29) -> 
A30: =IF('DF raw data'!I30="","",'DF raw data'!I30) -> DVM Type | B30: =IF('DF raw data'!J30="","",'DF raw data'!J30) -> K2701 | C30: =IF('DF raw data'!C30="","",'DF raw data'!C30) ->  | D30: =IF('DF raw data'!D30="","",'DF raw data'!D30) -> 
A31: =IF('DF raw data'!I31="","",'DF raw data'!I31) -> DVM Danfysik Reg. Number | B31: =IF('DF raw data'!J31="","",'DF raw data'!J31) -> 1743-D | C31: =IF('DF raw data'!C31="","",'DF raw data'!C31) ->  | D31: =IF('DF raw data'!D31="","",'DF raw data'!D31) -> 
A32: =IF('DF raw data'!I32="","",'DF raw data'!I32) -> Probe Name | B32: =IF('DF raw data'!J32="","",'DF raw data'!J32) -> ID12_Bx | C32: =IF('DF raw data'!C32="","",'DF raw data'!C32) ->  | D32: =IF('DF raw data'!D32="","",'DF raw data'!D32) -> 
A33: =IF('DF raw data'!I33="","",'DF raw data'!I33) -> Probe Type | B33: =IF('DF raw data'!J33="","",'DF raw data'!J33) -> DF_ID_3D_Bxyz | C33: =IF('DF raw data'!C33="","",'DF raw data'!C33) ->  | D33: =IF('DF raw data'!D33="","",'DF raw data'!D33) -> 
A34: =IF('DF raw data'!I34="","",'DF raw data'!I34) -> Probe Danfysik Reg. Number | B34: =IF('DF raw data'!J34="","",'DF raw data'!J34) -> 2277 | C34: =IF('DF raw data'!C34="","",'DF raw data'!C34) ->  | D34: =IF('DF raw data'!D34="","",'DF raw data'!D34) -> 
A35: =IF('DF raw data'!I35="","",'DF raw data'!I35) -> Probe Axis | B35: =IF('DF raw data'!J35="","",'DF raw data'!J35) -> Bx | C35: =IF('DF raw data'!C35="","",'DF raw data'!C35) ->  | D35: =IF('DF raw data'!D35="","",'DF raw data'!D35) -> 
A36: =IF('DF raw data'!I36="","",'DF raw data'!I36) -> Probe Current Supply | B36: =IF('DF raw data'!J36="","",'DF raw data'!J36) -> 1825-D | C36: =IF('DF raw data'!C36="","",'DF raw data'!C36) ->  | D36: =IF('DF raw data'!D36="","",'DF raw data'!D36) -> 
A37: =IF('DF raw data'!I37="","",'DF raw data'!I37) -> Probe Gain Correction | B37: =IF('DF raw data'!J37="","",'DF raw data'!J37) -> 1 | C37: =IF('DF raw data'!C37="","",'DF raw data'!C37) ->  | D37: =IF('DF raw data'!D37="","",'DF raw data'!D37) -> 
A38: =IF('DF raw data'!I38="","",'DF raw data'!I38) -> Probe Offset Correction | B38: =IF('DF raw data'!J38="","",'DF raw data'!J38) -> -0.17548 | C38: =IF('DF raw data'!C38="","",'DF raw data'!C38) ->  | D38: =IF('DF raw data'!D38="","",'DF raw data'!D38) -> 
A39: =IF('DF raw data'!I39="","",'DF raw data'!I39) -> DVM Number | B39: =IF('DF raw data'!J39="","",'DF raw data'!J39) -> 3 | C39: =IF('DF raw data'!C39="","",'DF raw data'!C39) ->  | D39: =IF('DF raw data'!D39="","",'DF raw data'!D39) -> 
A40: =IF('DF raw data'!I40="","",'DF raw data'!I40) -> DVM Type | B40: =IF('DF raw data'!J40="","",'DF raw data'!J40) -> K2701 | C40: =IF('DF raw data'!C40="","",'DF raw data'!C40) ->  | D40: =IF('DF raw data'!D40="","",'DF raw data'!D40) -> 
A41: =IF('DF raw data'!I41="","",'DF raw data'!I41) -> DVM Danfysik Reg. Number | B41: =IF('DF raw data'!J41="","",'DF raw data'!J41) -> 1744-D | C41: =IF('DF raw data'!C41="","",'DF raw data'!C41) ->  | D41: =IF('DF raw data'!D41="","",'DF raw data'!D41) -> 
A42: =IF('DF raw data'!I42="","",'DF raw data'!I42) -> Probe Name | B42: =IF('DF raw data'!J42="","",'DF raw data'!J42) -> ID12_Bz | C42: =IF('DF raw data'!C42="","",'DF raw data'!C42) ->  | D42: =IF('DF raw data'!D42="","",'DF raw data'!D42) -> 
A43: =IF('DF raw data'!I43="","",'DF raw data'!I43) -> Probe Type | B43: =IF('DF raw data'!J43="","",'DF raw data'!J43) -> DF_ID_3D_Bxyz | C43: =IF('DF raw data'!C43="","",'DF raw data'!C43) ->  | D43: =IF('DF raw data'!D43="","",'DF raw data'!D43) -> 
A44: =IF('DF raw data'!I44="","",'DF raw data'!I44) -> Probe Danfysik Reg. Number | B44: =IF('DF raw data'!J44="","",'DF raw data'!J44) -> 2277 | C44: =IF('DF raw data'!C44="","",'DF raw data'!C44) ->  | D44: =IF('DF raw data'!D44="","",'DF raw data'!D44) -> 
A45: =IF('DF raw data'!I45="","",'DF raw data'!I45) -> Probe Axis | B45: =IF('DF raw data'!J45="","",'DF raw data'!J45) -> Bz | C45: =IF('DF raw data'!C45="","",'DF raw data'!C45) ->  | D45: =IF('DF raw data'!D45="","",'DF raw data'!D45) -> 
A46: =IF('DF raw data'!I46="","",'DF raw data'!I46) -> Probe Current Supply | B46: =IF('DF raw data'!J46="","",'DF raw data'!J46) -> 1825-D | C46: =IF('DF raw data'!C46="","",'DF raw data'!C46) ->  | D46: =IF('DF raw data'!D46="","",'DF raw data'!D46) -> 
A47: =IF('DF raw data'!I47="","",'DF raw data'!I47) -> Probe Gain Correction | B47: =IF('DF raw data'!J47="","",'DF raw data'!J47) -> 1 | C47: =IF('DF raw data'!C47="","",'DF raw data'!C47) ->  | D47: =IF('DF raw data'!D47="","",'DF raw data'!D47) -> 
A48: =IF('DF raw data'!I48="","",'DF raw data'!I48) -> Probe Offset Correction | B48: =IF('DF raw data'!J48="","",'DF raw data'!J48) -> 0.0073243 | C48: =IF('DF raw data'!C48="","",'DF raw data'!C48) ->  | D48: =IF('DF raw data'!D48="","",'DF raw data'!D48) -> 
A49: =IF('DF raw data'!I49="","",'DF raw data'!I49) -> DVM Number | B49: =IF('DF raw data'!J49="","",'DF raw data'!J49) -> 8 | C49: =IF('DF raw data'!C49="","",'DF raw data'!C49) ->  | D49: =IF('DF raw data'!D49="","",'DF raw data'!D49) -> 
A50: =IF('DF raw data'!I50="","",'DF raw data'!I50) -> DVM Type | B50: =IF('DF raw data'!J50="","",'DF raw data'!J50) -> K2700 | C50: =IF('DF raw data'!C50="","",'DF raw data'!C50) ->  | D50: =IF('DF raw data'!D50="","",'DF raw data'!D50) -> 
A51: =IF('DF raw data'!I51="","",'DF raw data'!I51) -> DVM Danfysik Reg. Number | B51: =IF('DF raw data'!J51="","",'DF raw data'!J51) -> 1756-D | C51: =IF('DF raw data'!C51="","",'DF raw data'!C51) ->  | D51: =IF('DF raw data'!D51="","",'DF raw data'!D51) -> 
A52: =IF('DF raw data'!I52="","",'DF raw data'!I52) -> NTC voltage | B52: =IF('DF raw data'!J52="","",'DF raw data'!J52) -> 0.40888 | C52: =IF('DF raw data'!C52="","",'DF raw data'!C52) ->  | D52: =IF('DF raw data'!D52="","",'DF raw data'!D52) -> 
A53: =IF('DF raw data'!I53="","",'DF raw data'!I53) -> PS-Gap: | B53: =IF('DF raw data'!J53="","",'DF raw data'!J53) -> 20 | C53: =IF('DF raw data'!C53="","",'DF raw data'!C53) ->  | D53: =IF('DF raw data'!D53="","",'DF raw data'!D53) -> 
A54: =IF('DF raw data'!I54="","",'DF raw data'!I54) -> PS-Temperature: | B54: =IF('DF raw data'!J54="","",'DF raw data'!J54) -> 25.6 | C54: =IF('DF raw data'!C54="","",'DF raw data'!C54) ->  | D54: =IF('DF raw data'!D54="","",'DF raw data'!D54) -> 
A55: =IF('DF raw data'!I55="","",'DF raw data'!I55) -> PS-Encoder: | B55: =IF('DF raw data'!J55="","",'DF raw data'!J55) -> 29.6241 | C55: =IF('DF raw data'!C55="","",'DF raw data'!C55) ->  | D55: =IF('DF raw data'!D55="","",'DF raw data'!D55) -> 
A56: =IF('DF raw data'!I56="","",'DF raw data'!I56) ->  | B56: =IF('DF raw data'!J56="","",'DF raw data'!J56) -> 
A57: =IF('DF raw data'!I57="","",'DF raw data'!I57) -> Monitor-Index | B57: =IF('DF raw data'!J57="","",'DF raw data'!J57) -> [1,1,4]
A58: =IF('DF raw data'!I58="","",'DF raw data'!I58) ->  | B58: =IF('DF raw data'!J58="","",'DF raw data'!J58) -> 
A59: =IF('DF raw data'!I59="","",'DF raw data'!I59) -> Time [s] | B59: =IF('DF raw data'!J59="","",'DF raw data'!J59) -> Y [mm]
A60: =IF('DF raw data'!I60="","",'DF raw data'!I60) ->  | B60: =IF('DF raw data'!J60="","",'DF raw data'!J60) -> 
A61: =IF('DF raw data'!I61="","",'DF raw data'!I61) -> 207.7 | B61: =IF('DF raw data'!J61="","",'DF raw data'!J61) -> 31.46
A62: =IF('DF raw data'!I62="","",'DF raw data'!I62) ->  | B62: =IF('DF raw data'!J62="","",'DF raw data'!J62) -> 
A63: =IF('DF raw data'!I63="","",'DF raw data'!I63) -> Measurement-Index | B63: =IF('DF raw data'!J63="","",'DF raw data'!J63) -> [1,1,1201,2]
A64: =IF('DF raw data'!I64="","",'DF raw data'!I64) ->  | B64: =IF('DF raw data'!J64="","",'DF raw data'!J64) -> 
A65: =IF('DF raw data'!I65="","",'DF raw data'!I65) -> Z [mm] | B65: =IF('DF raw data'!J65="","",'DF raw data'!J65) -> By [T] | C65: =IF('DF raw data'!K65="","",'DF raw data'!K65) -> Bx [T] | D65: =IF('DF raw data'!L65="","",'DF raw data'!L65) -> Bz [T] | F65: By_corr | G65: Bx_corr | H65: Bz_corr | J65: Iy | K65: Jy | L65: Ix | M65: Jx | N65: PI
A66: =IF('DF raw data'!I66="","",'DF raw data'!I66) -> [1, 0, 0, 0] | B66: =IF('DF raw data'!J66="","",'DF raw data'!J66) ->  | C66: =IF('DF raw data'!K66="","",'DF raw data'!K66) ->  | D66: =IF('DF raw data'!L66="","",'DF raw data'!L66) -> 
A67: =IF('DF raw data'!I67="","",'DF raw data'!I67) -> -300 | B67: =IF('DF raw data'!J67="","",'DF raw data'!J67) -> -2.57335e-05 | C67: =IF('DF raw data'!K67="","",'DF raw data'!K67) -> 4.77873e-05 | D67: =IF('DF raw data'!L67="","",'DF raw data'!L67) -> -2.46086e-05 | F67: =(1-$G$1*($B$54-$G$2))*(B67-F$5) -> 1.159960091e-05 | G67: =(1-$G$1*($B$54-$G$2))*(C67-G$5) -> 4.097860837e-05 | H67: =(1-$G$1*($B$54-$G$2))*(D67-H$5) -> 5.08423634e-06 | J67: =F67*$G$3+J66 -> 5.799800453e-06 | K67: =J67*$G$3+K66 -> 2.899900226e-06 | L67: =G67*$G$3+L66 -> 2.048930419e-05 | M67: =L67*$G$3+M66 -> 1.024465209e-05 | N67: =(J67^2+L67^2)*$G$3+N66 -> 2.267246357e-10
A68: =IF('DF raw data'!I68="","",'DF raw data'!I68) -> -299.5 | B68: =IF('DF raw data'!J68="","",'DF raw data'!J68) -> -3.00277e-05 | C68: =IF('DF raw data'!K68="","",'DF raw data'!K68) -> 4.53304e-05 | D68: =IF('DF raw data'!L68="","",'DF raw data'!L68) -> -2.43857e-05 | F68: 7.281353385e-06 | G68: 3.850794973e-05 | H68: 5.30838458e-06 | J68: =F68*$G$3+J67 -> 9.440477145e-06 | K68: =J68*$G$3+K67 -> 7.620138799e-06 | L68: =G68*$G$3+L67 -> 3.974327905e-05 | M68: =L68*$G$3+M67 -> 3.011629162e-05 | N68: =(J68^2+L68^2)*$G$3+N67 -> 1.061050055e-09
A69: =IF('DF raw data'!I69="","",'DF raw data'!I69) -> -299 | B69: =IF('DF raw data'!J69="","",'DF raw data'!J69) -> -3.48991e-05 | C69: =IF('DF raw data'!K69="","",'DF raw data'!K69) -> 5.1954e-05 | D69: =IF('DF raw data'!L69="","",'DF raw data'!L69) -> -2.39856e-05 | F69: 2.382673545e-06 | G69: 4.516864189e-05 | H69: 5.71072514e-06 | J69: 1.063181392e-05 | K69: 1.293604576e-05 | L69: 6.23276e-05 | M69: 6.128009162e-05 | N69: 3.059932649e-09
A70: =IF('DF raw data'!I70="","",'DF raw data'!I70) -> -298.5 | B70: =IF('DF raw data'!J70="","",'DF raw data'!J70) -> -2.99006e-05 | C70: =IF('DF raw data'!K70="","",'DF raw data'!K70) -> 5.16717e-05 | D70: =IF('DF raw data'!L70="","",'DF raw data'!L70) -> -2.35098e-05 | F70: 7.409165145e-06 | G70: 4.488476101e-05 | H70: 6.18918962e-06 | J70: 1.433639649e-05 | K70: 2.0104244e-05 | L70: 8.47699805e-05 | M70: 0.0001036650819 | N70: 6.755673579e-09
A71: =IF('DF raw data'!I71="","",'DF raw data'!I71) -> -298 | B71: =IF('DF raw data'!J71="","",'DF raw data'!J71) -> -4.06686e-05 | C71: =IF('DF raw data'!K71="","",'DF raw data'!K71) -> 5.5866e-05 | D71: =IF('DF raw data'!L71="","",'DF raw data'!L71) -> -2.27734e-05 | F71: -3.419135655e-06 | G71: 4.910254909e-05 | H71: 6.92971346e-06 | J71: 1.262682866e-05 | K71: 2.641765834e-05 | L71: 0.000109321255 | M71: 0.0001583257094 | N71: 1.281096038e-08
A72: =IF('DF raw data'!I72="","",'DF raw data'!I72) -> -297.5 | B72: =IF('DF raw data'!J72="","",'DF raw data'!J72) -> -2.78503e-05 | C72: =IF('DF raw data'!K72="","",'DF raw data'!K72) -> 6.28939e-05 | D72: =IF('DF raw data'!L72="","",'DF raw data'!L72) -> -2.27456e-05 | F72: 9.470946825e-06 | G72: 5.616980533e-05 | H72: 6.95766914e-06 | J72: 1.736230208e-05 | K72: 3.509880937e-05 | L72: 0.0001374061577 | M72: 0.0002270287883 | N72: 2.240191124e-08
A73: =IF('DF raw data'!I73="","",'DF raw data'!I73) -> -297 | B73: =IF('DF raw data'!J73="","",'DF raw data'!J73) -> -2.22726e-05 | C73: =IF('DF raw data'!K73="","",'DF raw data'!K73) -> 6.49223e-05 | D73: =IF('DF raw data'!L73="","",'DF raw data'!L73) -> -2.38637e-05 | F73: 1.507988195e-05 | G73: 5.820956437e-05 | H73: 5.83330778e-06 | J73: 2.490224305e-05 | K73: 4.75499309e-05 | L73: 0.0001665109399 | M73: 0.0003102842582 | N73: 3.657491865e-08
A74: =IF('DF raw data'!I74="","",'DF raw data'!I74) -> -296.5 | B74: =IF('DF raw data'!J74="","",'DF raw data'!J74) -> -3.75911e-05 | C74: =IF('DF raw data'!K74="","",'DF raw data'!K74) -> 6.76002e-05 | D74: =IF('DF raw data'!L74="","",'DF raw data'!L74) -> -2.49102e-05 | F74: -3.244016546e-07 | G74: 6.090246061e-05 | H74: 4.78094738e-06 | J74: 2.474004222e-05 | K74: 5.991995201e-05 | L74: 0.0001969621702 | M74: 0.0004087653433 | N74: 5.627800174e-08
A75: =IF('DF raw data'!I75="","",'DF raw data'!I75) -> -296 | B75: =IF('DF raw data'!J75="","",'DF raw data'!J75) -> -3.61805e-05 | C75: =IF('DF raw data'!K75="","",'DF raw data'!K75) -> 5.64701e-05 | D75: =IF('DF raw data'!L75="","",'DF raw data'!L75) -> -2.49624e-05 | F75: 1.094097705e-06 | G75: 4.971003205e-05 | H75: 4.72845506e-06 | J75: 2.528709107e-05 | K75: 7.256349755e-05 | L75: 0.0002218171862 | M75: 0.0005196739364 | N75: 8.119915228e-08
A76: =IF('DF raw data'!I76="","",'DF raw data'!I76) -> -295.5 | B76: =IF('DF raw data'!J76="","",'DF raw data'!J76) -> -4.86165e-05 | C76: =IF('DF raw data'!K76="","",'DF raw data'!K76) -> 5.91265e-05 | D76: =IF('DF raw data'!L76="","",'DF raw data'!L76) -> -2.39447e-05 | F76: -1.141154389e-05 | G76: 5.238130789e-05 | H76: 5.75185418e-06 | J76: 1.958131913e-05 | K76: 8.235415711e-05 | L76: 0.0002480078402 | M76: 0.0006436778565 | N76: 1.121448107e-07
A77: =IF('DF raw data'!I77="","",'DF raw data'!I77) -> -295 | B77: =IF('DF raw data'!J77="","",'DF raw data'!J77) -> -4.63092e-05 | C77: =IF('DF raw data'!K77="","",'DF raw data'!K77) -> 5.98458e-05 | D77: =IF('DF raw data'!L77="","",'DF raw data'!L77) -> -2.26158e-05 | F77: -9.091323015e-06 | G77: 5.310463597e-05 | H77: 7.08819602e-06 | J77: 1.503565762e-05 | K77: 8.987198592e-05 | L77: 0.0002745601582 | M77: 0.0007809579356 | N77: 1.499494864e-07
A78: =IF('DF raw data'!I78="","",'DF raw data'!I78) -> -294.5 | B78: =IF('DF raw data'!J78="","",'DF raw data'!J78) -> -3.95797e-05 | C78: =IF('DF raw data'!K78="","",'DF raw data'!K78) -> 5.95674e-05 | D78: =IF('DF raw data'!L78="","",'DF raw data'!L78) -> -2.21783e-05 | F78: -2.324137815e-06 | G78: 5.282467693e-05 | H78: 7.52814602e-06 | J78: 1.387358871e-05 | K78: 9.680878027e-05 | L78: 0.0003009724966 | M78: 0.0009314441839 | N78: 1.953379465e-07
A79: =IF('DF raw data'!I79="","",'DF raw data'!I79) -> -294 | B79: =IF('DF raw data'!J79="","",'DF raw data'!J79) -> -2.93881e-05 | C79: =IF('DF raw data'!K79="","",'DF raw data'!K79) -> 5.68773e-05 | D79: =IF('DF raw data'!L79="","",'DF raw data'!L79) -> -2.26776e-05 | F79: 7.924535145e-06 | G79: 5.011951237e-05 | H79: 7.02604994e-06 | J79: 1.783585628e-05 | K79: 0.0001057267084 | L79: 0.0003260322528 | M79: 0.00109446031 | N79: 2.486455203e-07
A80: =IF('DF raw data'!I80="","",'DF raw data'!I80) -> -293.5 | B80: =IF('DF raw data'!J80="","",'DF raw data'!J80) -> -4.28482e-05 | C80: =IF('DF raw data'!K80="","",'DF raw data'!K80) -> 5.37143e-05 | D80: =IF('DF raw data'!L80="","",'DF raw data'!L80) -> -2.27685e-05 | F80: -5.610941415e-06 | G80: 4.693879957e-05 | H80: 6.9346409e-06 | J80: 1.503038558e-05 | K80: 0.0001132419012 | L80: 0.0003495016526 | M80: 0.001269211137 | N80: 3.098341792e-07
A81: =IF('DF raw data'!I81="","",'DF raw data'!I81) -> -293 | B81: =IF('DF raw data'!J81="","",'DF raw data'!J81) -> -3.11827e-05 | C81: =IF('DF raw data'!K81="","",'DF raw data'!K81) -> 5.74158e-05 | D81: =IF('DF raw data'!L81="","",'DF raw data'!L81) -> -2.27507e-05 | F81: 6.119885385e-06 | G81: 5.066102797e-05 | H81: 6.95254058e-06 | J81: 1.809032827e-05 | K81: 0.0001222870653 | L81: 0.0003748321666 | M81: 0.00145662722 | N81: 3.802473857e-07
A82: =IF('DF raw data'!I82="","",'DF raw data'!I82) -> -292.5 | B82: =IF('DF raw data'!J82="","",'DF raw data'!J82) -> -2.65677e-05 | C82: =IF('DF raw data'!K82="","",'DF raw data'!K82) -> 5.36855e-05 | D82: =IF('DF raw data'!L82="","",'DF raw data'!L82) -> -2.33526e-05 | F82: 1.076072939e-05 | G82: 4.690983829e-05 | H82: 6.34726994e-06 | J82: 2.347069296e-05 | K82: 0.0001340224118 | L82: 0.0003982870857 | M82: 0.001655770763 | N82: 4.598391238e-07
A83: =IF('DF raw data'!I83="","",'DF raw data'!I83) -> -292 | B83: =IF('DF raw data'!J83="","",'DF raw data'!J83) -> -3.63739e-05 | C83: =IF('DF raw data'!K83="","",'DF raw data'!K83) -> 5.40639e-05 | D83: =IF('DF raw data'!L83="","",'DF raw data'!L83) -> -2.38133e-05 | F83: 8.996146654e-07 | G83: 4.729035733e-05 | H83: 5.88399002e-06 | J83: 2.39205003e-05 | K83: 0.000145982662 | L83: 0.0004219322644 | M83: 0.001866736895 | N83: 5.491386368e-07
A84: =IF('DF raw data'!I84="","",'DF raw data'!I84) -> -291.5 | B84: =IF('DF raw data'!J84="","",'DF raw data'!J84) -> -3.46334e-05 | C84: =IF('DF raw data'!K84="","",'DF raw data'!K84) -> 5.7254e-05 | D84: =IF('DF raw data'!L84="","",'DF raw data'!L84) -> -3.91125e-05 | F84: 2.649861465e-06 | G84: 5.049832189e-05 | H84: -9.5008855e-06 | J84: 2.524543103e-05 | K84: 0.0001586053775 | L84: 0.0004471814253 | M84: 0.002090327608 | N84: 6.494429163e-07
A85: =IF('DF raw data'!I85="","",'DF raw data'!I85) -> -291 | B85: =IF('DF raw data'!J85="","",'DF raw data'!J85) -> -3.6238e-05 | C85: =IF('DF raw data'!K85="","",'DF raw data'!K85) -> 5.24632e-05 | D85: =IF('DF raw data'!L85="","",'DF raw data'!L85) -> -3.57697e-05 | F85: 1.036275705e-06 | G85: 4.568069341e-05 | H85: -6.13936582e-06 | J85: 2.576356888e-05 | K85: 0.0001714871619 | L85: 0.0004700217721 | M85: 0.002325338494 | N85: 7.602350301e-07
A86: =IF('DF raw data'!I86="","",'DF raw data'!I86) -> -290.5 | B86: =IF('DF raw data'!J86="","",'DF raw data'!J86) -> -3.10514e-05 | C86: =IF('DF raw data'!K86="","",'DF raw data'!K86) -> 4.97217e-05 | D86: =IF('DF raw data'!L86="","",'DF raw data'!L86) -> -2.75854e-05 | F86: 6.251920665e-06 | G86: 4.292384101e-05 | H86: 2.09076626e-06 | J86: 2.888952921e-05 | K86: 0.0001859319265 | L86: 0.0004914836926 | M86: 0.00257108034 | N86: 8.814304426e-07
A87: =IF('DF raw data'!I87="","",'DF raw data'!I87) -> -290 | B87: =IF('DF raw data'!J87="","",'DF raw data'!J87) -> -3.82373e-05 | C87: =IF('DF raw data'!K87="","",'DF raw data'!K87) -> 5.3101e-05 | D87: =IF('DF raw data'!L87="","",'DF raw data'!L87) -> -1.63287e-05 | F87: -9.742203746e-07 | G87: 4.632206509e-05 | H87: 1.341050378e-05 | J87: 2.840241903e-05 | K87: 0.000200133136 | L87: 0.0005146447251 | M87: 0.002828402703 | N87: 1.014263388e-06
A88: =IF('DF raw data'!I88="","",'DF raw data'!I88) -> -289.5 | B88: =IF('DF raw data'!J88="","",'DF raw data'!J88) -> -3.63703e-05 | C88: =IF('DF raw data'!K88="","",'DF raw data'!K88) -> 5.74292e-05 | D88: =IF('DF raw data'!L88="","",'DF raw data'!L88) -> -2.94206e-05 | F88: 9.032348254e-07 | G88: 5.067450301e-05 | H88: 2.452891405e-07 | J88: 2.885403644e-05 | K88: 0.0002145601543 | L88: 0.0005399819766 | M88: 0.003098393691 | N88: 1.160469933e-06
A89: =IF('DF raw data'!I89="","",'DF raw data'!I89) -> -289 | B89: =IF('DF raw data'!J89="","",'DF raw data'!J89) -> -3.31635e-05 | C89: =IF('DF raw data'!K89="","",'DF raw data'!K89) -> 6.36073e-05 | D89: =IF('DF raw data'!L89="","",'DF raw data'!L89) -> -3.23062e-05 | F89: 4.127992905e-06 | G89: 5.688720037e-05 | H89: -2.65647022e-06 | J89: 3.091803289e-05 | K89: 0.0002300191707 | L89: 0.0005684255768 | M89: 0.003382606479 | N89: 1.322501714e-06
A90: =IF('DF raw data'!I90="","",'DF raw data'!I90) -> -288.5 | B90: =IF('DF raw data'!J90="","",'DF raw data'!J90) -> -2.90635e-05 | C90: =IF('DF raw data'!K90="","",'DF raw data'!K90) -> 6.33182e-05 | D90: =IF('DF raw data'!L90="","",'DF raw data'!L90) -> -2.94363e-05 | F90: 8.250952905e-06 | G90: 5.659648141e-05 | H90: 2.295012205e-07 | J90: 3.504350934e-05 | K90: 0.0002475409254 | L90: 0.0005967238175 | M90: 0.003680968388 | N90: 1.501155395e-06
A91: =IF('DF raw data'!I91="","",'DF raw data'!I91) -> -288 | B91: =IF('DF raw data'!J91="","",'DF raw data'!J91) -> -3.42583e-05 | C91: =IF('DF raw data'!K91="","",'DF raw data'!K91) -> 5.12221e-05 | D91: =IF('DF raw data'!L91="","",'DF raw data'!L91) -> -2.43641e-05 | F91: 3.027062025e-06 | G91: 4.443264325e-05 | H91: 5.33010554e-06 | J91: 3.655704036e-05 | K91: 0.0002658194456 | L91: 0.0006189401391 | M91: 0.003990438458 | N91: 1.693367051e-06
A92: =IF('DF raw data'!I92="","",'DF raw data'!I92) -> -287.5 | B92: =IF('DF raw data'!J92="","",'DF raw data'!J92) -> -3.39977e-05 | C92: =IF('DF raw data'!K92="","",'DF raw data'!K92) -> 5.41368e-05 | D92: =IF('DF raw data'!L92="","",'DF raw data'!L92) -> -3.10942e-05 | F92: 3.289121385e-06 | G92: 4.736366557e-05 | H92: -1.43768302e-06 | J92: 3.820160105e-05 | K92: 0.0002849202461 | L92: 0.0006426219719 | M92: 0.004311749443 | N92: 1.900578232e-06
A93: =IF('DF raw data'!I93="","",'DF raw data'!I93) -> -287 | B93: =IF('DF raw data'!J93="","",'DF raw data'!J93) -> -3.48893e-05 | C93: =IF('DF raw data'!K93="","",'DF raw data'!K93) -> 5.77658e-05 | D93: =IF('DF raw data'!L93="","",'DF raw data'!L93) -> -3.97628e-05 | F93: 2.392528425e-06 | G93: 5.101298797e-05 | H93: -1.015482718e-05 | J93: 3.939786526e-05 | K93: 0.0003046191787 | L93: 0.0006681284659 | M93: 0.004645813676 | N93: 2.124552151e-06
A94: =IF('DF raw data'!I94="","",'DF raw data'!I94) -> -286.5 | B94: =IF('DF raw data'!J94="","",'DF raw data'!J94) -> -2.35486e-05 | C94: =IF('DF raw data'!K94="","",'DF raw data'!K94) -> 5.7273e-05 | D94: =IF('DF raw data'!L94="","",'DF raw data'!L94) -> -3.34321e-05 | F94: 1.379673635e-05 | G94: 5.051742829e-05 | H94: -3.78867526e-06 | J94: 4.629623344e-05 | K94: 0.0003277672954 | L94: 0.00069338718 | M94: 0.004992507266 | N94: 2.366016712e-06
A95: =IF('DF raw data'!I95="","",'DF raw data'!I95) -> -286 | B95: =IF('DF raw data'!J95="","",'DF raw data'!J95) -> -2.50268e-05 | C95: =IF('DF raw data'!K95="","",'DF raw data'!K95) -> 5.92642e-05 | D95: =IF('DF raw data'!L95="","",'DF raw data'!L95) -> -2.72738e-05 | F95: 1.231025843e-05 | G95: 5.251977901e-05 | H95: 2.40411122e-06 | J95: 5.245136265e-05 | K95: 0.0003539929768 | L95: 0.0007196470695 | M95: 0.005352330801 | N95: 2.626338237e-06
A96: =IF('DF raw data'!I96="","",'DF raw data'!I96) -> -285.5 | B96: =IF('DF raw data'!J96="","",'DF raw data'!J96) -> -3.66889e-05 | C96: =IF('DF raw data'!K96="","",'DF raw data'!K96) -> 5.64881e-05 | D96: =IF('DF raw data'!L96="","",'DF raw data'!L96) -> -3.20531e-05 | F96: 5.828506654e-07 | G96: 4.972813285e-05 | H96: -2.40195286e-06 | J96: 5.274278798e-05 | K96: 0.0003803643707 | L96: 0.000744511136 | M96: 0.005724586369 | N96: 2.904877554e-06
A97: =IF('DF raw data'!I97="","",'DF raw data'!I97) -> -285 | B97: =IF('DF raw data'!J97="","",'DF raw data'!J97) -> -4.27157e-05 | C97: =IF('DF raw data'!K97="","",'DF raw data'!K97) -> 5.40766e-05 | D97: =IF('DF raw data'!L97="","",'DF raw data'!L97) -> -2.92061e-05 | F97: -5.477699415e-06 | G97: 4.730312845e-05 | H97: 4.609903405e-07 | J97: 5.000393827e-05 | K97: 0.0004053663399 | L97: 0.0007681627002 | M97: 0.006108667719 | N97: 3.201164718e-06
A98: =IF('DF raw data'!I98="","",'DF raw data'!I98) -> -284.5 | B98: =IF('DF raw data'!J98="","",'DF raw data'!J98) -> -4.29066e-05 | C98: =IF('DF raw data'!K98="","",'DF raw data'!K98) -> 5.46851e-05 | D98: =IF('DF raw data'!L98="","",'DF raw data'!L98) -> -3.11786e-05 | F98: -5.669668455e-06 | G98: 4.791503605e-05 | H98: -1.52255566e-06 | J98: 4.716910405e-05 | K98: 0.0004289508919 | L98: 0.0007921202182 | M98: 0.006504727828 | N98: 3.5160044e-06
A99: =IF('DF raw data'!I99="","",'DF raw data'!I99) -> -284 | B99: =IF('DF raw data'!J99="","",'DF raw data'!J99) -> -4.24527e-05 | C99: =IF('DF raw data'!K99="","",'DF raw data'!K99) -> 5.77583e-05 | D99: =IF('DF raw data'!L99="","",'DF raw data'!L99) -> -3.94249e-05 | F99: -5.213226615e-06 | G99: 5.100544597e-05 | H99: -9.81503494e-06 | J99: 4.456249074e-05 | K99: 0.0004512321373 | L99: 0.0008176229412 | M99: 0.006913539299 | N99: 3.851250945e-06
A100: =IF('DF raw data'!I100="","",'DF raw data'!I100) -> -283.5 | B100: =IF('DF raw data'!J100="","",'DF raw data'!J100) -> -3.91892e-05 | C100: =IF('DF raw data'!K100="","",'DF raw data'!K100) -> 5.30682e-05 | D100: =IF('DF raw data'!L100="","",'DF raw data'!L100) -> -3.13343e-05 | F100: -1.931451015e-06 | G100: 4.628908141e-05 | H100: -1.67912758e-06 | J100: 4.359676523e-05 | K100: 0.0004730305199 | L100: 0.0008407674819 | M100: 0.00733392304 | N100: 4.205646263e-06
A101: =IF('DF raw data'!I101="","",'DF raw data'!I101) -> -283 | B101: =IF('DF raw data'!J101="","",'DF raw data'!J101) -> -3.85411e-05 | C101: =IF('DF raw data'!K101="","",'DF raw data'!K101) -> 5.20944e-05 | D101: =IF('DF raw data'!L101="","",'DF raw data'!L101) -> -4.21481e-05 | F101: -1.279721655e-06 | G101: 4.530982813e-05 | H101: -1.255348486e-05 | J101: 4.29569044e-05 | K101: 0.0004945089721 | L101: 0.000863422396 | M101: 0.007765634238 | N101: 4.579318028e-06
A102: =IF('DF raw data'!I102="","",'DF raw data'!I102) -> -282.5 | B102: =IF('DF raw data'!J102="","",'DF raw data'!J102) -> -3.90606e-05 | C102: =IF('DF raw data'!K102="","",'DF raw data'!K102) -> 6.62022e-05 | D102: =IF('DF raw data'!L102="","",'DF raw data'!L102) -> -3.18894e-05 | F102: -1.802130855e-06 | G102: 5.949663181e-05 | H102: -2.23733614e-06 | J102: 4.205583898e-05 | K102: 0.0005155368916 | L102: 0.0008931707119 | M102: 0.008212219594 | N102: 4.979079335e-06
A103: =IF('DF raw data'!I103="","",'DF raw data'!I103) -> -282 | B103: =IF('DF raw data'!J103="","",'DF raw data'!J103) -> -2.8988e-05 | C103: =IF('DF raw data'!K103="","",'DF raw data'!K103) -> 6.64804e-05 | D103: =IF('DF raw data'!L103="","",'DF raw data'!L103) -> -4.67158e-05 | F103: 8.326875705e-06 | G103: 5.977638973e-05 | H103: -1.714676398e-05 | J103: 4.621927683e-05 | K103: 0.00053864653 | L103: 0.0009230589068 | M103: 0.008673749047 | N103: 5.406166319e-06
A104: =IF('DF raw data'!I104="","",'DF raw data'!I104) -> -281.5 | B104: =IF('DF raw data'!J104="","",'DF raw data'!J104) -> -3.73883e-05 | C104: =IF('DF raw data'!K104="","",'DF raw data'!K104) -> 5.99075e-05 | D104: =IF('DF raw data'!L104="","",'DF raw data'!L104) -> -4.0904e-05 | F104: -1.204659746e-07 | G104: 5.316668149e-05 | H104: -1.13024179e-05 | J104: 4.615904384e-05 | K104: 0.0005617260519 | L104: 0.0009496422475 | M104: 0.009148570171 | N104: 5.858141846e-06
A105: =IF('DF raw data'!I105="","",'DF raw data'!I105) -> -281 | B105: =IF('DF raw data'!J105="","",'DF raw data'!J105) -> -3.13691e-05 | C105: =IF('DF raw data'!K105="","",'DF raw data'!K105) -> 5.83892e-05 | D105: =IF('DF raw data'!L105="","",'DF raw data'!L105) -> -3.19866e-05 | F105: 5.932441545e-06 | G105: 5.163987901e-05 | H105: -2.33508046e-06 | J105: 4.912526461e-05 | K105: 0.0005862886842 | L105: 0.000975462187 | M105: 0.009636301265 | N105: 6.335111731e-06
A106: =IF('DF raw data'!I106="","",'DF raw data'!I106) -> -280.5 | B106: =IF('DF raw data'!J106="","",'DF raw data'!J106) -> -3.40006e-05 | C106: =IF('DF raw data'!K106="","",'DF raw data'!K106) -> 4.79796e-05 | D106: =IF('DF raw data'!L106="","",'DF raw data'!L106) -> -2.64956e-05 | F106: 3.286205145e-06 | G106: 4.117198525e-05 | H106: 3.18666914e-06 | J106: 5.076836719e-05 | K106: 0.0006116728678 | L106: 0.0009960481796 | M106: 0.01013432535 | N106: 6.832456433e-06
A107: =IF('DF raw data'!I107="","",'DF raw data'!I107) -> -280 | B107: =IF('DF raw data'!J107="","",'DF raw data'!J107) -> -2.82974e-05 | C107: =IF('DF raw data'!K107="","",'DF raw data'!K107) -> 6.13281e-05 | D107: =IF('DF raw data'!L107="","",'DF raw data'!L107) -> -2.45666e-05 | F107: 9.021343065e-06 | G107: 5.459523685e-05 | H107: 5.12647154e-06 | J107: 5.527903872e-05 | K107: 0.0006393123872 | L107: 0.001023345798 | M107: 0.01064599825 | N107: 7.35760263e-06
A108: =IF('DF raw data'!I108="","",'DF raw data'!I108) -> -279.5 | B108: =IF('DF raw data'!J108="","",'DF raw data'!J108) -> -3.04053e-05 | C108: =IF('DF raw data'!K108="","",'DF raw data'!K108) -> 6.05704e-05 | D108: =IF('DF raw data'!L108="","",'DF raw data'!L108) -> -3.54904e-05 | F108: 6.901638825e-06 | G108: 5.383329373e-05 | H108: -5.85850174e-06 | J108: 5.872985813e-05 | K108: 0.0006686773162 | L108: 0.001050262445 | M108: 0.01117112948 | N108: 7.91085283e-06
A109: =IF('DF raw data'!I109="","",'DF raw data'!I109) -> -279 | B109: =IF('DF raw data'!J109="","",'DF raw data'!J109) -> -4.92531e-05 | C109: =IF('DF raw data'!K109="","",'DF raw data'!K109) -> 6.48009e-05 | D109: =IF('DF raw data'!L109="","",'DF raw data'!L109) -> -2.97265e-05 | F109: -1.205170885e-05 | G109: 5.808748453e-05 | H109: -6.232389951e-08 | J109: 5.270400371e-05 | K109: 0.0006950293181 | L109: 0.001079306187 | M109: 0.01171078257 | N109: 8.494692609e-06
A110: =IF('DF raw data'!I110="","",'DF raw data'!I110) -> -278.5 | B110: =IF('DF raw data'!J110="","",'DF raw data'!J110) -> -3.9127e-05 | C110: =IF('DF raw data'!K110="","",'DF raw data'!K110) -> 6.49008e-05 | D110: =IF('DF raw data'!L110="","",'DF raw data'!L110) -> -2.80415e-05 | F110: -1.868902695e-06 | G110: 5.818794397e-05 | H110: 1.6321121e-06 | J110: 5.176955236e-05 | K110: 0.0007209140943 | L110: 0.001108400159 | M110: 0.01226498265 | N110: 9.110308109e-06
A111: =IF('DF raw data'!I111="","",'DF raw data'!I111) -> -278 | B111: =IF('DF raw data'!J111="","",'DF raw data'!J111) -> -3.62397e-05 | C111: =IF('DF raw data'!K111="","",'DF raw data'!K111) -> 5.90182e-05 | D111: =IF('DF raw data'!L111="","",'DF raw data'!L111) -> -3.30173e-05 | F111: 1.034566185e-06 | G111: 5.227240141e-05 | H111: -3.37155238e-06 | J111: 5.228683545e-05 | K111: 0.000747057512 | L111: 0.00113453636 | M111: 0.01283225083 | N111: 9.755261441e-06
A112: =IF('DF raw data'!I112="","",'DF raw data'!I112) -> -277.5 | B112: =IF('DF raw data'!J112="","",'DF raw data'!J112) -> -3.79746e-05 | C112: =IF('DF raw data'!K112="","",'DF raw data'!K112) -> 6.31047e-05 | D112: =IF('DF raw data'!L112="","",'DF raw data'!L112) -> -2.61031e-05 | F112: -7.100492546e-07 | G112: 5.638178581e-05 | H112: 3.58136714e-06 | J112: 5.193181082e-05 | K112: 0.0007730234174 | L112: 0.001162727253 | M112: 0.01341361446 | N112: 1.043257723e-05
A113: =IF('DF raw data'!I113="","",'DF raw data'!I113) -> -277 | B113: =IF('DF raw data'!J113="","",'DF raw data'!J113) -> -3.51554e-05 | C113: =IF('DF raw data'!K113="","",'DF raw data'!K113) -> 5.27798e-05 | D113: =IF('DF raw data'!L113="","",'DF raw data'!L113) -> -2.4712e-05 | F113: 2.124938265e-06 | G113: 4.599906637e-05 | H113: 4.9802573e-06 | J113: 5.299427996e-05 | K113: 0.0007995205574 | L113: 0.001185726786 | M113: 0.01400647785 | N113: 1.113695543e-05
A114: =IF('DF raw data'!I114="","",'DF raw data'!I114) -> -276.5 | B114: =IF('DF raw data'!J114="","",'DF raw data'!J114) -> -3.14287e-05 | C114: =IF('DF raw data'!K114="","",'DF raw data'!K114) -> 5.20936e-05 | D114: =IF('DF raw data'!L114="","",'DF raw data'!L114) -> -3.88324e-05 | F114: 5.872507785e-06 | G114: 4.530902365e-05 | H114: -9.21921694e-06 | J114: 5.593053385e-05 | K114: 0.0008274858243 | L114: 0.001208381298 | M114: 0.0146106685 | N114: 1.186861222e-05
A115: =IF('DF raw data'!I115="","",'DF raw data'!I115) -> -276 | B115: =IF('DF raw data'!J115="","",'DF raw data'!J115) -> -3.90035e-05 | C115: =IF('DF raw data'!K115="","",'DF raw data'!K115) -> 5.60845e-05 | D115: =IF('DF raw data'!L115="","",'DF raw data'!L115) -> -2.08632e-05 | F115: -1.744711095e-06 | G115: 4.932227269e-05 | H115: 8.85061058e-06 | J115: 5.50581783e-05 | K115: 0.0008550149135 | L115: 0.001233042434 | M115: 0.01522718971 | N115: 1.263032475e-05
A116: =IF('DF raw data'!I116="","",'DF raw data'!I116) -> -275.5 | B116: =IF('DF raw data'!J116="","",'DF raw data'!J116) -> -3.59195e-05 | C116: =IF('DF raw data'!K116="","",'DF raw data'!K116) -> 4.63797e-05 | D116: =IF('DF raw data'!L116="","",'DF raw data'!L116) -> -3.25945e-05 | F116: 1.356559305e-06 | G116: 3.956312581e-05 | H116: -2.9463847e-06 | J116: 5.573645795e-05 | K116: 0.0008828831424 | L116: 0.001252823997 | M116: 0.01585360171 | N116: 1.341666201e-05
A117: =IF('DF raw data'!I117="","",'DF raw data'!I117) -> -275 | B117: =IF('DF raw data'!J117="","",'DF raw data'!J117) -> -3.39954e-05 | C117: =IF('DF raw data'!K117="","",'DF raw data'!K117) -> 4.37465e-05 | D117: =IF('DF raw data'!L117="","",'DF raw data'!L117) -> -3.44954e-05 | F117: 3.291434265e-06 | G117: 3.691517989e-05 | H117: -4.85792974e-06 | J117: 5.738217509e-05 | K117: 0.00091157423 | L117: 0.001271281587 | M117: 0.01648924251 | N117: 1.42263868e-05
A118: =IF('DF raw data'!I118="","",'DF raw data'!I118) -> -274.5 | B118: =IF('DF raw data'!J118="","",'DF raw data'!J118) -> -3.8358e-05 | C118: =IF('DF raw data'!K118="","",'DF raw data'!K118) -> 4.14021e-05 | D118: =IF('DF raw data'!L118="","",'DF raw data'!L118) -> -2.79503e-05 | F118: -1.095596295e-06 | G118: 3.455765125e-05 | H118: 1.72382282e-06 | J118: 5.683437694e-05 | K118: 0.0009399914185 | L118: 0.001288560413 | M118: 0.01713352271 | N118: 1.505819584e-05
A119: =IF('DF raw data'!I119="","",'DF raw data'!I119) -> -274 | B119: =IF('DF raw data'!J119="","",'DF raw data'!J119) -> -3.24491e-05 | C119: =IF('DF raw data'!K119="","",'DF raw data'!K119) -> 4.42346e-05 | D119: =IF('DF raw data'!L119="","",'DF raw data'!L119) -> -4.69422e-05 | F119: 4.846393545e-06 | G119: 3.740601325e-05 | H119: -1.737443182e-05 | J119: 5.925757371e-05 | K119: 0.0009696202053 | L119: 0.001307263419 | M119: 0.01778715442 | N119: 1.59144204e-05
A120: =IF('DF raw data'!I120="","",'DF raw data'!I120) -> -273.5 | B120: =IF('DF raw data'!J120="","",'DF raw data'!J120) -> -4.52758e-05 | C120: =IF('DF raw data'!K120="","",'DF raw data'!K120) -> 4.28108e-05 | D120: =IF('DF raw data'!L120="","",'DF raw data'!L120) -> -3.48886e-05 | F120: -8.052135975e-06 | G120: 3.597423997e-05 | H120: -5.25333166e-06 | J120: 5.523150572e-05 | K120: 0.0009972359582 | L120: 0.001325250539 | M120: 0.01844977969 | N120: 1.679409015e-05
A121: =IF('DF raw data'!I121="","",'DF raw data'!I121) -> -273 | B121: =IF('DF raw data'!J121="","",'DF raw data'!J121) -> -3.25767e-05 | C121: =IF('DF raw data'!K121="","",'DF raw data'!K121) -> 3.8739e-05 | D121: =IF('DF raw data'!L121="","",'DF raw data'!L121) -> -4.78838e-05 | F121: 4.718078985e-06 | G121: 3.187963789e-05 | H121: -1.832130478e-05 | J121: 5.759054522e-05 | K121: 0.001026031231 | L121: 0.001341190358 | M121: 0.01912037487 | N121: 1.769514428e-05
A122: =IF('DF raw data'!I122="","",'DF raw data'!I122) -> -272.5 | B122: =IF('DF raw data'!J122="","",'DF raw data'!J122) -> -2.89405e-05 | C122: =IF('DF raw data'!K122="","",'DF raw data'!K122) -> 4.02686e-05 | D122: =IF('DF raw data'!L122="","",'DF raw data'!L122) -> -2.12966e-05 | F122: 8.374641705e-06 | G122: 3.341780365e-05 | H122: 8.41478354e-06 | J122: 6.177786607e-05 | K122: 0.001056920164 | L122: 0.00135789926 | M122: 0.0197993245 | N122: 1.861899773e-05
A123: =IF('DF raw data'!I123="","",'DF raw data'!I123) -> -272 | B123: =IF('DF raw data'!J123="","",'DF raw data'!J123) -> -3.25869e-05 | C123: =IF('DF raw data'!K123="","",'DF raw data'!K123) -> 4.09575e-05 | D123: =IF('DF raw data'!L123="","",'DF raw data'!L123) -> -3.20498e-05 | F123: 4.707821865e-06 | G123: 3.411056149e-05 | H123: -2.39863438e-06 | J123: 6.4131777e-05 | K123: 0.001088986052 | L123: 0.001374954541 | M123: 0.02048680177 | N123: 1.956630417e-05
A124: =IF('DF raw data'!I124="","",'DF raw data'!I124) -> -271.5 | B124: =IF('DF raw data'!J124="","",'DF raw data'!J124) -> -3.27068e-05 | C124: =IF('DF raw data'!K124="","",'DF raw data'!K124) -> 4.61584e-05 | D124: =IF('DF raw data'!L124="","",'DF raw data'!L124) -> -4.49734e-05 | F124: 4.587250425e-06 | G124: 3.934058653e-05 | H124: -1.539460654e-05 | J124: 6.642540222e-05 | K124: 0.001122198753 | L124: 0.001394624834 | M124: 0.02118411419 | N124: 2.054099955e-05
A125: =IF('DF raw data'!I125="","",'DF raw data'!I125) -> -271 | B125: =IF('DF raw data'!J125="","",'DF raw data'!J125) -> -3.63016e-05 | C125: =IF('DF raw data'!K125="","",'DF raw data'!K125) -> 4.52891e-05 | D125: =IF('DF raw data'!L125="","",'DF raw data'!L125) -> -3.6249e-05 | F125: 9.723195454e-07 | G125: 3.846641845e-05 | H125: -6.6213499e-06 | J125: 6.691156199e-05 | K125: 0.001155654534 | L125: 0.001413858043 | M125: 0.02189104321 | N125: 2.154273541e-05
A126: =IF('DF raw data'!I126="","",'DF raw data'!I126) -> -270.5 | B126: =IF('DF raw data'!J126="","",'DF raw data'!J126) -> -3.48276e-05 | C126: =IF('DF raw data'!K126="","",'DF raw data'!K126) -> 4.45354e-05 | D126: =IF('DF raw data'!L126="","",'DF raw data'!L126) -> -3.5941e-05 | F126: 2.454573945e-06 | G126: 3.770849773e-05 | H126: -6.3116251e-06 | J126: 6.813884896e-05 | K126: 0.001189723959 | L126: 0.001432712292 | M126: 0.02260739936 | N126: 2.257138912e-05
A127: =IF('DF raw data'!I127="","",'DF raw data'!I127) -> -270 | B127: =IF('DF raw data'!J127="","",'DF raw data'!J127) -> -3.23266e-05 | C127: =IF('DF raw data'!K127="","",'DF raw data'!K127) -> 4.8485e-05 | D127: =IF('DF raw data'!L127="","",'DF raw data'!L127) -> -3.82143e-05 | F127: 4.969579545e-06 | G127: 4.168021549e-05 | H127: -8.59765558e-06 | J127: 7.062363873e-05 | K127: 0.001225035778 | L127: 0.0014535524 | M127: 0.02333417556 | N127: 2.363029026e-05
A128: =IF('DF raw data'!I128="","",'DF raw data'!I128) -> -269.5 | B128: =IF('DF raw data'!J128="","",'DF raw data'!J128) -> -4.33503e-05 | C128: =IF('DF raw data'!K128="","",'DF raw data'!K128) -> 4.91465e-05 | D128: =IF('DF raw data'!L128="","",'DF raw data'!L128) -> -3.91184e-05 | F128: -6.115853175e-06 | G128: 4.234541989e-05 | H128: -9.50681854e-06 | J128: 6.756571215e-05 | K128: 0.001258818634 | L128: 0.00147472511 | M128: 0.02407153811 | N128: 2.471997989e-05
A129: =IF('DF raw data'!I129="","",'DF raw data'!I129) -> -269 | B129: =IF('DF raw data'!J129="","",'DF raw data'!J129) -> -4.30956e-05 | C129: =IF('DF raw data'!K129="","",'DF raw data'!K129) -> 4.70354e-05 | D129: =IF('DF raw data'!L129="","",'DF raw data'!L129) -> -3.63646e-05 | F129: -5.859726855e-06 | G129: 4.022249773e-05 | H129: -6.73759726e-06 | J129: 6.463584872e-05 | K129: 0.001291136559 | L129: 0.001494836359 | M129: 0.02481895629 | N129: 2.583933666e-05
A130: =IF('DF raw data'!I130="","",'DF raw data'!I130) -> -268.5 | B130: =IF('DF raw data'!J130="","",'DF raw data'!J130) -> -3.97046e-05 | C130: =IF('DF raw data'!K130="","",'DF raw data'!K130) -> 5.85481e-05 | D130: =IF('DF raw data'!L130="","",'DF raw data'!L130) -> -2.70669e-05 | F130: -2.449737255e-06 | G130: 5.179966885e-05 | H130: 2.61216986e-06 | J130: 6.341098009e-05 | K130: 0.001322842049 | L130: 0.001520736193 | M130: 0.02557932439 | N130: 2.699766642e-05
A131: =IF('DF raw data'!I131="","",'DF raw data'!I131) -> -268 | B131: =IF('DF raw data'!J131="","",'DF raw data'!J131) -> -3.94452e-05 | C131: =IF('DF raw data'!K131="","",'DF raw data'!K131) -> 5.95204e-05 | D131: =IF('DF raw data'!L131="","",'DF raw data'!L131) -> -3.18168e-05 | F131: =(1-$G$1*($B$54-$G$2))*(B131-F$5) -> -2.188884615e-06 | G131: =(1-$G$1*($B$54-$G$2))*(C131-G$5) -> 5.277741373e-05 | H131: =(1-$G$1*($B$54-$G$2))*(D131-H$5) -> -2.16432958e-06 | J131: 6.231653778e-05 | K131: 0.001354000318 | L131: 0.0015471249 | M131: 0.02635288684 | N131: 2.819640582e-05
A132: =IF('DF raw data'!I132="","",'DF raw data'!I132) -> -267.5 | B132: =IF('DF raw data'!J132="","",'DF raw data'!J132) -> -2.49617e-05 | C132: =IF('DF raw data'!K132="","",'DF raw data'!K132) -> 4.94509e-05 | D132: =IF('DF raw data'!L132="","",'DF raw data'!L132) -> -2.86935e-05 | F132: 1.237572299e-05 | G132: 4.265152453e-05 | H132: 9.764609005e-07 | J132: =F132*$G$3+J131 -> 6.850439928e-05 | K132: =J132*$G$3+K131 -> 0.001388252517 | L132: =G132*$G$3+L131 -> 0.001568450662 | M132: =L132*$G$3+M131 -> 0.02713711217 | N132: =(J132^2+L132^2)*$G$3+N131 -> 2.942877099e-05
A133: =IF('DF raw data'!I133="","",'DF raw data'!I133) -> -267 | B133: =IF('DF raw data'!J133="","",'DF raw data'!J133) -> -3.77712e-05 | C133: =IF('DF raw data'!K133="","",'DF raw data'!K133) -> 5.32434e-05 | D133: =IF('DF raw data'!L133="","",'DF raw data'!L133) -> -4.34875e-05 | F133: -5.055102146e-07 | G133: 4.646526253e-05 | H133: -1.39003855e-05 | J133: 6.825164417e-05 | K133: 0.001422378339 | L133: 0.001591683293 | M133: 0.02793295381 | N133: 3.069782799e-05
A134: =IF('DF raw data'!I134="","",'DF raw data'!I134) -> -266.5 | B134: =IF('DF raw data'!J134="","",'DF raw data'!J134) -> -4.03397e-05 | C134: =IF('DF raw data'!K134="","",'DF raw data'!K134) -> 5.50139e-05 | D134: =IF('DF raw data'!L134="","",'DF raw data'!L134) -> -3.61643e-05 | F134: -3.088393815e-06 | G134: 4.824567733e-05 | H134: -6.53617558e-06 | J134: 6.670744726e-05 | K134: 0.001455732063 | L134: 0.001615806132 | M134: 0.02874085688 | N134: 3.200546766e-05
A135: =IF('DF raw data'!I135="","",'DF raw data'!I135) -> -266 | B135: =IF('DF raw data'!J135="","",'DF raw data'!J135) -> -4.03347e-05 | C135: =IF('DF raw data'!K135="","",'DF raw data'!K135) -> 6.07436e-05 | D135: =IF('DF raw data'!L135="","",'DF raw data'!L135) -> -4.37948e-05 | F135: -3.083365815e-06 | G135: 5.400746365e-05 | H135: -1.420940638e-05 | J135: 6.516576436e-05 | K135: 0.001488314945 | L135: 0.001642809864 | M135: 0.02956226181 | N135: 3.335700307e-05
A136: =IF('DF raw data'!I136="","",'DF raw data'!I136) -> -265.5 | B136: =IF('DF raw data'!J136="","",'DF raw data'!J136) -> -3.83528e-05 | C136: =IF('DF raw data'!K136="","",'DF raw data'!K136) -> 6.78108e-05 | D136: =IF('DF raw data'!L136="","",'DF raw data'!L136) -> -3.5957e-05 | F136: -1.090367175e-06 | G136: 6.111423997e-05 | H136: -6.3277147e-06 | J136: 6.462058077e-05 | K136: 0.001520625236 | L136: 0.001673366984 | M136: 0.0303989453 | N136: 3.475916951e-05
A137: =IF('DF raw data'!I137="","",'DF raw data'!I137) -> -265 | B137: =IF('DF raw data'!J137="","",'DF raw data'!J137) -> -4.70167e-05 | C137: =IF('DF raw data'!K137="","",'DF raw data'!K137) -> 6.37167e-05 | D137: =IF('DF raw data'!L137="","",'DF raw data'!L137) -> -1.8999e-05 | F137: -9.802785015e-06 | G137: 5.699721301e-05 | H137: 1.07252501e-05 | J137: 5.971918826e-05 | K137: 0.00155048483 | L137: 0.00170186559 | M137: 0.0312498781 | N137: 3.620912595e-05
A138: =IF('DF raw data'!I138="","",'DF raw data'!I138) -> -264.5 | B138: =IF('DF raw data'!J138="","",'DF raw data'!J138) -> -3.85497e-05 | C138: =IF('DF raw data'!K138="","",'DF raw data'!K138) -> 6.09624e-05 | D138: =IF('DF raw data'!L138="","",'DF raw data'!L138) -> -2.90197e-05 | F138: -1.288369815e-06 | G138: 5.422748893e-05 | H138: 6.484341805e-07 | J138: 5.907500335e-05 | K138: 0.001580022331 | L138: 0.001728979335 | M138: 0.03211436777 | N138: 3.770555564e-05
A139: =IF('DF raw data'!I139="","",'DF raw data'!I139) -> -264 | B139: =IF('DF raw data'!J139="","",'DF raw data'!J139) -> -3.33557e-05 | C139: =IF('DF raw data'!K139="","",'DF raw data'!K139) -> 5.91919e-05 | D139: =IF('DF raw data'!L139="","",'DF raw data'!L139) -> -3.26684e-05 | F139: 3.934716585e-06 | G139: 5.244707413e-05 | H139: -3.02069854e-06 | J139: 6.104236165e-05 | K139: 0.001610543512 | L139: 0.001755202872 | M139: 0.0329919692 | N139: 3.924778729e-05
A140: =IF('DF raw data'!I140="","",'DF raw data'!I140) -> -263.5 | B140: =IF('DF raw data'!J140="","",'DF raw data'!J140) -> -3.58543e-05 | C140: =IF('DF raw data'!K140="","",'DF raw data'!K140) -> 5.73533e-05 | D140: =IF('DF raw data'!L140="","",'DF raw data'!L140) -> -3.43812e-05 | F140: 1.422124425e-06 | G140: 5.059817797e-05 | H140: -4.74309022e-06 | J140: 6.175342386e-05 | K140: 0.001641420224 | L140: 0.001780501961 | M140: 0.03388222018 | N140: 4.083478765e-05
A141: =IF('DF raw data'!I141="","",'DF raw data'!I141) -> -263 | B141: =IF('DF raw data'!J141="","",'DF raw data'!J141) -> -3.83558e-05 | C141: =IF('DF raw data'!K141="","",'DF raw data'!K141) -> 5.79821e-05 | D141: =IF('DF raw data'!L141="","",'DF raw data'!L141) -> -3.123e-05 | F141: -1.093383975e-06 | G141: 5.123049925e-05 | H141: -1.5742435e-06 | J141: 6.120673187e-05 | K141: 0.00167202359 | L141: 0.001806117211 | M141: 0.03478527879 | N141: 4.246769047e-05
A142: =IF('DF raw data'!I142="","",'DF raw data'!I142) -> -262.5 | B142: =IF('DF raw data'!J142="","",'DF raw data'!J142) -> -3.89342e-05 | C142: =IF('DF raw data'!K142="","",'DF raw data'!K142) -> 6.24885e-05 | D142: =IF('DF raw data'!L142="","",'DF raw data'!L142) -> -2.90962e-05 | F142: -1.675023015e-06 | G142: 5.576213509e-05 | H142: 5.715057805e-07 | J142: 6.036922036e-05 | K142: 0.0017022082 | L142: 0.001833998278 | M142: 0.03570227793 | N142: 4.415128753e-05
A143: =IF('DF raw data'!I143="","",'DF raw data'!I143) -> -262 | B143: =IF('DF raw data'!J143="","",'DF raw data'!J143) -> -4.55993e-05 | C143: =IF('DF raw data'!K143="","",'DF raw data'!K143) -> 4.8675e-05 | D143: =IF('DF raw data'!L143="","",'DF raw data'!L143) -> -3.03262e-05 | F143: -8.377447575e-06 | G143: 4.187127949e-05 | H143: -6.653822195e-07 | J143: 5.618049658e-05 | K143: 0.001730298449 | L143: 0.001854933918 | M143: 0.03662974489 | N143: 4.587325558e-05
A144: =IF('DF raw data'!I144="","",'DF raw data'!I144) -> -261.5 | B144: =IF('DF raw data'!J144="","",'DF raw data'!J144) -> -4.13629e-05 | C144: =IF('DF raw data'!K144="","",'DF raw data'!K144) -> 4.86912e-05 | D144: =IF('DF raw data'!L144="","",'DF raw data'!L144) -> -3.97085e-05 | F144: -4.117323735e-06 | G144: 4.188757021e-05 | H144: -1.01002231e-05 | J144: 5.412183471e-05 | K144: 0.001757359366 | L144: 0.001875877703 | M144: 0.03756768374 | N144: 4.763417874e-05
A145: =IF('DF raw data'!I145="","",'DF raw data'!I145) -> -261 | B145: =IF('DF raw data'!J145="","",'DF raw data'!J145) -> -2.9191e-05 | C145: =IF('DF raw data'!K145="","",'DF raw data'!K145) -> 5.37501e-05 | D145: =IF('DF raw data'!L145="","",'DF raw data'!L145) -> -3.03871e-05 | F145: 8.122738905e-06 | G145: 4.697480005e-05 | H145: -7.266232595e-07 | J145: 5.818320416e-05 | K145: 0.001786450968 | L145: 0.001899365103 | M145: 0.03851736629 | N145: 4.943966528e-05
A146: =IF('DF raw data'!I146="","",'DF raw data'!I146) -> -260.5 | B146: =IF('DF raw data'!J146="","",'DF raw data'!J146) -> -4.16202e-05 | C146: =IF('DF raw data'!K146="","",'DF raw data'!K146) -> 5.00899e-05 | D146: =IF('DF raw data'!L146="","",'DF raw data'!L146) -> -3.82756e-05 | F146: -4.376064615e-06 | G146: 4.329410293e-05 | H146: -8.65929886e-06 | J146: 5.599517185e-05 | K146: 0.001814448554 | L146: 0.001921012155 | M146: 0.03947787237 | N146: 5.128637686e-05
A147: =IF('DF raw data'!I147="","",'DF raw data'!I147) -> -260 | B147: =IF('DF raw data'!J147="","",'DF raw data'!J147) -> -4.38699e-05 | C147: =IF('DF raw data'!K147="","",'DF raw data'!K147) -> 4.81217e-05 | D147: =IF('DF raw data'!L147="","",'DF raw data'!L147) -> -2.83743e-05 | F147: -6.638362935e-06 | G147: 4.131488101e-05 | H147: 1.29744842e-06 | J147: 5.267599039e-05 | K147: 0.001840786549 | L147: 0.001941669595 | M147: 0.04044870717 | N147: 5.317280465e-05
A148: =IF('DF raw data'!I148="","",'DF raw data'!I148) -> -259.5 | B148: =IF('DF raw data'!J148="","",'DF raw data'!J148) -> -3.95043e-05 | C148: =IF('DF raw data'!K148="","",'DF raw data'!K148) -> 5.07661e-05 | D148: =IF('DF raw data'!L148="","",'DF raw data'!L148) -> -3.93424e-05 | F148: -2.248315575e-06 | G148: 4.397408965e-05 | H148: -9.73207294e-06 | J148: 5.15518326e-05 | K148: 0.001866562465 | L148: 0.00196365664 | M148: 0.04143053548 | N148: 5.510210714e-05
A149: =IF('DF raw data'!I149="","",'DF raw data'!I149) -> -259 | B149: =IF('DF raw data'!J149="","",'DF raw data'!J149) -> -3.92572e-05 | C149: =IF('DF raw data'!K149="","",'DF raw data'!K149) -> 4.9553e-05 | D149: =IF('DF raw data'!L149="","",'DF raw data'!L149) -> -2.48861e-05 | F149: -1.999831815e-06 | G149: 4.275419629e-05 | H149: 4.80518234e-06 | J149: 5.055191669e-05 | K149: 0.001891838424 | L149: 0.001985033738 | M149: 0.04242305235 | N149: 5.707356436e-05
A150: =IF('DF raw data'!I150="","",'DF raw data'!I150) -> -258.5 | B150: =IF('DF raw data'!J150="","",'DF raw data'!J150) -> -3.80342e-05 | C150: =IF('DF raw data'!K150="","",'DF raw data'!K150) -> 5.96773e-05 | D150: =IF('DF raw data'!L150="","",'DF raw data'!L150) -> -3.32497e-05 | F150: -7.699830146e-07 | G150: 5.293519237e-05 | H150: -3.60525382e-06 | J150: 5.016692519e-05 | K150: 0.001916921886 | L150: 0.002011501334 | M150: 0.04342880302 | N150: 5.909789153e-05
A151: =IF('DF raw data'!I151="","",'DF raw data'!I151) -> -258 | B151: =IF('DF raw data'!J151="","",'DF raw data'!J151) -> -4.26442e-05 | C151: =IF('DF raw data'!K151="","",'DF raw data'!K151) -> 5.35712e-05 | D151: =IF('DF raw data'!L151="","",'DF raw data'!L151) -> -4.03566e-05 | F151: -5.405799015e-06 | G151: 4.679489821e-05 | H151: -1.075195246e-05 | J151: 4.746402568e-05 | K151: 0.001940653899 | L151: 0.002034898783 | M151: 0.04444625241 | N151: 6.116942448e-05
A152: =IF('DF raw data'!I152="","",'DF raw data'!I152) -> -257.5 | B152: =IF('DF raw data'!J152="","",'DF raw data'!J152) -> -4.91803e-05 | C152: =IF('DF raw data'!K152="","",'DF raw data'!K152) -> 4.41712e-05 | D152: =IF('DF raw data'!L152="","",'DF raw data'!L152) -> -4.30547e-05 | F152: -1.197850117e-05 | G152: 3.734225821e-05 | H152: -1.346516182e-05 | J152: 4.147477509e-05 | K152: 0.001961391287 | L152: 0.002053569912 | M152: 0.04547303737 | N152: 6.327885925e-05
A153: =IF('DF raw data'!I153="","",'DF raw data'!I153) -> -257 | B153: =IF('DF raw data'!J153="","",'DF raw data'!J153) -> -3.11683e-05 | C153: =IF('DF raw data'!K153="","",'DF raw data'!K153) -> 4.69049e-05 | D153: =IF('DF raw data'!L153="","",'DF raw data'!L153) -> -4.49634e-05 | F153: 6.134366025e-06 | G153: 4.009126693e-05 | H153: -1.538455054e-05 | J153: 4.45419581e-05 | K153: 0.001983662266 | L153: 0.002073615546 | M153: 0.04650984514 | N153: 6.542979196e-05
A154: =IF('DF raw data'!I154="","",'DF raw data'!I154) -> -256.5 | B154: =IF('DF raw data'!J154="","",'DF raw data'!J154) -> -3.25166e-05 | C154: =IF('DF raw data'!K154="","",'DF raw data'!K154) -> 5.2692e-05 | D154: =IF('DF raw data'!L154="","",'DF raw data'!L154) -> -4.15402e-05 | F154: 4.778515545e-06 | G154: 4.591077469e-05 | H154: -1.194218062e-05 | J154: 4.693121588e-05 | K154: 0.002007127874 | L154: 0.002096570933 | M154: 0.04755813061 | N154: 6.762869807e-05
A155: =IF('DF raw data'!I155="","",'DF raw data'!I155) -> -256 | B155: =IF('DF raw data'!J155="","",'DF raw data'!J155) -> -3.40499e-05 | C155: =IF('DF raw data'!K155="","",'DF raw data'!K155) -> 4.64295e-05 | D155: =IF('DF raw data'!L155="","",'DF raw data'!L155) -> -4.91081e-05 | F155: 3.236629065e-06 | G155: 3.961320469e-05 | H155: -1.955246086e-05 | J155: 4.854953041e-05 | K155: 0.002031402639 | L155: 0.002116377536 | M155: 0.04861631938 | N155: 6.986940353e-05
A156: =IF('DF raw data'!I156="","",'DF raw data'!I156) -> -255.5 | B156: =IF('DF raw data'!J156="","",'DF raw data'!J156) -> -2.97642e-05 | C156: =IF('DF raw data'!K156="","",'DF raw data'!K156) -> 4.69376e-05 | D156: =IF('DF raw data'!L156="","",'DF raw data'!L156) -> -3.58085e-05 | F156: 7.546328985e-06 | G156: 4.012415005e-05 | H156: -6.1783831e-06 | J156: 5.23226949e-05 | K156: 0.002057563986 | L156: 0.002136439611 | M156: 0.04968453918 | N156: 7.215295947e-05
A157: =IF('DF raw data'!I157="","",'DF raw data'!I157) -> -255 | B157: =IF('DF raw data'!J157="","",'DF raw data'!J157) -> -2.11133e-05 | C157: =IF('DF raw data'!K157="","",'DF raw data'!K157) -> 4.30645e-05 | D157: =IF('DF raw data'!L157="","",'DF raw data'!L157) -> -3.30551e-05 | F157: 1.624567403e-05 | G157: 3.622936069e-05 | H157: -3.40956406e-06 | J157: 6.044553191e-05 | K157: 0.002087786752 | L157: 0.002154554291 | M157: 0.05076181633 | N157: 7.44758384e-05
A158: =IF('DF raw data'!I158="","",'DF raw data'!I158) -> -254.5 | B158: =IF('DF raw data'!J158="","",'DF raw data'!J158) -> -3.16258e-05 | C158: =IF('DF raw data'!K158="","",'DF raw data'!K158) -> 4.58101e-05 | D158: =IF('DF raw data'!L158="","",'DF raw data'!L158) -> -3.15924e-05 | F158: 5.674304025e-06 | G158: 3.899033605e-05 | H158: -1.93867294e-06 | J158: 6.328268393e-05 | K158: 0.002119428094 | L158: 0.002174049459 | M158: 0.05184884106 | N158: 7.684108627e-05
A159: =IF('DF raw data'!I159="","",'DF raw data'!I159) -> -254 | B159: =IF('DF raw data'!J159="","",'DF raw data'!J159) -> -4.00764e-05 | C159: =IF('DF raw data'!K159="","",'DF raw data'!K159) -> 5.11081e-05 | D159: =IF('DF raw data'!L159="","",'DF raw data'!L159) -> -4.68472e-05 | F159: -2.823619335e-06 | G159: 4.431800485e-05 | H159: -1.727889982e-05 | J159: 6.187087426e-05 | K159: 0.002150363531 | L159: 0.002196208461 | M159: 0.05294694529 | N159: 7.925466608e-05
A160: =IF('DF raw data'!I160="","",'DF raw data'!I160) -> -253.5 | B160: =IF('DF raw data'!J160="","",'DF raw data'!J160) -> -3.11741e-05 | C160: =IF('DF raw data'!K160="","",'DF raw data'!K160) -> 5.29472e-05 | D160: =IF('DF raw data'!L160="","",'DF raw data'!L160) -> -3.60139e-05 | F160: 6.128533545e-06 | G160: 4.616740381e-05 | H160: -6.38493334e-06 | J160: 6.493514103e-05 | K160: 0.002182831102 | L160: 0.002219292163 | M160: 0.05405659137 | N160: 8.171940321e-05
A161: =IF('DF raw data'!I161="","",'DF raw data'!I161) -> -253 | B161: =IF('DF raw data'!J161="","",'DF raw data'!J161) -> -2.79725e-05 | C161: =IF('DF raw data'!K161="","",'DF raw data'!K161) -> 4.75495e-05 | D161: =IF('DF raw data'!L161="","",'DF raw data'!L161) -> -3.13004e-05 | F161: 9.348062505e-06 | G161: 4.073947669e-05 | H161: -1.64503774e-06 | J161: 6.960917228e-05 | K161: 0.002217635688 | L161: 0.002239661902 | M161: 0.05517642232 | N161: 8.422986865e-05
A162: =IF('DF raw data'!I162="","",'DF raw data'!I162) -> -252.5 | B162: =IF('DF raw data'!J162="","",'DF raw data'!J162) -> -3.36693e-05 | C162: =IF('DF raw data'!K162="","",'DF raw data'!K162) -> 3.35522e-05 | D162: =IF('DF raw data'!L162="","",'DF raw data'!L162) -> -4.31058e-05 | F162: 3.619360425e-06 | G162: 2.666379181e-05 | H162: -1.351654798e-05 | J162: 7.14188525e-05 | K162: 0.002253345114 | L162: 0.002252993798 | M162: 0.05630291922 | N162: 8.67704095e-05
A163: =IF('DF raw data'!I163="","",'DF raw data'!I163) -> -252 | B163: =IF('DF raw data'!J163="","",'DF raw data'!J163) -> -3.45646e-05 | C163: =IF('DF raw data'!K163="","",'DF raw data'!K163) -> 3.8056e-05 | D163: =IF('DF raw data'!L163="","",'DF raw data'!L163) -> -4.60795e-05 | F163: 2.719046745e-06 | G163: 3.119281309e-05 | H163: -1.65069007e-05 | J163: 7.277837587e-05 | K163: 0.002289734302 | L163: 0.002268590204 | M163: 0.05743721432 | N163: 8.93463086e-05
A164: =IF('DF raw data'!I164="","",'DF raw data'!I164) -> -251.5 | B164: =IF('DF raw data'!J164="","",'DF raw data'!J164) -> -2.75182e-05 | C164: =IF('DF raw data'!K164="","",'DF raw data'!K164) -> 3.83476e-05 | D164: =IF('DF raw data'!L164="","",'DF raw data'!L164) -> -4.02684e-05 | F164: 9.804906585e-06 | G164: 3.148604605e-05 | H164: -1.066325854e-05 | J164: 7.768082916e-05 | K164: 0.002328574717 | L164: 0.002284333227 | M164: 0.05857938093 | N164: 9.195841491e-05
A165: =IF('DF raw data'!I165="","",'DF raw data'!I165) -> -251 | B165: =IF('DF raw data'!J165="","",'DF raw data'!J165) -> -2.71348e-05 | C165: =IF('DF raw data'!K165="","",'DF raw data'!K165) -> 3.68851e-05 | D165: =IF('DF raw data'!L165="","",'DF raw data'!L165) -> -3.79889e-05 | F165: 1.019045363e-05 | G165: 3.001535605e-05 | H165: -8.37099334e-06 | J165: 8.277605598e-05 | K165: 0.002369962745 | L165: 0.002299340905 | M165: 0.05972905139 | N165: 9.460532514e-05
A166: =IF('DF raw data'!I166="","",'DF raw data'!I166) -> -250.5 | B166: =IF('DF raw data'!J166="","",'DF raw data'!J166) -> -4.16779e-05 | C166: =IF('DF raw data'!K166="","",'DF raw data'!K166) -> 4.02949e-05 | D166: =IF('DF raw data'!L166="","",'DF raw data'!L166) -> -4.8273e-05 | F166: -4.434087735e-06 | G166: 3.344425093e-05 | H166: -1.87126843e-05 | J166: 8.055901211e-05 | K166: 0.002410242251 | L166: 0.002316063031 | M166: 0.0608870829 | N166: 9.7290644e-05
A167: =IF('DF raw data'!I167="","",'DF raw data'!I167) -> -250 | B167: =IF('DF raw data'!J167="","",'DF raw data'!J167) -> -4.02175e-05 | C167: =IF('DF raw data'!K167="","",'DF raw data'!K167) -> 4.27733e-05 | D167: =IF('DF raw data'!L167="","",'DF raw data'!L167) -> -2.69263e-05 | F167: -2.965509495e-06 | G167: 3.593652997e-05 | H167: 2.75355722e-06 | J167: 7.907625736e-05 | K167: 0.00244978038 | L167: 0.002334031296 | M167: 0.06205409855 | N167: 0.0001000176216
A168: =IF('DF raw data'!I168="","",'DF raw data'!I168) -> -249.5 | B168: =IF('DF raw data'!J168="","",'DF raw data'!J168) -> -4.23252e-05 | C168: =IF('DF raw data'!K168="","",'DF raw data'!K168) -> 4.88891e-05 | D168: =IF('DF raw data'!L168="","",'DF raw data'!L168) -> -3.8367e-05 | F168: -5.085012615e-06 | G168: 4.208657845e-05 | H168: -8.7512107e-06 | J168: 7.653375105e-05 | K168: 0.002488047255 | L168: 0.002355074585 | M168: 0.06323163584 | N168: 0.0001027937384
A169: =IF('DF raw data'!I169="","",'DF raw data'!I169) -> -249 | B169: =IF('DF raw data'!J169="","",'DF raw data'!J169) -> -2.99503e-05 | C169: =IF('DF raw data'!K169="","",'DF raw data'!K169) -> 4.31107e-05 | D169: =IF('DF raw data'!L169="","",'DF raw data'!L169) -> -4.54754e-05 | F169: 7.359186825e-06 | G169: 3.627581941e-05 | H169: -1.589941774e-05 | J169: 8.021334447e-05 | K169: 0.002528153927 | L169: 0.002373212495 | M169: 0.06441824209 | N169: 0.0001056130243
A170: =IF('DF raw data'!I170="","",'DF raw data'!I170) -> -248.5 | B170: =IF('DF raw data'!J170="","",'DF raw data'!J170) -> -3.68102e-05 | C170: =IF('DF raw data'!K170="","",'DF raw data'!K170) -> 3.86416e-05 | D170: =IF('DF raw data'!L170="","",'DF raw data'!L170) -> -4.27517e-05 | F170: 4.608713854e-07 | G170: 3.178169245e-05 | H170: -1.316046502e-05 | J170: 8.044378016e-05 | K170: 0.002568375817 | L170: 0.002389103341 | M170: 0.06561279376 | N170: 0.0001084701673
A171: =IF('DF raw data'!I171="","",'DF raw data'!I171) -> -248 | B171: =IF('DF raw data'!J171="","",'DF raw data'!J171) -> -4.39898e-05 | C171: =IF('DF raw data'!K171="","",'DF raw data'!K171) -> 4.31119e-05 | D171: =IF('DF raw data'!L171="","",'DF raw data'!L171) -> -4.11514e-05 | F171: -6.758934375e-06 | G171: 3.627702613e-05 | H171: -1.155120334e-05 | J171: 7.706431297e-05 | K171: 0.002606907974 | L171: 0.002407241854 | M171: 0.06681641469 | N171: 0.0001113705434
A172: =IF('DF raw data'!I172="","",'DF raw data'!I172) -> -247.5 | B172: =IF('DF raw data'!J172="","",'DF raw data'!J172) -> -4.09237e-05 | C172: =IF('DF raw data'!K172="","",'DF raw data'!K172) -> 4.01097e-05 | D172: =IF('DF raw data'!L172="","",'DF raw data'!L172) -> -2.52827e-05 | F172: -3.675664215e-06 | G172: 3.325801381e-05 | H172: 4.40636138e-06 | J172: 7.522648086e-05 | K172: 0.002644521214 | L172: 0.002423870861 | M172: 0.06802835012 | N172: 0.0001143109479
A173: =IF('DF raw data'!I173="","",'DF raw data'!I173) -> -247 | B173: =IF('DF raw data'!J173="","",'DF raw data'!J173) -> -3.8221e-05 | C173: =IF('DF raw data'!K173="","",'DF raw data'!K173) -> 3.83731e-05 | D173: =IF('DF raw data'!L173="","",'DF raw data'!L173) -> -4.14201e-05 | F173: -9.578290946e-07 | G173: 3.151168885e-05 | H173: -1.182140806e-05 | J173: 7.474756632e-05 | K173: 0.002681894997 | L173: 0.002439626705 | M173: 0.06924816347 | N173: 0.0001172896307
A174: =IF('DF raw data'!I174="","",'DF raw data'!I174) -> -246.5 | B174: =IF('DF raw data'!J174="","",'DF raw data'!J174) -> -4.26416e-05 | C174: =IF('DF raw data'!K174="","",'DF raw data'!K174) -> 4.32717e-05 | D174: =IF('DF raw data'!L174="","",'DF raw data'!L174) -> -4.44515e-05 | F174: -5.403184455e-06 | G174: 3.643772101e-05 | H174: -1.48697839e-05 | J174: 7.204597409e-05 | K174: 0.002717917985 | L174: 0.002457845566 | M174: 0.07047708625 | N174: 0.0001203127284
A175: =IF('DF raw data'!I175="","",'DF raw data'!I175) -> -246 | B175: =IF('DF raw data'!J175="","",'DF raw data'!J175) -> -4.0851e-05 | C175: =IF('DF raw data'!K175="","",'DF raw data'!K175) -> 3.49005e-05 | D175: =IF('DF raw data'!L175="","",'DF raw data'!L175) -> -3.82368e-05 | F175: -3.602557095e-06 | G175: 2.801964229e-05 | H175: -8.62028158e-06 | J175: 7.024469554e-05 | K175: 0.002753040332 | L175: 0.002471855387 | M175: 0.07171301395 | N175: 0.0001233702301
A176: =IF('DF raw data'!I176="","",'DF raw data'!I176) -> -245.5 | B176: =IF('DF raw data'!J176="","",'DF raw data'!J176) -> -4.02732e-05 | C176: =IF('DF raw data'!K176="","",'DF raw data'!K176) -> 3.58048e-05 | D176: =IF('DF raw data'!L176="","",'DF raw data'!L176) -> -4.00019e-05 | F176: -3.021521415e-06 | G176: 2.892900637e-05 | H176: -1.039526614e-05 | J176: 6.873393484e-05 | K176: 0.0027874073 | L176: 0.00248631989 | M176: 0.07295617389 | N176: 0.0001264634856
A177: =IF('DF raw data'!I177="","",'DF raw data'!I177) -> -245 | B177: =IF('DF raw data'!J177="","",'DF raw data'!J177) -> -3.84816e-05 | C177: =IF('DF raw data'!K177="","",'DF raw data'!K177) -> 3.89682e-05 | D177: =IF('DF raw data'!L177="","",'DF raw data'!L177) -> -3.49894e-05 | F177: -1.219888455e-06 | G177: 3.211012141e-05 | H177: -5.35469614e-06 | J177: 6.812399061e-05 | K177: 0.002821469295 | L177: 0.002502374951 | M177: 0.07420736137 | N177: 0.0001295967462
A178: =IF('DF raw data'!I178="","",'DF raw data'!I178) -> -244.5 | B178: =IF('DF raw data'!J178="","",'DF raw data'!J178) -> -3.59775e-05 | C178: =IF('DF raw data'!K178="","",'DF raw data'!K178) -> 3.85941e-05 | D178: =IF('DF raw data'!L178="","",'DF raw data'!L178) -> -4.21121e-05 | F178: 1.298234505e-06 | G178: 3.173392645e-05 | H178: -1.251728326e-05 | J178: 6.877310786e-05 | K178: 0.002855855849 | L178: 0.002518241914 | M178: 0.07546648232 | N178: 0.0001327698823
A179: =IF('DF raw data'!I179="","",'DF raw data'!I179) -> -244 | B179: =IF('DF raw data'!J179="","",'DF raw data'!J179) -> -4.56594e-05 | C179: =IF('DF raw data'!K179="","",'DF raw data'!K179) -> 3.38725e-05 | D179: =IF('DF raw data'!L179="","",'DF raw data'!L179) -> -3.6351e-05 | F179: -8.437884135e-06 | G179: 2.698588549e-05 | H179: -6.7239211e-06 | J179: 6.455416579e-05 | K179: 0.002888132932 | L179: 0.002531734857 | M179: 0.07673234975 | N179: 0.0001359768066
A180: =IF('DF raw data'!I180="","",'DF raw data'!I180) -> -243.5 | B180: =IF('DF raw data'!J180="","",'DF raw data'!J180) -> -5.0784e-05 | C180: =IF('DF raw data'!K180="","",'DF raw data'!K180) -> 4.25367e-05 | D180: =IF('DF raw data'!L180="","",'DF raw data'!L180) -> -4.09589e-05 | F180: -1.359118189e-05 | G180: 3.569860501e-05 | H180: -1.135762534e-05 | J180: 5.775857485e-05 | K180: 0.002917012219 | L180: 0.002549584159 | M180: 0.07800714183 | N180: 0.0001392286643
A181: =IF('DF raw data'!I181="","",'DF raw data'!I181) -> -243 | B181: =IF('DF raw data'!J181="","",'DF raw data'!J181) -> -4.59159e-05 | C181: =IF('DF raw data'!K181="","",'DF raw data'!K181) -> 4.20416e-05 | D181: =IF('DF raw data'!L181="","",'DF raw data'!L181) -> -3.61042e-05 | F181: -8.695820535e-06 | G181: 3.520073245e-05 | H181: -6.47573902e-06 | J181: 5.341066458e-05 | K181: 0.002943717552 | L181: 0.002567184525 | M181: 0.07929073409 | N181: 0.0001425253089
A182: =IF('DF raw data'!I182="","",'DF raw data'!I182) -> -242.5 | B182: =IF('DF raw data'!J182="","",'DF raw data'!J182) -> -4.87998e-05 | C182: =IF('DF raw data'!K182="","",'DF raw data'!K182) -> 3.40744e-05 | D182: =IF('DF raw data'!L182="","",'DF raw data'!L182) -> -3.66275e-05 | F182: -1.159587037e-05 | G182: 2.718891613e-05 | H182: -7.0019695e-06 | J182: 4.761272939e-05 | K182: 0.002967523916 | L182: 0.002580778983 | M182: 0.08058112359 | N182: 0.0001458566524
A183: =IF('DF raw data'!I183="","",'DF raw data'!I183) -> -242 | B183: =IF('DF raw data'!J183="","",'DF raw data'!J183) -> -4.44371e-05 | C183: =IF('DF raw data'!K183="","",'DF raw data'!K183) -> 3.61557e-05 | D183: =IF('DF raw data'!L183="","",'DF raw data'!L183) -> -4.35658e-05 | F183: -7.208739255e-06 | G183: 2.928187141e-05 | H183: -1.397912398e-05 | J183: 4.400835976e-05 | K183: 0.002989528096 | L183: 0.002595419919 | M183: 0.08187883354 | N183: 0.0001492257231
A184: =IF('DF raw data'!I184="","",'DF raw data'!I184) -> -241.5 | B184: =IF('DF raw data'!J184="","",'DF raw data'!J184) -> -4.00861e-05 | C184: =IF('DF raw data'!K184="","",'DF raw data'!K184) -> 4.21897e-05 | D184: =IF('DF raw data'!L184="","",'DF raw data'!L184) -> -3.17015e-05 | F184: -2.833373655e-06 | G184: 3.534966181e-05 | H184: -2.0483839e-06 | J184: 4.259167294e-05 | K184: 0.003010823933 | L184: 0.00261309475 | M184: 0.08318538092 | N184: 0.0001526407622
A185: =IF('DF raw data'!I185="","",'DF raw data'!I185) -> -241 | B185: =IF('DF raw data'!J185="","",'DF raw data'!J185) -> -4.12379e-05 | C185: =IF('DF raw data'!K185="","",'DF raw data'!K185) -> 5.25538e-05 | D185: =IF('DF raw data'!L185="","",'DF raw data'!L185) -> -3.47675e-05 | F185: -3.991623735e-06 | G185: 4.577180077e-05 | H185: -5.1315535e-06 | J185: 4.059586107e-05 | K185: 0.003031121863 | L185: 0.00263598065 | M185: 0.08450337124 | N185: 0.0001561157832
A186: =IF('DF raw data'!I186="","",'DF raw data'!I186) -> -240.5 | B186: =IF('DF raw data'!J186="","",'DF raw data'!J186) -> -4.70101e-05 | C186: =IF('DF raw data'!K186="","",'DF raw data'!K186) -> 4.85798e-05 | D186: =IF('DF raw data'!L186="","",'DF raw data'!L186) -> -2.89638e-05 | F186: -9.796148055e-06 | G186: 4.177554637e-05 | H186: 7.046472205e-07 | J186: 3.569778704e-05 | K186: 0.003048970757 | L186: 0.002656868424 | M186: 0.08583180546 | N186: 0.0001596458953
A187: =IF('DF raw data'!I187="","",'DF raw data'!I187) -> -240 | B187: =IF('DF raw data'!J187="","",'DF raw data'!J187) -> -4.111e-05 | C187: =IF('DF raw data'!K187="","",'DF raw data'!K187) -> 4.5552e-05 | D187: =IF('DF raw data'!L187="","",'DF raw data'!L187) -> -3.43717e-05 | F187: -3.863007495e-06 | G187: 3.873079069e-05 | H187: -4.73353702e-06 | J187: 3.376628329e-05 | K187: 0.003065853898 | L187: 0.002676233819 | M187: 0.08716992237 | N187: 0.0001632275791
A188: =IF('DF raw data'!I188="","",'DF raw data'!I188) -> -239.5 | B188: =IF('DF raw data'!J188="","",'DF raw data'!J188) -> -3.69356e-05 | C188: =IF('DF raw data'!K188="","",'DF raw data'!K188) -> 5.50211e-05 | D188: =IF('DF raw data'!L188="","",'DF raw data'!L188) -> -4.67625e-05 | F188: 3.347691454e-07 | G188: 4.825291765e-05 | H188: -1.71937255e-05 | J188: 3.393366787e-05 | K188: 0.003082820732 | L188: 0.002700360278 | M188: 0.08852010251 | N188: 0.0001668741276
A189: =IF('DF raw data'!I189="","",'DF raw data'!I189) -> -239 | B189: =IF('DF raw data'!J189="","",'DF raw data'!J189) -> -3.68162e-05 | C189: =IF('DF raw data'!K189="","",'DF raw data'!K189) -> 4.85984e-05 | D189: =IF('DF raw data'!L189="","",'DF raw data'!L189) -> -3.36013e-05 | F189: 4.548377854e-07 | G189: 4.179425053e-05 | H189: -3.95882278e-06 | J189: 3.416108676e-05 | K189: 0.003099901276 | L189: 0.002721257403 | M189: 0.08988073121 | N189: 0.000170577332
A190: =IF('DF raw data'!I190="","",'DF raw data'!I190) -> -238.5 | B190: =IF('DF raw data'!J190="","",'DF raw data'!J190) -> -4.6363e-05 | C190: =IF('DF raw data'!K190="","",'DF raw data'!K190) -> 4.39989e-05 | D190: =IF('DF raw data'!L190="","",'DF raw data'!L190) -> -3.84717e-05 | F190: -9.145424295e-06 | G190: 3.716899333e-05 | H190: -8.85649702e-06 | J190: 2.958837461e-05 | K190: 0.003114695463 | L190: 0.0027398419 | M190: 0.09125065216 | N190: 0.0001743311366
A191: =IF('DF raw data'!I191="","",'DF raw data'!I191) -> -238 | B191: =IF('DF raw data'!J191="","",'DF raw data'!J191) -> -5.36052e-05 | C191: =IF('DF raw data'!K191="","",'DF raw data'!K191) -> 4.40621e-05 | D191: =IF('DF raw data'!L191="","",'DF raw data'!L191) -> -3.97092e-05 | F191: -1.642818061e-05 | G191: 3.723254725e-05 | H191: -1.010092702e-05 | J191: 2.137428431e-05 | K191: 0.003125382605 | L191: 0.002758458173 | M191: 0.09262988124 | N191: 0.0001781359108
A192: =IF('DF raw data'!I192="","",'DF raw data'!I192) -> -237.5 | B192: =IF('DF raw data'!J192="","",'DF raw data'!J192) -> -4.45784e-05 | C192: =IF('DF raw data'!K192="","",'DF raw data'!K192) -> 4.21986e-05 | D192: =IF('DF raw data'!L192="","",'DF raw data'!L192) -> -2.30549e-05 | F192: -7.350830535e-06 | G192: 3.535861165e-05 | H192: 6.64663706e-06 | J192: 1.769886904e-05 | K192: 0.00313423204 | L192: 0.002776137479 | M192: 0.09401794998 | N192: 0.0001819895371
A193: =IF('DF raw data'!I193="","",'DF raw data'!I193) -> -237 | B193: =IF('DF raw data'!J193="","",'DF raw data'!J193) -> -3.55286e-05 | C193: =IF('DF raw data'!K193="","",'DF raw data'!K193) -> 4.61145e-05 | D193: =IF('DF raw data'!L193="","",'DF raw data'!L193) -> -4.2337e-05 | F193: 1.749648345e-06 | G193: 3.929644069e-05 | H193: -1.27434427e-05 | J193: 1.857369321e-05 | K193: 0.003143518886 | L193: 0.0027957857 | M193: 0.09541584283 | N193: 0.0001858979184
A194: =IF('DF raw data'!I194="","",'DF raw data'!I194) -> -236.5 | B194: =IF('DF raw data'!J194="","",'DF raw data'!J194) -> -5.4253e-05 | C194: =IF('DF raw data'!K194="","",'DF raw data'!K194) -> 3.76703e-05 | D194: =IF('DF raw data'!L194="","",'DF raw data'!L194) -> -2.8355e-05 | F194: -1.707960829e-05 | G194: 3.080495317e-05 | H194: 1.3168565e-06 | J194: 1.003388906e-05 | K194: 0.003148535831 | L194: 0.002811188176 | M194: 0.09682143692 | N194: 0.0001898493582
A195: =IF('DF raw data'!I195="","",'DF raw data'!I195) -> -236 | B195: =IF('DF raw data'!J195="","",'DF raw data'!J195) -> -4.77122e-05 | C195: =IF('DF raw data'!K195="","",'DF raw data'!K195) -> 3.90759e-05 | D195: =IF('DF raw data'!L195="","",'DF raw data'!L195) -> -3.3656e-05 | F195: =(1-$G$1*($B$54-$G$2))*(B195-F$5) -> -1.050217981e-05 | G195: =(1-$G$1*($B$54-$G$2))*(C195-G$5) -> 3.221842453e-05 | H195: =(1-$G$1*($B$54-$G$2))*(D195-H$5) -> -4.0138291e-06 | J195: 4.782799156e-06 | K195: 0.00315092723 | L195: 0.002827297388 | M195: 0.09823508561 | N195: 0.0001938461749
A196: =IF('DF raw data'!I196="","",'DF raw data'!I196) -> -235.5 | B196: =IF('DF raw data'!J196="","",'DF raw data'!J196) -> -4.70079e-05 | C196: =IF('DF raw data'!K196="","",'DF raw data'!K196) -> 4.35926e-05 | D196: =IF('DF raw data'!L196="","",'DF raw data'!L196) -> -3.2301e-05 | F196: -9.793935735e-06 | G196: 3.676041805e-05 | H196: -2.6512411e-06 | J196: =F196*$G$3+J195 -> -1.141687112e-07 | K196: =J196*$G$3+K195 -> 0.003150870146 | L196: =G196*$G$3+L195 -> 0.002845677597 | M196: =L196*$G$3+M195 -> 0.09965792441 | N196: =(J196^2+L196^2)*$G$3+N195 -> 0.0001978951154
A197: =IF('DF raw data'!I197="","",'DF raw data'!I197) -> -235 | B197: =IF('DF raw data'!J197="","",'DF raw data'!J197) -> -4.7324e-05 | C197: =IF('DF raw data'!K197="","",'DF raw data'!K197) -> 4.85551e-05 | D197: =IF('DF raw data'!L197="","",'DF raw data'!L197) -> -3.93166e-05 | F197: -1.011180589e-05 | G197: 4.175070805e-05 | H197: -9.70612846e-06 | J197: -5.170071659e-06 | K197: 0.00314828511 | L197: 0.002866552951 | M197: 0.1010912009 | N197: 0.0002020036917
A198: =IF('DF raw data'!I198="","",'DF raw data'!I198) -> -234.5 | B198: =IF('DF raw data'!J198="","",'DF raw data'!J198) -> -4.9822e-05 | C198: =IF('DF raw data'!K198="","",'DF raw data'!K198) -> 4.23304e-05 | D198: =IF('DF raw data'!L198="","",'DF raw data'!L198) -> -4.15243e-05 | F198: -1.262379469e-05 | G198: 3.549114973e-05 | H198: -1.192619158e-05 | J198: -1.148196901e-05 | K198: 0.003142544126 | L198: 0.002884298526 | M198: 0.1025333502 | N198: 0.0002061633466
A199: =IF('DF raw data'!I199="","",'DF raw data'!I199) -> -234 | B199: =IF('DF raw data'!J199="","",'DF raw data'!J199) -> -4.68037e-05 | C199: =IF('DF raw data'!K199="","",'DF raw data'!K199) -> 4.22234e-05 | D199: =IF('DF raw data'!L199="","",'DF raw data'!L199) -> -5.09551e-05 | F199: -9.588592215e-06 | G199: 3.538355053e-05 | H199: -2.140980406e-05 | J199: -1.627626511e-05 | K199: 0.003134405993 | L199: 0.002901990302 | M199: 0.1039843453 | N199: 0.0002103742529
A200: =IF('DF raw data'!I200="","",'DF raw data'!I200) -> -233.5 | B200: =IF('DF raw data'!J200="","",'DF raw data'!J200) -> -5.25164e-05 | C200: =IF('DF raw data'!K200="","",'DF raw data'!K200) -> 4.76578e-05 | D200: =IF('DF raw data'!L200="","",'DF raw data'!L200) -> -3.75334e-05 | F200: -1.533328333e-05 | G200: 4.084838317e-05 | H200: -7.91294254e-06 | J200: -2.394290678e-05 | K200: 0.00312243454 | L200: 0.002922414493 | M200: 0.1054455525 | N200: 0.0002146447928
... 1079 more rows

Sheet 30 mm
A1: =IF('DF raw data'!M1="","",'DF raw data'!M1) -> Number of header lines | B1: =IF('DF raw data'!N1="","",'DF raw data'!N1) -> 54 | C1: =IF('DF raw data'!C1="","",'DF raw data'!C1) ->  | D1: =IF('DF raw data'!D1="","",'DF raw data'!D1) ->  | F1: T_coeff | G1: -0.001 | H1: /degC | J1: IBy total | K1: =J1267*1000 -> 0.01572934414 | L1: muTm | M1: =L1267*1000 -> 0.7717631316 | R1: DF ref | S1: 1
A2: =IF('DF raw data'!M2="","",'DF raw data'!M2) -> Measured by | B2: =IF('DF raw data'!N2="","",'DF raw data'!N2) -> Danfysik | C2: =IF('DF raw data'!C2="","",'DF raw data'!C2) ->  | D2: =IF('DF raw data'!D2="","",'DF raw data'!D2) ->  | F2: Tcorr | G2: 20 | H2: degC | J2: JBy total | K2: =K1267 -> 0.08766839722 | L2: muTm^2 | M2: =M1267 -> 2.167931489
A3: =IF('DF raw data'!M3="","",'DF raw data'!M3) -> Operator | B3: =IF('DF raw data'!N3="","",'DF raw data'!N3) -> PMHA | C3: =IF('DF raw data'!C3="","",'DF raw data'!C3) ->  | D3: =IF('DF raw data'!D3="","",'DF raw data'!D3) ->  | F3: Step | G3: =A68-A67 -> 0.5 | H3: mm | J3: PI total | K3: =N1267 -> 2487.532181 | L3: T^2mm^3
A4: =IF('DF raw data'!M4="","",'DF raw data'!M4) -> Data-time | B4: =IF('DF raw data'!N4="","",'DF raw data'!N4) -> 03-09-2024, 13:06:16 | C4: =IF('DF raw data'!C4="","",'DF raw data'!C4) ->  | D4: =IF('DF raw data'!D4="","",'DF raw data'!D4) -> 
A5: =IF('DF raw data'!M5="","",'DF raw data'!M5) -> Project | B5: =IF('DF raw data'!N5="","",'DF raw data'!N5) -> 504314 | C5: =IF('DF raw data'!C5="","",'DF raw data'!C5) ->  | D5: Bamb avr | F5: =(AVERAGE(B67:B107) + AVERAGE(B1227:B1267))/2 -> -3.460958537e-05 | G5: =(AVERAGE(C67:C107) + AVERAGE(C1227:C1267))/2 -> 4.062602683e-05 | H5: =(AVERAGE(D67:D107) + AVERAGE(D1227:D1267))/2 -> -2.895812317e-05
A6: =IF('DF raw data'!M6="","",'DF raw data'!M6) -> Magnet type | B6: =IF('DF raw data'!N6="","",'DF raw data'!N6) -> Dipole | C6: =IF('DF raw data'!C6="","",'DF raw data'!C6) -> 
A7: =IF('DF raw data'!M7="","",'DF raw data'!M7) -> Magnet nr. | B7: =IF('DF raw data'!N7="","",'DF raw data'!N7) -> 2410090 | C7: =IF('DF raw data'!C7="","",'DF raw data'!C7) -> 
A8: =IF('DF raw data'!M8="","",'DF raw data'!M8) -> Meas. number | B8: =IF('DF raw data'!N8="","",'DF raw data'!N8) -> 333 | C8: =IF('DF raw data'!C8="","",'DF raw data'!C8) -> 
A9: =IF('DF raw data'!M9="","",'DF raw data'!M9) -> Add. info | B9: =IF('DF raw data'!N9="","",'DF raw data'!N9) -> X-alignment scan 3) | C9: =IF('DF raw data'!C9="","",'DF raw data'!C9) ->  | D9: =IF('DF raw data'!D9="","",'DF raw data'!D9) -> 
A10: =IF('DF raw data'!M10="","",'DF raw data'!M10) -> Device | B10: =IF('DF raw data'!N10="","",'DF raw data'!N10) -> (HAL) HALL-PROBE | C10: =IF('DF raw data'!C10="","",'DF raw data'!C10) ->  | D10: =IF('DF raw data'!D10="","",'DF raw data'!D10) -> 
A11: =IF('DF raw data'!M11="","",'DF raw data'!M11) -> Goal | B11: =IF('DF raw data'!N11="","",'DF raw data'!N11) -> (AXI) AXis Integral (Line, EFB) | C11: =IF('DF raw data'!C11="","",'DF raw data'!C11) ->  | D11: =IF('DF raw data'!D11="","",'DF raw data'!D11) -> 
A12: =IF('DF raw data'!M12="","",'DF raw data'!M12) -> Power supply mode | B12: =IF('DF raw data'!N12="","",'DF raw data'!N12) -> (PM) Permanent Magnet (no MPS in use) | C12: =IF('DF raw data'!C12="","",'DF raw data'!C12) ->  | D12: =IF('DF raw data'!D12="","",'DF raw data'!D12) -> 
A13: =IF('DF raw data'!M13="","",'DF raw data'!M13) -> Data format | B13: =IF('DF raw data'!N13="","",'DF raw data'!N13) -> Raw data text file | C13: =IF('DF raw data'!C13="","",'DF raw data'!C13) ->  | D13: =IF('DF raw data'!D13="","",'DF raw data'!D13) -> 
A14: =IF('DF raw data'!M14="","",'DF raw data'!M14) -> Direction of the pos. x-axis | B14: =IF('DF raw data'!N14="","",'DF raw data'!N14) -> See test program | C14: =IF('DF raw data'!C14="","",'DF raw data'!C14) ->  | D14: =IF('DF raw data'!D14="","",'DF raw data'!D14) -> 
A15: =IF('DF raw data'!M15="","",'DF raw data'!M15) -> Direction of the pos. y-axis | B15: =IF('DF raw data'!N15="","",'DF raw data'!N15) -> Vertical up | C15: =IF('DF raw data'!C15="","",'DF raw data'!C15) ->  | D15: =IF('DF raw data'!D15="","",'DF raw data'!D15) -> 
A16: =IF('DF raw data'!M16="","",'DF raw data'!M16) -> Direction of the pos. z-axis | B16: =IF('DF raw data'!N16="","",'DF raw data'!N16) -> See test program | C16: =IF('DF raw data'!C16="","",'DF raw data'!C16) ->  | D16: =IF('DF raw data'!D16="","",'DF raw data'!D16) -> 
A17: =IF('DF raw data'!M17="","",'DF raw data'!M17) -> Mapper type | B17: =IF('DF raw data'!N17="","",'DF raw data'!N17) -> Precision Hall Mapper | C17: =IF('DF raw data'!C17="","",'DF raw data'!C17) ->  | D17: =IF('DF raw data'!D17="","",'DF raw data'!D17) -> 
A18: =IF('DF raw data'!M18="","",'DF raw data'!M18) -> Mapper Danfysik Reg. Number | B18: =IF('DF raw data'!N18="","",'DF raw data'!N18) -> 2033-D (mapper 1) | C18: =IF('DF raw data'!C18="","",'DF raw data'!C18) ->  | D18: =IF('DF raw data'!D18="","",'DF raw data'!D18) -> 
A19: =IF('DF raw data'!M19="","",'DF raw data'!M19) -> Measurement consept | B19: =IF('DF raw data'!N19="","",'DF raw data'!N19) -> Square line grid | C19: =IF('DF raw data'!C19="","",'DF raw data'!C19) ->  | D19: =IF('DF raw data'!D19="","",'DF raw data'!D19) -> 
A20: =IF('DF raw data'!M20="","",'DF raw data'!M20) -> Mode | B20: =IF('DF raw data'!N20="","",'DF raw data'!N20) -> On-the-fly measurement | C20: =IF('DF raw data'!C20="","",'DF raw data'!C20) ->  | D20: =IF('DF raw data'!D20="","",'DF raw data'!D20) -> 
A21: =IF('DF raw data'!M21="","",'DF raw data'!M21) ->  | B21: =IF('DF raw data'!N21="","",'DF raw data'!N21) ->  | C21: =IF('DF raw data'!C21="","",'DF raw data'!C21) ->  | D21: =IF('DF raw data'!D21="","",'DF raw data'!D21) -> 
A22: =IF('DF raw data'!M22="","",'DF raw data'!M22) -> Probe Name | B22: =IF('DF raw data'!N22="","",'DF raw data'!N22) -> ID12_By | C22: =IF('DF raw data'!C22="","",'DF raw data'!C22) ->  | D22: =IF('DF raw data'!D22="","",'DF raw data'!D22) -> 
A23: =IF('DF raw data'!M23="","",'DF raw data'!M23) -> Probe Type | B23: =IF('DF raw data'!N23="","",'DF raw data'!N23) -> DF_ID_3D_Bxyz | C23: =IF('DF raw data'!C23="","",'DF raw data'!C23) ->  | D23: =IF('DF raw data'!D23="","",'DF raw data'!D23) -> 
A24: =IF('DF raw data'!M24="","",'DF raw data'!M24) -> Probe Danfysik Reg. Number | B24: =IF('DF raw data'!N24="","",'DF raw data'!N24) -> 2277 | C24: =IF('DF raw data'!C24="","",'DF raw data'!C24) ->  | D24: =IF('DF raw data'!D24="","",'DF raw data'!D24) -> 
A25: =IF('DF raw data'!M25="","",'DF raw data'!M25) -> Probe Axis | B25: =IF('DF raw data'!N25="","",'DF raw data'!N25) -> By | C25: =IF('DF raw data'!C25="","",'DF raw data'!C25) ->  | D25: =IF('DF raw data'!D25="","",'DF raw data'!D25) -> 
A26: =IF('DF raw data'!M26="","",'DF raw data'!M26) -> Probe Current Supply | B26: =IF('DF raw data'!N26="","",'DF raw data'!N26) -> 1825-D | C26: =IF('DF raw data'!C26="","",'DF raw data'!C26) ->  | D26: =IF('DF raw data'!D26="","",'DF raw data'!D26) -> 
A27: =IF('DF raw data'!M27="","",'DF raw data'!M27) -> Probe Gain Correction | B27: =IF('DF raw data'!N27="","",'DF raw data'!N27) -> 0.99619 | C27: =IF('DF raw data'!C27="","",'DF raw data'!C27) ->  | D27: =IF('DF raw data'!D27="","",'DF raw data'!D27) -> 
A28: =IF('DF raw data'!M28="","",'DF raw data'!M28) -> Probe Offset Correction | B28: =IF('DF raw data'!N28="","",'DF raw data'!N28) -> 0.0027506 | C28: =IF('DF raw data'!C28="","",'DF raw data'!C28) ->  | D28: =IF('DF raw data'!D28="","",'DF raw data'!D28) -> 
A29: =IF('DF raw data'!M29="","",'DF raw data'!M29) -> DVM Number | B29: =IF('DF raw data'!N29="","",'DF raw data'!N29) -> 2 | C29: =IF('DF raw data'!C29="","",'DF raw data'!C29) ->  | D29: =IF('DF raw data'!D29="","",'DF raw data'!D29) -> 
A30: =IF('DF raw data'!M30="","",'DF raw data'!M30) -> DVM Type | B30: =IF('DF raw data'!N30="","",'DF raw data'!N30) -> K2701 | C30: =IF('DF raw data'!C30="","",'DF raw data'!C30) ->  | D30: =IF('DF raw data'!D30="","",'DF raw data'!D30) -> 
A31: =IF('DF raw data'!M31="","",'DF raw data'!M31) -> DVM Danfysik Reg. Number | B31: =IF('DF raw data'!N31="","",'DF raw data'!N31) -> 1743-D | C31: =IF('DF raw data'!C31="","",'DF raw data'!C31) ->  | D31: =IF('DF raw data'!D31="","",'DF raw data'!D31) -> 
A32: =IF('DF raw data'!M32="","",'DF raw data'!M32) -> Probe Name | B32: =IF('DF raw data'!N32="","",'DF raw data'!N32) -> ID12_Bx | C32: =IF('DF raw data'!C32="","",'DF raw data'!C32) ->  | D32: =IF('DF raw data'!D32="","",'DF raw data'!D32) -> 
A33: =IF('DF raw data'!M33="","",'DF raw data'!M33) -> Probe Type | B33: =IF('DF raw data'!N33="","",'DF raw data'!N33) -> DF_ID_3D_Bxyz | C33: =IF('DF raw data'!C33="","",'DF raw data'!C33) ->  | D33: =IF('DF raw data'!D33="","",'DF raw data'!D33) -> 
A34: =IF('DF raw data'!M34="","",'DF raw data'!M34) -> Probe Danfysik Reg. Number | B34: =IF('DF raw data'!N34="","",'DF raw data'!N34) -> 2277 | C34: =IF('DF raw data'!C34="","",'DF raw data'!C34) ->  | D34: =IF('DF raw data'!D34="","",'DF raw data'!D34) -> 
A35: =IF('DF raw data'!M35="","",'DF raw data'!M35) -> Probe Axis | B35: =IF('DF raw data'!N35="","",'DF raw data'!N35) -> Bx | C35: =IF('DF raw data'!C35="","",'DF raw data'!C35) ->  | D35: =IF('DF raw data'!D35="","",'DF raw data'!D35) -> 
A36: =IF('DF raw data'!M36="","",'DF raw data'!M36) -> Probe Current Supply | B36: =IF('DF raw data'!N36="","",'DF raw data'!N36) -> 1825-D | C36: =IF('DF raw data'!C36="","",'DF raw data'!C36) ->  | D36: =IF('DF raw data'!D36="","",'DF raw data'!D36) -> 
A37: =IF('DF raw data'!M37="","",'DF raw data'!M37) -> Probe Gain Correction | B37: =IF('DF raw data'!N37="","",'DF raw data'!N37) -> 1 | C37: =IF('DF raw data'!C37="","",'DF raw data'!C37) ->  | D37: =IF('DF raw data'!D37="","",'DF raw data'!D37) -> 
A38: =IF('DF raw data'!M38="","",'DF raw data'!M38) -> Probe Offset Correction | B38: =IF('DF raw data'!N38="","",'DF raw data'!N38) -> -0.17548 | C38: =IF('DF raw data'!C38="","",'DF raw data'!C38) ->  | D38: =IF('DF raw data'!D38="","",'DF raw data'!D38) -> 
A39: =IF('DF raw data'!M39="","",'DF raw data'!M39) -> DVM Number | B39: =IF('DF raw data'!N39="","",'DF raw data'!N39) -> 3 | C39: =IF('DF raw data'!C39="","",'DF raw data'!C39) ->  | D39: =IF('DF raw data'!D39="","",'DF raw data'!D39) -> 
A40: =IF('DF raw data'!M40="","",'DF raw data'!M40) -> DVM Type | B40: =IF('DF raw data'!N40="","",'DF raw data'!N40) -> K2701 | C40: =IF('DF raw data'!C40="","",'DF raw data'!C40) ->  | D40: =IF('DF raw data'!D40="","",'DF raw data'!D40) -> 
A41: =IF('DF raw data'!M41="","",'DF raw data'!M41) -> DVM Danfysik Reg. Number | B41: =IF('DF raw data'!N41="","",'DF raw data'!N41) -> 1744-D | C41: =IF('DF raw data'!C41="","",'DF raw data'!C41) ->  | D41: =IF('DF raw data'!D41="","",'DF raw data'!D41) -> 
A42: =IF('DF raw data'!M42="","",'DF raw data'!M42) -> Probe Name | B42: =IF('DF raw data'!N42="","",'DF raw data'!N42) -> ID12_Bz | C42: =IF('DF raw data'!C42="","",'DF raw data'!C42) ->  | D42: =IF('DF raw data'!D42="","",'DF raw data'!D42) -> 
A43: =IF('DF raw data'!M43="","",'DF raw data'!M43) -> Probe Type | B43: =IF('DF raw data'!N43="","",'DF raw data'!N43) -> DF_ID_3D_Bxyz | C43: =IF('DF raw data'!C43="","",'DF raw data'!C43) ->  | D43: =IF('DF raw data'!D43="","",'DF raw data'!D43) -> 
A44: =IF('DF raw data'!M44="","",'DF raw data'!M44) -> Probe Danfysik Reg. Number | B44: =IF('DF raw data'!N44="","",'DF raw data'!N44) -> 2277 | C44: =IF('DF raw data'!C44="","",'DF raw data'!C44) ->  | D44: =IF('DF raw data'!D44="","",'DF raw data'!D44) -> 
A45: =IF('DF raw data'!M45="","",'DF raw data'!M45) -> Probe Axis | B45: =IF('DF raw data'!N45="","",'DF raw data'!N45) -> Bz | C45: =IF('DF raw data'!C45="","",'DF raw data'!C45) ->  | D45: =IF('DF raw data'!D45="","",'DF raw data'!D45) -> 
A46: =IF('DF raw data'!M46="","",'DF raw data'!M46) -> Probe Current Supply | B46: =IF('DF raw data'!N46="","",'DF raw data'!N46) -> 1825-D | C46: =IF('DF raw data'!C46="","",'DF raw data'!C46) ->  | D46: =IF('DF raw data'!D46="","",'DF raw data'!D46) -> 
A47: =IF('DF raw data'!M47="","",'DF raw data'!M47) -> Probe Gain Correction | B47: =IF('DF raw data'!N47="","",'DF raw data'!N47) -> 1 | C47: =IF('DF raw data'!C47="","",'DF raw data'!C47) ->  | D47: =IF('DF raw data'!D47="","",'DF raw data'!D47) -> 
A48: =IF('DF raw data'!M48="","",'DF raw data'!M48) -> Probe Offset Correction | B48: =IF('DF raw data'!N48="","",'DF raw data'!N48) -> 0.0073243 | C48: =IF('DF raw data'!C48="","",'DF raw data'!C48) ->  | D48: =IF('DF raw data'!D48="","",'DF raw data'!D48) -> 
A49: =IF('DF raw data'!M49="","",'DF raw data'!M49) -> DVM Number | B49: =IF('DF raw data'!N49="","",'DF raw data'!N49) -> 8 | C49: =IF('DF raw data'!C49="","",'DF raw data'!C49) ->  | D49: =IF('DF raw data'!D49="","",'DF raw data'!D49) -> 
A50: =IF('DF raw data'!M50="","",'DF raw data'!M50) -> DVM Type | B50: =IF('DF raw data'!N50="","",'DF raw data'!N50) -> K2700 | C50: =IF('DF raw data'!C50="","",'DF raw data'!C50) ->  | D50: =IF('DF raw data'!D50="","",'DF raw data'!D50) -> 
A51: =IF('DF raw data'!M51="","",'DF raw data'!M51) -> DVM Danfysik Reg. Number | B51: =IF('DF raw data'!N51="","",'DF raw data'!N51) -> 1756-D | C51: =IF('DF raw data'!C51="","",'DF raw data'!C51) ->  | D51: =IF('DF raw data'!D51="","",'DF raw data'!D51) -> 
A52: =IF('DF raw data'!M52="","",'DF raw data'!M52) -> NTC voltage | B52: =IF('DF raw data'!N52="","",'DF raw data'!N52) -> 0.40888 | C52: =IF('DF raw data'!C52="","",'DF raw data'!C52) ->  | D52: =IF('DF raw data'!D52="","",'DF raw data'!D52) -> 
A53: =IF('DF raw data'!M53="","",'DF raw data'!M53) -> PS-Gap: | B53: =IF('DF raw data'!N53="","",'DF raw data'!N53) -> 30 | C53: =IF('DF raw data'!C53="","",'DF raw data'!C53) ->  | D53: =IF('DF raw data'!D53="","",'DF raw data'!D53) -> 
A54: =IF('DF raw data'!M54="","",'DF raw data'!M54) -> PS-Temperature: | B54: =IF('DF raw data'!N54="","",'DF raw data'!N54) -> 25 | C54: =IF('DF raw data'!C54="","",'DF raw data'!C54) ->  | D54: =IF('DF raw data'!D54="","",'DF raw data'!D54) -> 
A55: =IF('DF raw data'!M55="","",'DF raw data'!M55) -> PS-Encoder: | B55: =IF('DF raw data'!N55="","",'DF raw data'!N55) -> 39.6215 | C55: =IF('DF raw data'!C55="","",'DF raw data'!C55) ->  | D55: =IF('DF raw data'!D55="","",'DF raw data'!D55) -> 
A56: =IF('DF raw data'!M56="","",'DF raw data'!M56) ->  | B56: =IF('DF raw data'!N56="","",'DF raw data'!N56) -> 
A57: =IF('DF raw data'!M57="","",'DF raw data'!M57) -> Monitor-Index | B57: =IF('DF raw data'!N57="","",'DF raw data'!N57) -> [1,1,4]
A58: =IF('DF raw data'!M58="","",'DF raw data'!M58) ->  | B58: =IF('DF raw data'!N58="","",'DF raw data'!N58) -> 
A59: =IF('DF raw data'!M59="","",'DF raw data'!M59) -> Time [s] | B59: =IF('DF raw data'!N59="","",'DF raw data'!N59) -> Y [mm]
A60: =IF('DF raw data'!M60="","",'DF raw data'!M60) ->  | B60: =IF('DF raw data'!N60="","",'DF raw data'!N60) -> 
A61: =IF('DF raw data'!M61="","",'DF raw data'!M61) -> 208.1 | B61: =IF('DF raw data'!N61="","",'DF raw data'!N61) -> 31.46
A62: =IF('DF raw data'!M62="","",'DF raw data'!M62) ->  | B62: =IF('DF raw data'!N62="","",'DF raw data'!N62) -> 
A63: =IF('DF raw data'!M63="","",'DF raw data'!M63) -> Measurement-Index | B63: =IF('DF raw data'!N63="","",'DF raw data'!N63) -> [1,1,1201,2]
A64: =IF('DF raw data'!M64="","",'DF raw data'!M64) ->  | B64: =IF('DF raw data'!N64="","",'DF raw data'!N64) -> 
A65: =IF('DF raw data'!M65="","",'DF raw data'!M65) -> Z [mm] | B65: =IF('DF raw data'!N65="","",'DF raw data'!N65) -> By [T] | C65: =IF('DF raw data'!O65="","",'DF raw data'!O65) -> Bx [T] | D65: =IF('DF raw data'!P65="","",'DF raw data'!P65) -> Bz [T] | F65: By_corr | G65: Bx_corr | H65: Bz_corr | J65: Iy | K65: Jy | L65: Ix | M65: Jx | N65: PI
B66: =IF('DF raw data'!N66="","",'DF raw data'!N66) ->  | C66: =IF('DF raw data'!O66="","",'DF raw data'!O66) ->  | D66: =IF('DF raw data'!P66="","",'DF raw data'!P66) -> 
A67: =IF('DF raw data'!M67="","",'DF raw data'!M67) -> -300 | B67: =IF('DF raw data'!N67="","",'DF raw data'!N67) -> -3.81369e-05 | C67: =IF('DF raw data'!O67="","",'DF raw data'!O67) -> 4.82145e-05 | D67: =IF('DF raw data'!P67="","",'DF raw data'!P67) -> -2.6589e-05 | F67: =(1-$G$1*($B$54-$G$2))*(B67-F$5) -> -3.544951207e-06 | G67: =(1-$G$1*($B$54-$G$2))*(C67-G$5) -> 7.626415537e-06 | H67: =(1-$G$1*($B$54-$G$2))*(D67-H$5) -> 2.380968787e-06 | J67: =F67*$G$3+J66 -> -1.772475604e-06 | K67: =J67*$G$3+K66 -> -8.862378018e-07 | L67: =G67*$G$3+L66 -> 3.813207768e-06 | M67: =L67*$G$3+M66 -> 1.906603884e-06 | N67: =(J67^2+L67^2)*$G$3+N66 -> 8.841111625e-12
A68: =IF('DF raw data'!M68="","",'DF raw data'!M68) -> -299.5 | B68: =IF('DF raw data'!N68="","",'DF raw data'!N68) -> -3.14732e-05 | C68: =IF('DF raw data'!O68="","",'DF raw data'!O68) -> 4.55121e-05 | D68: =IF('DF raw data'!P68="","",'DF raw data'!P68) -> -2.71919e-05 | F68: 3.152067293e-06 | G68: 4.910503537e-06 | H68: 1.775054287e-06 | J68: =F68*$G$3+J67 -> -1.964419573e-07 | K68: =J68*$G$3+K67 -> -9.844587805e-07 | L68: =G68*$G$3+L67 -> 6.268459537e-06 | M68: =L68*$G$3+M67 -> 5.040833652e-06 | N68: =(J68^2+L68^2)*$G$3+N67 -> 2.850719883e-11
A69: =IF('DF raw data'!M69="","",'DF raw data'!M69) -> -299 | B69: =IF('DF raw data'!N69="","",'DF raw data'!N69) -> -2.56399e-05 | C69: =IF('DF raw data'!O69="","",'DF raw data'!O69) -> 5.87522e-05 | D69: =IF('DF raw data'!P69="","",'DF raw data'!P69) -> -2.82963e-05 | F69: 9.014533793e-06 | G69: 1.821680404e-05 | H69: 6.651322866e-07 | J69: 4.310824939e-06 | K69: 1.170953689e-06 | L69: 1.537686155e-05 | M69: 1.272926443e-05 | N69: 1.560227403e-10
A70: =IF('DF raw data'!M70="","",'DF raw data'!M70) -> -298.5 | B70: =IF('DF raw data'!N70="","",'DF raw data'!N70) -> -3.6342e-05 | C70: =IF('DF raw data'!O70="","",'DF raw data'!O70) -> 5.61444e-05 | D70: =IF('DF raw data'!P70="","",'DF raw data'!P70) -> -2.8613e-05 | F70: -1.741076707e-06 | G70: 1.559596504e-05 | H70: 3.468487866e-07 | J70: 3.440286585e-06 | K70: 2.891096982e-06 | L70: 2.317484407e-05 | M70: 2.431668647e-05 | N70: 4.304772251e-10
A71: =IF('DF raw data'!M71="","",'DF raw data'!M71) -> -298 | B71: =IF('DF raw data'!N71="","",'DF raw data'!N71) -> -3.46131e-05 | C71: =IF('DF raw data'!O71="","",'DF raw data'!O71) -> 6.74246e-05 | D71: =IF('DF raw data'!P71="","",'DF raw data'!P71) -> -2.81374e-05 | F71: -3.532207317e-09 | G71: 2.693256604e-05 | H71: 8.248267866e-07 | J71: 3.438520482e-06 | K71: 4.610357223e-06 | L71: 3.664112709e-05 | M71: 4.263725001e-05 | N71: 1.107675034e-09
A72: =IF('DF raw data'!M72="","",'DF raw data'!M72) -> -297.5 | B72: =IF('DF raw data'!N72="","",'DF raw data'!N72) -> -3.01899e-05 | C72: =IF('DF raw data'!O72="","",'DF raw data'!O72) -> 6.62635e-05 | D72: =IF('DF raw data'!P72="","",'DF raw data'!P72) -> -2.79075e-05 | F72: 4.441783793e-06 | G72: 2.576566054e-05 | H72: 1.055876287e-06 | J72: 5.659412378e-06 | K72: 7.440063412e-06 | L72: 4.952395736e-05 | M72: 6.739922869e-05 | N72: 2.350000684e-09
A73: =IF('DF raw data'!M73="","",'DF raw data'!M73) -> -297 | B73: =IF('DF raw data'!N73="","",'DF raw data'!N73) -> -2.88448e-05 | C73: =IF('DF raw data'!O73="","",'DF raw data'!O73) -> 5.86424e-05 | D73: =IF('DF raw data'!P73="","",'DF raw data'!P73) -> -2.81979e-05 | F73: 5.793609293e-06 | G73: 1.810645504e-05 | H73: 7.640242866e-07 | J73: 8.556217024e-06 | K73: 1.171817192e-05 | L73: 5.857718488e-05 | M73: 9.668782113e-05 | N73: 4.102248403e-09
A74: =IF('DF raw data'!M74="","",'DF raw data'!M74) -> -296.5 | B74: =IF('DF raw data'!N74="","",'DF raw data'!N74) -> -3.20482e-05 | C74: =IF('DF raw data'!O74="","",'DF raw data'!O74) -> 5.16987e-05 | D74: =IF('DF raw data'!P74="","",'DF raw data'!P74) -> -2.84207e-05 | F74: 2.574192293e-06 | G74: 1.112803654e-05 | H74: 5.401102866e-07 | J74: 9.843313171e-06 | K74: 1.663982851e-05 | L74: 6.414120315e-05 | M74: 0.0001287584227 | N74: 6.207740781e-09
A75: =IF('DF raw data'!M75="","",'DF raw data'!M75) -> -296 | B75: =IF('DF raw data'!N75="","",'DF raw data'!N75) -> -3.0062e-05 | C75: =IF('DF raw data'!O75="","",'DF raw data'!O75) -> 4.55712e-05 | D75: =IF('DF raw data'!P75="","",'DF raw data'!P75) -> -2.83779e-05 | F75: 4.570323293e-06 | G75: 4.969899037e-06 | H75: 5.831242866e-07 | J75: 1.212847482e-05 | K75: 2.270406592e-05 | L75: 6.662615266e-05 | M75: 0.000162071499 | N75: 8.500812841e-09
A76: =IF('DF raw data'!M76="","",'DF raw data'!M76) -> -295.5 | B76: =IF('DF raw data'!N76="","",'DF raw data'!N76) -> -3.21126e-05 | C76: =IF('DF raw data'!O76="","",'DF raw data'!O76) -> 5.54752e-05 | D76: =IF('DF raw data'!P76="","",'DF raw data'!P76) -> -2.81252e-05 | F76: 2.509470293e-06 | G76: 1.492341904e-05 | H76: 8.370877866e-07 | J76: 1.338320996e-05 | K76: 2.93956709e-05 | L76: 7.408786218e-05 | M76: 0.0001991154301 | N76: 1.133487366e-08
A77: =IF('DF raw data'!M77="","",'DF raw data'!M77) -> -295 | B77: =IF('DF raw data'!N77="","",'DF raw data'!N77) -> -3.08317e-05 | C77: =IF('DF raw data'!O77="","",'DF raw data'!O77) -> 5.73717e-05 | D77: =IF('DF raw data'!P77="","",'DF raw data'!P77) -> -2.79667e-05 | F77: 3.796774793e-06 | G77: 1.682940154e-05 | H77: 9.963802866e-07 | J77: 1.528159736e-05 | K77: 3.703646958e-05 | L77: 8.250256295e-05 | M77: 0.0002403667116 | N77: 1.485497371e-08
A78: =IF('DF raw data'!M78="","",'DF raw data'!M78) -> -294.5 | B78: =IF('DF raw data'!N78="","",'DF raw data'!N78) -> -2.70496e-05 | C78: =IF('DF raw data'!O78="","",'DF raw data'!O78) -> 5.44895e-05 | D78: =IF('DF raw data'!P78="","",'DF raw data'!P78) -> -2.8406e-05 | F78: 7.597785293e-06 | G78: 1.393279054e-05 | H78: 5.548837866e-07 | J78: 1.908049001e-05 | K78: 4.657671458e-05 | L78: 8.946895822e-05 | M78: 0.0002851011907 | N78: 1.90393535e-08
A79: =IF('DF raw data'!M79="","",'DF raw data'!M79) -> -294 | B79: =IF('DF raw data'!N79="","",'DF raw data'!N79) -> -2.5639e-05 | C79: =IF('DF raw data'!O79="","",'DF raw data'!O79) -> 5.15764e-05 | D79: =IF('DF raw data'!P79="","",'DF raw data'!P79) -> -2.89662e-05 | F79: 9.015438293e-06 | G79: 1.100512504e-05 | H79: -8.117213415e-09 | J79: 2.358820915e-05 | K79: 5.837081916e-05 | L79: 9.497152074e-05 | M79: 0.0003325869511 | N79: 2.382735019e-08
A80: =IF('DF raw data'!M80="","",'DF raw data'!M80) -> -293.5 | B80: =IF('DF raw data'!N80="","",'DF raw data'!N80) -> -3.95474e-05 | C80: =IF('DF raw data'!O80="","",'DF raw data'!O80) -> 4.95031e-05 | D80: =IF('DF raw data'!P80="","",'DF raw data'!P80) -> -2.85037e-05 | F80: -4.962503707e-06 | G80: 8.921458537e-06 | H80: 4.566952866e-07 | J80: 2.11069573e-05 | K80: 6.892429781e-05 | L80: 9.943225001e-05 | M80: 0.0003823030761 | N80: 2.899348818e-08
A81: =IF('DF raw data'!M81="","",'DF raw data'!M81) -> -293 | B81: =IF('DF raw data'!N81="","",'DF raw data'!N81) -> -3.3267e-05 | C81: =IF('DF raw data'!O81="","",'DF raw data'!O81) -> 5.41506e-05 | D81: =IF('DF raw data'!P81="","",'DF raw data'!P81) -> -2.77702e-05 | F81: 1.349298293e-06 | G81: 1.359219604e-05 | H81: 1.193862787e-06 | J81: 2.178160645e-05 | K81: 7.981510103e-05 | L81: 0.000106228348 | M81: 0.0004354172501 | N81: 3.487293833e-08
A82: =IF('DF raw data'!M82="","",'DF raw data'!M82) -> -292.5 | B82: =IF('DF raw data'!N82="","",'DF raw data'!N82) -> -2.21145e-05 | C82: =IF('DF raw data'!O82="","",'DF raw data'!O82) -> 5.05158e-05 | D82: =IF('DF raw data'!P82="","",'DF raw data'!P82) -> -2.79997e-05 | F82: 1.255756079e-05 | G82: 9.939222037e-06 | H82: 9.632152866e-07 | J82: 2.806038684e-05 | K82: 9.384529445e-05 | L82: 0.000111197959 | M82: 0.0004910162296 | N82: 4.144912403e-08
A83: =IF('DF raw data'!M83="","",'DF raw data'!M83) -> -292 | B83: =IF('DF raw data'!N83="","",'DF raw data'!N83) -> -3.30102e-05 | C83: =IF('DF raw data'!O83="","",'DF raw data'!O83) -> 4.918e-05 | D83: =IF('DF raw data'!P83="","",'DF raw data'!P83) -> -2.8519e-05 | F83: 1.607382293e-06 | G83: 8.596743037e-06 | H83: 4.413187866e-07 | J83: 2.886407799e-05 | K83: 0.0001082773334 | L83: 0.0001154963306 | M83: 0.0005487643949 | N83: 4.853539272e-08
A84: =IF('DF raw data'!M84="","",'DF raw data'!M84) -> -291.5 | B84: =IF('DF raw data'!N84="","",'DF raw data'!N84) -> -3.04512e-05 | C84: =IF('DF raw data'!O84="","",'DF raw data'!O84) -> 4.95839e-05 | D84: =IF('DF raw data'!P84="","",'DF raw data'!P84) -> -2.06806e-05 | F84: 4.179177293e-06 | G84: 9.002662537e-06 | H84: 8.318910787e-06 | J84: 3.095366663e-05 | K84: 0.0001237541668 | L84: 0.0001199976618 | M84: 0.0006087632258 | N84: 5.621417688e-08
A85: =IF('DF raw data'!M85="","",'DF raw data'!M85) -> -291 | B85: =IF('DF raw data'!N85="","",'DF raw data'!N85) -> -2.83958e-05 | C85: =IF('DF raw data'!O85="","",'DF raw data'!O85) -> 5.51661e-05 | D85: =IF('DF raw data'!P85="","",'DF raw data'!P85) -> -2.79094e-05 | F85: 6.244854293e-06 | G85: 1.461277354e-05 | H85: 1.053966787e-06 | J85: 3.407609378e-05 | K85: 0.0001407922137 | L85: 0.0001273040486 | M85: 0.0006724152501 | N85: 6.489792736e-08
A86: =IF('DF raw data'!M86="","",'DF raw data'!M86) -> -290.5 | B86: =IF('DF raw data'!N86="","",'DF raw data'!N86) -> -3.74408e-05 | C86: =IF('DF raw data'!O86="","",'DF raw data'!O86) -> 5.5284e-05 | D86: =IF('DF raw data'!P86="","",'DF raw data'!P86) -> -1.52851e-05 | F86: -2.845370707e-06 | G86: 1.473126304e-05 | H86: 1.374138829e-05 | J86: 3.265340843e-05 | K86: 0.0001571189179 | L86: 0.0001346696801 | M86: 0.0007397500902 | N86: 7.449901127e-08
A87: =IF('DF raw data'!M87="","",'DF raw data'!M87) -> -290 | B87: =IF('DF raw data'!N87="","",'DF raw data'!N87) -> -3.05708e-05 | C87: =IF('DF raw data'!O87="","",'DF raw data'!O87) -> 5.57892e-05 | D87: =IF('DF raw data'!P87="","",'DF raw data'!P87) -> -3.48273e-05 | F87: 4.058979293e-06 | G87: 1.523898904e-05 | H87: -5.898522713e-06 | J87: 3.468289807e-05 | K87: 0.0001744603669 | L87: 0.0001422891746 | M87: 0.0008108946775 | N87: 8.522356759e-08
A88: =IF('DF raw data'!M88="","",'DF raw data'!M88) -> -289.5 | B88: =IF('DF raw data'!N88="","",'DF raw data'!N88) -> -3.81989e-05 | C88: =IF('DF raw data'!O88="","",'DF raw data'!O88) -> 5.28111e-05 | D88: =IF('DF raw data'!P88="","",'DF raw data'!P88) -> -3.21738e-05 | F88: -3.607261207e-06 | G88: 1.224599854e-05 | H88: -3.231755213e-06 | J88: 3.287926747e-05 | K88: 0.0001909000006 | L88: 0.0001484121739 | M88: 0.0008851007644 | N88: 9.677717739e-08
A89: =IF('DF raw data'!M89="","",'DF raw data'!M89) -> -289 | B89: =IF('DF raw data'!N89="","",'DF raw data'!N89) -> -4.03161e-05 | C89: =IF('DF raw data'!O89="","",'DF raw data'!O89) -> 4.91578e-05 | D89: =IF('DF raw data'!P89="","",'DF raw data'!P89) -> -2.95581e-05 | F89: -5.735047207e-06 | G89: 8.574432037e-06 | H89: -6.029767134e-07 | J89: 3.001174387e-05 | K89: 0.0002059058726 | L89: 0.0001526993899 | M89: 0.0009614504594 | N89: 1.088860816e-07
A90: =IF('DF raw data'!M90="","",'DF raw data'!M90) -> -288.5 | B90: =IF('DF raw data'!N90="","",'DF raw data'!N90) -> -3.16014e-05 | C90: =IF('DF raw data'!O90="","",'DF raw data'!O90) -> 5.5745e-05 | D90: =IF('DF raw data'!P90="","",'DF raw data'!P90) -> -2.62664e-05 | F90: 3.023226293e-06 | G90: 1.519456804e-05 | H90: 2.705181787e-06 | J90: 3.152335701e-05 | K90: 0.0002216675511 | L90: 0.0001602966739 | M90: 0.001041598796 | N90: 1.222304545e-07
A91: =IF('DF raw data'!M91="","",'DF raw data'!M91) -> -288 | B91: =IF('DF raw data'!N91="","",'DF raw data'!N91) -> -2.7431e-05 | C91: =IF('DF raw data'!O91="","",'DF raw data'!O91) -> 5.22128e-05 | D91: =IF('DF raw data'!P91="","",'DF raw data'!P91) -> -3.33502e-05 | F91: 7.214478293e-06 | G91: 1.164470704e-05 | H91: -4.414037213e-06 | J91: 3.513059616e-05 | K91: 0.0002392328492 | L91: 0.0001661190275 | M91: 0.00112465831 | N91: 1.366452995e-07
A92: =IF('DF raw data'!M92="","",'DF raw data'!M92) -> -287.5 | B92: =IF('DF raw data'!N92="","",'DF raw data'!N92) -> -3.01929e-05 | C92: =IF('DF raw data'!O92="","",'DF raw data'!O92) -> 4.94294e-05 | D92: =IF('DF raw data'!P92="","",'DF raw data'!P92) -> -2.41218e-05 | F92: 4.438768793e-06 | G92: 8.847390037e-06 | H92: 4.860504787e-06 | J92: 3.734998055e-05 | K92: 0.0002579078394 | L92: 0.0001705427225 | M92: 0.001209929671 | N92: 1.518852201e-07
A93: =IF('DF raw data'!M93="","",'DF raw data'!M93) -> -287 | B93: =IF('DF raw data'!N93="","",'DF raw data'!N93) -> -3.38515e-05 | C93: =IF('DF raw data'!O93="","",'DF raw data'!O93) -> 4.81474e-05 | D93: =IF('DF raw data'!P93="","",'DF raw data'!P93) -> -1.61643e-05 | F93: 7.618757927e-07 | G93: 7.558980037e-06 | H93: 1.285779229e-05 | J93: 3.773091845e-05 | K93: 0.0002767732987 | L93: 0.0001743222125 | M93: 0.001297090778 | N93: 1.677911481e-07
A94: =IF('DF raw data'!M94="","",'DF raw data'!M94) -> -286.5 | B94: =IF('DF raw data'!N94="","",'DF raw data'!N94) -> -2.03893e-05 | C94: =IF('DF raw data'!O94="","",'DF raw data'!O94) -> 4.58791e-05 | D94: =IF('DF raw data'!P94="","",'DF raw data'!P94) -> -2.00528e-05 | F94: 1.429138679e-05 | G94: 5.279338537e-06 | H94: 8.949849787e-06 | J94: 4.487661185e-05 | K94: 0.0002992116046 | L94: 0.0001769618818 | M94: 0.001385571718 | N94: 1.844558571e-07
A95: =IF('DF raw data'!M95="","",'DF raw data'!M95) -> -286 | B95: =IF('DF raw data'!N95="","",'DF raw data'!N95) -> -3.2503e-05 | C95: =IF('DF raw data'!O95="","",'DF raw data'!O95) -> 4.62938e-05 | D95: =IF('DF raw data'!P95="","",'DF raw data'!P95) -> -1.98722e-05 | F95: 2.117118293e-06 | G95: 5.696112037e-06 | H95: 9.131352787e-06 | J95: 4.593517099e-05 | K95: 0.0003221791901 | L95: 0.0001798099378 | M95: 0.001475476687 | N95: 2.016766839e-07
A96: =IF('DF raw data'!M96="","",'DF raw data'!M96) -> -285.5 | B96: =IF('DF raw data'!N96="","",'DF raw data'!N96) -> -3.20503e-05 | C96: =IF('DF raw data'!O96="","",'DF raw data'!O96) -> 5.0107e-05 | D96: =IF('DF raw data'!P96="","",'DF raw data'!P96) -> -2.58765e-05 | F96: 2.572081793e-06 | G96: 9.528378037e-06 | H96: 3.097031287e-06 | J96: 4.722121189e-05 | K96: 0.000345789796 | L96: 0.0001845741268 | M96: 0.001567763751 | N96: 2.198254095e-07
A97: =IF('DF raw data'!M97="","",'DF raw data'!M97) -> -285 | B97: =IF('DF raw data'!N97="","",'DF raw data'!N97) -> -2.88994e-05 | C97: =IF('DF raw data'!O97="","",'DF raw data'!O97) -> 5.18401e-05 | D97: =IF('DF raw data'!P97="","",'DF raw data'!P97) -> -4.18322e-05 | F97: 5.738736293e-06 | G97: 1.127014354e-05 | H97: -1.293844721e-05 | J97: 5.009058004e-05 | K97: 0.000370835086 | L97: 0.0001902091986 | M97: 0.00166286835 | N97: 2.391697122e-07
A98: =IF('DF raw data'!M98="","",'DF raw data'!M98) -> -284.5 | B98: =IF('DF raw data'!N98="","",'DF raw data'!N98) -> -5.08883e-05 | C98: =IF('DF raw data'!O98="","",'DF raw data'!O98) -> 4.9683e-05 | D98: =IF('DF raw data'!P98="","",'DF raw data'!P98) -> -3.40938e-05 | F98: -1.636010821e-05 | G98: 9.102258037e-06 | H98: -5.161355213e-06 | J98: 4.191052593e-05 | K98: 0.000391790349 | L98: 0.0001947603276 | M98: 0.001760248514 | N98: 2.590137509e-07
A99: =IF('DF raw data'!M99="","",'DF raw data'!M99) -> -284 | B99: =IF('DF raw data'!N99="","",'DF raw data'!N99) -> -2.9224e-05 | C99: =IF('DF raw data'!O99="","",'DF raw data'!O99) -> 5.54316e-05 | D99: =IF('DF raw data'!P99="","",'DF raw data'!P99) -> -3.56325e-05 | F99: 5.412513293e-06 | G99: 1.487960104e-05 | H99: -6.707748713e-06 | J99: 4.461678258e-05 | K99: 0.0004140987403 | L99: 0.0002022001281 | M99: 0.001861348578 | N99: 2.804515254e-07
A100: =IF('DF raw data'!M100="","",'DF raw data'!M100) -> -283.5 | B100: =IF('DF raw data'!N100="","",'DF raw data'!N100) -> -3.47464e-05 | C100: =IF('DF raw data'!O100="","",'DF raw data'!O100) -> 5.13821e-05 | D100: =IF('DF raw data'!P100="","",'DF raw data'!P100) -> -1.95965e-05 | F100: -1.374987073e-07 | G100: 1.080985354e-05 | H100: 9.408431287e-06 | J100: 4.454803323e-05 | K100: 0.0004363727569 | L100: 0.0002076050549 | M100: 0.001965151105 | N100: 3.029937184e-07
A101: =IF('DF raw data'!M101="","",'DF raw data'!M101) -> -283 | B101: =IF('DF raw data'!N101="","",'DF raw data'!N101) -> -3.11499e-05 | C101: =IF('DF raw data'!O101="","",'DF raw data'!O101) -> 5.08742e-05 | D101: =IF('DF raw data'!P101="","",'DF raw data'!P101) -> -3.08315e-05 | F101: 3.476983793e-06 | G101: 1.029941404e-05 | H101: -1.882743713e-06 | J101: 4.628652512e-05 | K101: 0.0004595160195 | L101: 0.0002127547619 | M101: 0.002071528486 | N101: 3.26697234e-07
A102: =IF('DF raw data'!M102="","",'DF raw data'!M102) -> -282.5 | B102: =IF('DF raw data'!N102="","",'DF raw data'!N102) -> -3.59621e-05 | C102: =IF('DF raw data'!O102="","",'DF raw data'!O102) -> 4.89628e-05 | D102: =IF('DF raw data'!P102="","",'DF raw data'!P102) -> -2.24674e-05 | F102: -1.359277207e-06 | G102: 8.378457037e-06 | H102: 6.523176787e-06 | J102: 4.560688652e-05 | K102: 0.0004823194627 | L102: 0.0002169439904 | M102: 0.002180000481 | N102: 3.512695755e-07
A103: =IF('DF raw data'!M103="","",'DF raw data'!M103) -> -282 | B103: =IF('DF raw data'!N103="","",'DF raw data'!N103) -> -3.16026e-05 | C103: =IF('DF raw data'!O103="","",'DF raw data'!O103) -> 4.87733e-05 | D103: =IF('DF raw data'!P103="","",'DF raw data'!P103) -> -2.47221e-05 | F103: 3.022020293e-06 | G103: 8.188009537e-06 | H103: 4.257203287e-06 | J103: 4.711789666e-05 | K103: 0.0005058784111 | L103: 0.0002210379952 | M103: 0.002290519479 | N103: 3.768085213e-07
A104: =IF('DF raw data'!M104="","",'DF raw data'!M104) -> -281.5 | B104: =IF('DF raw data'!N104="","",'DF raw data'!N104) -> -3.62875e-05 | C104: =IF('DF raw data'!O104="","",'DF raw data'!O104) -> 5.43311e-05 | D104: =IF('DF raw data'!P104="","",'DF raw data'!P104) -> -1.4973e-05 | F104: -1.686304207e-06 | G104: 1.377359854e-05 | H104: 1.405504879e-05 | J104: 4.627474456e-05 | K104: 0.0005290157833 | L104: 0.0002279247944 | M104: 0.002404481876 | N104: 4.038540532e-07
A105: =IF('DF raw data'!M105="","",'DF raw data'!M105) -> -281 | B105: =IF('DF raw data'!N105="","",'DF raw data'!N105) -> -3.46187e-05 | C105: =IF('DF raw data'!O105="","",'DF raw data'!O105) -> 5.55592e-05 | D105: =IF('DF raw data'!P105="","",'DF raw data'!P105) -> -1.90184e-05 | F105: -9.160207317e-09 | G105: 1.500783904e-05 | H105: 9.989421787e-06 | J105: 4.627016446e-05 | K105: 0.0005521508656 | L105: 0.000235428714 | M105: 0.002522196233 | N105: 4.32637857e-07
A106: =IF('DF raw data'!M106="","",'DF raw data'!M106) -> -280.5 | B106: =IF('DF raw data'!N106="","",'DF raw data'!N106) -> -3.44188e-05 | C106: =IF('DF raw data'!O106="","",'DF raw data'!O106) -> 5.33311e-05 | D106: =IF('DF raw data'!P106="","",'DF raw data'!P106) -> -3.03419e-05 | F106: 1.917392927e-07 | G106: 1.276859854e-05 | H106: -1.390695713e-06 | J106: 4.63660341e-05 | K106: 0.0005753338826 | L106: 0.0002418130132 | M106: 0.00264310274 | N106: 4.629495282e-07
A107: =IF('DF raw data'!M107="","",'DF raw data'!M107) -> -280 | B107: =IF('DF raw data'!N107="","",'DF raw data'!N107) -> -3.74958e-05 | C107: =IF('DF raw data'!O107="","",'DF raw data'!O107) -> 6.00726e-05 | D107: =IF('DF raw data'!P107="","",'DF raw data'!P107) -> -3.01931e-05 | F107: -2.900645707e-06 | G107: 1.954380604e-05 | H107: -1.241151713e-06 | J107: 4.491571125e-05 | K107: 0.0005977917382 | L107: 0.0002515849162 | M107: 0.002768895198 | N107: 4.956057238e-07
A108: =IF('DF raw data'!M108="","",'DF raw data'!M108) -> -279.5 | B108: =IF('DF raw data'!N108="","",'DF raw data'!N108) -> -3.56345e-05 | C108: =IF('DF raw data'!O108="","",'DF raw data'!O108) -> 5.73166e-05 | D108: =IF('DF raw data'!P108="","",'DF raw data'!P108) -> -3.33358e-05 | F108: -1.030039207e-06 | G108: 1.677402604e-05 | H108: -4.399565213e-06 | J108: 4.440069165e-05 | K108: 0.0006199920841 | L108: 0.0002599719293 | M108: 0.002898881163 | N108: 5.303841365e-07
A109: =IF('DF raw data'!M109="","",'DF raw data'!M109) -> -279 | B109: =IF('DF raw data'!N109="","",'DF raw data'!N109) -> -2.9547e-05 | C109: =IF('DF raw data'!O109="","",'DF raw data'!O109) -> 5.54716e-05 | D109: =IF('DF raw data'!P109="","",'DF raw data'!P109) -> -3.16811e-05 | F109: 5.087898293e-06 | G109: 1.491980104e-05 | H109: -2.736591713e-06 | J109: 4.694464079e-05 | K109: 0.0006434644045 | L109: 0.0002674318298 | M109: 0.003032597078 | N109: 5.67245928e-07
A110: =IF('DF raw data'!M110="","",'DF raw data'!M110) -> -278.5 | B110: =IF('DF raw data'!N110="","",'DF raw data'!N110) -> -3.52567e-05 | C110: =IF('DF raw data'!O110="","",'DF raw data'!O110) -> 5.70398e-05 | D110: =IF('DF raw data'!P110="","",'DF raw data'!P110) -> -2.27764e-05 | F110: -6.503502073e-07 | G110: 1.649584204e-05 | H110: 6.212631787e-06 | J110: 4.661946569e-05 | K110: 0.0006667741373 | L110: 0.0002756797508 | M110: 0.003170436953 | N110: 6.063322778e-07
A111: =IF('DF raw data'!M111="","",'DF raw data'!M111) -> -278 | B111: =IF('DF raw data'!N111="","",'DF raw data'!N111) -> -3.52017e-05 | C111: =IF('DF raw data'!O111="","",'DF raw data'!O111) -> 6.15103e-05 | D111: =IF('DF raw data'!P111="","",'DF raw data'!P111) -> -9.96038e-06 | F111: -5.950752073e-07 | G111: 2.098869454e-05 | H111: 1.909273189e-05 | J111: 4.632192809e-05 | K111: 0.0006899351014 | L111: 0.0002861740981 | M111: 0.003313524002 | N111: 6.483529455e-07
A112: =IF('DF raw data'!M112="","",'DF raw data'!M112) -> -277.5 | B112: =IF('DF raw data'!N112="","",'DF raw data'!N112) -> -3.51903e-05 | C112: =IF('DF raw data'!O112="","",'DF raw data'!O112) -> 7.08674e-05 | D112: =IF('DF raw data'!P112="","",'DF raw data'!P112) -> -2.60618e-05 | F112: -5.836182073e-07 | G112: 3.039258004e-05 | H112: 2.910804787e-06 | J112: 4.603011898e-05 | K112: 0.0007129501608 | L112: 0.0003013703881 | M112: 0.003464209196 | N112: 6.948243868e-07
A113: =IF('DF raw data'!M113="","",'DF raw data'!M113) -> -277 | B113: =IF('DF raw data'!N113="","",'DF raw data'!N113) -> -3.79467e-05 | C113: =IF('DF raw data'!O113="","",'DF raw data'!O113) -> 6.2952e-05 | D113: =IF('DF raw data'!P113="","",'DF raw data'!P113) -> -2.70279e-05 | F113: -3.353800207e-06 | G113: 2.243760304e-05 | H113: 1.939874287e-06 | J113: 4.435321888e-05 | K113: 0.0007351267703 | L113: 0.0003125891896 | M113: 0.003620503791 | N113: 7.446639916e-07
A114: =IF('DF raw data'!M114="","",'DF raw data'!M114) -> -276.5 | B114: =IF('DF raw data'!N114="","",'DF raw data'!N114) -> -3.6724e-05 | C114: =IF('DF raw data'!O114="","",'DF raw data'!O114) -> 5.9154e-05 | D114: =IF('DF raw data'!P114="","",'DF raw data'!P114) -> -3.276e-05 | F114: -2.124986707e-06 | G114: 1.862061304e-05 | H114: -3.820886213e-06 | J114: 4.329072552e-05 | K114: 0.000756772133 | L114: 0.0003218994961 | M114: 0.003781453539 | N114: 7.974106778e-07
A115: =IF('DF raw data'!M115="","",'DF raw data'!M115) -> -276 | B115: =IF('DF raw data'!N115="","",'DF raw data'!N115) -> -3.24335e-05 | C115: =IF('DF raw data'!O115="","",'DF raw data'!O115) -> 6.3727e-05 | D115: =IF('DF raw data'!P115="","",'DF raw data'!P115) -> -2.88342e-05 | F115: 2.186965793e-06 | G115: 2.321647804e-05 | H115: 1.245427866e-07 | J115: 4.438420842e-05 | K115: 0.0007789642373 | L115: 0.0003335077351 | M115: 0.003948207406 | N115: 8.540093615e-07
A116: =IF('DF raw data'!M116="","",'DF raw data'!M116) -> -275.5 | B116: =IF('DF raw data'!N116="","",'DF raw data'!N116) -> -3.62813e-05 | C116: =IF('DF raw data'!O116="","",'DF raw data'!O116) -> 6.4029e-05 | D116: =IF('DF raw data'!P116="","",'DF raw data'!P116) -> -2.36953e-05 | F116: -1.680073207e-06 | G116: 2.351998804e-05 | H116: 5.289137287e-06 | J116: 4.354417182e-05 | K116: 0.0008007363232 | L116: 0.0003452677292 | M116: 0.004120841271 | N116: 9.145623114e-07
A117: =IF('DF raw data'!M117="","",'DF raw data'!M117) -> -275 | B117: =IF('DF raw data'!N117="","",'DF raw data'!N117) -> -3.27555e-05 | C117: =IF('DF raw data'!O117="","",'DF raw data'!O117) -> 5.82482e-05 | D117: =IF('DF raw data'!P117="","",'DF raw data'!P117) -> -2.6523e-05 | F117: 1.863355793e-06 | G117: 1.771028404e-05 | H117: 2.447298787e-06 | J117: 4.447584971e-05 | K117: 0.000822974248 | L117: 0.0003541228712 | M117: 0.004297902707 | N117: 9.782528659e-07
A118: =IF('DF raw data'!M118="","",'DF raw data'!M118) -> -274.5 | B118: =IF('DF raw data'!N118="","",'DF raw data'!N118) -> -3.60278e-05 | C118: =IF('DF raw data'!O118="","",'DF raw data'!O118) -> 6.0977e-05 | D118: =IF('DF raw data'!P118="","",'DF raw data'!P118) -> -1.93668e-05 | F118: -1.425305707e-06 | G118: 2.045272804e-05 | H118: 9.639279787e-06 | J118: 4.376319686e-05 | K118: 0.0008448558465 | L118: 0.0003643492352 | M118: 0.004480077324 | N118: 1.045585657e-06
A119: =IF('DF raw data'!M119="","",'DF raw data'!M119) -> -274 | B119: =IF('DF raw data'!N119="","",'DF raw data'!N119) -> -3.66025e-05 | C119: =IF('DF raw data'!O119="","",'DF raw data'!O119) -> 5.97727e-05 | D119: =IF('DF raw data'!P119="","",'DF raw data'!P119) -> -2.425e-05 | F119: -2.002879207e-06 | G119: 1.924240654e-05 | H119: 4.731663787e-06 | J119: 4.276175726e-05 | K119: 0.0008662367251 | L119: 0.0003739704385 | M119: 0.004667062543 | N119: 1.116426886e-06
A120: =IF('DF raw data'!M120="","",'DF raw data'!M120) -> -273.5 | B120: =IF('DF raw data'!N120="","",'DF raw data'!N120) -> -4.83331e-05 | C120: =IF('DF raw data'!O120="","",'DF raw data'!O120) -> 6.5668e-05 | D120: =IF('DF raw data'!P120="","",'DF raw data'!P120) -> -2.00014e-05 | F120: -1.379213221e-05 | G120: 2.516718304e-05 | H120: 9.001506787e-06 | J120: 3.586569115e-05 | K120: 0.0008841695707 | L120: 0.00038655403 | M120: 0.004860339558 | N120: 1.191782069e-06
A121: =IF('DF raw data'!M121="","",'DF raw data'!M121) -> -273 | B121: =IF('DF raw data'!N121="","",'DF raw data'!N121) -> -4.03804e-05 | C121: =IF('DF raw data'!O121="","",'DF raw data'!O121) -> 6.69028e-05 | D121: =IF('DF raw data'!P121="","",'DF raw data'!P121) -> -3.01223e-05 | F121: -5.799668707e-06 | G121: 2.640815704e-05 | H121: -1.169997713e-06 | J121: 3.29658568e-05 | K121: 0.0009006524991 | L121: 0.0003997581085 | M121: 0.005060218613 | N121: 1.272228715e-06
A122: =IF('DF raw data'!M122="","",'DF raw data'!M122) -> -272.5 | B122: =IF('DF raw data'!N122="","",'DF raw data'!N122) -> -4.15391e-05 | C122: =IF('DF raw data'!O122="","",'DF raw data'!O122) -> 4.98782e-05 | D122: =IF('DF raw data'!P122="","",'DF raw data'!P122) -> -2.05993e-05 | F122: -6.964162207e-06 | G122: 9.298434037e-06 | H122: 8.400617287e-06 | J122: 2.94837757e-05 | K122: 0.0009153943869 | L122: 0.0004044073255 | M122: 0.005262422275 | N122: 1.354436004e-06
A123: =IF('DF raw data'!M123="","",'DF raw data'!M123) -> -272 | B123: =IF('DF raw data'!N123="","",'DF raw data'!N123) -> -2.41698e-05 | C123: =IF('DF raw data'!O123="","",'DF raw data'!O123) -> 4.86149e-05 | D123: =IF('DF raw data'!P123="","",'DF raw data'!P123) -> -2.212e-05 | F123: 1.049198429e-05 | G123: 8.028817537e-06 | H123: 6.872313787e-06 | J123: 3.472976784e-05 | K123: 0.0009327592708 | L123: 0.0004084217343 | M123: 0.005466633143 | N123: 1.438443239e-06
A124: =IF('DF raw data'!M124="","",'DF raw data'!M124) -> -271.5 | B124: =IF('DF raw data'!N124="","",'DF raw data'!N124) -> -3.82797e-05 | C124: =IF('DF raw data'!O124="","",'DF raw data'!O124) -> 5.50053e-05 | D124: =IF('DF raw data'!P124="","",'DF raw data'!P124) -> -6.42892e-06 | F124: -3.688465207e-06 | G124: 1.445116954e-05 | H124: 2.264184919e-05 | J124: 3.288553524e-05 | K124: 0.0009492020384 | L124: 0.0004156473191 | M124: 0.005674456802 | N124: 1.525365315e-06
A125: =IF('DF raw data'!M125="","",'DF raw data'!M125) -> -271 | B125: =IF('DF raw data'!N125="","",'DF raw data'!N125) -> -3.33948e-05 | C125: =IF('DF raw data'!O125="","",'DF raw data'!O125) -> 6.00598e-05 | D125: =IF('DF raw data'!P125="","",'DF raw data'!P125) -> -2.86928e-05 | F125: 1.220859293e-06 | G125: 1.953094204e-05 | H125: 2.666497866e-07 | J125: 3.349596488e-05 | K125: 0.0009659500209 | L125: 0.0004254127901 | M125: 0.005887163197 | N125: 1.616414326e-06
A126: =IF('DF raw data'!M126="","",'DF raw data'!M126) -> -270.5 | B126: =IF('DF raw data'!N126="","",'DF raw data'!N126) -> -2.99938e-05 | C126: =IF('DF raw data'!O126="","",'DF raw data'!O126) -> 5.75013e-05 | D126: =IF('DF raw data'!P126="","",'DF raw data'!P126) -> -3.40816e-05 | F126: 4.638864293e-06 | G126: 1.695964954e-05 | H126: -5.149094213e-06 | J126: 3.581539703e-05 | K126: 0.0009838577194 | L126: 0.0004338926148 | M126: 0.006104109505 | N126: 1.711187098e-06
A127: =IF('DF raw data'!M127="","",'DF raw data'!M127) -> -270 | B127: =IF('DF raw data'!N127="","",'DF raw data'!N127) -> -3.80781e-05 | C127: =IF('DF raw data'!O127="","",'DF raw data'!O127) -> 5.37193e-05 | D127: =IF('DF raw data'!P127="","",'DF raw data'!P127) -> -2.17715e-05 | F127: -3.485857207e-06 | G127: 1.315873954e-05 | H127: 7.222556287e-06 | J127: 3.407246843e-05 | K127: 0.001000893954 | L127: 0.0004404719846 | M127: 0.006324345497 | N127: 1.808775349e-06
A128: =IF('DF raw data'!M128="","",'DF raw data'!M128) -> -269.5 | B128: =IF('DF raw data'!N128="","",'DF raw data'!N128) -> -3.0646e-05 | C128: =IF('DF raw data'!O128="","",'DF raw data'!O128) -> 6.40511e-05 | D128: =IF('DF raw data'!P128="","",'DF raw data'!P128) -> -1.67925e-05 | F128: 3.983403293e-06 | G128: 2.354219854e-05 | H128: 1.222645129e-05 | J128: 3.606417007e-05 | K128: 0.001018926039 | L128: 0.0004522430839 | M128: 0.006550467039 | N128: 1.911687565e-06
A129: =IF('DF raw data'!M129="","",'DF raw data'!M129) -> -269 | B129: =IF('DF raw data'!N129="","",'DF raw data'!N129) -> -3.92302e-05 | C129: =IF('DF raw data'!O129="","",'DF raw data'!O129) -> 7.58395e-05 | D129: =IF('DF raw data'!P129="","",'DF raw data'!P129) -> -2.42782e-05 | F129: -4.643717707e-06 | G129: 3.538954054e-05 | H129: 4.703322787e-06 | J129: 3.374231122e-05 | K129: 0.001035797194 | L129: 0.0004699378542 | M129: 0.006785435966 | N129: 2.02267763e-06
A130: =IF('DF raw data'!M130="","",'DF raw data'!M130) -> -268.5 | B130: =IF('DF raw data'!N130="","",'DF raw data'!N130) -> -3.90286e-05 | C130: =IF('DF raw data'!O130="","",'DF raw data'!O130) -> 6.00108e-05 | D130: =IF('DF raw data'!P130="","",'DF raw data'!P130) -> -3.77179e-05 | F130: -4.441109707e-06 | G130: 1.948169704e-05 | H130: -8.803575713e-06 | J130: 3.152175637e-05 | K130: 0.001051558072 | L130: 0.0004796787027 | M130: 0.007025275317 | N130: 2.138220269e-06
A131: =IF('DF raw data'!M131="","",'DF raw data'!M131) -> -268 | B131: =IF('DF raw data'!N131="","",'DF raw data'!N131) -> -3.78812e-05 | C131: =IF('DF raw data'!O131="","",'DF raw data'!O131) -> 5.93482e-05 | D131: =IF('DF raw data'!P131="","",'DF raw data'!P131) -> -2.92352e-05 | F131: =(1-$G$1*($B$54-$G$2))*(B131-F$5) -> -3.287972707e-06 | G131: =(1-$G$1*($B$54-$G$2))*(C131-G$5) -> 1.881578404e-05 | H131: =(1-$G$1*($B$54-$G$2))*(D131-H$5) -> -2.784622134e-07 | J131: 2.987777001e-05 | K131: 0.001066496957 | L131: 0.0004890865947 | M131: 0.007269818615 | N131: 2.258269458e-06
A132: =IF('DF raw data'!M132="","",'DF raw data'!M132) -> -267.5 | B132: =IF('DF raw data'!N132="","",'DF raw data'!N132) -> -3.89088e-05 | C132: =IF('DF raw data'!O132="","",'DF raw data'!O132) -> 6.09166e-05 | D132: =IF('DF raw data'!P132="","",'DF raw data'!P132) -> -2.45194e-05 | F132: -4.320710707e-06 | G132: 2.039202604e-05 | H132: 4.460916787e-06 | J132: =F132*$G$3+J131 -> 2.771741466e-05 | K132: =J132*$G$3+K131 -> 0.001080355665 | L132: =G132*$G$3+L131 -> 0.0004992826077 | M132: =L132*$G$3+M131 -> 0.007519459918 | N132: =(J132^2+L132^2)*$G$3+N131 -> 2.383295147e-06
A133: =IF('DF raw data'!M133="","",'DF raw data'!M133) -> -267 | B133: =IF('DF raw data'!N133="","",'DF raw data'!N133) -> -3.84006e-05 | C133: =IF('DF raw data'!O133="","",'DF raw data'!O133) -> 6.33927e-05 | D133: =IF('DF raw data'!P133="","",'DF raw data'!P133) -> -1.92524e-05 | F133: -3.809969707e-06 | G133: 2.288050654e-05 | H133: 9.754251787e-06 | J133: 2.58124298e-05 | K133: 0.00109326188 | L133: 0.000510722861 | M133: 0.007774821349 | N133: 2.514047208e-06
A134: =IF('DF raw data'!M134="","",'DF raw data'!M134) -> -266.5 | B134: =IF('DF raw data'!N134="","",'DF raw data'!N134) -> -5.16639e-05 | C134: =IF('DF raw data'!O134="","",'DF raw data'!O134) -> 6.26721e-05 | D134: =IF('DF raw data'!P134="","",'DF raw data'!P134) -> -2.32367e-05 | F134: -1.713958621e-05 | G134: 2.215630354e-05 | H134: 5.750030287e-06 | J134: 1.72426367e-05 | K134: 0.001101883198 | L134: 0.0005218010127 | M134: 0.008035721855 | N134: 2.650334011e-06
A135: =IF('DF raw data'!M135="","",'DF raw data'!M135) -> -266 | B135: =IF('DF raw data'!N135="","",'DF raw data'!N135) -> -3.34624e-05 | C135: =IF('DF raw data'!O135="","",'DF raw data'!O135) -> 6.12838e-05 | D135: =IF('DF raw data'!P135="","",'DF raw data'!P135) -> -2.33426e-05 | F135: 1.152921293e-06 | G135: 2.076106204e-05 | H135: 5.643600787e-06 | J135: 1.781909735e-05 | K135: 0.001110792747 | L135: 0.0005321815438 | M135: 0.008301812627 | N135: 2.792101369e-06
A136: =IF('DF raw data'!M136="","",'DF raw data'!M136) -> -265.5 | B136: =IF('DF raw data'!N136="","",'DF raw data'!N136) -> -3.40956e-05 | C136: =IF('DF raw data'!O136="","",'DF raw data'!O136) -> 5.65996e-05 | D136: =IF('DF raw data'!P136="","",'DF raw data'!P136) -> -3.41719e-05 | F136: 5.165552927e-07 | G136: 1.605344104e-05 | H136: -5.239845713e-06 | J136: 1.807737499e-05 | K136: 0.001119831434 | L136: 0.0005402082643 | M136: 0.008571916759 | N136: 2.938177249e-06
A137: =IF('DF raw data'!M137="","",'DF raw data'!M137) -> -265 | B137: =IF('DF raw data'!N137="","",'DF raw data'!N137) -> -3.38488e-05 | C137: =IF('DF raw data'!O137="","",'DF raw data'!O137) -> 5.39707e-05 | D137: =IF('DF raw data'!P137="","",'DF raw data'!P137) -> -2.1063e-05 | F137: 7.645892927e-07 | G137: 1.341139654e-05 | H137: 7.934598787e-06 | J137: 1.845966964e-05 | K137: 0.001129061269 | L137: 0.0005469139625 | M137: 0.008845373741 | N137: 3.08790507e-06
A138: =IF('DF raw data'!M138="","",'DF raw data'!M138) -> -264.5 | B138: =IF('DF raw data'!N138="","",'DF raw data'!N138) -> -3.12198e-05 | C138: =IF('DF raw data'!O138="","",'DF raw data'!O138) -> 5.53934e-05 | D138: =IF('DF raw data'!P138="","",'DF raw data'!P138) -> -2.12395e-05 | F138: 3.406734293e-06 | G138: 1.484121004e-05 | H138: 7.757216287e-06 | J138: 2.016303679e-05 | K138: 0.001139142787 | L138: 0.0005543345676 | M138: 0.009122541024 | N138: 3.24175175e-06
A139: =IF('DF raw data'!M139="","",'DF raw data'!M139) -> -264 | B139: =IF('DF raw data'!N139="","",'DF raw data'!N139) -> -3.36476e-05 | C139: =IF('DF raw data'!O139="","",'DF raw data'!O139) -> 6.50814e-05 | D139: =IF('DF raw data'!P139="","",'DF raw data'!P139) -> -3.48427e-05 | F139: 9.667952927e-07 | G139: 2.457765004e-05 | H139: -5.913999713e-06 | J139: 2.064643443e-05 | K139: 0.001149466005 | L139: 0.0005666233926 | M139: 0.009405852721 | N139: 3.402495922e-06
A140: =IF('DF raw data'!M140="","",'DF raw data'!M140) -> -263.5 | B140: =IF('DF raw data'!N140="","",'DF raw data'!N140) -> -4.03778e-05 | C140: =IF('DF raw data'!O140="","",'DF raw data'!O140) -> 6.30413e-05 | D140: =IF('DF raw data'!P140="","",'DF raw data'!P140) -> -3.20489e-05 | F140: -5.797055707e-06 | G140: 2.252734954e-05 | H140: -3.106230713e-06 | J140: 1.774790658e-05 | K140: 0.001158339958 | L140: 0.0005778870674 | M140: 0.009694796254 | N140: 3.569630148e-06
A141: =IF('DF raw data'!M141="","",'DF raw data'!M141) -> -263 | B141: =IF('DF raw data'!N141="","",'DF raw data'!N141) -> -4.11437e-05 | C141: =IF('DF raw data'!O141="","",'DF raw data'!O141) -> 6.1588e-05 | D141: =IF('DF raw data'!P141="","",'DF raw data'!P141) -> -3.97106e-05 | F141: -6.566785207e-06 | G141: 2.106678304e-05 | H141: -1.080623921e-05 | J141: 1.446451398e-05 | K141: 0.001165572215 | L141: 0.0005884204589 | M141: 0.009989006484 | N141: 3.742854077e-06
A142: =IF('DF raw data'!M142="","",'DF raw data'!M142) -> -262.5 | B142: =IF('DF raw data'!N142="","",'DF raw data'!N142) -> -3.32039e-05 | C142: =IF('DF raw data'!O142="","",'DF raw data'!O142) -> 6.09506e-05 | D142: =IF('DF raw data'!P142="","",'DF raw data'!P142) -> -2.47585e-05 | F142: 1.412713793e-06 | G142: 2.042619604e-05 | H142: 4.220621287e-06 | J142: 1.517087087e-05 | K142: 0.00117315765 | L142: 0.0005986335569 | M142: 0.01028832326 | N142: 3.922150223e-06
A143: =IF('DF raw data'!M143="","",'DF raw data'!M143) -> -262 | B143: =IF('DF raw data'!N143="","",'DF raw data'!N143) -> -4.02482e-05 | C143: =IF('DF raw data'!O143="","",'DF raw data'!O143) -> 6.86947e-05 | D143: =IF('DF raw data'!P143="","",'DF raw data'!P143) -> -3.69832e-05 | F143: -5.666807707e-06 | G143: 2.820901654e-05 | H143: -8.065202213e-06 | J143: 1.233746702e-05 | K143: 0.001179326384 | L143: 0.0006127380652 | M143: 0.01059469229 | N143: 4.109950297e-06
A144: =IF('DF raw data'!M144="","",'DF raw data'!M144) -> -261.5 | B144: =IF('DF raw data'!N144="","",'DF raw data'!N144) -> -4.73587e-05 | C144: =IF('DF raw data'!O144="","",'DF raw data'!O144) -> 6.83839e-05 | D144: =IF('DF raw data'!P144="","",'DF raw data'!P144) -> -3.92657e-05 | F144: -1.281286021e-05 | G144: 2.789666254e-05 | H144: -1.035911471e-05 | J144: 5.931036915e-06 | K144: 0.001182291902 | L144: 0.0006266863964 | M144: 0.01090803549 | N144: 4.306335806e-06
A145: =IF('DF raw data'!M145="","",'DF raw data'!M145) -> -261 | B145: =IF('DF raw data'!N145="","",'DF raw data'!N145) -> -4.51217e-05 | C145: =IF('DF raw data'!O145="","",'DF raw data'!O145) -> 5.95437e-05 | D145: =IF('DF raw data'!P145="","",'DF raw data'!P145) -> -3.34156e-05 | F145: -1.056467521e-05 | G145: 1.901226154e-05 | H145: -4.479764213e-06 | J145: 6.48699311e-07 | K145: 0.001182616252 | L145: 0.0006361925272 | M145: 0.01122613176 | N145: 4.508706482e-06
A146: =IF('DF raw data'!M146="","",'DF raw data'!M146) -> -260.5 | B146: =IF('DF raw data'!N146="","",'DF raw data'!N146) -> -5.33235e-05 | C146: =IF('DF raw data'!O146="","",'DF raw data'!O146) -> 5.80436e-05 | D146: =IF('DF raw data'!P146="","",'DF raw data'!P146) -> -3.28091e-05 | F146: -1.880748421e-05 | G146: 1.750466104e-05 | H146: -3.870231713e-06 | J146: -8.755042793e-06 | K146: 0.001178238731 | L146: 0.0006449448577 | M146: 0.01154860419 | N146: 4.716721742e-06
A147: =IF('DF raw data'!M147="","",'DF raw data'!M147) -> -260 | B147: =IF('DF raw data'!N147="","",'DF raw data'!N147) -> -3.95448e-05 | C147: =IF('DF raw data'!O147="","",'DF raw data'!O147) -> 5.55387e-05 | D147: =IF('DF raw data'!P147="","",'DF raw data'!P147) -> -3.45843e-05 | F147: -4.959890707e-06 | G147: 1.498723654e-05 | H147: -5.654307713e-06 | J147: -1.123498815e-05 | K147: 0.001172621236 | L147: 0.000652438476 | M147: 0.01187482342 | N147: 4.929622837e-06
A148: =IF('DF raw data'!M148="","",'DF raw data'!M148) -> -259.5 | B148: =IF('DF raw data'!N148="","",'DF raw data'!N148) -> -3.45424e-05 | C148: =IF('DF raw data'!O148="","",'DF raw data'!O148) -> 5.46369e-05 | D148: =IF('DF raw data'!P148="","",'DF raw data'!P148) -> -3.61999e-05 | F148: 6.752129268e-08 | G148: 1.408092754e-05 | H148: -7.277985713e-06 | J148: -1.12012275e-05 | K148: 0.001167020623 | L148: 0.0006594789397 | M148: 0.01220456289 | N148: 5.147141807e-06
A149: =IF('DF raw data'!M149="","",'DF raw data'!M149) -> -259 | B149: =IF('DF raw data'!N149="","",'DF raw data'!N149) -> -4.98674e-05 | C149: =IF('DF raw data'!O149="","",'DF raw data'!O149) -> 5.62724e-05 | D149: =IF('DF raw data'!P149="","",'DF raw data'!P149) -> -2.94794e-05 | F149: -1.533410371e-05 | G149: 1.572460504e-05 | H149: -5.238832134e-07 | J149: -1.886827935e-05 | K149: 0.001157586483 | L149: 0.0006673412423 | M149: 0.01253823351 | N149: 5.369991979e-06
A150: =IF('DF raw data'!M150="","",'DF raw data'!M150) -> -258.5 | B150: =IF('DF raw data'!N150="","",'DF raw data'!N150) -> -3.97338e-05 | C150: =IF('DF raw data'!O150="","",'DF raw data'!O150) -> 5.82039e-05 | D150: =IF('DF raw data'!P150="","",'DF raw data'!P150) -> -3.62181e-05 | F150: -5.149835707e-06 | G150: 1.766576254e-05 | H150: -7.296276713e-06 | J150: -2.144319721e-05 | K150: 0.001146864884 | L150: 0.0006761741235 | M150: 0.01287632058 | N150: 5.598827608e-06
A151: =IF('DF raw data'!M151="","",'DF raw data'!M151) -> -258 | B151: =IF('DF raw data'!N151="","",'DF raw data'!N151) -> -3.65974e-05 | C151: =IF('DF raw data'!O151="","",'DF raw data'!O151) -> 5.99809e-05 | D151: =IF('DF raw data'!P151="","",'DF raw data'!P151) -> -3.26934e-05 | F151: -1.997753707e-06 | G151: 1.945164754e-05 | H151: -3.753953213e-06 | J151: -2.244207406e-05 | K151: 0.001135643847 | L151: 0.0006858999473 | M151: 0.01321927055 | N151: 5.8343088e-06
A152: =IF('DF raw data'!M152="","",'DF raw data'!M152) -> -257.5 | B152: =IF('DF raw data'!N152="","",'DF raw data'!N152) -> -4.46055e-05 | C152: =IF('DF raw data'!O152="","",'DF raw data'!O152) -> 5.22439e-05 | D152: =IF('DF raw data'!P152="","",'DF raw data'!P152) -> -3.53129e-05 | F152: -1.004589421e-05 | G152: 1.167596254e-05 | H152: -6.386550713e-06 | J152: -2.746502116e-05 | K152: 0.001121911337 | L152: 0.0006917379286 | M152: 0.01356513951 | N152: 6.073936644e-06
A153: =IF('DF raw data'!M153="","",'DF raw data'!M153) -> -257 | B153: =IF('DF raw data'!N153="","",'DF raw data'!N153) -> -4.14067e-05 | C153: =IF('DF raw data'!O153="","",'DF raw data'!O153) -> 5.35334e-05 | D153: =IF('DF raw data'!P153="","",'DF raw data'!P153) -> -2.94561e-05 | F153: -6.831100207e-06 | G153: 1.297191004e-05 | H153: -5.004667134e-07 | J153: -3.088057127e-05 | K153: 0.001106471051 | L153: 0.0006982238836 | M153: 0.01391425146 | N153: 6.318171745e-06
A154: =IF('DF raw data'!M154="","",'DF raw data'!M154) -> -256.5 | B154: =IF('DF raw data'!N154="","",'DF raw data'!N154) -> -3.57018e-05 | C154: =IF('DF raw data'!O154="","",'DF raw data'!O154) -> 4.90137e-05 | D154: =IF('DF raw data'!P154="","",'DF raw data'!P154) -> -2.75543e-05 | F154: -1.097675707e-06 | G154: 8.429611537e-06 | H154: 1.410842287e-06 | J154: -3.142940912e-05 | K154: 0.001090756347 | L154: 0.0007024386894 | M154: 0.0142654708 | N154: 6.565375705e-06
A155: =IF('DF raw data'!M155="","",'DF raw data'!M155) -> -256 | B155: =IF('DF raw data'!N155="","",'DF raw data'!N155) -> -4.06386e-05 | C155: =IF('DF raw data'!O155="","",'DF raw data'!O155) -> 5.3878e-05 | D155: =IF('DF raw data'!P155="","",'DF raw data'!P155) -> -2.79529e-05 | F155: -6.059159707e-06 | G155: 1.331823304e-05 | H155: 1.010249287e-06 | J155: -3.445898898e-05 | K155: 0.001073526852 | L155: 0.0007090978059 | M155: 0.0146200197 | N155: 6.817379265e-06
A156: =IF('DF raw data'!M156="","",'DF raw data'!M156) -> -255.5 | B156: =IF('DF raw data'!N156="","",'DF raw data'!N156) -> -5.05678e-05 | C156: =IF('DF raw data'!O156="","",'DF raw data'!O156) -> 6.18456e-05 | D156: =IF('DF raw data'!P156="","",'DF raw data'!P156) -> -3.29973e-05 | F156: -1.603800571e-05 | G156: 2.132567104e-05 | H156: -4.059372713e-06 | J156: -4.247799183e-05 | K156: 0.001052287856 | L156: 0.0007197606414 | M156: 0.01497990002 | N156: 7.077309145e-06
A157: =IF('DF raw data'!M157="","",'DF raw data'!M157) -> -255 | B157: =IF('DF raw data'!N157="","",'DF raw data'!N157) -> -5.16589e-05 | C157: =IF('DF raw data'!O157="","",'DF raw data'!O157) -> 5.75658e-05 | D157: =IF('DF raw data'!P157="","",'DF raw data'!P157) -> -3.37313e-05 | F157: -1.713456121e-05 | G157: 1.702447204e-05 | H157: -4.797042713e-06 | J157: -5.104527243e-05 | K157: 0.00102676522 | L157: 0.0007282728774 | M157: 0.01534403646 | N157: 7.343802647e-06
A158: =IF('DF raw data'!M158="","",'DF raw data'!M158) -> -254.5 | B158: =IF('DF raw data'!N158="","",'DF raw data'!N158) -> -4.24945e-05 | C158: =IF('DF raw data'!O158="","",'DF raw data'!O158) -> 6.65577e-05 | D158: =IF('DF raw data'!P158="","",'DF raw data'!P158) -> -2.95428e-05 | F158: -7.924339207e-06 | G158: 2.606133154e-05 | H158: -5.876002134e-07 | J158: -5.500744204e-05 | K158: 0.000999261499 | L158: 0.0007413035432 | M158: 0.01571468823 | N158: 7.620081028e-06
A159: =IF('DF raw data'!M159="","",'DF raw data'!M159) -> -254 | B159: =IF('DF raw data'!N159="","",'DF raw data'!N159) -> -5.01239e-05 | C159: =IF('DF raw data'!O159="","",'DF raw data'!O159) -> 7.14652e-05 | D159: =IF('DF raw data'!P159="","",'DF raw data'!P159) -> -2.86788e-05 | F159: -1.559188621e-05 | G159: 3.099336904e-05 | H159: 2.807197866e-07 | J159: -6.280338514e-05 | K159: 0.0009678598065 | L159: 0.0007568002277 | M159: 0.01609308835 | N159: 7.908426453e-06
A160: =IF('DF raw data'!M160="","",'DF raw data'!M160) -> -253.5 | B160: =IF('DF raw data'!N160="","",'DF raw data'!N160) -> -4.42292e-05 | C160: =IF('DF raw data'!O160="","",'DF raw data'!O160) -> 5.63973e-05 | D160: =IF('DF raw data'!P160="","",'DF raw data'!P160) -> -2.25948e-05 | F160: -9.667712707e-06 | G160: 1.585012954e-05 | H160: 6.395139787e-06 | J160: -6.763724149e-05 | K160: 0.0009340411857 | L160: 0.0007647252925 | M160: 0.01647545099 | N160: 8.203116238e-06
A161: =IF('DF raw data'!M161="","",'DF raw data'!M161) -> -253 | B161: =IF('DF raw data'!N161="","",'DF raw data'!N161) -> -2.98757e-05 | C161: =IF('DF raw data'!O161="","",'DF raw data'!O161) -> 4.87827e-05 | D161: =IF('DF raw data'!P161="","",'DF raw data'!P161) -> -2.01925e-05 | F161: 4.757554793e-06 | G161: 8.197456537e-06 | H161: 8.809451287e-06 | J161: -6.52584641e-05 | K161: 0.0009014119537 | L161: 0.0007688240207 | M161: 0.01685986301 | N161: 8.500790759e-06
A162: =IF('DF raw data'!M162="","",'DF raw data'!M162) -> -252.5 | B162: =IF('DF raw data'!N162="","",'DF raw data'!N162) -> -3.90401e-05 | C162: =IF('DF raw data'!O162="","",'DF raw data'!O162) -> 5.38913e-05 | D162: =IF('DF raw data'!P162="","",'DF raw data'!P162) -> -1.90755e-05 | F162: -4.452667207e-06 | G162: 1.333159954e-05 | H162: 9.932036287e-06 | J162: -6.74847977e-05 | K162: 0.0008676695548 | L162: 0.0007754898205 | M162: 0.01724760792 | N162: 8.803760089e-06
A163: =IF('DF raw data'!M163="","",'DF raw data'!M163) -> -252 | B163: =IF('DF raw data'!N163="","",'DF raw data'!N163) -> -3.43569e-05 | C163: =IF('DF raw data'!O163="","",'DF raw data'!O163) -> 5.70818e-05 | D163: =IF('DF raw data'!P163="","",'DF raw data'!P163) -> -2.864e-05 | F163: 2.539487927e-07 | G163: 1.653805204e-05 | H163: 3.197137866e-07 | J163: -6.73578233e-05 | K163: 0.0008339906432 | L163: 0.0007837588465 | M163: 0.01763948734 | N163: 9.113167592e-06
